Workbook

Sheet __snloffice (hidden)
A1: 允䅁䅁䅷䅁䍁䅁䅁䅁䩁䅁䅁杄䅁䑁䅉䅍硁䑁䅧兕硁䅁䅁兂䅁䅁䄴䅁祁䑁䅁免㑁䙁䅅杍䅁䅁䅣䅁佁䅁䅁杍睁䑁䅅䅏剂䑁䅍䅁䥁䅁䅁杄䅁䑁䅉䅍硁䑁䅧兕ぁ䅁䅁䅁䅁䑁䅙䅁䉂䡁䅙睚杁䕁䅣兙穂䍁䅁睑ㅂ䡁䅍䅤療䝁䄰党祂䡁䅍䅉潁䝁䅅睙あ䡁䅕兙獂䍁䅫䅁䕁䅁䅁䅊䅁䕁䅫杢穂䡁䅑兡あ䡁䅕䅤灂䝁䄸杢杁䕁䄴兙瑂䝁䅕䅉䅁䅁䅯䅁佃䅁䅁睔睂䡁䅑兡療䝁䄴督㙁䕁䅍兤祂䡁䅉児卂䝁䅕䅣療䡁䅉䅤求䝁䅑䅉橂䡁䅕杣祂䝁䅕杢橂䡁䅫䅌乂䝁䅅睚㥁䕁䄰兓穂䡁䅑兙畂䝁䅑兙祂䝁䅑䅌䑂䝁䄸杢㉂䕁䄰党あ䝁䅧睢歂䑁䄰兔䩂䡁䅉党橂䝁䄸兢瑂䝁䅕杢歂䝁䅕䅚䅁䅁䅉䅁潁䅁䅁睔祂䝁䅫睚灂䝁䄴兙獂䝁䅷入杁䙁䅉党睂䝁䄸杣あ䝁䅕䅚䅁䅁䅅䅁卂䅁䅁杕求䡁䅁睢祂䡁䅑党歂䍁䅁杔求䡁䅑䅉偂䡁䅁党祂䝁䅅䅤灂䝁䄴睚杁䕁䅫杢橂䝁䄸兢求䍁䅁䅋卂䝁䅕䅣療䡁䅉䅤求䝁䅑克䅁䅁䅍䅁煁䅁䅁睕佂䕁䅷䅉䩂䝁䄴督あ䝁䅫䅤ㅂ䡁䅑兡療䝁䄴䅉䱂䝁䅕入杁䅁䅁睃䅁䑁䅉䅁啂䝁䄸䅤桂䝁䅷䅉卂䝁䅕杤求䝁䄴兤求䍁䅁䅋卂䝁䅕䅣療䡁䅉䅤求䝁䅑克䅁䅁䅙䅁䅁䅁䅁

Sheet 1.1 Recommended Cap Structure
A1: =Input!G28 -> Duke Energy Kentucky, Inc.
A2: Recommended Capital Structure and Cost Rates
A3: for Ratemaking Purposes
A4: at March 31, 2021
B7: Type Of Capital | D7: Ratios (1) | F7: Cost Rate | H7: Weighted Cost Rate
B9: Long-Term Debt | D9: =Input!F13 -> 0.46721 | F9: =Input!F16 -> 0.03843 | G9: (1) | H9: =ROUND(F9*D9,4) -> 0.018
B10: Short-Term Debt | D10: =Input!F15 -> 0.02584 | F10: =Input!F17 -> 0.01667 | G10: (1) | H10: =ROUND(F10*D10,4) -> 0.0004
B11: Common Equity | D11: =Input!F14 -> 0.50695 | F11: ='1.2 Summary of CE Models'!E25 -> 0.103 | G11: (2) | H11: 0.0522
B13: Total | D13: =SUM(D9:D11) -> 1 | H13: =SUM(H9:H11) -> 0.0706
A16: Notes:
A18: (1) | B18: Company-provided.
A19: (2) | B19: From page 2 of this Attachment.

Sheet 1.2 Summary of CE Models
A1: =Input!G28 -> Duke Energy Kentucky, Inc.
A2: Brief Summary of Common Equity Cost Rate
A5: Line No. | C5: Principal Methods | E5: =Input!I31 -> Proxy Group of Seven Natural Gas Distribution Companies
A7: 1. | C7: Discounted Cash Flow Model (DCF) (1) | E7: =AVERAGE('2.1 DCF Summary'!Y21)/100 -> 0.0957
A9: 2. | C9: Risk Premium Model (RPM) (2) | E9: =IFERROR('3.1 RP Summary'!D10,"NA")/100 -> 0.1065
A11: 3. | C11: Capital Asset Pricing Model (CAPM) (3) | E11: =IFERROR('4.1 CAPM'!V21,"NA")/100 -> 0.1162
A13: 4. | C13: Market Models Applied to Comparable Risk, Non-Price Regulated Companies (4) | E13: =IFERROR('6.1 CEM Summary'!E19,"NA")/100 -> 0.1227
A15: 5. | C15: Range of Common Equity Model Results | E15: 9.57% - 12.27%
A17: 6. | C17: Size Risk Adjustment (5) | E17: 0.0015
A19: 7. | C19: Credit Risk Adjustment (6) | E19: =ROUND((1/2)*'3.4 Moody''s Bond Yields'!I24,2)/100 -> 0.0014
A21: 8. | C21: Flotation Cost Adjustment (7) | E21: ='8.1 Equity Contributions'!M27/100 -> 0.001232224392
A23: 9. | C23: Indicated Range of Common Equity Cost Rates after Adjustment | E23: 9.98% - 12.68%
A25: 10. | C25: Recommended Common Equity Cost Rate | E25: 0.103
A27: Notes: | B27: (1) | C27: From page 1 of Attachment DWD-2.
B28: (2) | C28: From page 1 of Attachment DWD-3.
B29: (3) | C29: From page 1 of Attachment DWD-4.
B30: (4) | C30: From page 1 of Attachment DWD-6.
B31: (5) | C31: Adjustment to reflect the Company's greater business risk due to its smaller size relative to the Utility Proxy Group as detailed in Mr. D'Ascendis' direct testimony.
B32: (6) | C32: Company-specific risk adjustment to reflect Duke Energy Kentucky' greater risk due to its Baa1 long-term issuer rating relative to the average A2/A3 long-term issuer rating of the Utility Proxy Group as detailed in Mr. D'Ascendis' Direct Testimony.
B33: (7) | C33: From page 1 of Attachment DWD-8.

Sheet 2.1 DCF Summary
B1: =Input!G28 -> Duke Energy Kentucky, Inc.
B2: Indicated Common Equity Cost Rate Using the Discounted Cash Flow Model for the
B3: =Input!I31 -> Proxy Group of Seven Natural Gas Distribution Companies
D5: [1] | G5: [2] | J5: [3] | M5: [4] | P5: [5] | S5: [6] | V5: [7] | Y5: [8]
B7: =B3 -> Proxy Group of Seven Natural Gas Distribution Companies | D7: Average Dividend Yield (1) | G7: Value Line Projected Five Year Growth in EPS (2) | J7: Zack's Five Year Projected Growth Rate in EPS | M7: Bloomberg's Five Year Projected Growth Rate in EPS | P7: Yahoo! Finance Projected Five Year Growth in EPS | S7: Average Projected Five Year Growth in EPS (3) | V7: Adjusted Dividend Yield (4) | Y7: Indicated Common Equity Cost Rate (5)
A9: =Input!A2 -> ATO | B9: ='Proxy Data Lookup'!B3 -> Atmos Energy Corporation | D9: =HLOOKUP(A9,'Proxy Prices'!$B$4:$H$71,68,FALSE)*100 -> 2.75 | E9: % | G9: =IFERROR(('Proxy Data Lookup'!F3*100),"NA") -> 7 | H9: % | J9: =IFERROR(('Proxy Data Lookup'!C3*100),"NA") -> 7.3 | K9: % | M9: =IFERROR(('Proxy Data Lookup'!E3*100),"NA") -> 7.098 | N9: % | P9: =IFERROR(('Proxy Data Lookup'!D3*100),"NA") -> 7 | Q9: % | S9: =IFERROR(ROUND(AVERAGE(G9,J9,M9,P9),2),"NA") -> 7.1 | T9: % | V9: =IFERROR(D9*(1+(0.5*(S9/100))),"NA") -> 2.847625 | W9: % | Y9: =IFERROR(V9 + S9,"NA") -> 9.947625 | Z9: %
A10: =Input!A3 -> NJR | B10: ='Proxy Data Lookup'!B4 -> New Jersey Resources Corporation | D10: =HLOOKUP(A10,'Proxy Prices'!$B$4:$H$71,68,FALSE)*100 -> 3.48 | G10: =IFERROR(('Proxy Data Lookup'!F4*100),"NA") -> 1.5 | J10: =IFERROR(('Proxy Data Lookup'!C4*100),"NA") -> 6 | M10: =IFERROR(('Proxy Data Lookup'!E4*100),"NA") -> 7.733 | P10: =IFERROR(('Proxy Data Lookup'!D4*100),"NA") -> 6 | S10: =IFERROR(ROUND(AVERAGE(G10,J10,M10,P10),2),"NA") -> 5.31 | V10: =IFERROR(D10*(1+(0.5*(S10/100))),"NA") -> 3.572394 | Y10: =IFERROR(V10 + S10,"NA") -> 8.882394
A11: =Input!A4 -> NWN | B11: ='Proxy Data Lookup'!B5 -> Northwest Natural Holding Company | D11: =HLOOKUP(A11,'Proxy Prices'!$B$4:$H$71,68,FALSE)*100 -> 4 | G11: =IFERROR(('Proxy Data Lookup'!F5*100),"NA") -> 5.5 | J11: =IFERROR(('Proxy Data Lookup'!C5*100),"NA") -> NA | M11: =IFERROR(('Proxy Data Lookup'!E5*100),"NA") -> 5 | P11: =IFERROR(('Proxy Data Lookup'!D5*100),"NA") -> 3.1 | S11: 4.53 | V11: 4.0906 | Y11: 8.6206
A12: =Input!A5 -> OGS | B12: ='Proxy Data Lookup'!B6 -> ONE Gas, Inc. | D12: =HLOOKUP(A12,'Proxy Prices'!$B$4:$H$71,68,FALSE)*100 -> 3.18 | G12: =IFERROR(('Proxy Data Lookup'!F6*100),"NA") -> 6.5 | J12: =IFERROR(('Proxy Data Lookup'!C6*100),"NA") -> 5 | M12: =IFERROR(('Proxy Data Lookup'!E6*100),"NA") -> 5.667 | P12: =IFERROR(('Proxy Data Lookup'!D6*100),"NA") -> 5 | S12: 5.54 | V12: 3.268086 | Y12: 8.808086
A13: =Input!A6 -> SJI | B13: ='Proxy Data Lookup'!B7 -> South Jersey Industries, Inc. | D13: =HLOOKUP(A13,'Proxy Prices'!$B$4:$H$71,68,FALSE)*100 -> 5.1 | G13: =IFERROR(('Proxy Data Lookup'!F7*100),"NA") -> 10.5 | J13: =IFERROR(('Proxy Data Lookup'!C7*100),"NA") -> 4.4 | M13: =IFERROR(('Proxy Data Lookup'!E7*100),"NA") -> 2.68 | P13: =IFERROR(('Proxy Data Lookup'!D7*100),"NA") -> 4.4 | S13: 5.5 | V13: 5.24025 | Y13: 10.74025
A14: =Input!A7 -> SWX | B14: ='Proxy Data Lookup'!B8 -> Southwest Gas Holdings, Inc. | D14: =HLOOKUP(A14,'Proxy Prices'!$B$4:$H$71,68,FALSE)*100 -> 3.75 | G14: =IFERROR(('Proxy Data Lookup'!F8*100),"NA") -> 8 | J14: =IFERROR(('Proxy Data Lookup'!C8*100),"NA") -> 5 | M14: =IFERROR(('Proxy Data Lookup'!E8*100),"NA") -> 5 | P14: =IFERROR(('Proxy Data Lookup'!D8*100),"NA") -> 4 | S14: 5.5 | V14: 3.853125 | Y14: 9.353125
A15: =Input!A8 -> SR | B15: ='Proxy Data Lookup'!B9 -> Spire Inc. | D15: =HLOOKUP(A15,'Proxy Prices'!$B$4:$H$71,68,FALSE)*100 -> 3.89 | G15: =IFERROR(('Proxy Data Lookup'!F9*100),"NA") -> 9 | J15: =IFERROR(('Proxy Data Lookup'!C9*100),"NA") -> 5 | M15: =IFERROR(('Proxy Data Lookup'!E9*100),"NA") -> 12.62 | P15: =IFERROR(('Proxy Data Lookup'!D9*100),"NA") -> 5.7 | S15: 8.08 | V15: 4.047156 | Y15: 12.127156
V17: Average | Y17: =ROUND(AVERAGE(Y9:Y15),2) -> 9.78 | Z17: %
V19: Median | Y19: =ROUND(MEDIAN(Y9:Y15),2) -> 9.35 | Z19: %
V21: Average of Mean and Median | Y21: =ROUND(AVERAGE(Y17:Y19),2) -> 9.57 | Z21: %
E24: NA= Not Available
E25: NMF= Not Meaningful Figure
D27: Notes:
E28: (1) | F28: =CONCATENATE("Indicated dividend at ",TEXT(Input!E2,"mm/dd/yyyy")," divided by the average closing price of the last 60 trading days ending ",TEXT(Input!E2,"mm/dd/yyyy")," for each company.") -> Indicated dividend at 03/31/2021 divided by the average closing price of the last 60 trading days ending 03/31/2021 for each company.
E29: (2) | F29: From pages 2 through 8 of this Attachment.
E30: (3) | F30: Average of columns 2 through 5 excluding negative growth rates.
E31: (4) | F31: =CONCATENATE("This reflects a growth rate component equal to one-half the conclusion of growth rate (from column 6) x column 1 to reflect the periodic payment of dividends (Gordon Model) as opposed to the continuous payment. Thus, for ",B9,", ",TEXT(D9,"#0.00"),"% x (1+( 1/2 x ",TEXT(S9,"#0.00"),"%) ) = ",TEXT(V9,"#0.00"),"%.") -> This reflects a growth rate component equal to one-half the conclusion of growth rate (from column 6) x column 1 to reflect the periodic payment of dividends (Gordon Model) as opposed to the continuous payment. Thus, for Atmos Energy Corporation, 2.75% x (1+( 1/2 x 7.10%) ) = 2.85%.
E32: (5) | F32: Column 6 + column 7.
B34: Source of Information: | E34: Value Line Investment Survey
E35: =CONCATENATE("www.zacks.com Downloaded on ",TEXT(Input!E2,"mm/dd/yyyy")) -> www.zacks.com Downloaded on 03/31/2021
E36: =CONCATENATE("www.yahoo.com Downloaded on ",TEXT(Input!E2,"mm/dd/yyyy")) -> www.yahoo.com Downloaded on 03/31/2021
E37: Bloomberg Professional Services

Sheet 3.1 RP Summary
A1: =Input!G28 -> Duke Energy Kentucky, Inc.
A2: Summary of Risk Premium Models for the
A3: =Input!I31 -> Proxy Group of Seven Natural Gas Distribution Companies
D5: =A3 -> Proxy Group of Seven Natural Gas Distribution Companies
A6: Predictive Risk Premium Model (PRPM) (1) | D6: =IFERROR('3.2 Ind. PRPM Results'!P22*100,"NA") -> 10.96 | E6: %
A8: Risk Premium Using an Adjusted Total Market Approach (2) | D8: =IFERROR('3.3 Risk Premium Summary'!G28,"NA") -> 10.33 | E8: %
C10: Average | D10: =IFERROR(ROUND(AVERAGE(D6:D8),2),"NA") -> 10.65 | E10: %
A12: Notes:
A13: (1) | B13: From page 2 of this Attachment.
A14: (2) | B14: From page 3 of this Attachment.

Sheet 3.2 Ind. PRPM Results
B1: =Input!G28 -> Duke Energy Kentucky, Inc.
B2: Indicated ROE
B3: Derived by the Predictive Risk Premium Model (1)
D6: [1] | F6: [2] | H6: [3] | J6: [4] | L6: [5] | N6: [6] | P6: [7]
B8: =Input!I31 -> Proxy Group of Seven Natural Gas Distribution Companies | D8: LT Average Predicted Variance | F8: Spot Predicted Variance | H8: Recommended Variance (2) | J8: GARCH Coefficient | L8: Predicted Risk Premium (3) | N8: Risk-Free Rate (4) | P8: Indicated ROE (5)
A10: =Input!A2 -> ATO | B10: ='Proxy Data Lookup'!B3 -> Atmos Energy Corporation | D10: ='PRPM WP 1'!$B$1149 -> 0.003352243327 | F10: ='PRPM WP 1'!$B$1151 -> 0.002883266714 | H10: =AVERAGE(D10:F10) -> 0.003117755021 | J10: ='PRPM WP 1'!$B$1153 -> 2.251472 | L10: =ROUND((1+(H10*J10))^12-1,4) -> 0.0876 | N10: ='MRP WP1'!F$37/100 -> 0.0273 | P10: =N10+L10 -> 0.1149
A11: =Input!A3 -> NJR | B11: ='Proxy Data Lookup'!B4 -> New Jersey Resources Corporation | D11: ='PRPM WP 1'!$C$1149 -> 0.003839300527 | F11: ='PRPM WP 1'!$C$1151 -> 0.005656800429 | H11: =AVERAGE(D11:F11) -> 0.004748050478 | J11: ='PRPM WP 1'!$C$1153 -> 2.041229 | L11: =ROUND((1+(H11*J11))^12-1,4) -> 0.1227 | N11: ='MRP WP1'!F$37/100 -> 0.0273 | P11: =N11+L11 -> 0.15
A12: =Input!A4 -> NWN | B12: ='Proxy Data Lookup'!B5 -> Northwest Natural Holding Company | D12: ='PRPM WP 1'!$D$1149 -> 0.003255102072 | F12: ='PRPM WP 1'!$D$1151 -> 0.003088804367 | H12: 0.00317195322 | J12: ='PRPM WP 1'!$D$1153 -> 1.541797 | L12: 0.0603 | N12: ='MRP WP1'!F$37/100 -> 0.0273 | P12: 0.0876
A13: =Input!A5 -> OGS | B13: ='Proxy Data Lookup'!B6 -> ONE Gas, Inc. | D13: ='PRPM WP 1'!$E$1149 -> 0.002972524603 | F13: ='PRPM WP 1'!$E$1151 -> 0.004416790061 | H13: 0.003694657332 | J13: ='PRPM WP 1'!$E$1153 -> 4.362963 | L13: 0.2115 | N13: ='MRP WP1'!F$37/100 -> 0.0273 | P13: NMF
A14: =Input!A6 -> SJI | B14: ='Proxy Data Lookup'!B7 -> South Jersey Industries, Inc. | D14: ='PRPM WP 1'!$F$1149 -> 0.003861294733 | F14: ='PRPM WP 1'!$F$1151 -> 0.006884160156 | H14: 0.005372727444 | J14: ='PRPM WP 1'!$F$1153 -> 1.587803 | L14: 0.1073 | N14: ='MRP WP1'!F$37/100 -> 0.0273 | P14: 0.1346
A15: =Input!A7 -> SWX | B15: ='Proxy Data Lookup'!B8 -> Southwest Gas Holdings, Inc. | D15: ='PRPM WP 1'!$G$1149 -> 0.004354250944 | F15: ='PRPM WP 1'!$G$1151 -> 0.003537561955 | H15: 0.00394590645 | J15: ='PRPM WP 1'!$G$1153 -> 1.375194 | L15: 0.0671 | N15: ='MRP WP1'!F$37/100 -> 0.0273 | P15: 0.0944
A16: =Input!A8 -> SR | B16: ='Proxy Data Lookup'!B9 -> Spire Inc. | D16: ='PRPM WP 1'!$H$1149 -> 0.007137407804 | F16: ='PRPM WP 1'!$H$1151 -> 0.004830164399 | H16: 0.005983786101 | J16: ='PRPM WP 1'!$H$1153 -> 0.944845 | L16: 0.07 | N16: ='MRP WP1'!F$37/100 -> 0.0273 | P16: 0.0973
N18: Average | P18: =ROUND(AVERAGE($P9:$P16),4) -> 0.1131
N20: Median | P20: =ROUND(MEDIAN($P9:$P16),4) -> 0.1061
N22: Average of Mean and Median | P22: =ROUND(AVERAGE(P18:P20),4) -> 0.1096
B26: Notes:
B27: (1) | D27: The Predictive Risk Premium Model uses historical data to generate a predicted variance and a GARCH coefficient. The historical data used are the equity risk premiums for the first available trading month as reported by Bloomberg Professional Service.
B28: (2) | D28: Given current market conditions, I recommend using average of the the long-term average predicted variance and the spot variance.
B29: (3) | D29: (1+(Column [3] * Column [4])^12) - 1.
B30: (4) | D30: From note 2 on page 2 of Attachment DWD-4.
B31: (5) | D31: Column [5] + Column [6].

Sheet 3.3 Risk Premium Summary
A1: =Input!G28 -> Duke Energy Kentucky, Inc.
A2: Indicated Common Equity Cost Rate
A3: Through Use of a Risk Premium Model
A4: Using an Adjusted Total Market Approach
A6: Line No. | G6: =Input!I31 -> Proxy Group of Seven Natural Gas Distribution Companies
A9: 1. | C9: Prospective Yield on Aaa Rated
C10: Corporate Bonds (1) | G10: ='MRP WP1'!$M$37 -> 3.44 | H10: %
A12: 2. | C12: Adjustment to Reflect Yield Spread
C13: Between Aaa Rated Corporate
C14: Bonds and A2 Rated Public
C15: Utility Bonds | G15: ='3.4 Moody''s Bond Yields'!I21 -> 0.42 | H15: (2)
A17: 3. | C17: Adjusted Prospective Yield on A2 Rated
C18: Public Utility Bonds | G18: =SUM(G10:G15) -> 3.86 | H18: %
A20: 4. | C20: Adjustment to Reflect Bond
C21: Rating Difference of Proxy Group | G21: =ROUND((1/6)*'3.4 Moody''s Bond Yields'!I24,2) -> 0.05 | H21: (3)
A23: 5. | C23: Adjusted Prospective Bond Yield | G23: =SUM(G18:G21) -> 3.91 | H23: %
A25: 6. | C25: Equity Risk Premium (4) | G25: ='3.7 ERP Determination'!E25 -> 6.42
A27: 7. | C27: Risk Premium Derived Common
C28: Equity Cost Rate | G28: =SUM(G23:G25) -> 10.33 | H28: %
A31: Notes: | B31: (1) | C31: Consensus forecast of Moody's Aaa Rated Corporate bonds from Blue Chip Financial Forecasts (see pages 10 and 11 of this Attachment).
B32: (2) | C32: =CONCATENATE("The average yield spread of A2 rated public utility bonds over Aaa rated corporate bonds of ",TEXT('3.4 Moody''s Bond Yields'!I21,"#0.00"),"% from page 4 of this Attachment.") -> The average yield spread of A2 rated public utility bonds over Aaa rated corporate bonds of 0.42% from page 4 of this Attachment.
B33: (3) | C33: =CONCATENATE("Adjustment to reflect the A2/A3 Moody's LT issuer rating of the Utility Proxy Group as shown on page 5 of this Attachment. The ",G21,"% upward adjustment is derived by taking 1/6 of the spread between A2 and Baa2 Public Utility Bonds (1/6 * ",'3.4 Moody''s Bond Yields'!I24,"% = ",TEXT('3.3 Risk Premium Summary'!G21,"#0.00"),"%) as derived from page 4 of this Attachment.") -> Adjustment to reflect the A2/A3 Moody's LT issuer rating of the Utility Proxy Group as shown on page 5 of this Attachment. The 0.05% upward adjustment is derived by taking 1/6 of the spread between A2 and Baa2 Public Utility Bonds (1/6 * 0.27% = 0.05%) as derived from page 4 of this Attachment.
B34: (4) | C34: From page 7 of this Attachment.

Sheet 3.4 Moody's Bond Yields
A1: =Input!G28 -> Duke Energy Kentucky, Inc.
A2: Interest Rates and Bond Spreads for
A3: Moody's Corporate and Public Utility Bonds
A6: Selected Bond Yields - Moody's
C8: [1] | F8: [2] | I8: [3]
C10: Aaa Rated Corporate Bond | F10: A2 Rated Public Utility Bond | I10: Baa2 Rated Public Utility Bond
A12: ='Market Data'!B1 -> 2021-03-31 | C12: ='Market Data'!B5 -> 3.04 | D12: % | F12: ='Market Data'!B3 -> 3.44 | G12: % | I12: ='Market Data'!B4 -> 3.72 | J12: %
A13: ='Market Data'!C1 -> 2021-02-26 | C13: ='Market Data'!C5 -> 2.7 | F13: ='Market Data'!C3 -> 3.09 | I13: ='Market Data'!C4 -> 3.37
A14: ='Market Data'!D1 -> 2021-01-31 | C14: ='Market Data'!D5 -> 2.45 | F14: ='Market Data'!D3 -> 2.91 | I14: ='Market Data'!D4 -> 3.18
A16: Average | C16: =ROUND(AVERAGE(C12:C14),2) -> 2.73 | D16: % | F16: =ROUND(AVERAGE(F12:F14),2) -> 3.15 | G16: % | I16: =ROUND(AVERAGE(I12:I14),2) -> 3.42 | J16: %
A18: Selected Bond Spreads
A20: A2 Rated Public Utility Bonds Over Aaa Rated Corporate Bonds:
I21: =F16-C16 -> 0.42 | J21: % (1)
A23: Baa2 Rated Public Utility Bonds Over A2 Rated Public Utility Bonds:
I24: =ROUND(I16-F16,2) -> 0.27 | J24: % (2)
A26: Notes:
A27: (1) | B27: Column [2] - Column [1].
A28: (2) | B28: Column [3] - Column [2].
A30: Source of Information:
A31: Bloomberg Professional Service

Sheet 3.5 Bond Ratings
B1: =Input!G28 -> Duke Energy Kentucky, Inc.
B2: Comparison of Long-Term Issuer Ratings for
B3: ='3.3 Risk Premium Summary'!G6 -> Proxy Group of Seven Natural Gas Distribution Companies
E6: Moody's | I6: Standard & Poor's
E7: Long-Term Issuer Rating | I7: Long-Term Issuer Rating
E8: =TEXT(Input!E2,"mmmm yyyy") -> March 2021 | I8: =E8 -> March 2021
B11: =B3 -> Proxy Group of Seven Natural Gas Distribution Companies | E11: Long-Term Issuer Rating (1) | G11: Numerical Weighting (2) | I11: =E11 -> Long-Term Issuer Rating (1) | K11: Numerical Weighting (2)
A13: =Input!A2 -> ATO | B13: ='Proxy Data Lookup'!B3 -> Atmos Energy Corporation | E13: ='Proxy Data Lookup'!P3 -> A1 | G13: =IFERROR(INDEX('3.6 MOODY_S&P numbericl'!D$6:D$26,MATCH('3.5 Bond Ratings'!E13,'3.6 MOODY_S&P numbericl'!B$6:B$26,0)), " - -") -> 5 | I13: ='Proxy Data Lookup'!O3 -> A- | K13: =IFERROR(INDEX('3.6 MOODY_S&P numbericl'!H$6:H$26,MATCH('3.5 Bond Ratings'!I13,'3.6 MOODY_S&P numbericl'!F$6:F$26,0)), " - -") -> 7
A14: =Input!A3 -> NJR | B14: ='Proxy Data Lookup'!B4 -> New Jersey Resources Corporation | E14: ='Proxy Data Lookup'!P4 -> A1 | G14: =IFERROR(INDEX('3.6 MOODY_S&P numbericl'!D$6:D$26,MATCH('3.5 Bond Ratings'!E14,'3.6 MOODY_S&P numbericl'!B$6:B$26,0)), " - -") -> 5 | I14: ='Proxy Data Lookup'!O4 -> NR | K14: =IFERROR(INDEX('3.6 MOODY_S&P numbericl'!H$6:H$26,MATCH('3.5 Bond Ratings'!I14,'3.6 MOODY_S&P numbericl'!F$6:F$26,0)), " - -") -> - -
A15: =Input!A4 -> NWN | B15: ='Proxy Data Lookup'!B5 -> Northwest Natural Holding Company | E15: ='Proxy Data Lookup'!P5 -> Baa1 | G15: =IFERROR(INDEX('3.6 MOODY_S&P numbericl'!D$6:D$26,MATCH('3.5 Bond Ratings'!E15,'3.6 MOODY_S&P numbericl'!B$6:B$26,0)), " - -") -> 8 | I15: ='Proxy Data Lookup'!O5 -> A+ | K15: =IFERROR(INDEX('3.6 MOODY_S&P numbericl'!H$6:H$26,MATCH('3.5 Bond Ratings'!I15,'3.6 MOODY_S&P numbericl'!F$6:F$26,0)), " - -") -> 5
A16: =Input!A5 -> OGS | B16: ='Proxy Data Lookup'!B6 -> ONE Gas, Inc. | E16: ='Proxy Data Lookup'!P6 -> A3 | G16: =IFERROR(INDEX('3.6 MOODY_S&P numbericl'!D$6:D$26,MATCH('3.5 Bond Ratings'!E16,'3.6 MOODY_S&P numbericl'!B$6:B$26,0)), " - -") -> 7 | I16: ='Proxy Data Lookup'!O6 -> BBB+ | K16: =IFERROR(INDEX('3.6 MOODY_S&P numbericl'!H$6:H$26,MATCH('3.5 Bond Ratings'!I16,'3.6 MOODY_S&P numbericl'!F$6:F$26,0)), " - -") -> 8
A17: =Input!A6 -> SJI | B17: ='Proxy Data Lookup'!B7 -> South Jersey Industries, Inc. | E17: ='Proxy Data Lookup'!P7 -> A3 | G17: =IFERROR(INDEX('3.6 MOODY_S&P numbericl'!D$6:D$26,MATCH('3.5 Bond Ratings'!E17,'3.6 MOODY_S&P numbericl'!B$6:B$26,0)), " - -") -> 7 | I17: ='Proxy Data Lookup'!O7 -> BBB | K17: =IFERROR(INDEX('3.6 MOODY_S&P numbericl'!H$6:H$26,MATCH('3.5 Bond Ratings'!I17,'3.6 MOODY_S&P numbericl'!F$6:F$26,0)), " - -") -> 9
A18: =Input!A7 -> SWX | B18: ='Proxy Data Lookup'!B8 -> Southwest Gas Holdings, Inc. | E18: ='Proxy Data Lookup'!P8 -> Baa1 | G18: =IFERROR(INDEX('3.6 MOODY_S&P numbericl'!D$6:D$26,MATCH('3.5 Bond Ratings'!E18,'3.6 MOODY_S&P numbericl'!B$6:B$26,0)), " - -") -> 8 | I18: ='Proxy Data Lookup'!O8 -> A- | K18: =IFERROR(INDEX('3.6 MOODY_S&P numbericl'!H$6:H$26,MATCH('3.5 Bond Ratings'!I18,'3.6 MOODY_S&P numbericl'!F$6:F$26,0)), " - -") -> 7
A19: =Input!A8 -> SR | B19: ='Proxy Data Lookup'!B9 -> Spire Inc. | E19: ='Proxy Data Lookup'!P9 -> A1/A2 | G19: 5.5 | I19: ='Proxy Data Lookup'!O9 -> A- | K19: =IFERROR(INDEX('3.6 MOODY_S&P numbericl'!H$6:H$26,MATCH('3.5 Bond Ratings'!I19,'3.6 MOODY_S&P numbericl'!F$6:F$26,0)), " - -") -> 7
C21: Average | E21: A2/A3 | G21: =ROUND(AVERAGE(G12:G19),1) -> 6.5 | I21: A- | K21: =ROUND(AVERAGE(K12:K19),1) -> 7.2
B24: Notes:
B26: (1) | C26: Ratings are that of the average of each company's utility operating subsidiaries.
B27: (2) | C27: From page 6 of this Attachment.
C29: Source Information: | E29: Moody's Investors Service
E30: Standard & Poor's Global Utilities Rating Service

Sheet 3.6 MOODY_S&P numbericl
B1: Numerical Assignment for
B2: Moody's and Standard & Poor's Bond Ratings
B4: Moody's Bond Rating | D4: Numerical Bond Weighting | F4: Standard & Poor's Bond Rating | H4: =D4 -> Numerical Bond Weighting
B6: Aaa | D6: 1 | F6: AAA | H6: =IF(D6="","",D6) -> 1
H7: =IF(D7="","",D7) -> 
B8: Aa1 | D8: 2 | F8: AA+ | H8: 2
B9: Aa2 | D9: 3 | F9: AA | H9: 3
B10: Aa3 | D10: 4 | F10: AA- | H10: 4
B12: A1 | D12: 5 | F12: A+ | H12: 5
B13: A2 | D13: 6 | F13: A | H13: 6
B14: A3 | D14: 7 | F14: A- | H14: 7
B16: Baa1 | D16: 8 | F16: BBB+ | H16: 8
B17: Baa2 | D17: 9 | F17: BBB | H17: 9
B18: Baa3 | D18: 10 | F18: BBB- | H18: 10
B20: Ba1 | D20: 11 | F20: BB+ | H20: 11
B21: Ba2 | D21: 12 | F21: BB | H21: 12
B22: Ba3 | D22: 13 | F22: BB- | H22: 13
B24: B1 | D24: 14 | F24: B+ | H24: 14
B25: B2 | D25: 15 | F25: B | H25: 15
B26: B3 | D26: 16 | F26: B- | H26: 16

Sheet 3.7 ERP Determination
A1: =Input!G28 -> Duke Energy Kentucky, Inc.
A2: Judgment of Equity Risk Premium for
A3: =E6 -> Proxy Group of Seven Natural Gas Distribution Companies
A6: Line No. | E6: ='3.5 Bond Ratings'!B3 -> Proxy Group of Seven Natural Gas Distribution Companies
A9: 1. | C9: Calculated equity risk
C10: premium based on the
C11: total market using
C12: the beta approach (1) | E12: ='3.8-3.9 Beta Adjusted ERP'!F27 -> 7.99 | F12: %
A14: 2. | C14: Mean equity risk premium
C15: based on a study
C16: using the holding period
C17: returns of public utilities
C18: with A rated bonds (2) | E18: ='3.12 S&P RPM Study Returns'!E19 -> 5.57
A20: 3. | C20: Predicted Equity Risk Premium
C21: Based on Regression Analysis
C22: of 798 Fully-Litigated Natural
C23: Gas Utility Rate Cases | E23: ='3.13 Past Rate Cases Gas'!AF25 -> 5.688171264
A25: 4. | C25: Average equity risk premium | E25: =ROUND(AVERAGE(E12:E23),2) -> 6.42 | F25: %
A28: Notes: | B28: (1) | C28: From page 8 of this Attachment.
B29: (2) | C29: From page 12 of this Attachment.
B30: (3) | C30: From page 13 of this Attachment.

Sheet 3.8-3.9 Beta Adjusted ERP
A1: =Input!G28 -> Duke Energy Kentucky, Inc.
A2: Derivation of Equity Risk Premium Based on the Total Market Approach
A3: Using the Beta for the
A4: ='3.7 ERP Determination'!E6 -> Proxy Group of Seven Natural Gas Distribution Companies
A7: Line No. | C7: ='6.5 CEM Beta Adjusted RP'!C7 -> Equity Risk Premium Measure | F7: =A4 -> Proxy Group of Seven Natural Gas Distribution Companies
B9: Ibbotson-Based Equity Risk Premiums:
A11: 1. | C11: Ibbotson Equity Risk Premium (1) | F11: =('Market Data'!B11-'Market Data'!B12)*100 -> 5.92 | G11: %
A13: 2. | C13: Regression on Ibbotson Risk Premium Data (2) | F13: ='MRP ERP WP'!$AK$42*100 -> 8.834599862
A15: 3. | C15: Ibbotson Equity Risk Premium based on PRPM (3) | F15: ='PRPM WP 1'!$K$1159*100 -> 9.404694417
A17: 4. | C17: Equity Risk Premium Based on Value Line Summary and Index (4) | F17: ='MRP WP1'!$M$22*100-'MRP WP1'!$M$37 -> 5.03
A19: 5. | C19: Equity Risk Premium Based on Value Line S&P 500 Companies (5) | F19: =('MRP WP3'!H504*100)-'MRP WP1'!M37 -> 10.76759088
A21: 6. | C21: Equity Risk Premium Based on Bloomberg S&P 500 Companies (6) | F21: ='MRP WP2'!Q504*100-'MRP WP1'!M37 -> 12.16673776
A23: 7. | C23: Conclusion of Equity Risk Premium | F23: =ROUND(AVERAGE(F11:F21),2) -> 8.69 | G23: %
A25: 8. | C25: Adjusted Beta (7) | F25: ='4.1 CAPM'!H21 -> 0.92
A27: 9. | C27: Forecasted Equity Risk Premium | F27: =ROUND(F23*F25,2) -> 7.99 | G27: %
A29: Notes provided on page 9 of this Attachment.
B31: Notes:
B32: (1) | C32: =CONCATENATE("Based on the arithmetic mean historical monthly returns on large company common stocks from Duff & Phelps ",YEAR(Input!E2)," SBBI® Yearbook minus the arithmetic mean monthly yield of Moody's average Aaa and Aa corporate bonds from 1928-2020.") -> Based on the arithmetic mean historical monthly returns on large company common stocks from Duff & Phelps 2021 SBBI® Yearbook minus the arithmetic mean monthly yield of Moody's average Aaa and Aa corporate bonds from 1928-2020.
B34: (2) | C34: This equity risk premium is based on a regression of the monthly equity risk premiums of large company common stocks relative to Moody's average Aaa and Aa rated corporate bond yields from 1928-2020 referenced in Note 1 above.
B35: (3) | C35: The Predictive Risk Premium Model (PRPM) is discussed in the accompanying direct testimony. The Ibbotson equity risk premium based on the PRPM is derived by applying the PRPM to the monthly risk premiums between Ibbotson large company common stock monthly returns and average Aaa and Aa corporate monthly bond yields, from January 1928 through March 2021.
B36: (4) | C36: =CONCATENATE("The equity risk premium based on the Value Line Summary and Index is derived by subtracting the average consensus forecast of Aaa corporate bonds of ",TEXT('MRP WP1'!M37,"#0.00"),"% (from page 3 of this Attachment) from the projected 3-5 year total annual market return of ",TEXT('MRP WP1'!M22*100,"#0.00"),"% (described fully in note 1 on page 2 of Attachment DWD-4).") -> The equity risk premium based on the Value Line Summary and Index is derived by subtracting the average consensus forecast of Aaa corporate bonds of 3.44% (from page 3 of this Attachment) from the projected 3-5 year total annual market return of 8.47% (described fully in note 1 on page 2 of Attachment DWD-4).
B37: (5) | C37: Using data from Value Line for the S&P 500, an expected total return of 14.21% was derived based upon expected dividend yields and long-term earnings growth estimates as a proxy for capital appreciation. Subtracting the average consensus forecast of Aaa corporate bonds of 3.44% results in an expected equity risk premium of 10.77%.
B38: (6) | C38: Using data from the Bloomberg Professional Service for the S&P 500, an expected total return of 15.61% was derived based upon expected dividend yields and long-term earnings growth estimates as a proxy for capital appreciation. Subtracting the average consensus forecast of Aaa corporate bonds of 3.44% results in an expected equity risk premium of 12.17%.
B39: (7) | C39: Average of mean and median beta from Attachment DWD-4.
B41: Sources of Information:
C42: Stocks, Bonds, Bills, and Inflation - 2020 SBBI Yearbook, John Wiley & Sons, Inc.
C43: Industrial Manual and Mergent Bond Record Monthly Update.
C44: Value Line Summary and Index
C45: =CONCATENATE("Blue Chip Financial Forecasts, ",Input!I25) -> Blue Chip Financial Forecasts, April 1, 2021 and December 1, 2020
C46: Bloomberg Professional Service

Sheet 3.12 S&P RPM Study Returns
A1: =Input!G28 -> Duke Energy Kentucky, Inc.
A2: Derivation of Mean Equity Risk Premium Based Studies
A3: Using Holding Period Returns and
A4: Projected Market Appreciation of the S&P Utility Index
A5: Line No. | E5: Implied Equity Risk Premium
B7: Equity Risk Premium based on S&P Utility Index Holding Period Returns (1):
A9: 1. | C9: Historical Equity Risk Premium | E9: =('Market Data'!B13-'Market Data'!B14)*100 -> 4.16 | F9: %
A11: 2. | C11: Regression of Historical Equity Risk Premium (2) | E11: ='MRP ERP WP'!AU42*100 -> 6.448046994
A13: 3. | C13: Forecasted Equity Risk Premium Based on PRPM (3) | E13: =ROUND('PRPM WP 1'!$J$1159*100,2) -> 4.77
A15: 4. | C15: Forecasted Equity Risk Premium based on Projected Total Return on the S&P Utilities Index (Value Line Data) (4) | E15: =ROUND(('ERP WP 2'!H32*100)-'3.3 Risk Premium Summary'!G18,2) -> 6.75
A17: 5. | C17: Forecasted Equity Risk Premium based on Projected Total Return on the S&P Utilities Index (Bloomberg Data) (5) | E17: =ROUND('ERP WP1'!O31*100-'3.3 Risk Premium Summary'!G18,2) -> 5.72
A19: 6. | C19: Average Equity Risk Premium (6) | E19: =ROUND(AVERAGE(E9:E17),2) -> 5.57 | F19: %
A22: Notes: | B22: (1) | C22: Based on S&P Public Utility Index monthly total returns and Moody's Public Utility Bond average monthly yields from 1928-2020. Holding period returns are calculated based upon income received (dividends and interest) plus the relative change in the market value of a security over a one-year holding period.
B23: (2) | C23: This equity risk premium is based on a regression of the monthly equity risk premiums of the S&P Utility Index relative to Moody's A2 rated public utility bond yields from 1928 - 2020 referenced in note 1 above.
B24: (3) | C24: =CONCATENATE("The Predictive Risk Premium Model (PRPM) is applied to the risk premium of the monthly total returns of the S&P Utility Index and the monthly yields on Moody's A2 rated public utility bonds from January 1928 - ",Input!G25,".") -> The Predictive Risk Premium Model (PRPM) is applied to the risk premium of the monthly total returns of the S&P Utility Index and the monthly yields on Moody's A2 rated public utility bonds from January 1928 - March 2021.
B25: (4) | C25: Using data from Value Line for the S&P Utilities Index, an expected return of 10.61% was derived based on expected dividend yields and long-term growth estimates as a proxy for market appreciation. Subtracting the expected A2 rated public utility bond yield of 3.86%, calculated on line 3 of page 3 of this Attachment results in an equity risk premium of 6.75%. (10.61% - 3.86% = 6.75%)
B26: (5) | C26: Using data from Bloomberg Professional Service for the S&P Utilities Index, an expected return of 9.58% was derived based on expected dividend yields and long-term growth estimates as a proxy for market appreciation. Subtracting the expected A2 rated public utility bond yield of 3.86%, calculated on line 3 of page 3 of this Attachment results in an equity risk premium of 5.72%. (9.58% - 3.86% = 5.72%)
B27: (6) | C27: Average of lines 1 through 5.

Sheet 3.13 Past Rate Cases Gas
A1: Rate Case History | O1: SUMMARY OUTPUT | Z1: =Input!G28 -> Duke Energy Kentucky, Inc.
Z2: Prediction of Equity Risk Premiums Relative to
A3: Past Rate Cases | O3: Regression Statistics | Z3: Moody's A2 Rated Utility Bond Yields
F4: Increase Authorized | O4: Multiple R | P4: 0.9329224474
A5: State | B5: Company | C5: Case Identification | D5: Service | E5: Case Type | F5: Date | G5: Decision Type | H5: Return on Equity (%) | I5: Common Equity /Total Cap (%) | J5: A Rated Utility Bond (%) | K5: Equity Risk Premium (%) | O5: R Square | P5: 0.8703442929
A6: Illinois | B6: Northern Illinois Gas Co. | C6: D-79-0133 | D6: Natural Gas | E6: Distribution | F6: 1/3/1980 | G6: Fully Litigated | H6: 12.55 | I6: 51.81 | J6: =11.89 -> 11.89 | K6: =H6-J6 -> 0.66 | O6: Adjusted R Square | P6: 0.8701814089
A7: Pennsylvania | B7: PECO Energy Co. | C7: C-R-79030781 | D7: Natural Gas | E7: Distribution | F7: 1/4/1980 | G7: Fully Litigated | H7: 13.75 | I7: 35.1 | J7: 11.89 | K7: 1.86 | O7: Standard Error | P7: 0.7674743705
A8: Maryland | B8: Washington Gas Light Co. | C8: C-7394 0-64174 | D8: Natural Gas | E8: Distribution | F8: 1/14/1980 | G8: Fully Litigated | H8: 13.2 | I8: 36.6 | J8: 11.89 | K8: 1.31 | O8: Observations | P8: 798
A9: Georgia | B9: Atlanta Gas Light Co. | C9: D-3167-U | D9: Natural Gas | E9: Distribution | F9: 1/18/1980 | G9: Fully Litigated | H9: 14 | I9: 35.09 | J9: 12.15 | K9: 1.85
A10: Massachusetts | B10: NSTAR Gas Co. | C10: DPU-20132-G | D10: Natural Gas | E10: Distribution | F10: 1/31/1980 | G10: Fully Litigated | H10: 12.61 | I10: 52 | J10: 12.15 | K10: 0.46 | O10: ANOVA
A11: Oklahoma | B11: Oklahoma Natural Gas Co | C11: Ca-26652 | D11: Natural Gas | E11: Distribution | F11: 2/8/1980 | G11: Fully Litigated | H11: 14.5 | I11: 49.31 | J11: 12.15 | K11: 2.35 | P11: df | Q11: SS | R11: MS | S11: F | T11: Significance F
A12: Wisconsin | B12: Madison Gas and Electric Co. | C12: D-3270-UR-9-G | D12: Natural Gas | E12: Distribution | F12: 2/14/1980 | G12: Fully Litigated | H12: 13 | I12: 40 | J12: 12.15 | K12: 0.85 | O12: Regression | P12: 1 | Q12: 3147.315484 | R12: 3147.315484 | S12: 5343.336386 | T12: 0
A13: Wisconsin | B13: Wisconsin Gas LLC | C13: D-6650-GR-6 | D13: Natural Gas | E13: Distribution | F13: 2/15/1980 | G13: Fully Litigated | H13: 13 | I13: 41.2 | J13: 12.21 | K13: 0.79 | O13: Residual | P13: 796 | Q13: 468.8574599 | R13: 0.5890169094
A14: New York | B14: Niagara Mohawk Power Corp. | C14: C-27540 | D14: Natural Gas | E14: Distribution | F14: 2/29/1980 | G14: Fully Litigated | H14: 14 | I14: 38.5 | J14: 12.21 | K14: 1.79 | O14: Total | P14: 797 | Q14: 3616.172944
A15: Kansas | B15: Kansas Gas Service Co. | C15: D-119,314-U | D15: Natural Gas | E15: Distribution | F15: 3/5/1980 | G15: Fully Litigated | H15: 14 | I15: 33.65 | J15: 12.21 | K15: 1.79
A16: New York | B16: Consolidated Edison Co. of NY | C16: C-27544 | D16: Natural Gas | E16: Distribution | F16: 3/7/1980 | G16: Fully Litigated | H16: 13.5 | I16: 44.69 | J16: 12.21 | K16: 1.29 | P16: Coefficients | Q16: Standard Error | R16: t Stat | S16: P-value | T16: Lower 95% | U16: Upper 95% | V16: Lower 95.0% | W16: Upper 95.0%
A17: New York | B17: National Fuel Gas Dist Corp. | C17: C-27503 | D17: Natural Gas | E17: Distribution | F17: 3/14/1980 | G17: Fully Litigated | H17: 14 | I17: 42.1 | J17: 12.21 | K17: 1.79 | O17: Intercept | P17: 7.563324177 | Q17: 0.07091488056 | R17: 106.6535559 | S17: 0 | T17: 7.424121906 | U17: 7.702526449 | V17: 7.424121906 | W17: 7.702526449
A18: New York | B18: Orange & Rockland Utlts Inc. | C18: C-27554 | D18: Natural Gas | E18: Distribution | F18: 3/27/1980 | G18: Fully Litigated | H18: 12.69 | I18: 39.25 | J18: 13.23 | K18: -0.54 | O18: X Variable 1 | P18: -0.4857909102 | Q18: 0.006645736633 | R18: -73.09812847 | S18: 0 | T18: -0.4988361501 | U18: -0.4727456702 | V18: -0.4988361501 | W18: -0.4727456702
A19: Iowa | B19: MidAmerican Energy Co. | C19: D-RPU-78-11 | D19: Natural Gas | E19: Distribution | F19: 4/29/1980 | G19: Fully Litigated | H19: 12.5 | I19: 36.5 | J19: 14.59 | K19: -2.09
A20: Ohio | B20: Dayton Power and Light Co. | C20: C-79-372-GA-AIR | D20: Natural Gas | E20: Distribution | F20: 5/7/1980 | G20: Fully Litigated | H20: 14.27 | I20: 34.24 | J20: 14.59 | K20: -0.32
A21: New Jersey | B21: Public Service Electric Gas | C21: D-794-310-G | D21: Natural Gas | E21: Distribution | F21: 5/8/1980 | G21: Fully Litigated | H21: 13.75 | I21: 35.91 | J21: 14.59 | K21: -0.84
A22: Utah | B22: Questar Gas Co. | C22: C-80-057-01 | D22: Natural Gas | E22: Distribution | F22: 5/19/1980 | G22: Fully Litigated | H22: 15.5 | I22: 44.87 | J22: 14.59 | K22: 0.91
A23: Colorado | B23: Public Service Co. of CO | C23: D-1420-De-C80-1039 (Gas) | D23: Natural Gas | E23: Distribution | F23: 5/27/1980 | G23: Fully Litigated | H23: 14.6 | I23: 35.8 | J23: 14.29 | K23: 0.31
A24: Arizona | B24: Arizona Public Service Co. | C24: D-U-1345 De-51009-G | D24: Natural Gas | E24: Distribution | F24: 5/29/1980 | G24: Fully Litigated | H24: 16 | I24: 37.21 | J24: 14.29 | K24: 1.71 | Z24: Constant | AB24: Slope | AD24: Prospective A2 Rated Utility Bond (1) | AF24: Prospective Equity Risk Premium
A25: Maryland | B25: Baltimore Gas and Electric Co. | C25: C-7397 0-64331-G | D25: Natural Gas | E25: Distribution | F25: 6/10/1980 | G25: Fully Litigated | H25: 13.78 | I25: 38.5 | J25: 14.29 | K25: -0.51 | Z25: =P17 -> 7.563324177 | AA25: % | AB25: =P18 -> -0.4857909102 | AD25: ='3.3 Risk Premium Summary'!G18 -> 3.86 | AE25: % | AF25: =AB25*AD25+Z25 -> 5.688171264 | AG25: %
A26: Connecticut | B26: CT Natural Gas Corp. | C26: D-79-12-02 | D26: Natural Gas | E26: Distribution | F26: 6/25/1980 | G26: Fully Litigated | H26: 14.25 | I26: 41.76 | J26: 12.74 | K26: 1.51
A27: Ohio | B27: East Ohio Gas Company | C27: C-79-535-GA-AIR | D27: Natural Gas | E27: Distribution | F27: 7/9/1980 | G27: Fully Litigated | H27: 14.51 | I27: 53.69 | J27: 12.74 | K27: 1.77
A28: West Virginia | B28: Mountaineer Gas Company | C28: C-79-088-G-42T | D28: Natural Gas | E28: Distribution | F28: 7/17/1980 | G28: Fully Litigated | H28: 12.9 | I28: 42 | J28: 12.4 | K28: 0.5 | Z28: Notes:
A29: New York | B29: Rochester Gas & Electric Corp. | C29: C-27608 | D29: Natural Gas | E29: Distribution | F29: 7/18/1980 | G29: Fully Litigated | H29: 13.8 | I29: 39.9 | J29: 12.4 | K29: 1.4 | Z29: (1) | AA29: From line 3 of page 3 of this Attachment.
A30: New York | B30: NY State Electric & Gas Corp. | C30: C-27610 | D30: Natural Gas | E30: Distribution | F30: 7/22/1980 | G30: Fully Litigated | H30: 14.1 | I30: 39.9 | J30: 12.4 | K30: 1.7
A31: Kansas | B31: Kansas Gas Service Co. | C31: D-120,950-U | D31: Natural Gas | E31: Distribution | F31: 7/23/1980 | G31: Fully Litigated | H31: 14.19 | I31: 32.51 | J31: 12.4 | K31: 1.79 | Z31: Source of Information:
A32: Iowa | B32: MidAmerican Energy Co. | C32: D-RPU-78-25 | D32: Natural Gas | E32: Distribution | F32: 8/1/1980 | G32: Fully Litigated | H32: 12.5 | I32: 36.44 | J32: 12.4 | K32: 0.1 | AB32: Regulatory Research Associates
A33: Idaho | B33: Avista Corp. | C33: C-U-1008-145 | D33: Natural Gas | E33: Distribution | F33: 8/11/1980 | G33: Fully Litigated | H33: 14.85 | I33: 36.62 | J33: 12.4 | K33: 2.45 | AB33: Bloomberg Professional Services
A34: Pennsylvania | B34: National Fuel Gas Dist Corp. | C34: C-R-79090956 | D34: Natural Gas | E34: Distribution | F34: 8/28/1980 | G34: Fully Litigated | H34: 14 | I34: 44.5 | J34: 12.15 | K34: 1.85
A35: New York | B35: Brooklyn Union Gas Co. | C35: C-27631 | D35: Natural Gas | E35: Distribution | F35: 9/4/1980 | G35: Fully Litigated | H35: 14 | I35: 41.14 | J35: 12.15 | K35: 1.85
A36: Kentucky | B36: Louisville Gas & Electric Co. | C36: C-7799 (gas) | D36: Natural Gas | E36: Distribution | F36: 9/24/1980 | G36: Fully Litigated | H36: 15 | I36: 36.43 | J36: 12.66 | K36: 2.34
A37: Connecticut | B37: Connecticut Light & Power Co. | C37: D-80-04-03-G | D37: Natural Gas | E37: Distribution | F37: 10/9/1980 | G37: Fully Litigated | H37: 14.5 | I37: 35.12 | J37: 12.66 | K37: 1.84
A38: Connecticut | B38: Connecticut Light & Power Co. | C38: D-80-04-04-G | D38: Natural Gas | E38: Distribution | F38: 10/9/1980 | G38: Fully Litigated | H38: 14.5 | I38: 37.1 | J38: 12.66 | K38: 1.84
A39: Nevada | B39: Southwest Gas Holdings Inc. | C39: D-2868 (Southern) | D39: Natural Gas | E39: Distribution | F39: 10/27/1980 | G39: Fully Litigated | H39: 15.2 | I39: 34.68 | J39: 13.29 | K39: 1.91
A40: Nevada | B40: Southwest Gas Holdings Inc. | C40: D-2867 (Northern) | D40: Natural Gas | E40: Distribution | F40: 10/27/1980 | G40: Fully Litigated | H40: 15.2 | I40: 34.68 | J40: 13.29 | K40: 1.91
A41: Louisiana | B41: Atmos Energy Corp. | C41: D-U-14665 (LGS) | D41: Natural Gas | E41: Distribution | F41: 10/28/1980 | G41: Fully Litigated | H41: 12 | I41: 50.96 | J41: 13.29 | K41: -1.29
A42: West Virginia | B42: Hope Gas Inc | C42: C-80-003-G-42T | D42: Natural Gas | E42: Distribution | F42: 10/28/1980 | G42: Fully Litigated | H42: 13 | I42: 52 | J42: 13.29 | K42: -0.29
A43: Idaho | B43: Intermountain Gas Co. | C43: C-U-1034-88 | D43: Natural Gas | E43: Distribution | F43: 10/31/1980 | G43: Fully Litigated | H43: 14.5 | I43: 31.7 | J43: 13.29 | K43: 1.21
A44: Nevada | B44: Sierra Pacific Power Co. | C44: D-2857 | D44: Natural Gas | E44: Distribution | F44: 11/4/1980 | G44: Fully Litigated | H44: 15 | I44: 37.35 | J44: 13.29 | K44: 1.71
A45: Connecticut | B45: Southern Connecticut Gas Co. | C45: D-80-04-17 | D45: Natural Gas | E45: Distribution | F45: 11/6/1980 | G45: Fully Litigated | H45: 14.35 | I45: 42.2 | J45: 13.29 | K45: 1.06
A46: District of Columbia | B46: Washington Gas Light Co. | C46: C-722 0-7209 | D46: Natural Gas | E46: Distribution | F46: 11/10/1980 | G46: Fully Litigated | H46: 13.25 | I46: 40.1 | J46: 13.29 | K46: -0.04
A47: Louisiana | B47: Entergy Gulf States LA LLC | C47: D-U-14444 | D47: Natural Gas | E47: Distribution | F47: 11/17/1980 | G47: Fully Litigated | H47: 15.5 | I47: 38.66 | J47: 13.54 | K47: 1.96
A48: Washington | B48: Puget Sound Energy Inc. | C48: Ca-U-80-25 | D48: Natural Gas | E48: Distribution | F48: 11/19/1980 | G48: Fully Litigated | H48: 13.5 | I48: 34.27 | J48: 13.54 | K48: -0.04
A49: California | B49: Southern California Gas Co. | C49: AP-59316 De-92497 | D49: Natural Gas | E49: Distribution | F49: 12/5/1980 | G49: Fully Litigated | H49: 14.6 | I49: 39.65 | J49: 13.54 | K49: 1.06
A50: Indiana | B50: Indiana Gas Co. | C50: Ca-36117 | D50: Natural Gas | E50: Distribution | F50: 12/8/1980 | G50: Fully Litigated | H50: 16.4 | I50: 49.1 | J50: 13.54 | K50: 2.86
A51: Colorado | B51: Public Service Co. of CO | C51: D-1425-De-C80-2346 (Gas) | D51: Natural Gas | E51: Distribution | F51: 12/12/1980 | G51: Fully Litigated | H51: 15.45 | I51: 34.62 | J51: 13.54 | K51: 1.91
A52: Illinois | B52: Peoples Gas Light & Coke Co. | C52: D-80-0090 | D52: Natural Gas | E52: Distribution | F52: 12/17/1980 | G52: Fully Litigated | H52: 14.2 | I52: 40.02 | J52: 14.01 | K52: 0.19
A53: Illinois | B53: North Shore Gas Co. | C53: D-80-0089 | D53: Natural Gas | E53: Distribution | F53: 12/17/1980 | G53: Fully Litigated | H53: 14.4 | I53: 39.5 | J53: 14.01 | K53: 0.39
A54: Wisconsin | B54: Wisconsin Gas LLC | C54: D-6650-GR-13 | D54: Natural Gas | E54: Distribution | F54: 12/18/1980 | G54: Fully Litigated | H54: 14 | I54: 42.2 | J54: 14.01 | K54: -0.01
A55: Montana | B55: NorthWestern Corp. | C55: D-80.4.2.4714A (gas) | D55: Natural Gas | E55: Distribution | F55: 12/22/1980 | G55: Fully Litigated | H55: 13.45 | I55: 39.46 | J55: 14.01 | K55: -0.56
A56: New York | B56: National Fuel Gas Dist Corp. | C56: C-27776 | D56: Natural Gas | E56: Distribution | F56: 12/26/1980 | G56: Fully Litigated | H56: 14 | I56: 42.6 | J56: 14.01 | K56: -0.01
A57: California | B57: San Diego Gas & Electric Co. | C57: AP-59788 De-92557-G | D57: Natural Gas | E57: Distribution | F57: 12/30/1980 | G57: Fully Litigated | H57: 14.5 | I57: 36.25 | J57: 14.01 | K57: 0.49
A58: Illinois | B58: Ameren Illinois | C58: D-80-0157 (CILCO-G) | D58: Natural Gas | E58: Distribution | F58: 1/7/1981 | G58: Fully Litigated | H58: 14.3 | I58: 35.56 | J58: 14.01 | K58: 0.29
A59: North Carolina | B59: Public Service Co. of NC | C59: D-G-5, SUB 157 | D59: Natural Gas | E59: Distribution | F59: 1/12/1981 | G59: Fully Litigated | H59: 14.95 | I59: 37.59 | J59: 14.01 | K59: 0.94
A60: Washington | B60: Avista Corp. | C60: Ca-U-80-14 | D60: Natural Gas | E60: Distribution | F60: 1/26/1981 | G60: Fully Litigated | H60: 15.25 | I60: 36.02 | J60: 14.66 | K60: 0.59
A61: Michigan | B61: DTE Gas Co. | C61: C-U-6372 | D61: Natural Gas | E61: Distribution | F61: 1/30/1981 | G61: Fully Litigated | H61: 13.25 | I61: 34.4 | J61: 14.66 | K61: -1.41
A62: Oklahoma | B62: Oklahoma Natural Gas Co | C62: Ca-26981 | D62: Natural Gas | E62: Distribution | F62: 2/11/1981 | G62: Fully Litigated | H62: 14.5 | I62: 48.94 | J62: 14.66 | K62: -0.16
A63: Oklahoma | B63: CenterPoint Energy Resources | C63: Ca-26975 | D63: Natural Gas | E63: Distribution | F63: 2/20/1981 | G63: Fully Litigated | H63: 14.5 | I63: 55.03 | J63: 14.27 | K63: 0.23
A64: New York | B64: Niagara Mohawk Power Corp. | C64: C-27743 | D64: Natural Gas | E64: Distribution | F64: 3/12/1981 | G64: Fully Litigated | H64: 15.65 | I64: 39.5 | J64: 14.27 | K64: 1.38
A65: Illinois | B65: Ameren Illinois | C65: D-80-0318 (CIPS-G) | D65: Natural Gas | E65: Distribution | F65: 3/25/1981 | G65: Fully Litigated | H65: 15.3 | I65: 37.6 | J65: 14.68 | K65: 0.62
A66: Louisiana | B66: Entergy New Orleans Inc. | C66: C-R-81-73 (gas) | D66: Natural Gas | E66: Distribution | F66: 4/9/1981 | G66: Fully Litigated | H66: 15 | I66: 30.16 | J66: 14.68 | K66: 0.32
A67: Montana | B67: MDU Resources Group Inc. | C67: D-80.7.52 | D67: Natural Gas | E67: Distribution | F67: 4/29/1981 | G67: Fully Litigated | H67: 13.5 | I67: 46.11 | J67: 15.13 | K67: -1.63
A68: Washington | B68: Cascade Natural Gas Corp. | C68: Ca-U-80-101 | D68: Natural Gas | E68: Distribution | F68: 4/29/1981 | G68: Fully Litigated | H68: 14.25 | I68: 37.17 | J68: 15.13 | K68: -0.88
A69: Iowa | B69: Interstate Power & Light Co. | C69: D-RPU-80-42 | D69: Natural Gas | E69: Distribution | F69: 4/30/1981 | G69: Fully Litigated | H69: 13.6 | I69: 34.56 | J69: 15.13 | K69: -1.53
A70: Arizona | B70: Southwest Gas Holdings Inc. | C70: D-U-1551 De-52099 | D70: Natural Gas | E70: Distribution | F70: 4/30/1981 | G70: Fully Litigated | H70: 15 | I70: NA | J70: 15.13 | K70: =H70-J70 -> -0.13
A71: Wisconsin | B71: Wisconsin Public Service Corp. | C71: D-6690-UR-17-G | D71: Natural Gas | E71: Distribution | F71: 5/21/1981 | G71: Fully Litigated | H71: 14 | I71: 38.2 | J71: 15.25 | K71: -1.25
A72: Illinois | B72: MidAmerican Energy Co. | C72: D-80-0511 (gas) | D72: Natural Gas | E72: Distribution | F72: 6/3/1981 | G72: Fully Litigated | H72: 14.67 | I72: 35.8 | J72: 15.25 | K72: -0.58
A73: Utah | B73: Questar Gas Co. | C73: C-81-057-01 | D73: Natural Gas | E73: Distribution | F73: 6/22/1981 | G73: Fully Litigated | H73: 16 | I73: 35.52 | J73: 16.12 | K73: -0.12
A74: Wisconsin | B74: Wisconsin Power and Light Co | C74: D-6680-UR-11-G | D74: Natural Gas | E74: Distribution | F74: 6/25/1981 | G74: Fully Litigated | H74: 14.75 | I74: 39.4 | J74: 16.12 | K74: -1.37
A75: Alabama | B75: Alabama Gas Corp. | C75: D-18046 | D75: Natural Gas | E75: Distribution | F75: 7/2/1981 | G75: Fully Litigated | H75: 14 | I75: 37.19 | J75: 16.12 | K75: -2.12
A76: New York | B76: Rochester Gas & Electric Corp. | C76: C-27833 | D76: Natural Gas | E76: Distribution | F76: 7/10/1981 | G76: Fully Litigated | H76: 16 | I76: 40.15 | J76: 16.12 | K76: -0.12
A77: New York | B77: Central Hudson Gas & Electric | C77: C-27827 | D77: Natural Gas | E77: Distribution | F77: 7/14/1981 | G77: Fully Litigated | H77: 16.9 | I77: 38.04 | J77: 16.12 | K77: 0.78
A78: Arkansas | B78: Black Hills Energy Arkansas | C78: D-U-3144 | D78: Natural Gas | E78: Distribution | F78: 7/21/1981 | G78: Fully Litigated | H78: 15.78 | I78: 54 | J78: 15.79 | K78: -0.01
A79: Minnesota | B79: Northern States Power Co. - MN | C79: D-E-002-GR-80-556 | D79: Natural Gas | E79: Distribution | F79: 7/27/1981 | G79: Fully Litigated | H79: 13.77 | I79: 41.46 | J79: 15.79 | K79: -2.02
A80: New Mexico | B80: Public Service Co. of NM | C80: C-1568 | D80: Natural Gas | E80: Distribution | F80: 7/27/1981 | G80: Fully Litigated | H80: 15.5 | I80: 47.5 | J80: 15.79 | K80: -0.29
A81: Iowa | B81: MidAmerican Energy Co. | C81: D-RPU-78-30 | D81: Natural Gas | E81: Distribution | F81: 7/31/1981 | G81: Fully Litigated | H81: 13.5 | I81: 39.4 | J81: 15.79 | K81: -2.29
A82: Iowa | B82: MidAmerican Energy Co. | C82: D-RPU-80-36 (gas) | D82: Natural Gas | E82: Distribution | F82: 7/31/1981 | G82: Fully Litigated | H82: 14.2 | I82: 40.01 | J82: 15.79 | K82: -1.59
A83: Ohio | B83: Columbia Gas of Ohio Inc | C83: C-80-777-GA-AIR | D83: Natural Gas | E83: Distribution | F83: 8/12/1981 | G83: Fully Litigated | H83: 13.72 | I83: 48.32 | J83: 15.79 | K83: -2.07
A84: Ohio | B84: Columbia Gas of Ohio Inc | C84: C-80-715-GA-AIR | D84: Natural Gas | E84: Distribution | F84: 8/12/1981 | G84: Fully Litigated | H84: 13.72 | I84: 48.32 | J84: 15.79 | K84: -2.07
A85: Ohio | B85: East Ohio Gas Company | C85: C-80-769-GA-AIR | D85: Natural Gas | E85: Distribution | F85: 8/12/1981 | G85: Fully Litigated | H85: 14.41 | I85: 57.6 | J85: 15.79 | K85: -1.38
A86: Connecticut | B86: Southern Connecticut Gas Co. | C86: D-81-04-09 | D86: Natural Gas | E86: Distribution | F86: 8/25/1981 | G86: Fully Litigated | H86: 15.45 | I86: 39.9 | J86: 16.07 | K86: -0.62
A87: Minnesota | B87: CenterPoint Energy Resources | C87: D-G-008-GR-80-630 | D87: Natural Gas | E87: Distribution | F87: 8/27/1981 | G87: Fully Litigated | H87: 14.43 | I87: 52.87 | J87: 16.07 | K87: -1.64
A88: Nevada | B88: Sierra Pacific Power Co. | C88: D-81-106 | D88: Natural Gas | E88: Distribution | F88: 8/28/1981 | G88: Fully Litigated | H88: 15 | I88: 35.1 | J88: 16.07 | K88: -1.07
A89: Washington | B89: Puget Sound Energy Inc. | C89: Ca-U-80-111 | D89: Natural Gas | E89: Distribution | F89: 9/24/1981 | G89: Fully Litigated | H89: 16.25 | I89: 35 | J89: 16.45 | K89: -0.2
A90: Wisconsin | B90: Wisconsin Natural Gas Co | C90: D-6670-GR-7 | D90: Natural Gas | E90: Distribution | F90: 9/29/1981 | G90: Fully Litigated | H90: 14.5 | I90: 38 | J90: 16.45 | K90: -1.95
A91: Ohio | B91: Dayton Power and Light Co. | C91: C-80-1087-GA-AIR | D91: Natural Gas | E91: Distribution | F91: 9/30/1981 | G91: Fully Litigated | H91: 15.94 | I91: 36.74 | J91: 16.45 | K91: -0.51
A92: Missouri | B92: Missouri Gas Energy | C92: C-GR-81-155 | D92: Natural Gas | E92: Distribution | F92: 10/2/1981 | G92: Fully Litigated | H92: 14.8 | I92: 38.58 | J92: 16.45 | K92: -1.65
A93: South Carolina | B93: Piedmont Natural Gas Co. | C93: D-81-252-G | D93: Natural Gas | E93: Distribution | F93: 10/12/1981 | G93: Fully Litigated | H93: 16.25 | I93: 50.14 | J93: 16.45 | K93: -0.2
A94: Idaho | B94: Avista Corp. | C94: C-U-1008-155 | D94: Natural Gas | E94: Distribution | F94: 10/20/1981 | G94: Fully Litigated | H94: 15.25 | I94: 40 | J94: 17.03 | K94: -1.78
A95: New York | B95: Brooklyn Union Gas Co. | C95: C-27885 | D95: Natural Gas | E95: Distribution | F95: 10/20/1981 | G95: Fully Litigated | H95: 16.5 | I95: 39.22 | J95: 17.03 | K95: -0.53
A96: New York | B96: NY State Electric & Gas Corp. | C96: C-27884 | D96: Natural Gas | E96: Distribution | F96: 10/20/1981 | G96: Fully Litigated | H96: 17 | I96: 39.66 | J96: 17.03 | K96: -0.03
A97: Louisiana | B97: CenterPoint Energy Resources | C97: D-U-15097 (ARKLA) | D97: Natural Gas | E97: Distribution | F97: 10/26/1981 | G97: Fully Litigated | H97: 13.5 | I97: 55.33 | J97: 17.03 | K97: -3.53
A98: Arizona | B98: Arizona Public Service Co. | C98: D-U-1345 De-52558-G | D98: Natural Gas | E98: Distribution | F98: 10/29/1981 | G98: Fully Litigated | H98: 16.5 | I98: 40.35 | J98: 17.03 | K98: -0.53
A99: Kansas | B99: Kansas Gas Service Co. | C99: D-126,922-U | D99: Natural Gas | E99: Distribution | F99: 11/4/1981 | G99: Fully Litigated | H99: 15.33 | I99: 32.63 | J99: 17.03 | K99: -1.7
A100: Iowa | B100: MidAmerican Energy Co. | C100: D-RPU-80-19 | D100: Natural Gas | E100: Distribution | F100: 11/6/1981 | G100: Fully Litigated | H100: 15.17 | I100: 37.1 | J100: 17.03 | K100: -1.86
A101: Washington | B101: Avista Corp. | C101: Ca-U-81-16 | D101: Natural Gas | E101: Distribution | F101: 11/25/1981 | G101: Fully Litigated | H101: 15.25 | I101: 38 | J101: 17.26 | K101: -2.01
A102: Connecticut | B102: Connecticut Light & Power Co. | C102: D-81-06-02-G | D102: Natural Gas | E102: Distribution | F102: 11/25/1981 | G102: Fully Litigated | H102: 16.1 | I102: 33.52 | J102: 17.26 | K102: -1.16
A103: Connecticut | B103: Connecticut Light & Power Co. | C103: D-81-06-04-G | D103: Natural Gas | E103: Distribution | F103: 11/25/1981 | G103: Fully Litigated | H103: 16.1 | I103: 36.74 | J103: 17.26 | K103: -1.16
A104: Arizona | B104: Southwest Gas Holdings Inc. | C104: D-U-1551 De-52631 | D104: Natural Gas | E104: Distribution | F104: 11/30/1981 | G104: Fully Litigated | H104: 16.75 | I104: 35.6 | J104: 17.26 | K104: -0.51
A105: Colorado | B105: Public Service Co. of CO | C105: D-1525-De-C81-1999 (Gas) | D105: Natural Gas | E105: Distribution | F105: 12/1/1981 | G105: Fully Litigated | H105: 15.7 | I105: 39.09 | J105: 17.26 | K105: -1.56
A106: New York | B106: Orange & Rockland Utlts Inc. | C106: C-27910 | D106: Natural Gas | E106: Distribution | F106: 12/1/1981 | G106: Fully Litigated | H106: 16 | I106: 43.11 | J106: 17.26 | K106: -1.26
A107: Delaware | B107: Delmarva Power & Light Co. | C107: D-81-13 | D107: Natural Gas | E107: Distribution | F107: 12/15/1981 | G107: Fully Litigated | H107: 15.81 | I107: 36.06 | J107: 16.42 | K107: -0.61
A108: New York | B108: National Fuel Gas Dist Corp. | C108: C-27934 | D108: Natural Gas | E108: Distribution | F108: 12/22/1981 | G108: Fully Litigated | H108: 15.7 | I108: 43 | J108: 16.42 | K108: -0.72
A109: Georgia | B109: Atlanta Gas Light Co. | C109: D-3288-U | D109: Natural Gas | E109: Distribution | F109: 12/22/1981 | G109: Fully Litigated | H109: 16 | I109: 38.37 | J109: 16.42 | K109: -0.42
A110: California | B110: Pacific Gas and Electric Co. | C110: AP-60153 De-93887-G | D110: Natural Gas | E110: Distribution | F110: 12/30/1981 | G110: Fully Litigated | H110: 16 | I110: 41 | J110: 16.42 | K110: -0.42
A111: California | B111: San Diego Gas & Electric Co. | C111: AP-59788 De-93892-G | D111: Natural Gas | E111: Distribution | F111: 12/30/1981 | G111: Fully Litigated | H111: 16.25 | I111: 37.25 | J111: 16.42 | K111: -0.17
A112: Kentucky | B112: Louisville Gas & Electric Co. | C112: C-8284 (gas) | D112: Natural Gas | E112: Distribution | F112: 1/4/1982 | G112: Fully Litigated | H112: 15.5 | I112: 38.6 | J112: 16.42 | K112: -0.92
A113: Kansas | B113: Kansas Gas Service Co. | C113: D-128,361-U | D113: Natural Gas | E113: Distribution | F113: 1/25/1982 | G113: Fully Litigated | H113: 16.25 | I113: 33.8 | J113: 16.16 | K113: 0.09
A114: Ohio | B114: Duke Energy Ohio Inc. | C114: C-81-67-GA-AIR | D114: Natural Gas | E114: Distribution | F114: 1/27/1982 | G114: Fully Litigated | H114: 16.84 | I114: 34.5 | J114: 16.16 | K114: 0.68
A115: Massachusetts | B115: Bay State Gas Company | C115: DPU-777 | D115: Natural Gas | E115: Distribution | F115: 1/31/1982 | G115: Fully Litigated | H115: 14 | I115: 38.29 | J115: 16.16 | K115: -2.16
A116: North Carolina | B116: Piedmont Natural Gas Co. | C116: D-G-9, SUB 212 | D116: Natural Gas | E116: Distribution | F116: 2/2/1982 | G116: Fully Litigated | H116: 16.24 | I116: 50.81 | J116: 16.16 | K116: 0.08
A117: Maryland | B117: Baltimore Gas and Electric Co. | C117: C-7574 0-65648-G | D117: Natural Gas | E117: Distribution | F117: 2/8/1982 | G117: Fully Litigated | H117: 15.5 | I117: 38.61 | J117: 16.16 | K117: -0.66
A118: District of Columbia | B118: Washington Gas Light Co. | C118: C-768 0-7469 | D118: Natural Gas | E118: Distribution | F118: 2/9/1982 | G118: Fully Litigated | H118: 14.95 | I118: 44 | J118: 16.16 | K118: -1.21
A119: Idaho | B119: Intermountain Gas Co. | C119: C-U-1034-95 | D119: Natural Gas | E119: Distribution | F119: 2/9/1982 | G119: Fully Litigated | H119: 15.75 | I119: 33.34 | J119: 16.16 | K119: -0.41
A120: New Jersey | B120: Public Service Electric Gas | C120: D-812-76-G | D120: Natural Gas | E120: Distribution | F120: 2/11/1982 | G120: Fully Litigated | H120: 16 | I120: NA | J120: 16.16 | K120: -0.16
A121: Maryland | B121: Washington Gas Light Co. | C121: C-7585 0-65676 | D121: Natural Gas | E121: Distribution | F121: 3/1/1982 | G121: Fully Litigated | H121: 15.96 | I121: 38.4 | J121: 16.8 | K121: -0.84
A122: Iowa | B122: MidAmerican Energy Co. | C122: D-RPU-80-65 | D122: Natural Gas | E122: Distribution | F122: 3/3/1982 | G122: Fully Litigated | H122: 15 | I122: 36.75 | J122: 16.8 | K122: -1.8
A123: New York | B123: Niagara Mohawk Power Corp. | C123: C-27986 | D123: Natural Gas | E123: Distribution | F123: 3/8/1982 | G123: Fully Litigated | H123: 17.1 | I123: 41.48 | J123: 16.8 | K123: 0.3
A124: Pennsylvania | B124: National Fuel Gas Dist Corp. | C124: C-R-811600 | D124: Natural Gas | E124: Distribution | F124: 3/26/1982 | G124: Fully Litigated | H124: 16 | I124: 48 | J124: 16.92 | K124: -0.92
A125: Oklahoma | B125: Oklahoma Natural Gas Co | C125: Ca-27347 | D125: Natural Gas | E125: Distribution | F125: 3/31/1982 | G125: Fully Litigated | H125: 16.25 | I125: 48.67 | J125: 16.92 | K125: -0.67
A126: Wisconsin | B126: Wisconsin Gas LLC | C126: D-6650-GR-15 | D126: Natural Gas | E126: Distribution | F126: 4/6/1982 | G126: Fully Litigated | H126: 15 | I126: 41.11 | J126: 16.92 | K126: -1.92
A127: Washington | B127: Cascade Natural Gas Corp. | C127: Ca-U-81-64 | D127: Natural Gas | E127: Distribution | F127: 4/9/1982 | G127: Fully Litigated | H127: 16.5 | I127: 38.98 | J127: 16.92 | K127: -0.42
A128: North Dakota | B128: MDU Resources Group Inc. | C128: C-10, 280 | D128: Natural Gas | E128: Distribution | F128: 4/12/1982 | G128: Fully Litigated | H128: 15.1 | I128: 38.48 | J128: 16.92 | K128: -1.82
A129: Nevada | B129: Southwest Gas Holdings Inc. | C129: D-81-614 (Southern) | D129: Natural Gas | E129: Distribution | F129: 4/12/1982 | G129: Fully Litigated | H129: 16.7 | I129: 31.84 | J129: 16.92 | K129: -0.22
A130: Montana | B130: MDU Resources Group Inc. | C130: D-81.7.62 | D130: Natural Gas | E130: Distribution | F130: 4/18/1982 | G130: Fully Litigated | H130: 14.7 | I130: 38.79 | J130: 16.49 | K130: -1.79
A131: Wisconsin | B131: Wisconsin Public Service Corp. | C131: D-6690-UR-18-G | D131: Natural Gas | E131: Distribution | F131: 4/27/1982 | G131: Fully Litigated | H131: 15 | I131: 39.09 | J131: 16.49 | K131: -1.49
A132: Montana | B132: NorthWestern Corp. | C132: D-81.6.57 | D132: Natural Gas | E132: Distribution | F132: 5/10/1982 | G132: Fully Litigated | H132: 14.57 | I132: 38.09 | J132: 16.49 | K132: -1.92
A133: North Carolina | B133: Public Service Co. of NC | C133: D-G-5, SUB 168 | D133: Natural Gas | E133: Distribution | F133: 5/14/1982 | G133: Fully Litigated | H133: 15.8 | I133: 44.26 | J133: 16.49 | K133: -0.69
A134: Louisiana | B134: Atmos Energy Corp. | C134: D-U-15276 (LGS) | D134: Natural Gas | E134: Distribution | F134: 5/20/1982 | G134: Fully Litigated | H134: 15.82 | I134: 47.15 | J134: 16.4 | K134: =H134-J134 -> -0.58
A135: Connecticut | B135: CT Natural Gas Corp. | C135: D-81-12-12 | D135: Natural Gas | E135: Distribution | F135: 5/25/1982 | G135: Fully Litigated | H135: 16.25 | I135: 39.63 | J135: 16.4 | K135: -0.15
A136: West Virginia | B136: Mountaineer Gas Company | C136: C-81-340-G-42T | D136: Natural Gas | E136: Distribution | F136: 6/2/1982 | G136: Fully Litigated | H136: 14.5 | I136: NA | J136: 16.4 | K136: -1.9
A137: New York | B137: Consolidated Edison Co. of NY | C137: C-28036 | D137: Natural Gas | E137: Distribution | F137: 6/7/1982 | G137: Fully Litigated | H137: 16 | I137: 48.03 | J137: 16.4 | K137: -0.4
A138: Rhode Island | B138: Narragansett Electric Co. | C138: D-1612 | D138: Natural Gas | E138: Distribution | F138: 6/23/1982 | G138: Fully Litigated | H138: 15.5 | I138: 42.2 | J138: 16.08 | K138: -0.58
A139: Pennsylvania | B139: PECO Energy Co. | C139: C-R-811719 | D139: Natural Gas | E139: Distribution | F139: 6/25/1982 | G139: Fully Litigated | H139: 16.5 | I139: 37.4 | J139: 16.08 | K139: 0.42
A140: Illinois | B140: Northern Illinois Gas Co. | C140: D-81-0609 | D140: Natural Gas | E140: Distribution | F140: 7/1/1982 | G140: Fully Litigated | H140: 15.55 | I140: 55.59 | J140: 16.08 | K140: -0.53
A141: Illinois | B141: Ameren Illinois | C141: D-81-0600 (CILCO-G) | D141: Natural Gas | E141: Distribution | F141: 7/1/1982 | G141: Fully Litigated | H141: 16 | I141: 41.29 | J141: 16.08 | K141: -0.08
A142: Iowa | B142: Interstate Power & Light Co. | C142: D-RPU-81-44 | D142: Natural Gas | E142: Distribution | F142: 7/2/1982 | G142: Fully Litigated | H142: 15.1 | I142: 36.08 | J142: 16.08 | K142: -0.98
A143: New York | B143: Rochester Gas & Electric Corp. | C143: C-28055 | D143: Natural Gas | E143: Distribution | F143: 7/13/1982 | G143: Fully Litigated | H143: 16.8 | I143: 41.7 | J143: 16.08 | K143: 0.72
A144: Wisconsin | B144: Madison Gas and Electric Co. | C144: D-3270-UR-10-G | D144: Natural Gas | E144: Distribution | F144: 7/22/1982 | G144: Fully Litigated | H144: 14.5 | I144: 41.2 | J144: 16.34 | K144: -1.84
A145: Michigan | B145: DTE Gas Co. | C145: C-U-6839 | D145: Natural Gas | E145: Distribution | F145: 7/30/1982 | G145: Fully Litigated | H145: 14.82 | I145: 30.27 | J145: 16.34 | K145: -1.52
A146: Ohio | B146: East Ohio Gas Company | C146: C-81-970-GA-AIR | D146: Natural Gas | E146: Distribution | F146: 8/4/1982 | G146: Fully Litigated | H146: 15.58 | I146: 59.46 | J146: 16.34 | K146: -0.76
A147: Washington | B147: Cascade Natural Gas Corp. | C147: Ca-U-82-20,33 | D147: Natural Gas | E147: Distribution | F147: 8/6/1982 | G147: Fully Litigated | H147: 16.5 | I147: 38.98 | J147: 16.34 | K147: 0.16
A148: Indiana | B148: Northern IN Public Svc Co. | C148: Ca-36690 | D148: Natural Gas | E148: Distribution | F148: 8/11/1982 | G148: Fully Litigated | H148: 17.11 | I148: 32.74 | J148: 16.34 | K148: 0.77
A149: Illinois | B149: MidAmerican Energy Co. | C149: D-81-0747 (gas) | D149: Natural Gas | E149: Distribution | F149: 8/25/1982 | G149: Fully Litigated | H149: 16 | I149: 37.08 | J149: 16.46 | K149: -0.46
A150: New Mexico | B150: Public Service Co. of NM | C150: C-1710 | D150: Natural Gas | E150: Distribution | F150: 8/30/1982 | G150: Fully Litigated | H150: 16.25 | I150: 44 | J150: 16.46 | K150: -0.21
A151: Hawaii | B151: Gas Company LLC | C151: D-4286 | D151: Natural Gas | E151: Distribution | F151: 9/3/1982 | G151: Fully Litigated | H151: 15.5 | I151: 37.9 | J151: 16.46 | K151: -0.96
A152: Ohio | B152: Columbia Gas of Ohio Inc | C152: C-81-1024-GA-AIR | D152: Natural Gas | E152: Distribution | F152: 9/9/1982 | G152: Fully Litigated | H152: 16.04 | I152: 49.07 | J152: 16.46 | K152: -0.42
A153: Ohio | B153: Columbia Gas of Ohio Inc | C153: C-81-1025-GA-AIR | D153: Natural Gas | E153: Distribution | F153: 9/15/1982 | G153: Fully Litigated | H153: 16.04 | I153: 49.07 | J153: 15.92 | K153: 0.12
A154: Idaho | B154: Avista Corp. | C154: C-U-1008-171 | D154: Natural Gas | E154: Distribution | F154: 9/17/1982 | G154: Fully Litigated | H154: 15.25 | I154: 40 | J154: 15.92 | K154: -0.67
A155: South Carolina | B155: South Carolina Electric & Gas | C155: D-82-239-G O-82-676 | D155: Natural Gas | E155: Distribution | F155: 9/29/1982 | G155: Fully Litigated | H155: 14.5 | I155: 38.25 | J155: 15.92 | K155: -1.42
A156: Minnesota | B156: Northern States Power Co. - MN | C156: D-E-002-GR-81-508 | D156: Natural Gas | E156: Distribution | F156: 9/30/1982 | G156: Fully Litigated | H156: 14.74 | I156: 41.75 | J156: 15.92 | K156: -1.18
A157: Massachusetts | B157: Boston Gas Co. | C157: DPU-1100 | D157: Natural Gas | E157: Distribution | F157: 9/30/1982 | G157: Fully Litigated | H157: 15.5 | I157: 52 | J157: 15.92 | K157: -0.42
A158: Arizona | B158: Southwest Gas Holdings Inc. | C158: D-U-1551 De-53237 | D158: Natural Gas | E158: Distribution | F158: 9/30/1982 | G158: Fully Litigated | H158: 16.5 | I158: 33.14 | J158: 15.92 | K158: 0.58
A159: Georgia | B159: Atlanta Gas Light Co. | C159: D-3333-U | D159: Natural Gas | E159: Distribution | F159: 9/30/1982 | G159: Fully Litigated | H159: 16.7 | I159: 33.8 | J159: 15.92 | K159: 0.78
A160: New Jersey | B160: South Jersey Gas Co. | C160: D-818-754 | D160: Natural Gas | E160: Distribution | F160: 10/8/1982 | G160: Fully Litigated | H160: 15 | I160: 38 | J160: 15.92 | K160: -0.92
A161: New York | B161: Central Hudson Gas & Electric | C161: C-28106 | D161: Natural Gas | E161: Distribution | F161: 10/15/1982 | G161: Fully Litigated | H161: 15.9 | I161: 40.46 | J161: 15.45 | K161: 0.45
A162: New York | B162: Brooklyn Union Gas Co. | C162: C-28107 | D162: Natural Gas | E162: Distribution | F162: 10/19/1982 | G162: Fully Litigated | H162: 15.9 | I162: 40.3 | J162: 15.45 | K162: 0.45
A163: Indiana | B163: Indiana Gas Co. | C163: Ca-36817 | D163: Natural Gas | E163: Distribution | F163: 10/27/1982 | G163: Fully Litigated | H163: 17 | I163: 36.6 | J163: 15.45 | K163: 1.55
A164: Wisconsin | B164: Wisconsin Natural Gas Co | C164: D-6670-GR-9 | D164: Natural Gas | E164: Distribution | F164: 10/28/1982 | G164: Fully Litigated | H164: 14.75 | I164: 44.73 | J164: 15.45 | K164: -0.7
A165: Connecticut | B165: Southern Connecticut Gas Co. | C165: D-82-06-12 | D165: Natural Gas | E165: Distribution | F165: 11/2/1982 | G165: Fully Litigated | H165: 16.25 | I165: 36.64 | J165: 15.45 | K165: 0.8
A166: Idaho | B166: Intermountain Gas Co. | C166: C-U-1034-99 | D166: Natural Gas | E166: Distribution | F166: 11/4/1982 | G166: Fully Litigated | H166: 15.75 | I166: 41.09 | J166: 15.45 | K166: 0.3
A167: California | B167: Southwest Gas Holdings Inc. | C167: AP-82-0705 De-8211061 | D167: Natural Gas | E167: Distribution | F167: 11/17/1982 | G167: Fully Litigated | H167: 16 | I167: 40.5 | J167: 14.98 | K167: 1.02
A168: Illinois | B168: Ameren Illinois | C168: D-82-0039 (CIPS-G) | D168: Natural Gas | E168: Distribution | F168: 11/23/1982 | G168: Fully Litigated | H168: 15.5 | I168: 40.68 | J168: 14.98 | K168: 0.52
A169: Virginia | B169: Washington Gas Light Co. | C169: C-PUE-820029 | D169: Natural Gas | E169: Distribution | F169: 11/24/1982 | G169: Fully Litigated | H169: 14.5 | I169: 36.82 | J169: 14.98 | K169: -0.48
A170: Maryland | B170: Washington Gas Light Co. | C170: C-7639 0-66016 | D170: Natural Gas | E170: Distribution | F170: 11/24/1982 | G170: Fully Litigated | H170: 16.02 | I170: 39.5 | J170: 14.98 | K170: 1.04
A171: Mississippi | B171: Atmos Energy Corp. | C171: C-U-4242 | D171: Natural Gas | E171: Distribution | F171: 11/30/1982 | G171: Fully Litigated | H171: 12.98 | I171: NA | J171: 14.98 | K171: -2
A172: Massachusetts | B172: Bay State Gas Company | C172: DPU-1122 | D172: Natural Gas | E172: Distribution | F172: 11/30/1982 | G172: Fully Litigated | H172: 15.5 | I172: 33.2 | J172: 14.98 | K172: 0.52
A173: Massachusetts | B173: NSTAR Gas Co. | C173: DPU-1120 | D173: Natural Gas | E173: Distribution | F173: 11/30/1982 | G173: Fully Litigated | H173: 15.5 | I173: 51.72 | J173: 14.98 | K173: 0.52
A174: North Carolina | B174: Piedmont Natural Gas Co. | C174: D-G-9, SUB 219 | D174: Natural Gas | E174: Distribution | F174: 11/30/1982 | G174: Fully Litigated | H174: 15.65 | I174: 53.17 | J174: 14.98 | K174: 0.67
A175: Nevada | B175: Southwest Gas Holdings Inc. | C175: D-82-399 (Northern) | D175: Natural Gas | E175: Distribution | F175: 11/30/1982 | G175: Fully Litigated | H175: 16 | I175: NA | J175: 14.98 | K175: 1.02
A176: Massachusetts | B176: Colonial Gas Co. | C176: DPU-1125 | D176: Natural Gas | E176: Distribution | F176: 11/30/1982 | G176: Fully Litigated | H176: 16.1 | I176: 32.92 | J176: 14.98 | K176: 1.12
A177: Kansas | B177: Kansas Gas Service Co. | C177: D-132,996-U | D177: Natural Gas | E177: Distribution | F177: 12/3/1982 | G177: Fully Litigated | H177: 15.33 | I177: 32.78 | J177: 14.98 | K177: 0.35
A178: California | B178: Southern California Gas Co. | C178: AP-61081 De-82-12054 | D178: Natural Gas | E178: Distribution | F178: 12/8/1982 | G178: Fully Litigated | H178: 15.75 | I178: 42 | J178: 14.98 | K178: 0.77
A179: Tennessee | B179: Chattanooga Gas Company | C179: D-U-82-7175 | D179: Natural Gas | E179: Distribution | F179: 12/13/1982 | G179: Fully Litigated | H179: 16 | I179: 49.72 | J179: 14.98 | K179: 1.02
A180: Connecticut | B180: Connecticut Light & Power Co. | C180: D-82-07-01-G | D180: Natural Gas | E180: Distribution | F180: 12/14/1982 | G180: Fully Litigated | H180: 16.4 | I180: 37.37 | J180: 14.98 | K180: 1.42
A181: Pennsylvania | B181: UGI Utilities Inc. | C181: C-R-821899 | D181: Natural Gas | E181: Distribution | F181: 12/17/1982 | G181: Fully Litigated | H181: 16.25 | I181: 43.7 | J181: 14.46 | K181: 1.79
A182: Virginia | B182: Virginia Natural Gas Inc. | C182: C-PUE-820047 | D182: Natural Gas | E182: Distribution | F182: 12/20/1982 | G182: Fully Litigated | H182: 15 | I182: 35.6 | J182: 14.46 | K182: 0.54
A183: New York | B183: National Fuel Gas Dist Corp. | C183: C-28158 | D183: Natural Gas | E183: Distribution | F183: 12/21/1982 | G183: Fully Litigated | H183: 15.7 | I183: 46 | J183: 14.46 | K183: 1.24
A184: Illinois | B184: North Shore Gas Co. | C184: D-82-0189 | D184: Natural Gas | E184: Distribution | F184: 12/28/1982 | G184: Fully Litigated | H184: 15.25 | I184: 42.41 | J184: 14.46 | K184: 0.79
A185: Illinois | B185: Peoples Gas Light & Coke Co. | C185: D-82-0082 | D185: Natural Gas | E185: Distribution | F185: 12/28/1982 | G185: Fully Litigated | H185: 15.25 | I185: 42.75 | J185: 14.46 | K185: 0.79
A186: Washington | B186: Avista Corp. | C186: Ca-U-82-11 | D186: Natural Gas | E186: Distribution | F186: 12/29/1982 | G186: Fully Litigated | H186: 16.25 | I186: 38 | J186: 14.46 | K186: 1.79
A187: Washington | B187: Puget Sound Energy Inc. | C187: Ca-U-82-22, 37 | D187: Natural Gas | E187: Distribution | F187: 12/29/1982 | G187: Fully Litigated | H187: 16.25 | I187: 35 | J187: 14.46 | K187: 1.79
A188: New York | B188: NY State Electric & Gas Corp. | C188: C-28169 | D188: Natural Gas | E188: Distribution | F188: 1/11/1983 | G188: Fully Litigated | H188: 15.9 | I188: 40.69 | J188: 14.46 | K188: 1.44
A189: Illinois | B189: Ameren Illinois | C189: D-82-0152 (IP-G) | D189: Natural Gas | E189: Distribution | F189: 1/12/1983 | G189: Fully Litigated | H189: 15.5 | I189: 42.82 | J189: 14.46 | K189: 1.04
A190: Wisconsin | B190: Wisconsin Gas LLC | C190: D-6650-GR-17 | D190: Natural Gas | E190: Distribution | F190: 1/18/1983 | G190: Fully Litigated | H190: 15 | I190: 43.07 | J190: 14.43 | K190: 0.57
A191: New York | B191: Long Island Lighting Co | C191: C-28177 | D191: Natural Gas | E191: Distribution | F191: 1/24/1983 | G191: Fully Litigated | H191: 15.5 | I191: 44.59 | J191: 14.43 | K191: 1.07
A192: Nevada | B192: Southwest Gas Holdings Inc. | C192: D-82-399 (Southern) | D192: Natural Gas | E192: Distribution | F192: 1/24/1983 | G192: Fully Litigated | H192: 16 | I192: 34.23 | J192: 14.43 | K192: 1.57
A193: Minnesota | B193: Minnesota Energy Resources | C193: D-G-011-GR-82-65 | D193: Natural Gas | E193: Distribution | F193: 1/28/1983 | G193: Fully Litigated | H193: 14.9 | I193: 49.9 | J193: 14.43 | K193: 0.47
A194: Iowa | B194: MidAmerican Energy Co. | C194: D-RPU-82-40 | D194: Natural Gas | E194: Distribution | F194: 2/10/1983 | G194: Fully Litigated | H194: 15 | I194: 40.29 | J194: 14.43 | K194: 0.57
A195: District of Columbia | B195: Washington Gas Light Co. | C195: C-787 0-7749 | D195: Natural Gas | E195: Distribution | F195: 2/25/1983 | G195: Fully Litigated | H195: 15.7 | I195: 41.9 | J195: 14.24 | K195: 1.46
A196: Kentucky | B196: Louisville Gas & Electric Co. | C196: C-8616 (gas) | D196: Natural Gas | E196: Distribution | F196: 3/2/1983 | G196: Fully Litigated | H196: 15.25 | I196: 39.46 | J196: 14.24 | K196: 1.01
A197: Tennessee | B197: Piedmont Natural Gas Co. | C197: D-U-82-7190 | D197: Natural Gas | E197: Distribution | F197: 3/16/1983 | G197: Fully Litigated | H197: 16 | I197: 57.44 | J197: 14.28 | K197: 1.72
A198: Minnesota | B198: CenterPoint Energy Resources | C198: D-G-008-GR-82-249 | D198: Natural Gas | E198: Distribution | F198: 3/21/1983 | G198: Fully Litigated | H198: 14.96 | I198: 55.07 | J198: 14.28 | K198: =H198-J198 -> 0.68
A199: New York | B199: Niagara Mohawk Power Corp. | C199: C-28227 | D199: Natural Gas | E199: Distribution | F199: 3/23/1983 | G199: Fully Litigated | H199: 15.4 | I199: 41.97 | J199: 14.28 | K199: 1.12
A200: Wisconsin | B200: Wisconsin Public Service Corp. | C200: D-6690-UR-19-G | D200: Natural Gas | E200: Distribution | F200: 3/24/1983 | G200: Fully Litigated | H200: 15 | I200: 42.5 | J200: 14.28 | K200: 0.72
... 605 more rows

Sheet 4.1 CAPM
B1: =Input!G28 -> Duke Energy Kentucky, Inc.
B2: Indicated Common Equity Cost Rate Through Use
B3: of the Traditional Capital Asset Pricing Model (CAPM) and Empirical Capital Asset Pricing Model (ECAPM)
D5: [1] | F5: [2] | H5: [3] | J5: [4] | M5: [5] | P5: [6] | S5: [7] | V5: [8]
B7: ='3.8-3.9 Beta Adjusted ERP'!F7 -> Proxy Group of Seven Natural Gas Distribution Companies | D7: Value Line Adjusted Beta | F7: Bloomberg Adjusted Beta | H7: Average Beta | J7: Market Risk Premium (1) | M7: Risk-Free Rate (2) | P7: Traditional CAPM Cost Rate | S7: ECAPM Cost Rate | V7: Indicated Common Equity Cost Rate (3)
A9: =IFERROR(Input!A2, "NA") -> ATO | B9: ='Proxy Data Lookup'!B3 -> Atmos Energy Corporation | D9: ='MRP WP1'!C71 -> 0.8 | F9: ='Proxy Data Lookup'!H3 -> 0.9082199931 | H9: =IFERROR(ROUND(AVERAGE(D9:F9),2),"NA") -> 0.85 | J9: ='MRP WP1'!$H$64 -> 9.541734111 | K9: % | M9: ='MRP WP1'!$F$37 -> 2.73 | N9: % | P9: =IFERROR((H9*J9) + M9,"NA") -> 10.84047399 | Q9: % | S9: =IFERROR((0.75*(H9*J9))+(0.25*J9)+M9,"NA") -> 11.19828902 | T9: % | V9: =IFERROR(ROUND(AVERAGE(P9:S9),2),"NA") -> 11.02 | W9: %
A10: =IFERROR(Input!A3, "NA") -> NJR | B10: ='Proxy Data Lookup'!B4 -> New Jersey Resources Corporation | D10: ='MRP WP1'!C72 -> 0.95 | F10: ='Proxy Data Lookup'!H4 -> 0.9634966254 | H10: =IFERROR(ROUND(AVERAGE(D10:F10),2),"NA") -> 0.96 | J10: ='MRP WP1'!$H$64 -> 9.541734111 | M10: ='MRP WP1'!$F$37 -> 2.73 | P10: =IFERROR((H10*J10) + M10,"NA") -> 11.89006475 | S10: =IFERROR((0.75*(H10*J10))+(0.25*J10)+M10,"NA") -> 11.98548209 | V10: =IFERROR(ROUND(AVERAGE(P10:S10),2),"NA") -> 11.94
A11: =IFERROR(Input!A4, "NA") -> NWN | B11: ='Proxy Data Lookup'!B5 -> Northwest Natural Holding Company | D11: ='MRP WP1'!C73 -> 0.8 | F11: ='Proxy Data Lookup'!H5 -> 0.834400475 | H11: 0.82 | J11: ='MRP WP1'!$H$64 -> 9.541734111 | M11: ='MRP WP1'!$F$37 -> 2.73 | P11: 10.55422197 | S11: 10.98360001 | V11: 10.77
A12: =IFERROR(Input!A5, "NA") -> OGS | B12: ='Proxy Data Lookup'!B6 -> ONE Gas, Inc. | D12: ='MRP WP1'!C74 -> 0.8 | F12: ='Proxy Data Lookup'!H6 -> 0.9912618399 | H12: 0.9 | J12: ='MRP WP1'!$H$64 -> 9.541734111 | M12: ='MRP WP1'!$F$37 -> 2.73 | P12: 11.3175607 | S12: 11.55610405 | V12: 11.44
A13: =IFERROR(Input!A6, "NA") -> SJI | B13: ='Proxy Data Lookup'!B7 -> South Jersey Industries, Inc. | D13: ='MRP WP1'!C75 -> 1.05 | F13: ='Proxy Data Lookup'!H7 -> 0.9713575244 | H13: 1.01 | J13: ='MRP WP1'!$H$64 -> 9.541734111 | M13: ='MRP WP1'!$F$37 -> 2.73 | P13: 12.36715145 | S13: 12.34329712 | V13: 12.36
A14: =IFERROR(Input!A7, "NA") -> SWX | B14: ='Proxy Data Lookup'!B8 -> Southwest Gas Holdings, Inc. | D14: ='MRP WP1'!C76 -> 0.95 | F14: ='Proxy Data Lookup'!H8 -> 1.073066592 | H14: 1.01 | J14: ='MRP WP1'!$H$64 -> 9.541734111 | M14: ='MRP WP1'!$F$37 -> 2.73 | P14: 12.36715145 | S14: 12.34329712 | V14: 12.36
A15: =IFERROR(Input!A8, "NA") -> SR | B15: ='Proxy Data Lookup'!B9 -> Spire Inc. | D15: ='MRP WP1'!C77 -> 0.85 | F15: ='Proxy Data Lookup'!H9 -> 0.9871286154 | H15: 0.92 | J15: ='MRP WP1'!$H$64 -> 9.541734111 | M15: ='MRP WP1'!$F$37 -> 2.73 | P15: 11.50839538 | S15: 11.69923006 | V15: 11.6
B17: Mean | H17: =IFERROR(ROUND(AVERAGE(H8:H16),2),"NA") -> 0.92 | P17: =IFERROR(ROUND(AVERAGE(P8:P16),2),"NA") -> 11.55 | Q17: % | S17: =IFERROR(ROUND(AVERAGE(S8:S16),2),"NA") -> 11.73 | T17: % | V17: =IFERROR(ROUND(AVERAGE(V8:V16),2),"NA") -> 11.64 | W17: %
B19: Median | H19: =IFERROR(ROUND(MEDIAN(H8:H16),2),"NA") -> 0.92 | P19: =IFERROR(ROUND(MEDIAN(P8:P16),2),"NA") -> 11.51 | Q19: % | S19: =IFERROR(ROUND(MEDIAN(S8:S16),2),"NA") -> 11.7 | T19: % | V19: =IFERROR(ROUND(MEDIAN(V8:V16),2),"NA") -> 11.6 | W19: %
B21: Average of Mean and Median | H21: =IFERROR(ROUND(AVERAGE(H17:H19),2),"NA") -> 0.92 | P21: =IFERROR(ROUND(AVERAGE(P17:P19),2),"NA") -> 11.53 | Q21: % | S21: =IFERROR(ROUND(AVERAGE(S17:S19),2),"NA") -> 11.72 | T21: % | V21: =IFERROR(ROUND(AVERAGE(V17:V19),2),"NA") -> 11.62 | W21: %
B24: Notes on page 2 of this Attachment.

Sheet 4.2 CAPM Notes
A1: =Input!G28 -> Duke Energy Kentucky, Inc.
A2: Notes to Accompany the Application of the CAPM and ECAPM
A4: Notes:
A5: (1) | B5: The market risk premium (MRP) is derived by using six different measures from three sources: Ibbotson, Value Line, and Bloomberg as illustrated below:
B7: Historical Data MRP Estimates:
B9: =CONCATENATE("Measure 1: Ibbotson Arithmetic Mean MRP ",MID(Input!E20,FIND("(",Input!E20),11)) -> Measure 1: Ibbotson Arithmetic Mean MRP (1926-2020)
B11: =CONCATENATE("Arithmetic Mean Monthly Returns for Large Stocks ",MID(Input!E20,FIND("1",Input!E20),9),":") -> Arithmetic Mean Monthly Returns for Large Stocks 1926-2020: | N11: ='MRP WP1'!H49 -> 12.2 | O11: %
B12: Arithmetic Mean Income Returns on Long-Term Government Bonds: | N12: ='MRP WP1'!H51 -> 5.05
B13: MRP based on Ibbotson Historical Data: | N13: =N11-N12 -> 7.15 | O13: %
B15: Measure 2: Application of a Regression Analysis to Ibbotson Historical Data
B16: (1926-2020) | N16: ='MRP ERP WP'!AA42*100 -> 9.541609526 | O16: %
B18: Measure 3: Application of the PRPM to Ibbotson Historical Data:
B19: =CONCATENATE("(January 1926 - ",Input!G25,")") -> (January 1926 - March 2021) | N19: ='MRP WP1'!H46 -> 10.46446651 | O19: %
B21: Value Line MRP Estimates:
B23: =CONCATENATE("Measure 4: Value Line Projected MRP (Thirteen weeks ending ",TEXT('MRP WP1'!B7,"mmmm dd, yyyy)")) -> Measure 4: Value Line Projected MRP (Thirteen weeks ending April 02, 2021)
B25: Total projected return on the market 3-5 years hence*: | N25: ='MRP WP1'!M22*100 -> 8.47 | O25: %
B26: Projected Risk-Free Rate (see note 2): | N26: ='MRP WP1'!F37 -> 2.73
B27: MRP based on Value Line Summary & Index: | N27: =N25-N26 -> 5.74 | O27: %
C28: *Forcasted 3-5 year capital appreciation plus expected dividend yield
B30: Measure 5: Value Line Projected Return on the Market based on the S&P 500
B32: Total return on the Market based on the S&P 500: | N32: ='MRP WP3'!H504*100 -> 14.20759088 | O32: %
B33: Projected Risk-Free Rate (see note 2): | N33: =N54 -> 2.73
B34: MRP based on Value Line data | N34: =IFERROR(N32-N33,"NA") -> 11.47759088 | O34: %
B36: Measure 6: Bloomberg Projected MRP
B38: Total return on the Market based on the S&P 500: | N38: ='MRP WP2'!Q504*100 -> 15.60673776 | O38: %
B39: Projected Risk-Free Rate (see note 2): | N39: ='MRP WP1'!F37 -> 2.73
L40: MRP based on Bloomberg data | N40: =IFERROR(N38-N39,"NA") -> 12.87673776 | O40: %
L42: Average of Value Line, Ibbotson, and Bloomberg MRP: | N42: =AVERAGE(N13,N16,N19,N27,N34,N40) -> 9.541734111 | O42: %
A44: (2) | B44: For reasons explained in the direct testimony, the appropriate risk-free rate for cost of capital purposes is the average forecast of 30 year Treasury Bonds per the consensus of nearly 50 economists reported in Blue Chip Financial Forecasts. (See pages 10 and 11 of Attachment DWD-3.) The projection of the risk-free rate is illustrated below:
J46: ='MRP WP1'!B28 -> Second Quarter 2021 | N46: ='MRP WP1'!F28 -> 2.4 | O46: %
J47: ='MRP WP1'!B29 -> Third Quarter 2021 | N47: ='MRP WP1'!F29 -> 2.5
J48: ='MRP WP1'!B30 -> Fourth Quarter 2021 | N48: ='MRP WP1'!F30 -> 2.5
J49: ='MRP WP1'!B31 -> First Quarter 2022 | N49: ='MRP WP1'!F31 -> 2.6
J50: ='MRP WP1'!B32 -> Second Quarter 2022 | N50: ='MRP WP1'!F32 -> 2.7
J51: ='MRP WP1'!B33 -> Third Quarter 2022 | N51: ='MRP WP1'!F33 -> 2.7
J52: ='MRP WP1'!B34 -> 2022-2026 | N52: ='MRP WP1'!F34 -> 2.8
J53: ='MRP WP1'!B35 -> 2027-2031 | N53: ='MRP WP1'!F35 -> 3.6
N54: =ROUND(AVERAGE(N46:N53),2) -> 2.73 | O54: %
A55: (3) | B55: Average of Column 6 and Column 7.
A57: Sources of Information:
B58: Value Line Summary and Index
B59: ='3.8-3.9 Beta Adjusted ERP'!C45 -> Blue Chip Financial Forecasts, April 1, 2021 and December 1, 2020
B60: ='3.8-3.9 Beta Adjusted ERP'!C42 -> Stocks, Bonds, Bills, and Inflation - 2020 SBBI Yearbook, John Wiley & Sons, Inc.
B61: Bloomberg Professional Services

Sheet 5.2 Comp Earnings Criteria
C1: =Input!G28 -> Duke Energy Kentucky, Inc.
C2: Basis of Selection of Comparable Risk
C3: Domestic Non-Price Regulated Companies
A4: TICKER | M4: STD. DEV.
E5: [1] | G5: [2] | I5: [3] | K5: [4]
A6: SYMBOL | M6: OF Y | O6: R FACTOR | Q6: R2.
C7: ='4.1 CAPM'!B7 -> Proxy Group of Seven Natural Gas Distribution Companies | E7: Value Line Adjusted Beta | G7: Unadjusted Beta | I7: Residual Standard Error of the Regression | K7: Standard Deviation of Beta
A9: =Input!A2 -> ATO | C9: ='Proxy Data Lookup'!B3 -> Atmos Energy Corporation | E9: ='Proxy Data Lookup'!G3 -> 0.8 | G9: ='Proxy Data Lookup'!I3 -> 0.66 | I9: ='Proxy Data Lookup'!L3 -> 2.7453 | K9: ='Proxy Data Lookup'!N3 -> 0.0685 | M9: ='Proxy Data Lookup'!M3 -> 3.2005 | O9: ='Proxy Data Lookup'!K3 -> 0.5168 | Q9: =O9^2 -> 0.26708224
A10: =Input!A3 -> NJR | C10: ='Proxy Data Lookup'!B4 -> New Jersey Resources Corporation | E10: ='Proxy Data Lookup'!G4 -> 0.95 | G10: ='Proxy Data Lookup'!I4 -> 0.92 | I10: ='Proxy Data Lookup'!L4 -> 3.0205 | K10: ='Proxy Data Lookup'!N4 -> 0.0754 | M10: ='Proxy Data Lookup'!M4 -> 3.7932 | O10: ='Proxy Data Lookup'!K4 -> 0.6069 | Q10: =O10^2 -> 0.36832761
A11: =Input!A4 -> NWN | C11: ='Proxy Data Lookup'!B5 -> Northwest Natural Holding Company | E11: ='Proxy Data Lookup'!G5 -> 0.8 | G11: ='Proxy Data Lookup'!I5 -> 0.69 | I11: ='Proxy Data Lookup'!L5 -> 3.1454 | K11: ='Proxy Data Lookup'!N5 -> 0.0785 | M11: ='Proxy Data Lookup'!M5 -> 3.5765 | O11: ='Proxy Data Lookup'!K5 -> 0.4791 | Q11: 0.22953681
A12: =Input!A5 -> OGS | C12: ='Proxy Data Lookup'!B6 -> ONE Gas, Inc. | E12: ='Proxy Data Lookup'!G6 -> 0.8 | G12: ='Proxy Data Lookup'!I6 -> 0.67 | I12: ='Proxy Data Lookup'!L6 -> 2.7077 | K12: ='Proxy Data Lookup'!N6 -> 0.0676 | M12: ='Proxy Data Lookup'!M6 -> 3.1816 | O12: ='Proxy Data Lookup'!K6 -> 0.5278 | Q12: 0.27857284
A13: =Input!A6 -> SJI | C13: ='Proxy Data Lookup'!B7 -> South Jersey Industries, Inc. | E13: ='Proxy Data Lookup'!G7 -> 1.05 | G13: ='Proxy Data Lookup'!I7 -> 1 | I13: ='Proxy Data Lookup'!L7 -> 3.4767 | K13: ='Proxy Data Lookup'!N7 -> 0.0868 | M13: ='Proxy Data Lookup'!M7 -> 4.2742 | O13: ='Proxy Data Lookup'!K7 -> 0.5839 | Q13: 0.34093921
A14: =Input!A7 -> SWX | C14: ='Proxy Data Lookup'!B8 -> Southwest Gas Holdings, Inc. | E14: ='Proxy Data Lookup'!G8 -> 0.95 | G14: ='Proxy Data Lookup'!I8 -> 0.88 | I14: ='Proxy Data Lookup'!L8 -> 3.0244 | K14: ='Proxy Data Lookup'!N8 -> 0.0755 | M14: ='Proxy Data Lookup'!M8 -> 3.736 | O14: ='Proxy Data Lookup'!K8 -> 0.5892 | Q14: 0.34715664
A15: =Input!A8 -> SR | C15: ='Proxy Data Lookup'!B9 -> Spire Inc. | E15: ='Proxy Data Lookup'!G9 -> 0.85 | G15: ='Proxy Data Lookup'!I9 -> 0.71 | I15: ='Proxy Data Lookup'!L9 -> 2.8287 | K15: ='Proxy Data Lookup'!N9 -> 0.0706 | M15: ='Proxy Data Lookup'!M9 -> 3.3389 | O15: ='Proxy Data Lookup'!K9 -> 0.5339 | Q15: 0.28504921
C17: Average | E17: =AVERAGE(E8:E16) -> 0.8857142857 | G17: =AVERAGE(G8:G16) -> 0.79 | I17: =AVERAGE(I8:I16) -> 2.992671429 | K17: =AVERAGE(K8:K16) -> 0.0747 | M17: =AVERAGE(M8:M16) -> 3.585842857 | O17: =AVERAGE(O8:O16) -> 0.5482285714 | Q17: =AVERAGE(Q8:Q16) -> 0.3023806514
C20: Beta Range (+/- 2 std. Devs. of Beta) | E20: =G17-E21 -> 0.64 | G20: =G17+E21 -> 0.94
C21: 2 std. Devs. of Beta | E21: =ROUND((K17*2),2) -> 0.15
C23: Residual Std. Err. Range (+/- 2 std.
C24: Devs. of the Residual Std. Err.) | E24: =I17-E28 -> 2.729671429 | G24: =I17+E28 -> 3.255671429
C26: Std. dev. of the Res. Std. Err. | E26: =ROUND((I17/22.7596),4) -> 0.1315
C28: 2 std. devs. of the Res. Std. Err. | E28: =ROUND((2*E26),4) -> 0.263
C32: Source of Information: | E32: Valueline Proprietary Database, March 2021

Sheet 5.3 Proxy Group Equivalent
C1: =Input!G28 -> Duke Energy Kentucky, Inc.
C2: Proxy Group of Non-Price Regulated Companies
C3: Comparable in Total Risk to the
C4: ='5.2 Comp Earnings Criteria'!C7 -> Proxy Group of Seven Natural Gas Distribution Companies
E6: [1] | G6: [2] | I6: [3] | K6: [4]
A8: Ticker | C8: =Input!I32 -> Proxy Group of Forty-Eight Non-Price Regulated Companies | E8: VL Adjusted Beta | G8: Unadjusted Beta | I8: Residual Standard Error of the Regression | K8: Standard Deviation of Beta | M8: Standard Deviation of Y | O8: R Factor | Q8: R2
A10: =Input!C2 -> AAPL | C10: =VLOOKUP($A10,'CEM Data Lookup'!$A:$Q,2,FALSE) -> Apple Inc. | E10: =VLOOKUP($A10,'CEM Data Lookup'!$A:$Q,7,FALSE) -> 0.9 | G10: =VLOOKUP($A10,'CEM Data Lookup'!$A:$Q,9,FALSE) -> 0.81 | I10: =VLOOKUP($A10,'CEM Data Lookup'!$A:$Q,14,FALSE) -> 3.1746 | K10: =VLOOKUP($A10,'CEM Data Lookup'!$A:$Q,16,FALSE) -> 0.0792 | M10: =VLOOKUP($A10,'CEM Data Lookup'!$A:$Q,15,FALSE) -> 3.7591 | O10: =VLOOKUP($A10,'CEM Data Lookup'!$A:$Q,13,FALSE) -> 0.5381 | Q10: =O10 ^ 2 -> 0.28955161
A11: =Input!C3 -> ABT | C11: =VLOOKUP($A11,'CEM Data Lookup'!$A:$Q,2,FALSE) -> Abbott Labs. | E11: =VLOOKUP($A11,'CEM Data Lookup'!$A:$Q,7,FALSE) -> 0.95 | G11: =VLOOKUP($A11,'CEM Data Lookup'!$A:$Q,9,FALSE) -> 0.88 | I11: =VLOOKUP($A11,'CEM Data Lookup'!$A:$Q,14,FALSE) -> 2.7401 | K11: =VLOOKUP($A11,'CEM Data Lookup'!$A:$Q,16,FALSE) -> 0.0684 | M11: =VLOOKUP($A11,'CEM Data Lookup'!$A:$Q,15,FALSE) -> 3.5017 | O11: =VLOOKUP($A11,'CEM Data Lookup'!$A:$Q,13,FALSE) -> 0.6245 | Q11: =O11 ^ 2 -> 0.39000025
A12: =Input!C4 -> AIZ | C12: =VLOOKUP($A12,'CEM Data Lookup'!$A:$Q,2,FALSE) -> Assurant Inc. | E12: =VLOOKUP($A12,'CEM Data Lookup'!$A:$Q,7,FALSE) -> 0.9 | G12: =VLOOKUP($A12,'CEM Data Lookup'!$A:$Q,9,FALSE) -> 0.84 | I12: =VLOOKUP($A12,'CEM Data Lookup'!$A:$Q,14,FALSE) -> 2.9537 | K12: =VLOOKUP($A12,'CEM Data Lookup'!$A:$Q,16,FALSE) -> 0.0737 | M12: =VLOOKUP($A12,'CEM Data Lookup'!$A:$Q,15,FALSE) -> 3.62 | O12: =VLOOKUP($A12,'CEM Data Lookup'!$A:$Q,13,FALSE) -> 0.5804 | Q12: 0.33686416
A13: =Input!C5 -> ANSS | C13: =VLOOKUP($A13,'CEM Data Lookup'!$A:$Q,2,FALSE) -> ANSYS, Inc. | E13: =VLOOKUP($A13,'CEM Data Lookup'!$A:$Q,7,FALSE) -> 0.85 | G13: =VLOOKUP($A13,'CEM Data Lookup'!$A:$Q,9,FALSE) -> 0.74 | I13: =VLOOKUP($A13,'CEM Data Lookup'!$A:$Q,14,FALSE) -> 2.8841 | K13: =VLOOKUP($A13,'CEM Data Lookup'!$A:$Q,16,FALSE) -> 0.072 | M13: =VLOOKUP($A13,'CEM Data Lookup'!$A:$Q,15,FALSE) -> 3.423 | O13: =VLOOKUP($A13,'CEM Data Lookup'!$A:$Q,13,FALSE) -> 0.5412 | Q13: 0.29289744
A14: =Input!C6 -> BAH | C14: =VLOOKUP($A14,'CEM Data Lookup'!$A:$Q,2,FALSE) -> Booz Allen Hamilton | E14: =VLOOKUP($A14,'CEM Data Lookup'!$A:$Q,7,FALSE) -> 0.9 | G14: =VLOOKUP($A14,'CEM Data Lookup'!$A:$Q,9,FALSE) -> 0.82 | I14: =VLOOKUP($A14,'CEM Data Lookup'!$A:$Q,14,FALSE) -> 3.0468 | K14: =VLOOKUP($A14,'CEM Data Lookup'!$A:$Q,16,FALSE) -> 0.076 | M14: =VLOOKUP($A14,'CEM Data Lookup'!$A:$Q,15,FALSE) -> 3.6706 | O14: =VLOOKUP($A14,'CEM Data Lookup'!$A:$Q,13,FALSE) -> 0.5601 | Q14: 0.31371201
A15: =Input!C7 -> BDX | C15: =VLOOKUP($A15,'CEM Data Lookup'!$A:$Q,2,FALSE) -> Becton, Dickinson | E15: =VLOOKUP($A15,'CEM Data Lookup'!$A:$Q,7,FALSE) -> 0.8 | G15: =VLOOKUP($A15,'CEM Data Lookup'!$A:$Q,9,FALSE) -> 0.66 | I15: =VLOOKUP($A15,'CEM Data Lookup'!$A:$Q,14,FALSE) -> 2.8952 | K15: =VLOOKUP($A15,'CEM Data Lookup'!$A:$Q,16,FALSE) -> 0.0722 | M15: =VLOOKUP($A15,'CEM Data Lookup'!$A:$Q,15,FALSE) -> 3.3246 | O15: =VLOOKUP($A15,'CEM Data Lookup'!$A:$Q,13,FALSE) -> 0.4945 | Q15: 0.24453025
A16: =Input!C8 -> BFB | C16: =VLOOKUP($A16,'CEM Data Lookup'!$A:$Q,2,FALSE) -> Brown-Forman 'B' | E16: =VLOOKUP($A16,'CEM Data Lookup'!$A:$Q,7,FALSE) -> 0.9 | G16: =VLOOKUP($A16,'CEM Data Lookup'!$A:$Q,9,FALSE) -> 0.77 | I16: =VLOOKUP($A16,'CEM Data Lookup'!$A:$Q,14,FALSE) -> 2.7453 | K16: =VLOOKUP($A16,'CEM Data Lookup'!$A:$Q,16,FALSE) -> 0.0685 | M16: =VLOOKUP($A16,'CEM Data Lookup'!$A:$Q,15,FALSE) -> 3.3514 | O16: =VLOOKUP($A16,'CEM Data Lookup'!$A:$Q,13,FALSE) -> 0.5759 | Q16: 0.33166081
A17: =Input!C9 -> BR | C17: =VLOOKUP($A17,'CEM Data Lookup'!$A:$Q,2,FALSE) -> Broadridge Fin'l | E17: =VLOOKUP($A17,'CEM Data Lookup'!$A:$Q,7,FALSE) -> 0.85 | G17: =VLOOKUP($A17,'CEM Data Lookup'!$A:$Q,9,FALSE) -> 0.7 | I17: =VLOOKUP($A17,'CEM Data Lookup'!$A:$Q,14,FALSE) -> 2.7332 | K17: =VLOOKUP($A17,'CEM Data Lookup'!$A:$Q,16,FALSE) -> 0.0682 | M17: =VLOOKUP($A17,'CEM Data Lookup'!$A:$Q,15,FALSE) -> 3.244 | O17: =VLOOKUP($A17,'CEM Data Lookup'!$A:$Q,13,FALSE) -> 0.5412 | Q17: 0.29289744
A18: =Input!C10 -> BRC | C18: =VLOOKUP($A18,'CEM Data Lookup'!$A:$Q,2,FALSE) -> Brady Corp. | E18: =VLOOKUP($A18,'CEM Data Lookup'!$A:$Q,7,FALSE) -> 1 | G18: =VLOOKUP($A18,'CEM Data Lookup'!$A:$Q,9,FALSE) -> 0.93 | I18: =VLOOKUP($A18,'CEM Data Lookup'!$A:$Q,14,FALSE) -> 3.0007 | K18: =VLOOKUP($A18,'CEM Data Lookup'!$A:$Q,16,FALSE) -> 0.0749 | M18: =VLOOKUP($A18,'CEM Data Lookup'!$A:$Q,15,FALSE) -> 3.7889 | O18: =VLOOKUP($A18,'CEM Data Lookup'!$A:$Q,13,FALSE) -> 0.6126 | Q18: 0.37527876
A19: =Input!C11 -> CACI | C19: =VLOOKUP($A19,'CEM Data Lookup'!$A:$Q,2,FALSE) -> CACI Int'l | E19: =VLOOKUP($A19,'CEM Data Lookup'!$A:$Q,7,FALSE) -> 0.95 | G19: =VLOOKUP($A19,'CEM Data Lookup'!$A:$Q,9,FALSE) -> 0.86 | I19: =VLOOKUP($A19,'CEM Data Lookup'!$A:$Q,14,FALSE) -> 3.1684 | K19: =VLOOKUP($A19,'CEM Data Lookup'!$A:$Q,16,FALSE) -> 0.0791 | M19: =VLOOKUP($A19,'CEM Data Lookup'!$A:$Q,15,FALSE) -> 3.8191 | O19: =VLOOKUP($A19,'CEM Data Lookup'!$A:$Q,13,FALSE) -> 0.5607 | Q19: 0.31438449
A20: =Input!C12 -> CASY | C20: =VLOOKUP($A20,'CEM Data Lookup'!$A:$Q,2,FALSE) -> Casey's Gen'l Stores | E20: =VLOOKUP($A20,'CEM Data Lookup'!$A:$Q,7,FALSE) -> 0.9 | G20: =VLOOKUP($A20,'CEM Data Lookup'!$A:$Q,9,FALSE) -> 0.78 | I20: =VLOOKUP($A20,'CEM Data Lookup'!$A:$Q,14,FALSE) -> 3.2522 | K20: =VLOOKUP($A20,'CEM Data Lookup'!$A:$Q,16,FALSE) -> 0.0812 | M20: =VLOOKUP($A20,'CEM Data Lookup'!$A:$Q,15,FALSE) -> 3.7879 | O20: =VLOOKUP($A20,'CEM Data Lookup'!$A:$Q,13,FALSE) -> 0.5154 | Q20: 0.26563716
A21: =Input!C13 -> CDNS | C21: =VLOOKUP($A21,'CEM Data Lookup'!$A:$Q,2,FALSE) -> Cadence Design Sys. | E21: =VLOOKUP($A21,'CEM Data Lookup'!$A:$Q,7,FALSE) -> 0.9 | G21: =VLOOKUP($A21,'CEM Data Lookup'!$A:$Q,9,FALSE) -> 0.79 | I21: =VLOOKUP($A21,'CEM Data Lookup'!$A:$Q,14,FALSE) -> 3.0338 | K21: =VLOOKUP($A21,'CEM Data Lookup'!$A:$Q,16,FALSE) -> 0.0757 | M21: =VLOOKUP($A21,'CEM Data Lookup'!$A:$Q,15,FALSE) -> 3.6165 | O21: =VLOOKUP($A21,'CEM Data Lookup'!$A:$Q,13,FALSE) -> 0.5468 | Q21: 0.29899024
A22: =Input!C14 -> CERN | C22: =VLOOKUP($A22,'CEM Data Lookup'!$A:$Q,2,FALSE) -> Cerner Corp. | E22: =VLOOKUP($A22,'CEM Data Lookup'!$A:$Q,7,FALSE) -> 0.9 | G22: =VLOOKUP($A22,'CEM Data Lookup'!$A:$Q,9,FALSE) -> 0.84 | I22: =VLOOKUP($A22,'CEM Data Lookup'!$A:$Q,14,FALSE) -> 2.7309 | K22: =VLOOKUP($A22,'CEM Data Lookup'!$A:$Q,16,FALSE) -> 0.0681 | M22: =VLOOKUP($A22,'CEM Data Lookup'!$A:$Q,15,FALSE) -> 3.4436 | O22: =VLOOKUP($A22,'CEM Data Lookup'!$A:$Q,13,FALSE) -> 0.6112 | Q22: 0.37356544
A23: =Input!C15 -> CSWI | C23: =VLOOKUP($A23,'CEM Data Lookup'!$A:$Q,2,FALSE) -> CSW Industrials | E23: =VLOOKUP($A23,'CEM Data Lookup'!$A:$Q,7,FALSE) -> 0.9 | G23: =VLOOKUP($A23,'CEM Data Lookup'!$A:$Q,9,FALSE) -> 0.81 | I23: =VLOOKUP($A23,'CEM Data Lookup'!$A:$Q,14,FALSE) -> 2.8884 | K23: =VLOOKUP($A23,'CEM Data Lookup'!$A:$Q,16,FALSE) -> 0.0721 | M23: =VLOOKUP($A23,'CEM Data Lookup'!$A:$Q,15,FALSE) -> 3.5204 | O23: =VLOOKUP($A23,'CEM Data Lookup'!$A:$Q,13,FALSE) -> 0.574 | Q23: 0.329476
A24: =Input!C16 -> DGX | C24: =VLOOKUP($A24,'CEM Data Lookup'!$A:$Q,2,FALSE) -> Quest Diagnostics | E24: =VLOOKUP($A24,'CEM Data Lookup'!$A:$Q,7,FALSE) -> 0.85 | G24: =VLOOKUP($A24,'CEM Data Lookup'!$A:$Q,9,FALSE) -> 0.75 | I24: =VLOOKUP($A24,'CEM Data Lookup'!$A:$Q,14,FALSE) -> 2.7411 | K24: =VLOOKUP($A24,'CEM Data Lookup'!$A:$Q,16,FALSE) -> 0.0684 | M24: =VLOOKUP($A24,'CEM Data Lookup'!$A:$Q,15,FALSE) -> 3.3152 | O24: =VLOOKUP($A24,'CEM Data Lookup'!$A:$Q,13,FALSE) -> 0.5648 | Q24: 0.31899904
A25: =Input!C17 -> EL | C25: =VLOOKUP($A25,'CEM Data Lookup'!$A:$Q,2,FALSE) -> Lauder (Estee) | E25: =VLOOKUP($A25,'CEM Data Lookup'!$A:$Q,7,FALSE) -> 0.95 | G25: =VLOOKUP($A25,'CEM Data Lookup'!$A:$Q,9,FALSE) -> 0.85 | I25: =VLOOKUP($A25,'CEM Data Lookup'!$A:$Q,14,FALSE) -> 2.8216 | K25: =VLOOKUP($A25,'CEM Data Lookup'!$A:$Q,16,FALSE) -> 0.0704 | M25: =VLOOKUP($A25,'CEM Data Lookup'!$A:$Q,15,FALSE) -> 3.5271 | O25: =VLOOKUP($A25,'CEM Data Lookup'!$A:$Q,13,FALSE) -> 0.6021 | Q25: 0.36252441
A26: =Input!C18 -> EXPO | C26: =VLOOKUP($A26,'CEM Data Lookup'!$A:$Q,2,FALSE) -> Exponent, Inc. | E26: =VLOOKUP($A26,'CEM Data Lookup'!$A:$Q,7,FALSE) -> 0.9 | G26: =VLOOKUP($A26,'CEM Data Lookup'!$A:$Q,9,FALSE) -> 0.79 | I26: =VLOOKUP($A26,'CEM Data Lookup'!$A:$Q,14,FALSE) -> 2.9131 | K26: =VLOOKUP($A26,'CEM Data Lookup'!$A:$Q,16,FALSE) -> 0.0727 | M26: =VLOOKUP($A26,'CEM Data Lookup'!$A:$Q,15,FALSE) -> 3.5107 | O26: =VLOOKUP($A26,'CEM Data Lookup'!$A:$Q,13,FALSE) -> 0.5605 | Q26: 0.31416025
A27: =Input!C19 -> FAST | C27: =VLOOKUP($A27,'CEM Data Lookup'!$A:$Q,2,FALSE) -> Fastenal Co. | E27: =VLOOKUP($A27,'CEM Data Lookup'!$A:$Q,7,FALSE) -> 0.9 | G27: =VLOOKUP($A27,'CEM Data Lookup'!$A:$Q,9,FALSE) -> 0.85 | I27: =VLOOKUP($A27,'CEM Data Lookup'!$A:$Q,14,FALSE) -> 3.2203 | K27: =VLOOKUP($A27,'CEM Data Lookup'!$A:$Q,16,FALSE) -> 0.0804 | M27: =VLOOKUP($A27,'CEM Data Lookup'!$A:$Q,15,FALSE) -> 3.8448 | O27: =VLOOKUP($A27,'CEM Data Lookup'!$A:$Q,13,FALSE) -> 0.5488 | Q27: 0.30118144
A28: =Input!C20 -> GNTX | C28: =VLOOKUP($A28,'CEM Data Lookup'!$A:$Q,2,FALSE) -> Gentex Corp. | E28: =VLOOKUP($A28,'CEM Data Lookup'!$A:$Q,7,FALSE) -> 0.95 | G28: =VLOOKUP($A28,'CEM Data Lookup'!$A:$Q,9,FALSE) -> 0.91 | I28: =VLOOKUP($A28,'CEM Data Lookup'!$A:$Q,14,FALSE) -> 2.7546 | K28: =VLOOKUP($A28,'CEM Data Lookup'!$A:$Q,16,FALSE) -> 0.0687 | M28: =VLOOKUP($A28,'CEM Data Lookup'!$A:$Q,15,FALSE) -> 3.567 | O28: =VLOOKUP($A28,'CEM Data Lookup'!$A:$Q,13,FALSE) -> 0.6371 | Q28: 0.40589641
A29: =Input!C21 -> IFF | C29: =VLOOKUP($A29,'CEM Data Lookup'!$A:$Q,2,FALSE) -> Int'l Flavors & Frag | E29: =VLOOKUP($A29,'CEM Data Lookup'!$A:$Q,7,FALSE) -> 0.95 | G29: =VLOOKUP($A29,'CEM Data Lookup'!$A:$Q,9,FALSE) -> 0.87 | I29: =VLOOKUP($A29,'CEM Data Lookup'!$A:$Q,14,FALSE) -> 3.2238 | K29: =VLOOKUP($A29,'CEM Data Lookup'!$A:$Q,16,FALSE) -> 0.0804 | M29: =VLOOKUP($A29,'CEM Data Lookup'!$A:$Q,15,FALSE) -> 3.879 | O29: =VLOOKUP($A29,'CEM Data Lookup'!$A:$Q,13,FALSE) -> 0.5586 | Q29: 0.31203396
A30: =Input!C22 -> INGR | C30: =VLOOKUP($A30,'CEM Data Lookup'!$A:$Q,2,FALSE) -> Ingredion Inc. | E30: =VLOOKUP($A30,'CEM Data Lookup'!$A:$Q,7,FALSE) -> 0.9 | G30: =VLOOKUP($A30,'CEM Data Lookup'!$A:$Q,9,FALSE) -> 0.78 | I30: =VLOOKUP($A30,'CEM Data Lookup'!$A:$Q,14,FALSE) -> 2.8793 | K30: =VLOOKUP($A30,'CEM Data Lookup'!$A:$Q,16,FALSE) -> 0.0718 | M30: =VLOOKUP($A30,'CEM Data Lookup'!$A:$Q,15,FALSE) -> 3.4709 | O30: =VLOOKUP($A30,'CEM Data Lookup'!$A:$Q,13,FALSE) -> 0.5608 | Q30: 0.31449664
A31: =Input!C23 -> IRM | C31: =VLOOKUP($A31,'CEM Data Lookup'!$A:$Q,2,FALSE) -> Iron Mountain | E31: =VLOOKUP($A31,'CEM Data Lookup'!$A:$Q,7,FALSE) -> 0.9 | G31: =VLOOKUP($A31,'CEM Data Lookup'!$A:$Q,9,FALSE) -> 0.82 | I31: =VLOOKUP($A31,'CEM Data Lookup'!$A:$Q,14,FALSE) -> 3.0897 | K31: =VLOOKUP($A31,'CEM Data Lookup'!$A:$Q,16,FALSE) -> 0.0771 | M31: =VLOOKUP($A31,'CEM Data Lookup'!$A:$Q,15,FALSE) -> 3.6966 | O31: =VLOOKUP($A31,'CEM Data Lookup'!$A:$Q,13,FALSE) -> 0.5515 | Q31: 0.30415225
A32: =Input!C24 -> JBHT | C32: =VLOOKUP($A32,'CEM Data Lookup'!$A:$Q,2,FALSE) -> Hunt (J.B.) | E32: =VLOOKUP($A32,'CEM Data Lookup'!$A:$Q,7,FALSE) -> 0.95 | G32: =VLOOKUP($A32,'CEM Data Lookup'!$A:$Q,9,FALSE) -> 0.86 | I32: =VLOOKUP($A32,'CEM Data Lookup'!$A:$Q,14,FALSE) -> 2.8344 | K32: =VLOOKUP($A32,'CEM Data Lookup'!$A:$Q,16,FALSE) -> 0.0707 | M32: =VLOOKUP($A32,'CEM Data Lookup'!$A:$Q,15,FALSE) -> 3.5476 | O32: =VLOOKUP($A32,'CEM Data Lookup'!$A:$Q,13,FALSE) -> 0.6034 | Q32: 0.36409156
A33: =Input!C25 -> JJSF | C33: =VLOOKUP($A33,'CEM Data Lookup'!$A:$Q,2,FALSE) -> J&J Snack Foods | E33: =VLOOKUP($A33,'CEM Data Lookup'!$A:$Q,7,FALSE) -> 0.9 | G33: =VLOOKUP($A33,'CEM Data Lookup'!$A:$Q,9,FALSE) -> 0.84 | I33: =VLOOKUP($A33,'CEM Data Lookup'!$A:$Q,14,FALSE) -> 2.9208 | K33: =VLOOKUP($A33,'CEM Data Lookup'!$A:$Q,16,FALSE) -> 0.0729 | M33: =VLOOKUP($A33,'CEM Data Lookup'!$A:$Q,15,FALSE) -> 3.5969 | O33: =VLOOKUP($A33,'CEM Data Lookup'!$A:$Q,13,FALSE) -> 0.5858 | Q33: 0.34316164
A34: =Input!C26 -> JKHY | C34: =VLOOKUP($A34,'CEM Data Lookup'!$A:$Q,2,FALSE) -> Henry (Jack) & Assoc | E34: =VLOOKUP($A34,'CEM Data Lookup'!$A:$Q,7,FALSE) -> 0.85 | G34: =VLOOKUP($A34,'CEM Data Lookup'!$A:$Q,9,FALSE) -> 0.71 | I34: =VLOOKUP($A34,'CEM Data Lookup'!$A:$Q,14,FALSE) -> 2.7734 | K34: =VLOOKUP($A34,'CEM Data Lookup'!$A:$Q,16,FALSE) -> 0.0692 | M34: =VLOOKUP($A34,'CEM Data Lookup'!$A:$Q,15,FALSE) -> 3.2844 | O34: =VLOOKUP($A34,'CEM Data Lookup'!$A:$Q,13,FALSE) -> 0.5383 | Q34: 0.28976689
A35: =Input!C27 -> MANT | C35: =VLOOKUP($A35,'CEM Data Lookup'!$A:$Q,2,FALSE) -> ManTech Int'l 'A' | E35: =VLOOKUP($A35,'CEM Data Lookup'!$A:$Q,7,FALSE) -> 0.85 | G35: =VLOOKUP($A35,'CEM Data Lookup'!$A:$Q,9,FALSE) -> 0.77 | I35: =VLOOKUP($A35,'CEM Data Lookup'!$A:$Q,14,FALSE) -> 3.0653 | K35: =VLOOKUP($A35,'CEM Data Lookup'!$A:$Q,16,FALSE) -> 0.0765 | M35: =VLOOKUP($A35,'CEM Data Lookup'!$A:$Q,15,FALSE) -> 3.6094 | O35: =VLOOKUP($A35,'CEM Data Lookup'!$A:$Q,13,FALSE) -> 0.5306 | Q35: 0.28153636
A36: =Input!C28 -> MKC | C36: =VLOOKUP($A36,'CEM Data Lookup'!$A:$Q,2,FALSE) -> McCormick & Co. | E36: =VLOOKUP($A36,'CEM Data Lookup'!$A:$Q,7,FALSE) -> 0.8 | G36: =VLOOKUP($A36,'CEM Data Lookup'!$A:$Q,9,FALSE) -> 0.66 | I36: =VLOOKUP($A36,'CEM Data Lookup'!$A:$Q,14,FALSE) -> 2.7887 | K36: =VLOOKUP($A36,'CEM Data Lookup'!$A:$Q,16,FALSE) -> 0.0696 | M36: =VLOOKUP($A36,'CEM Data Lookup'!$A:$Q,15,FALSE) -> 3.2332 | O36: =VLOOKUP($A36,'CEM Data Lookup'!$A:$Q,13,FALSE) -> 0.5089 | Q36: 0.25897921
A37: =Input!C29 -> MO | C37: =VLOOKUP($A37,'CEM Data Lookup'!$A:$Q,2,FALSE) -> Altria Group | E37: =VLOOKUP($A37,'CEM Data Lookup'!$A:$Q,7,FALSE) -> 0.9 | G37: =VLOOKUP($A37,'CEM Data Lookup'!$A:$Q,9,FALSE) -> 0.83 | I37: =VLOOKUP($A37,'CEM Data Lookup'!$A:$Q,14,FALSE) -> 2.9215 | K37: =VLOOKUP($A37,'CEM Data Lookup'!$A:$Q,16,FALSE) -> 0.0729 | M37: =VLOOKUP($A37,'CEM Data Lookup'!$A:$Q,15,FALSE) -> 3.5754 | O37: =VLOOKUP($A37,'CEM Data Lookup'!$A:$Q,13,FALSE) -> 0.5787 | Q37: 0.33489369
A38: =Input!C30 -> MSA | C38: =VLOOKUP($A38,'CEM Data Lookup'!$A:$Q,2,FALSE) -> MSA Safety | E38: =VLOOKUP($A38,'CEM Data Lookup'!$A:$Q,7,FALSE) -> 1 | G38: =VLOOKUP($A38,'CEM Data Lookup'!$A:$Q,9,FALSE) -> 0.94 | I38: =VLOOKUP($A38,'CEM Data Lookup'!$A:$Q,14,FALSE) -> 3.0076 | K38: =VLOOKUP($A38,'CEM Data Lookup'!$A:$Q,16,FALSE) -> 0.075 | M38: =VLOOKUP($A38,'CEM Data Lookup'!$A:$Q,15,FALSE) -> 3.8031 | O38: =VLOOKUP($A38,'CEM Data Lookup'!$A:$Q,13,FALSE) -> 0.614 | Q38: 0.376996
A39: =Input!C31 -> MSCI | C39: =VLOOKUP($A39,'CEM Data Lookup'!$A:$Q,2,FALSE) -> MSCI Inc. | E39: =VLOOKUP($A39,'CEM Data Lookup'!$A:$Q,7,FALSE) -> 0.95 | G39: =VLOOKUP($A39,'CEM Data Lookup'!$A:$Q,9,FALSE) -> 0.87 | I39: =VLOOKUP($A39,'CEM Data Lookup'!$A:$Q,14,FALSE) -> 2.9662 | K39: =VLOOKUP($A39,'CEM Data Lookup'!$A:$Q,16,FALSE) -> 0.074 | M39: =VLOOKUP($A39,'CEM Data Lookup'!$A:$Q,15,FALSE) -> 3.6709 | O39: =VLOOKUP($A39,'CEM Data Lookup'!$A:$Q,13,FALSE) -> 0.5913 | Q39: 0.34963569
A40: =Input!C32 -> MSI | C40: =VLOOKUP($A40,'CEM Data Lookup'!$A:$Q,2,FALSE) -> Motorola Solutions | E40: =VLOOKUP($A40,'CEM Data Lookup'!$A:$Q,7,FALSE) -> 0.9 | G40: =VLOOKUP($A40,'CEM Data Lookup'!$A:$Q,9,FALSE) -> 0.8 | I40: =VLOOKUP($A40,'CEM Data Lookup'!$A:$Q,14,FALSE) -> 2.7926 | K40: =VLOOKUP($A40,'CEM Data Lookup'!$A:$Q,16,FALSE) -> 0.0697 | M40: =VLOOKUP($A40,'CEM Data Lookup'!$A:$Q,15,FALSE) -> 3.4307 | O40: =VLOOKUP($A40,'CEM Data Lookup'!$A:$Q,13,FALSE) -> 0.5831 | Q40: 0.34000561
A41: =Input!C33 -> MTN | C41: =VLOOKUP($A41,'CEM Data Lookup'!$A:$Q,2,FALSE) -> Vail Resorts | E41: =VLOOKUP($A41,'CEM Data Lookup'!$A:$Q,7,FALSE) -> 0.95 | G41: =VLOOKUP($A41,'CEM Data Lookup'!$A:$Q,9,FALSE) -> 0.88 | I41: =VLOOKUP($A41,'CEM Data Lookup'!$A:$Q,14,FALSE) -> 3.1939 | K41: =VLOOKUP($A41,'CEM Data Lookup'!$A:$Q,16,FALSE) -> 0.0797 | M41: =VLOOKUP($A41,'CEM Data Lookup'!$A:$Q,15,FALSE) -> 3.8638 | O41: =VLOOKUP($A41,'CEM Data Lookup'!$A:$Q,13,FALSE) -> 0.5651 | Q41: 0.31933801
A42: =Input!C34 -> MXIM | C42: =VLOOKUP($A42,'CEM Data Lookup'!$A:$Q,2,FALSE) -> Maxim Integrated | E42: =VLOOKUP($A42,'CEM Data Lookup'!$A:$Q,7,FALSE) -> 0.95 | G42: =VLOOKUP($A42,'CEM Data Lookup'!$A:$Q,9,FALSE) -> 0.87 | I42: =VLOOKUP($A42,'CEM Data Lookup'!$A:$Q,14,FALSE) -> 2.9404 | K42: =VLOOKUP($A42,'CEM Data Lookup'!$A:$Q,16,FALSE) -> 0.0734 | M42: =VLOOKUP($A42,'CEM Data Lookup'!$A:$Q,15,FALSE) -> 3.6501 | O42: =VLOOKUP($A42,'CEM Data Lookup'!$A:$Q,13,FALSE) -> 0.5946 | Q42: 0.35354916
A43: =Input!C35 -> NOC | C43: =VLOOKUP($A43,'CEM Data Lookup'!$A:$Q,2,FALSE) -> Northrop Grumman | E43: =VLOOKUP($A43,'CEM Data Lookup'!$A:$Q,7,FALSE) -> 0.85 | G43: =VLOOKUP($A43,'CEM Data Lookup'!$A:$Q,9,FALSE) -> 0.71 | I43: =VLOOKUP($A43,'CEM Data Lookup'!$A:$Q,14,FALSE) -> 2.9032 | K43: =VLOOKUP($A43,'CEM Data Lookup'!$A:$Q,16,FALSE) -> 0.0724 | M43: =VLOOKUP($A43,'CEM Data Lookup'!$A:$Q,15,FALSE) -> 3.3928 | O43: =VLOOKUP($A43,'CEM Data Lookup'!$A:$Q,13,FALSE) -> 0.5202 | Q43: 0.27060804
A44: =Input!C36 -> ODFL | C44: =VLOOKUP($A44,'CEM Data Lookup'!$A:$Q,2,FALSE) -> Old Dominion Freight | E44: =VLOOKUP($A44,'CEM Data Lookup'!$A:$Q,7,FALSE) -> 0.9 | G44: =VLOOKUP($A44,'CEM Data Lookup'!$A:$Q,9,FALSE) -> 0.83 | I44: =VLOOKUP($A44,'CEM Data Lookup'!$A:$Q,14,FALSE) -> 3.0708 | K44: =VLOOKUP($A44,'CEM Data Lookup'!$A:$Q,16,FALSE) -> 0.0766 | M44: =VLOOKUP($A44,'CEM Data Lookup'!$A:$Q,15,FALSE) -> 3.6988 | O44: =VLOOKUP($A44,'CEM Data Lookup'!$A:$Q,13,FALSE) -> 0.5598 | Q44: 0.31337604
A45: =Input!C37 -> PKI | C45: =VLOOKUP($A45,'CEM Data Lookup'!$A:$Q,2,FALSE) -> PerkinElmer Inc. | E45: =VLOOKUP($A45,'CEM Data Lookup'!$A:$Q,7,FALSE) -> 0.95 | G45: =VLOOKUP($A45,'CEM Data Lookup'!$A:$Q,9,FALSE) -> 0.86 | I45: =VLOOKUP($A45,'CEM Data Lookup'!$A:$Q,14,FALSE) -> 2.8896 | K45: =VLOOKUP($A45,'CEM Data Lookup'!$A:$Q,16,FALSE) -> 0.0721 | M45: =VLOOKUP($A45,'CEM Data Lookup'!$A:$Q,15,FALSE) -> 3.5925 | O45: =VLOOKUP($A45,'CEM Data Lookup'!$A:$Q,13,FALSE) -> 0.5963 | Q45: 0.35557369
A46: =Input!C38 -> PM | C46: =VLOOKUP($A46,'CEM Data Lookup'!$A:$Q,2,FALSE) -> Philip Morris Int'l | E46: =VLOOKUP($A46,'CEM Data Lookup'!$A:$Q,7,FALSE) -> 0.95 | G46: =VLOOKUP($A46,'CEM Data Lookup'!$A:$Q,9,FALSE) -> 0.88 | I46: =VLOOKUP($A46,'CEM Data Lookup'!$A:$Q,14,FALSE) -> 3.2481 | K46: =VLOOKUP($A46,'CEM Data Lookup'!$A:$Q,16,FALSE) -> 0.0811 | M46: =VLOOKUP($A46,'CEM Data Lookup'!$A:$Q,15,FALSE) -> 3.922 | O46: =VLOOKUP($A46,'CEM Data Lookup'!$A:$Q,13,FALSE) -> 0.5628 | Q46: 0.31674384
A47: =Input!C39 -> POOL | C47: =VLOOKUP($A47,'CEM Data Lookup'!$A:$Q,2,FALSE) -> Pool Corp. | E47: =VLOOKUP($A47,'CEM Data Lookup'!$A:$Q,7,FALSE) -> 0.85 | G47: =VLOOKUP($A47,'CEM Data Lookup'!$A:$Q,9,FALSE) -> 0.75 | I47: =VLOOKUP($A47,'CEM Data Lookup'!$A:$Q,14,FALSE) -> 3.2001 | K47: =VLOOKUP($A47,'CEM Data Lookup'!$A:$Q,16,FALSE) -> 0.0799 | M47: =VLOOKUP($A47,'CEM Data Lookup'!$A:$Q,15,FALSE) -> 3.6964 | O47: =VLOOKUP($A47,'CEM Data Lookup'!$A:$Q,13,FALSE) -> 0.5034 | Q47: 0.25341156
A48: =Input!C40 -> POST | C48: =VLOOKUP($A48,'CEM Data Lookup'!$A:$Q,2,FALSE) -> Post Holdings | E48: =VLOOKUP($A48,'CEM Data Lookup'!$A:$Q,7,FALSE) -> 0.95 | G48: =VLOOKUP($A48,'CEM Data Lookup'!$A:$Q,9,FALSE) -> 0.86 | I48: =VLOOKUP($A48,'CEM Data Lookup'!$A:$Q,14,FALSE) -> 3.0105 | K48: =VLOOKUP($A48,'CEM Data Lookup'!$A:$Q,16,FALSE) -> 0.0751 | M48: =VLOOKUP($A48,'CEM Data Lookup'!$A:$Q,15,FALSE) -> 3.6926 | O48: =VLOOKUP($A48,'CEM Data Lookup'!$A:$Q,13,FALSE) -> 0.5813 | Q48: 0.33790969
A49: =Input!C41 -> RLI | C49: =VLOOKUP($A49,'CEM Data Lookup'!$A:$Q,2,FALSE) -> RLI Corp. | E49: =VLOOKUP($A49,'CEM Data Lookup'!$A:$Q,7,FALSE) -> 0.8 | G49: =VLOOKUP($A49,'CEM Data Lookup'!$A:$Q,9,FALSE) -> 0.64 | I49: =VLOOKUP($A49,'CEM Data Lookup'!$A:$Q,14,FALSE) -> 2.9883 | K49: =VLOOKUP($A49,'CEM Data Lookup'!$A:$Q,16,FALSE) -> 0.0746 | M49: =VLOOKUP($A49,'CEM Data Lookup'!$A:$Q,15,FALSE) -> 3.3825 | O49: =VLOOKUP($A49,'CEM Data Lookup'!$A:$Q,13,FALSE) -> 0.4717 | Q49: 0.22250089
A50: =Input!C42 -> ROL | C50: =VLOOKUP($A50,'CEM Data Lookup'!$A:$Q,2,FALSE) -> Rollins, Inc. | E50: =VLOOKUP($A50,'CEM Data Lookup'!$A:$Q,7,FALSE) -> 0.85 | G50: =VLOOKUP($A50,'CEM Data Lookup'!$A:$Q,9,FALSE) -> 0.73 | I50: =VLOOKUP($A50,'CEM Data Lookup'!$A:$Q,14,FALSE) -> 2.9697 | K50: =VLOOKUP($A50,'CEM Data Lookup'!$A:$Q,16,FALSE) -> 0.0741 | M50: =VLOOKUP($A50,'CEM Data Lookup'!$A:$Q,15,FALSE) -> 3.4845 | O50: =VLOOKUP($A50,'CEM Data Lookup'!$A:$Q,13,FALSE) -> 0.5258 | Q50: 0.27646564
A51: =Input!C43 -> SIGI | C51: =VLOOKUP($A51,'CEM Data Lookup'!$A:$Q,2,FALSE) -> Selective Ins. Group | E51: =VLOOKUP($A51,'CEM Data Lookup'!$A:$Q,7,FALSE) -> 0.85 | G51: =VLOOKUP($A51,'CEM Data Lookup'!$A:$Q,9,FALSE) -> 0.77 | I51: =VLOOKUP($A51,'CEM Data Lookup'!$A:$Q,14,FALSE) -> 3.0004 | K51: =VLOOKUP($A51,'CEM Data Lookup'!$A:$Q,16,FALSE) -> 0.0749 | M51: =VLOOKUP($A51,'CEM Data Lookup'!$A:$Q,15,FALSE) -> 3.5572 | O51: =VLOOKUP($A51,'CEM Data Lookup'!$A:$Q,13,FALSE) -> 0.5397 | Q51: 0.29127609
A52: =Input!C44 -> SIRI | C52: =VLOOKUP($A52,'CEM Data Lookup'!$A:$Q,2,FALSE) -> Sirius XM Holdings | E52: =VLOOKUP($A52,'CEM Data Lookup'!$A:$Q,7,FALSE) -> 0.95 | G52: =VLOOKUP($A52,'CEM Data Lookup'!$A:$Q,9,FALSE) -> 0.91 | I52: =VLOOKUP($A52,'CEM Data Lookup'!$A:$Q,14,FALSE) -> 2.7995 | K52: =VLOOKUP($A52,'CEM Data Lookup'!$A:$Q,16,FALSE) -> 0.0699 | M52: =VLOOKUP($A52,'CEM Data Lookup'!$A:$Q,15,FALSE) -> 3.6039 | O52: =VLOOKUP($A52,'CEM Data Lookup'!$A:$Q,13,FALSE) -> 0.6316 | Q52: 0.39891856
A53: =Input!C45 -> TECH | C53: =VLOOKUP($A53,'CEM Data Lookup'!$A:$Q,2,FALSE) -> Bio-Techne Corp. | E53: =VLOOKUP($A53,'CEM Data Lookup'!$A:$Q,7,FALSE) -> 0.8 | G53: =VLOOKUP($A53,'CEM Data Lookup'!$A:$Q,9,FALSE) -> 0.67 | I53: =VLOOKUP($A53,'CEM Data Lookup'!$A:$Q,14,FALSE) -> 3.2475 | K53: =VLOOKUP($A53,'CEM Data Lookup'!$A:$Q,16,FALSE) -> 0.081 | M53: =VLOOKUP($A53,'CEM Data Lookup'!$A:$Q,15,FALSE) -> 3.6485 | O53: =VLOOKUP($A53,'CEM Data Lookup'!$A:$Q,13,FALSE) -> 0.4592 | Q53: 0.21086464
A54: =Input!C46 -> TTEK | C54: =VLOOKUP($A54,'CEM Data Lookup'!$A:$Q,2,FALSE) -> Tetra Tech | E54: =VLOOKUP($A54,'CEM Data Lookup'!$A:$Q,7,FALSE) -> 0.9 | G54: =VLOOKUP($A54,'CEM Data Lookup'!$A:$Q,9,FALSE) -> 0.84 | I54: =VLOOKUP($A54,'CEM Data Lookup'!$A:$Q,14,FALSE) -> 3.0245 | K54: =VLOOKUP($A54,'CEM Data Lookup'!$A:$Q,16,FALSE) -> 0.0755 | M54: =VLOOKUP($A54,'CEM Data Lookup'!$A:$Q,15,FALSE) -> 3.6791 | O54: =VLOOKUP($A54,'CEM Data Lookup'!$A:$Q,13,FALSE) -> 0.5717 | Q54: 0.32684089
A55: =Input!C47 -> WAT | C55: =VLOOKUP($A55,'CEM Data Lookup'!$A:$Q,2,FALSE) -> Waters Corp. | E55: =VLOOKUP($A55,'CEM Data Lookup'!$A:$Q,7,FALSE) -> 0.95 | G55: =VLOOKUP($A55,'CEM Data Lookup'!$A:$Q,9,FALSE) -> 0.86 | I55: =VLOOKUP($A55,'CEM Data Lookup'!$A:$Q,14,FALSE) -> 2.7531 | K55: =VLOOKUP($A55,'CEM Data Lookup'!$A:$Q,16,FALSE) -> 0.0687 | M55: =VLOOKUP($A55,'CEM Data Lookup'!$A:$Q,15,FALSE) -> 3.4846 | O55: =VLOOKUP($A55,'CEM Data Lookup'!$A:$Q,13,FALSE) -> 0.615 | Q55: 0.378225
A56: =Input!C48 -> WST | C56: =VLOOKUP($A56,'CEM Data Lookup'!$A:$Q,2,FALSE) -> West Pharmac. Svcs. | E56: =VLOOKUP($A56,'CEM Data Lookup'!$A:$Q,7,FALSE) -> 0.85 | G56: =VLOOKUP($A56,'CEM Data Lookup'!$A:$Q,9,FALSE) -> 0.7 | I56: =VLOOKUP($A56,'CEM Data Lookup'!$A:$Q,14,FALSE) -> 3.1887 | K56: =VLOOKUP($A56,'CEM Data Lookup'!$A:$Q,16,FALSE) -> 0.0796 | M56: =VLOOKUP($A56,'CEM Data Lookup'!$A:$Q,15,FALSE) -> 3.6301 | O56: =VLOOKUP($A56,'CEM Data Lookup'!$A:$Q,13,FALSE) -> 0.4811 | Q56: 0.23145721
A57: =Input!C49 -> WU | C57: =VLOOKUP($A57,'CEM Data Lookup'!$A:$Q,2,FALSE) -> Western Union | E57: =VLOOKUP($A57,'CEM Data Lookup'!$A:$Q,7,FALSE) -> 0.8 | G57: =VLOOKUP($A57,'CEM Data Lookup'!$A:$Q,9,FALSE) -> 0.67 | I57: =VLOOKUP($A57,'CEM Data Lookup'!$A:$Q,14,FALSE) -> 2.7346 | K57: =VLOOKUP($A57,'CEM Data Lookup'!$A:$Q,16,FALSE) -> 0.0682 | M57: =VLOOKUP($A57,'CEM Data Lookup'!$A:$Q,15,FALSE) -> 3.2018 | O57: =VLOOKUP($A57,'CEM Data Lookup'!$A:$Q,13,FALSE) -> 0.5229 | Q57: 0.27342441
A59: =COUNTA(A9:A58) -> 48 | C59: Average | E59: =ROUND(AVERAGE(E9:E58),2) -> 0.9 | G59: =ROUND(AVERAGE(G9:G58),2) -> 0.8 | I59: =ROUND(AVERAGE(I9:I58),4) -> 2.9609 | K59: =ROUND(AVERAGE(K9:K58),4) -> 0.0739 | M59: =ROUND(AVERAGE(M9:M58),4) -> 3.5753 | O59: =ROUND(AVERAGE(O9:O58),4) -> 0.5604 | Q59: =ROUND(AVERAGE(Q9:Q58),4) -> 0.3157
C61: =C4 -> Proxy Group of Seven Natural Gas Distribution Companies | E61: ='5.2 Comp Earnings Criteria'!E17 -> 0.8857142857 | G61: ='5.2 Comp Earnings Criteria'!G17 -> 0.79 | I61: ='5.2 Comp Earnings Criteria'!I17 -> 2.992671429 | K61: ='5.2 Comp Earnings Criteria'!K17 -> 0.0747 | M61: ='5.2 Comp Earnings Criteria'!M17 -> 3.585842857 | O61: ='5.2 Comp Earnings Criteria'!O17 -> 0.5482285714 | Q61: ='5.2 Comp Earnings Criteria'!Q17 -> 0.3023806514
C63: ='5.2 Comp Earnings Criteria'!C32 -> Source of Information: | E63: ='5.2 Comp Earnings Criteria'!E32 -> Valueline Proprietary Database, March 2021

Sheet 6.1 CEM Summary
A1: =Input!G28 -> Duke Energy Kentucky, Inc.
A2: Summary of Cost of Equity Models Applied to
A3: ='5.3 Proxy Group Equivalent'!C8 -> Proxy Group of Forty-Eight Non-Price Regulated Companies
A4: Comparable in Total Risk to the
A5: ='5.3 Proxy Group Equivalent'!C4 -> Proxy Group of Seven Natural Gas Distribution Companies
B7: Principal Methods | E7: =A3 -> Proxy Group of Forty-Eight Non-Price Regulated Companies
B9: Discounted Cash Flow Model (DCF) (1) | E9: ='6.2 CEM DCF'!Y62 -> 12.6 | F9: %
B11: Risk Premium Model (RPM) (2) | E11: ='6.3 CEM RPM Summary'!G15 -> 12.35
B13: Capital Asset Pricing Model (CAPM) (3) | E13: ='6.6 CEM CAPM Backup'!V62 -> 11.59
E15: =ROUND(AVERAGE(E9:E13),2) -> 12.18 | F15: %
E17: =ROUND(MEDIAN(E9:E13),2) -> 12.35 | F17: %
E19: =ROUND(AVERAGE(E15:E17),2) -> 12.27 | F19: %
A21: Notes:
A22: (1) | B22: From page 2 of this Attachment.
A23: (2) | B23: From page 3 of this Attachment.
A24: (3) | B24: From page 6 of this Attachment.

Sheet 6.2 CEM DCF
B1: =Input!G28 -> Duke Energy Kentucky, Inc.
B2: DCF Results for the Proxy Group of Non-Price-Regulated Companies Comparable in Total Risk to the
B3: ='6.1 CEM Summary'!A5 -> Proxy Group of Seven Natural Gas Distribution Companies
D5: [1] | G5: [2] | J5: [3] | M5: [4] | P5: [5] | S5: [6] | V5: [7] | Y5: [8]
B7: ='6.1 CEM Summary'!A3 -> Proxy Group of Forty-Eight Non-Price Regulated Companies | D7: Average Dividend Yield | G7: Value Line Projected Five Year Growth in EPS | J7: Zack's Five Year Projected Growth Rate in EPS | M7: Bloomberg's Five Year Projected Growth Rate in EPS | P7: Yahoo! Finance Projected Five Year Growth in EPS | S7: Average Projected Five Year Growth Rate in EPS | V7: Adjusted Dividend Yield | Y7: Indicated Common Equity Cost Rate (1)
A9: =Input!C2 -> AAPL | B9: =VLOOKUP($A9,'CEM Data Lookup'!$A$4:$Q$51,2,FALSE) -> Apple Inc. | D9: =HLOOKUP(A9,'CEM PricesDivs'!$B$2:$AW$70,68,FALSE) -> 0.64 | E9: % | G9: ='CEM Data Lookup'!F4*100 -> 14.5 | H9: % | J9: =IFERROR('CEM Data Lookup'!C4*100, "NA") -> 11 | K9: % | M9: =IFERROR('CEM Data Lookup'!E4*100,"NA") -> 9.5 | N9: % | P9: ='CEM Data Lookup'!D4*100 -> 14.69 | Q9: % | S9: =IFERROR(ROUND(AVERAGE(G9,J9,M9,P9),2),"NA") -> 12.42 | T9: % | V9: =IFERROR(ROUND((D9*(1+(0.5*(S9/100)))),2),"NA") -> 0.68 | W9: % | Y9: =IFERROR(IF(OR(VALUE(V9)=0,VALUE(S9)=0),"NA",V9+S9),"NA") -> 13.1 | Z9: %
A10: =Input!C3 -> ABT | B10: =VLOOKUP($A10,'CEM Data Lookup'!$A$4:$Q$51,2,FALSE) -> Abbott Labs. | D10: =HLOOKUP(A10,'CEM PricesDivs'!$B$2:$AW$70,68,FALSE) -> 1.52 | G10: ='CEM Data Lookup'!F5*100 -> 12 | J10: =IFERROR('CEM Data Lookup'!C5*100, "NA") -> 14 | M10: =IFERROR('CEM Data Lookup'!E5*100,"NA") -> 14.195 | P10: ='CEM Data Lookup'!D5*100 -> 15.58 | S10: =IFERROR(ROUND(AVERAGE(G10,J10,M10,P10),2),"NA") -> 13.94 | V10: =IFERROR(ROUND((D10*(1+(0.5*(S10/100)))),2),"NA") -> 1.63 | Y10: =IFERROR(IF(OR(VALUE(V10)=0,VALUE(S10)=0),"NA",V10+S10),"NA") -> 15.57
A11: =Input!C4 -> AIZ | B11: =VLOOKUP($A11,'CEM Data Lookup'!$A$4:$Q$51,2,FALSE) -> Assurant Inc. | D11: =HLOOKUP(A11,'CEM PricesDivs'!$B$2:$AW$70,68,FALSE) -> 1.96 | G11: ='CEM Data Lookup'!F6*100 -> 11.5 | J11: =IFERROR('CEM Data Lookup'!C6*100, "NA") -> NA | M11: =IFERROR('CEM Data Lookup'!E6*100,"NA") -> NA | P11: ='CEM Data Lookup'!D6*100 -> 19.4 | S11: 15.45 | V11: 2.11 | Y11: 17.56
A12: =Input!C5 -> ANSS | B12: =VLOOKUP($A12,'CEM Data Lookup'!$A$4:$Q$51,2,FALSE) -> ANSYS, Inc. | D12: =HLOOKUP(A12,'CEM PricesDivs'!$B$2:$AW$70,68,FALSE) -> 0 | G12: ='CEM Data Lookup'!F7*100 -> 10 | J12: =IFERROR('CEM Data Lookup'!C7*100, "NA") -> NA | M12: =IFERROR('CEM Data Lookup'!E7*100,"NA") -> 12.05 | P12: ='CEM Data Lookup'!D7*100 -> 8 | S12: 10.02 | V12: 0 | Y12: NA
A13: =Input!C6 -> BAH | B13: =VLOOKUP($A13,'CEM Data Lookup'!$A$4:$Q$51,2,FALSE) -> Booz Allen Hamilton | D13: =HLOOKUP(A13,'CEM PricesDivs'!$B$2:$AW$70,68,FALSE) -> 1.76 | G13: ='CEM Data Lookup'!F8*100 -> 12.5 | J13: =IFERROR('CEM Data Lookup'!C8*100, "NA") -> 10.6 | M13: =IFERROR('CEM Data Lookup'!E8*100,"NA") -> NA | P13: ='CEM Data Lookup'!D8*100 -> 10.99 | S13: 11.36 | V13: 1.86 | Y13: 13.22
A14: =Input!C7 -> BDX | B14: =VLOOKUP($A14,'CEM Data Lookup'!$A$4:$Q$51,2,FALSE) -> Becton, Dickinson | D14: =HLOOKUP(A14,'CEM PricesDivs'!$B$2:$AW$70,68,FALSE) -> 1.33 | G14: ='CEM Data Lookup'!F9*100 -> 9 | J14: =IFERROR('CEM Data Lookup'!C9*100, "NA") -> 9 | M14: =IFERROR('CEM Data Lookup'!E9*100,"NA") -> 9.537 | P14: ='CEM Data Lookup'!D9*100 -> 12 | S14: 9.88 | V14: 1.4 | Y14: 11.28
A15: =Input!C8 -> BFB | B15: =VLOOKUP($A15,'CEM Data Lookup'!$A$4:$Q$51,2,FALSE) -> Brown-Forman 'B' | D15: =HLOOKUP(A15,'CEM PricesDivs'!$B$2:$AW$70,68,FALSE) -> 0.98 | G15: ='CEM Data Lookup'!F10*100 -> 12 | J15: =IFERROR('CEM Data Lookup'!C10*100, "NA") -> NA | M15: =IFERROR('CEM Data Lookup'!E10*100,"NA") -> 5.39 | P15: ='CEM Data Lookup'!D10*100 -> 7.53 | S15: 8.31 | V15: 1.02 | Y15: 9.33
A16: =Input!C9 -> BR | B16: =VLOOKUP($A16,'CEM Data Lookup'!$A$4:$Q$51,2,FALSE) -> Broadridge Fin'l | D16: =HLOOKUP(A16,'CEM PricesDivs'!$B$2:$AW$70,68,FALSE) -> 1.56 | G16: ='CEM Data Lookup'!F11*100 -> 10.5 | J16: =IFERROR('CEM Data Lookup'!C11*100, "NA") -> NA | M16: =IFERROR('CEM Data Lookup'!E11*100,"NA") -> 10.7 | P16: ='CEM Data Lookup'!D11*100 -> 10 | S16: 10.4 | V16: 1.64 | Y16: 12.04
A17: =Input!C10 -> BRC | B17: =VLOOKUP($A17,'CEM Data Lookup'!$A$4:$Q$51,2,FALSE) -> Brady Corp. | D17: =HLOOKUP(A17,'CEM PricesDivs'!$B$2:$AW$70,68,FALSE) -> 1.68 | G17: ='CEM Data Lookup'!F12*100 -> 8 | J17: =IFERROR('CEM Data Lookup'!C12*100, "NA") -> 7 | M17: =IFERROR('CEM Data Lookup'!E12*100,"NA") -> 7.333 | P17: ='CEM Data Lookup'!D12*100 -> 7 | S17: 7.33 | V17: 1.74 | Y17: 9.07
A18: =Input!C11 -> CACI | B18: =VLOOKUP($A18,'CEM Data Lookup'!$A$4:$Q$51,2,FALSE) -> CACI Int'l | D18: =HLOOKUP(A18,'CEM PricesDivs'!$B$2:$AW$70,68,FALSE) -> 0 | G18: ='CEM Data Lookup'!F13*100 -> 14 | J18: =IFERROR('CEM Data Lookup'!C13*100, "NA") -> 10.5 | M18: =IFERROR('CEM Data Lookup'!E13*100,"NA") -> 10.53 | P18: ='CEM Data Lookup'!D13*100 -> 12.91 | S18: 11.99 | V18: 0 | Y18: NA
A19: =Input!C12 -> CASY | B19: =VLOOKUP($A19,'CEM Data Lookup'!$A$4:$Q$51,2,FALSE) -> Casey's Gen'l Stores | D19: =HLOOKUP(A19,'CEM PricesDivs'!$B$2:$AW$70,68,FALSE) -> 0.68 | G19: ='CEM Data Lookup'!F14*100 -> 9 | J19: =IFERROR('CEM Data Lookup'!C14*100, "NA") -> NA | M19: =IFERROR('CEM Data Lookup'!E14*100,"NA") -> 15.805 | P19: ='CEM Data Lookup'!D14*100 -> 7.85 | S19: 10.89 | V19: 0.72 | Y19: 11.61
A20: =Input!C13 -> CDNS | B20: =VLOOKUP($A20,'CEM Data Lookup'!$A$4:$Q$51,2,FALSE) -> Cadence Design Sys. | D20: =HLOOKUP(A20,'CEM PricesDivs'!$B$2:$AW$70,68,FALSE) -> 0 | G20: ='CEM Data Lookup'!F15*100 -> 13 | J20: =IFERROR('CEM Data Lookup'!C15*100, "NA") -> 11.1 | M20: =IFERROR('CEM Data Lookup'!E15*100,"NA") -> 11.9 | P20: ='CEM Data Lookup'!D15*100 -> 11.1 | S20: 11.78 | V20: 0 | Y20: NA
A21: =Input!C14 -> CERN | B21: =VLOOKUP($A21,'CEM Data Lookup'!$A$4:$Q$51,2,FALSE) -> Cerner Corp. | D21: =HLOOKUP(A21,'CEM PricesDivs'!$B$2:$AW$70,68,FALSE) -> 1.17 | G21: ='CEM Data Lookup'!F16*100 -> 8 | J21: =IFERROR('CEM Data Lookup'!C16*100, "NA") -> 12.3 | M21: =IFERROR('CEM Data Lookup'!E16*100,"NA") -> 8.61 | P21: ='CEM Data Lookup'!D16*100 -> 11.51 | S21: 10.11 | V21: 1.23 | Y21: 11.34
A22: =Input!C15 -> CSWI | B22: =VLOOKUP($A22,'CEM Data Lookup'!$A$4:$Q$51,2,FALSE) -> CSW Industrials | D22: =HLOOKUP(A22,'CEM PricesDivs'!$B$2:$AW$70,68,FALSE) -> 0.42 | G22: ='CEM Data Lookup'!F17*100 -> 8.5 | J22: =IFERROR('CEM Data Lookup'!C17*100, "NA") -> NA | M22: =IFERROR('CEM Data Lookup'!E17*100,"NA") -> NA | P22: ='CEM Data Lookup'!D17*100 -> 12 | S22: 10.25 | V22: 0.44 | Y22: 10.69
A23: =Input!C16 -> DGX | B23: =VLOOKUP($A23,'CEM Data Lookup'!$A$4:$Q$51,2,FALSE) -> Quest Diagnostics | D23: =HLOOKUP(A23,'CEM PricesDivs'!$B$2:$AW$70,68,FALSE) -> 2.01 | G23: ='CEM Data Lookup'!F18*100 -> 10 | J23: =IFERROR('CEM Data Lookup'!C18*100, "NA") -> 26.5 | M23: =IFERROR('CEM Data Lookup'!E18*100,"NA") -> -6.933 | P23: ='CEM Data Lookup'!D18*100 -> 9.22 | S23: =IFERROR(ROUND(AVERAGE(G23,J23,P23),2),"NA") -> 15.24 | V23: 2.16 | Y23: 17.4
A24: =Input!C17 -> EL | B24: =VLOOKUP($A24,'CEM Data Lookup'!$A$4:$Q$51,2,FALSE) -> Lauder (Estee) | D24: =HLOOKUP(A24,'CEM PricesDivs'!$B$2:$AW$70,68,FALSE) -> 0.77 | G24: ='CEM Data Lookup'!F19*100 -> 11 | J24: =IFERROR('CEM Data Lookup'!C19*100, "NA") -> 10.7 | M24: =IFERROR('CEM Data Lookup'!E19*100,"NA") -> 17.225 | P24: ='CEM Data Lookup'!D19*100 -> 21.1 | S24: 15.01 | V24: 0.83 | Y24: 15.84
A25: =Input!C18 -> EXPO | B25: =VLOOKUP($A25,'CEM Data Lookup'!$A$4:$Q$51,2,FALSE) -> Exponent, Inc. | D25: =HLOOKUP(A25,'CEM PricesDivs'!$B$2:$AW$70,68,FALSE) -> 0.85 | G25: ='CEM Data Lookup'!F20*100 -> 12 | J25: =IFERROR('CEM Data Lookup'!C20*100, "NA") -> NA | M25: =IFERROR('CEM Data Lookup'!E20*100,"NA") -> 13.3 | P25: ='CEM Data Lookup'!D20*100 -> 15 | S25: 13.43 | V25: 0.91 | Y25: 14.34
A26: =Input!C19 -> FAST | B26: =VLOOKUP($A26,'CEM Data Lookup'!$A$4:$Q$51,2,FALSE) -> Fastenal Co. | D26: =HLOOKUP(A26,'CEM PricesDivs'!$B$2:$AW$70,68,FALSE) -> 2.34 | G26: ='CEM Data Lookup'!F21*100 -> 8 | J26: =IFERROR('CEM Data Lookup'!C21*100, "NA") -> 9 | M26: =IFERROR('CEM Data Lookup'!E21*100,"NA") -> 10.15 | P26: ='CEM Data Lookup'!D21*100 -> 8.04 | S26: 8.8 | V26: 2.44 | Y26: 11.24
A27: =Input!C20 -> GNTX | B27: =VLOOKUP($A27,'CEM Data Lookup'!$A$4:$Q$51,2,FALSE) -> Gentex Corp. | D27: =HLOOKUP(A27,'CEM PricesDivs'!$B$2:$AW$70,68,FALSE) -> 1.35 | G27: ='CEM Data Lookup'!F22*100 -> 10.5 | J27: =IFERROR('CEM Data Lookup'!C22*100, "NA") -> 4.7 | M27: =IFERROR('CEM Data Lookup'!E22*100,"NA") -> 10.245 | P27: ='CEM Data Lookup'!D22*100 -> 15.8 | S27: 10.31 | V27: 1.42 | Y27: 11.73
A28: =Input!C21 -> IFF | B28: =VLOOKUP($A28,'CEM Data Lookup'!$A$4:$Q$51,2,FALSE) -> Int'l Flavors & Frag | D28: =HLOOKUP(A28,'CEM PricesDivs'!$B$2:$AW$70,68,FALSE) -> 2.37 | G28: ='CEM Data Lookup'!F23*100 -> 6.5 | J28: =IFERROR('CEM Data Lookup'!C23*100, "NA") -> 10 | M28: =IFERROR('CEM Data Lookup'!E23*100,"NA") -> 21.05 | P28: ='CEM Data Lookup'!D23*100 -> 10 | S28: 11.89 | V28: 2.51 | Y28: 14.4
A29: =Input!C22 -> INGR | B29: =VLOOKUP($A29,'CEM Data Lookup'!$A$4:$Q$51,2,FALSE) -> Ingredion Inc. | D29: =HLOOKUP(A29,'CEM PricesDivs'!$B$2:$AW$70,68,FALSE) -> 2.99 | G29: ='CEM Data Lookup'!F24*100 -> 6 | J29: =IFERROR('CEM Data Lookup'!C24*100, "NA") -> NA | M29: =IFERROR('CEM Data Lookup'!E24*100,"NA") -> 11 | P29: ='CEM Data Lookup'!D24*100 -> 1.9 | S29: 6.3 | V29: 3.08 | Y29: 9.38
A30: =Input!C23 -> IRM | B30: =VLOOKUP($A30,'CEM Data Lookup'!$A$4:$Q$51,2,FALSE) -> Iron Mountain | D30: =HLOOKUP(A30,'CEM PricesDivs'!$B$2:$AW$70,68,FALSE) -> 7.38 | G30: ='CEM Data Lookup'!F25*100 -> 7.5 | J30: =IFERROR('CEM Data Lookup'!C25*100, "NA") -> 1.7 | M30: =IFERROR('CEM Data Lookup'!E25*100,"NA") -> 4 | P30: ='CEM Data Lookup'!D25*100 -> 1.7 | S30: 3.73 | V30: 7.52 | Y30: 11.25
A31: =Input!C24 -> JBHT | B31: =VLOOKUP($A31,'CEM Data Lookup'!$A$4:$Q$51,2,FALSE) -> Hunt (J.B.) | D31: =HLOOKUP(A31,'CEM PricesDivs'!$B$2:$AW$70,68,FALSE) -> 0.74 | G31: ='CEM Data Lookup'!F26*100 -> 6.5 | J31: =IFERROR('CEM Data Lookup'!C26*100, "NA") -> 15 | M31: =IFERROR('CEM Data Lookup'!E26*100,"NA") -> 17.233 | P31: ='CEM Data Lookup'!D26*100 -> 20.73 | S31: 14.87 | V31: 0.8 | Y31: 15.67
A32: =Input!C25 -> JJSF | B32: =VLOOKUP($A32,'CEM Data Lookup'!$A$4:$Q$51,2,FALSE) -> J&J Snack Foods | D32: =HLOOKUP(A32,'CEM PricesDivs'!$B$2:$AW$70,68,FALSE) -> 1.47 | G32: ='CEM Data Lookup'!F27*100 -> 10 | J32: =IFERROR('CEM Data Lookup'!C27*100, "NA") -> NA | M32: =IFERROR('CEM Data Lookup'!E27*100,"NA") -> NA | P32: ='CEM Data Lookup'!D27*100 -> 6 | S32: 8 | V32: 1.53 | Y32: 9.53
A33: =Input!C26 -> JKHY | B33: =VLOOKUP($A33,'CEM Data Lookup'!$A$4:$Q$51,2,FALSE) -> Henry (Jack) & Assoc | D33: =HLOOKUP(A33,'CEM PricesDivs'!$B$2:$AW$70,68,FALSE) -> 1.21 | G33: ='CEM Data Lookup'!F28*100 -> 10.5 | J33: =IFERROR('CEM Data Lookup'!C28*100, "NA") -> 10.9 | M33: =IFERROR('CEM Data Lookup'!E28*100,"NA") -> 12.467 | P33: ='CEM Data Lookup'!D28*100 -> 10.02 | S33: 10.97 | V33: 1.28 | Y33: 12.25
A34: =Input!C27 -> MANT | B34: =VLOOKUP($A34,'CEM Data Lookup'!$A$4:$Q$51,2,FALSE) -> ManTech Int'l 'A' | D34: =HLOOKUP(A34,'CEM PricesDivs'!$B$2:$AW$70,68,FALSE) -> 1.74 | G34: ='CEM Data Lookup'!F29*100 -> 12 | J34: =IFERROR('CEM Data Lookup'!C29*100, "NA") -> 5.1 | M34: =IFERROR('CEM Data Lookup'!E29*100,"NA") -> 5.06 | P34: ='CEM Data Lookup'!D29*100 -> 4.53 | S34: 6.67 | V34: 1.8 | Y34: 8.47
A35: =Input!C28 -> MKC | B35: =VLOOKUP($A35,'CEM Data Lookup'!$A$4:$Q$51,2,FALSE) -> McCormick & Co. | D35: =HLOOKUP(A35,'CEM PricesDivs'!$B$2:$AW$70,68,FALSE) -> 1.53 | G35: ='CEM Data Lookup'!F30*100 -> 6.5 | J35: =IFERROR('CEM Data Lookup'!C30*100, "NA") -> 6.6 | M35: =IFERROR('CEM Data Lookup'!E30*100,"NA") -> 5.82 | P35: ='CEM Data Lookup'!D30*100 -> 5.5 | S35: 6.11 | V35: 1.58 | Y35: 7.69
A36: =Input!C29 -> MO | B36: =VLOOKUP($A36,'CEM Data Lookup'!$A$4:$Q$51,2,FALSE) -> Altria Group | D36: =HLOOKUP(A36,'CEM PricesDivs'!$B$2:$AW$70,68,FALSE) -> 7.66 | G36: ='CEM Data Lookup'!F31*100 -> 6.5 | J36: =IFERROR('CEM Data Lookup'!C31*100, "NA") -> 4 | M36: =IFERROR('CEM Data Lookup'!E31*100,"NA") -> 2.7 | P36: ='CEM Data Lookup'!D31*100 -> 4.42 | S36: 4.41 | V36: 7.83 | Y36: 12.24
A37: =Input!C30 -> MSA | B37: =VLOOKUP($A37,'CEM Data Lookup'!$A$4:$Q$51,2,FALSE) -> MSA Safety | D37: =HLOOKUP(A37,'CEM PricesDivs'!$B$2:$AW$70,68,FALSE) -> 1.07 | G37: ='CEM Data Lookup'!F32*100 -> 6.5 | J37: =IFERROR('CEM Data Lookup'!C32*100, "NA") -> NA | M37: =IFERROR('CEM Data Lookup'!E32*100,"NA") -> 9 | P37: ='CEM Data Lookup'!D32*100 -> 18 | S37: 11.17 | V37: 1.13 | Y37: 12.3
A38: =Input!C31 -> MSCI | B38: =VLOOKUP($A38,'CEM Data Lookup'!$A$4:$Q$51,2,FALSE) -> MSCI Inc. | D38: =HLOOKUP(A38,'CEM PricesDivs'!$B$2:$AW$70,68,FALSE) -> 0.74 | G38: ='CEM Data Lookup'!F33*100 -> 18 | J38: =IFERROR('CEM Data Lookup'!C33*100, "NA") -> NA | M38: =IFERROR('CEM Data Lookup'!E33*100,"NA") -> 12.2 | P38: ='CEM Data Lookup'!D33*100 -> 14.37 | S38: 14.86 | V38: 0.79 | Y38: 15.65
A39: =Input!C32 -> MSI | B39: =VLOOKUP($A39,'CEM Data Lookup'!$A$4:$Q$51,2,FALSE) -> Motorola Solutions | D39: =HLOOKUP(A39,'CEM PricesDivs'!$B$2:$AW$70,68,FALSE) -> 1.59 | G39: ='CEM Data Lookup'!F34*100 -> 7 | J39: =IFERROR('CEM Data Lookup'!C34*100, "NA") -> 9 | M39: =IFERROR('CEM Data Lookup'!E34*100,"NA") -> 11.3 | P39: ='CEM Data Lookup'!D34*100 -> 5.88 | S39: 8.3 | V39: 1.66 | Y39: 9.96
A40: =Input!C33 -> MTN | B40: =VLOOKUP($A40,'CEM Data Lookup'!$A$4:$Q$51,2,FALSE) -> Vail Resorts | D40: =HLOOKUP(A40,'CEM PricesDivs'!$B$2:$AW$70,68,FALSE) -> 0 | G40: ='CEM Data Lookup'!F35*100 -> 8.5 | J40: =IFERROR('CEM Data Lookup'!C35*100, "NA") -> NA | M40: =IFERROR('CEM Data Lookup'!E35*100,"NA") -> 86.86 | P40: ='CEM Data Lookup'!D35*100 -> 69.8 | S40: 55.05 | V40: 0 | Y40: NA
A41: =Input!C34 -> MXIM | B41: =VLOOKUP($A41,'CEM Data Lookup'!$A$4:$Q$51,2,FALSE) -> Maxim Integrated | D41: =HLOOKUP(A41,'CEM PricesDivs'!$B$2:$AW$70,68,FALSE) -> 0 | G41: ='CEM Data Lookup'!F36*100 -> 8 | J41: =IFERROR('CEM Data Lookup'!C36*100, "NA") -> 10 | M41: =IFERROR('CEM Data Lookup'!E36*100,"NA") -> 11.3 | P41: ='CEM Data Lookup'!D36*100 -> 18.44 | S41: 11.94 | V41: 0 | Y41: NA
A42: =Input!C35 -> NOC | B42: =VLOOKUP($A42,'CEM Data Lookup'!$A$4:$Q$51,2,FALSE) -> Northrop Grumman | D42: =HLOOKUP(A42,'CEM PricesDivs'!$B$2:$AW$70,68,FALSE) -> 1.92 | G42: ='CEM Data Lookup'!F37*100 -> 7 | J42: =IFERROR('CEM Data Lookup'!C37*100, "NA") -> NA | M42: =IFERROR('CEM Data Lookup'!E37*100,"NA") -> 4.955 | P42: ='CEM Data Lookup'!D37*100 -> 5.44 | S42: 5.8 | V42: 1.98 | Y42: 7.78
A43: =Input!C36 -> ODFL | B43: =VLOOKUP($A43,'CEM Data Lookup'!$A$4:$Q$51,2,FALSE) -> Old Dominion Freight | D43: =HLOOKUP(A43,'CEM PricesDivs'!$B$2:$AW$70,68,FALSE) -> 0.37 | G43: ='CEM Data Lookup'!F38*100 -> 9 | J43: =IFERROR('CEM Data Lookup'!C38*100, "NA") -> 15.3 | M43: =IFERROR('CEM Data Lookup'!E38*100,"NA") -> 16.177 | P43: ='CEM Data Lookup'!D38*100 -> 15.89 | S43: 14.09 | V43: 0.4 | Y43: 14.49
A44: =Input!C37 -> PKI | B44: =VLOOKUP($A44,'CEM Data Lookup'!$A$4:$Q$51,2,FALSE) -> PerkinElmer Inc. | D44: =HLOOKUP(A44,'CEM PricesDivs'!$B$2:$AW$70,68,FALSE) -> 0.2 | G44: ='CEM Data Lookup'!F39*100 -> 17.5 | J44: =IFERROR('CEM Data Lookup'!C39*100, "NA") -> 19.5 | M44: =IFERROR('CEM Data Lookup'!E39*100,"NA") -> -6.872 | P44: ='CEM Data Lookup'!D39*100 -> 17.2 | S44: =IFERROR(ROUND(AVERAGE(G44,J44,P44),2),"NA") -> 18.07 | V44: 0.22 | Y44: 18.29
A45: =Input!C38 -> PM | B45: =VLOOKUP($A45,'CEM Data Lookup'!$A$4:$Q$51,2,FALSE) -> Philip Morris Int'l | D45: =HLOOKUP(A45,'CEM PricesDivs'!$B$2:$AW$70,68,FALSE) -> 5.65 | G45: ='CEM Data Lookup'!F40*100 -> 5 | J45: =IFERROR('CEM Data Lookup'!C40*100, "NA") -> 8.3 | M45: =IFERROR('CEM Data Lookup'!E40*100,"NA") -> 10.385 | P45: ='CEM Data Lookup'!D40*100 -> 11.42 | S45: 8.78 | V45: 5.9 | Y45: 14.68
A46: =Input!C39 -> POOL | B46: =VLOOKUP($A46,'CEM Data Lookup'!$A$4:$Q$51,2,FALSE) -> Pool Corp. | D46: =HLOOKUP(A46,'CEM PricesDivs'!$B$2:$AW$70,68,FALSE) -> 0.67 | G46: ='CEM Data Lookup'!F41*100 -> 17.5 | J46: =IFERROR('CEM Data Lookup'!C41*100, "NA") -> NA | M46: =IFERROR('CEM Data Lookup'!E41*100,"NA") -> 17 | P46: ='CEM Data Lookup'!D41*100 -> 17 | S46: 17.17 | V46: 0.73 | Y46: 17.9
A47: =Input!C40 -> POST | B47: =VLOOKUP($A47,'CEM Data Lookup'!$A$4:$Q$51,2,FALSE) -> Post Holdings | D47: =HLOOKUP(A47,'CEM PricesDivs'!$B$2:$AW$70,68,FALSE) -> 0 | G47: ='CEM Data Lookup'!F42*100 -> 11.5 | J47: =IFERROR('CEM Data Lookup'!C42*100, "NA") -> NA | M47: =IFERROR('CEM Data Lookup'!E42*100,"NA") -> 20.3 | P47: ='CEM Data Lookup'!D42*100 -> 31.2 | S47: 21 | V47: 0 | Y47: NA
A48: =Input!C41 -> RLI | B48: =VLOOKUP($A48,'CEM Data Lookup'!$A$4:$Q$51,2,FALSE) -> RLI Corp. | D48: =HLOOKUP(A48,'CEM PricesDivs'!$B$2:$AW$70,68,FALSE) -> 0.9 | G48: ='CEM Data Lookup'!F43*100 -> 12.5 | J48: =IFERROR('CEM Data Lookup'!C43*100, "NA") -> NA | M48: =IFERROR('CEM Data Lookup'!E43*100,"NA") -> NA | P48: ='CEM Data Lookup'!D43*100 -> 9.8 | S48: 11.15 | V48: 0.95 | Y48: 12.1
A49: =Input!C42 -> ROL | B49: =VLOOKUP($A49,'CEM Data Lookup'!$A$4:$Q$51,2,FALSE) -> Rollins, Inc. | D49: =HLOOKUP(A49,'CEM PricesDivs'!$B$2:$AW$70,68,FALSE) -> 0.89 | G49: ='CEM Data Lookup'!F44*100 -> 11.5 | J49: =IFERROR('CEM Data Lookup'!C44*100, "NA") -> NA | M49: =IFERROR('CEM Data Lookup'!E44*100,"NA") -> NA | P49: ='CEM Data Lookup'!D44*100 -> 8.2 | S49: 9.85 | V49: 0.93 | Y49: 10.78
A50: =Input!C43 -> SIGI | B50: =VLOOKUP($A50,'CEM Data Lookup'!$A$4:$Q$51,2,FALSE) -> Selective Ins. Group | D50: =HLOOKUP(A50,'CEM PricesDivs'!$B$2:$AW$70,68,FALSE) -> 1.44 | G50: ='CEM Data Lookup'!F45*100 -> 8.5 | J50: =IFERROR('CEM Data Lookup'!C45*100, "NA") -> NA | M50: =IFERROR('CEM Data Lookup'!E45*100,"NA") -> NA | P50: ='CEM Data Lookup'!D45*100 -> 5.1 | S50: 6.8 | V50: 1.49 | Y50: 8.29
A51: =Input!C44 -> SIRI | B51: =VLOOKUP($A51,'CEM Data Lookup'!$A$4:$Q$51,2,FALSE) -> Sirius XM Holdings | D51: =HLOOKUP(A51,'CEM PricesDivs'!$B$2:$AW$70,68,FALSE) -> 0.96 | G51: ='CEM Data Lookup'!F46*100 -> 24.5 | J51: =IFERROR('CEM Data Lookup'!C46*100, "NA") -> 14.8 | M51: =IFERROR('CEM Data Lookup'!E46*100,"NA") -> 26.96 | P51: ='CEM Data Lookup'!D46*100 -> 12.93 | S51: 19.8 | V51: 1.06 | Y51: 20.86
A52: =Input!C45 -> TECH | B52: =VLOOKUP($A52,'CEM Data Lookup'!$A$4:$Q$51,2,FALSE) -> Bio-Techne Corp. | D52: =HLOOKUP(A52,'CEM PricesDivs'!$B$2:$AW$70,68,FALSE) -> 0.35 | G52: ='CEM Data Lookup'!F47*100 -> 12.5 | J52: =IFERROR('CEM Data Lookup'!C47*100, "NA") -> 15 | M52: =IFERROR('CEM Data Lookup'!E47*100,"NA") -> 19.033 | P52: ='CEM Data Lookup'!D47*100 -> 15 | S52: 15.38 | V52: 0.38 | Y52: 15.76
A53: =Input!C46 -> TTEK | B53: =VLOOKUP($A53,'CEM Data Lookup'!$A$4:$Q$51,2,FALSE) -> Tetra Tech | D53: =HLOOKUP(A53,'CEM PricesDivs'!$B$2:$AW$70,68,FALSE) -> 0.51 | G53: ='CEM Data Lookup'!F48*100 -> 13.5 | J53: =IFERROR('CEM Data Lookup'!C48*100, "NA") -> 15 | M53: =IFERROR('CEM Data Lookup'!E48*100,"NA") -> 13.85 | P53: ='CEM Data Lookup'!D48*100 -> 15 | S53: 14.34 | V53: 0.55 | Y53: 14.89
A54: =Input!C47 -> WAT | B54: =VLOOKUP($A54,'CEM Data Lookup'!$A$4:$Q$51,2,FALSE) -> Waters Corp. | D54: =HLOOKUP(A54,'CEM PricesDivs'!$B$2:$AW$70,68,FALSE) -> 0 | G54: ='CEM Data Lookup'!F49*100 -> 6 | J54: =IFERROR('CEM Data Lookup'!C49*100, "NA") -> 8.8 | M54: =IFERROR('CEM Data Lookup'!E49*100,"NA") -> 9.03 | P54: ='CEM Data Lookup'!D49*100 -> 7.17 | S54: 7.75 | V54: 0 | Y54: NA
A55: =Input!C48 -> WST | B55: =VLOOKUP($A55,'CEM Data Lookup'!$A$4:$Q$51,2,FALSE) -> West Pharmac. Svcs. | D55: =HLOOKUP(A55,'CEM PricesDivs'!$B$2:$AW$70,68,FALSE) -> 0.24 | G55: ='CEM Data Lookup'!F50*100 -> 17 | J55: =IFERROR('CEM Data Lookup'!C50*100, "NA") -> 22.6 | M55: =IFERROR('CEM Data Lookup'!E50*100,"NA") -> 17.21 | P55: ='CEM Data Lookup'!D50*100 -> 22.6 | S55: 19.85 | V55: 0.26 | Y55: 20.11
A56: =Input!C49 -> WU | B56: =VLOOKUP($A56,'CEM Data Lookup'!$A$4:$Q$51,2,FALSE) -> Western Union | D56: =HLOOKUP(A56,'CEM PricesDivs'!$B$2:$AW$70,68,FALSE) -> 3.99 | G56: ='CEM Data Lookup'!F51*100 -> 6 | J56: =IFERROR('CEM Data Lookup'!C51*100, "NA") -> NA | M56: =IFERROR('CEM Data Lookup'!E51*100,"NA") -> 4.567 | P56: ='CEM Data Lookup'!D51*100 -> 9.25 | S56: 6.61 | V56: 4.12 | Y56: 10.73
V58: Mean | Y58: =ROUND(AVERAGE(Y8:Y56),2) -> 12.95 | Z58: %
V60: Median | Y60: =ROUND(MEDIAN(Y8:Y56),2) -> 12.24 | Z60: %
V62: Average of Mean and Median | Y62: =ROUND(AVERAGE(Y58:Y60),2) -> 12.6 | Z62: %
C64: NA= Not Available
C65: NMF= Not Meaningful Figure
C67: (1) | D67: The application of the DCF model to the domestic, non-price regluated comparable risk companies is identical to the application of the DCF to the Utility Proxy Group. The dividend yield is derived by using the 60 day average price and the spot indicated dividend as of March 31, 2021. The dividend yield is then adjusted by 1/2 the average projected growth rate in EPS, which is calculated by averaging the 5 year projected growth in EPS provided by Value Line, www.zacks.com, Bloomberg Professional Services, and www.yahoo.com (excluding any negative growth rates) and then adding that growth rate to the adjusted dividend yield.
B69: Source of Information: | C69: Value Line Investment Survey
C70: =CONCATENATE("www.zacks.com Downloaded on ",TEXT(Input!E2,"mm/dd/yyyy")) -> www.zacks.com Downloaded on 03/31/2021
C71: =CONCATENATE("www.yahoo.com Downloaded on ",TEXT(Input!E2,"mm/dd/yyyy")) -> www.yahoo.com Downloaded on 03/31/2021
C72: Bloomberg Professional Services

Sheet 6.3 CEM RPM Summary
A1: =Input!G28 -> Duke Energy Kentucky, Inc.
A2: Indicated Common Equity Cost Rate
A3: Through Use of a Risk Premium Model
A4: Using an Adjusted Total Market Approach
A6: Line No. | G6: ='6.2 CEM DCF'!B7 -> Proxy Group of Forty-Eight Non-Price Regulated Companies
A9: 1. | C9: Prospective Yield on Baa2 Rated
C10: Corporate Bonds (1) | G10: =$G$29 -> 4.36 | H10: %
A12: 2. | C12: Equity Risk Premium (2) | G12: ='6.5 CEM Beta Adjusted RP'!F28 -> 7.99
A14: 3. | C14: Risk Premium Derived Common
C15: Equity Cost Rate | G15: =SUM(G10:G12) -> 12.35 | H15: %
A18: Notes: | B18: (1) | C18: =CONCATENATE("Average forecast of Baa2 corporate bonds based upon the consensus of nearly 50 economists reported in Blue Chip Financial Forecasts dated ",TEXT(Input!I25,"[$-409]mmmm d, yyyy;@")," (see pages 10 and 11 of Attachment DWD-3). The estimates are detailed below.") -> Average forecast of Baa2 corporate bonds based upon the consensus of nearly 50 economists reported in Blue Chip Financial Forecasts dated April 1, 2021 and December 1, 2020 (see pages 10 and 11 of Attachment DWD-3). The estimates are detailed below.
D20: ='MRP WP1'!B28 -> Second Quarter 2021 | G20: ='MRP WP1'!O28 -> 3.9 | H20: %
D21: ='MRP WP1'!B29 -> Third Quarter 2021 | G21: ='MRP WP1'!O29 -> 4
D22: ='MRP WP1'!B30 -> Fourth Quarter 2021 | G22: ='MRP WP1'!O30 -> 4.1
D23: ='MRP WP1'!B31 -> First Quarter 2022 | G23: ='MRP WP1'!O31 -> 4.2
D24: ='MRP WP1'!B32 -> Second Quarter 2022 | G24: ='MRP WP1'!O32 -> 4.3
D25: ='MRP WP1'!B33 -> Third Quarter 2022 | G25: ='MRP WP1'!O33 -> 4.4
D26: ='MRP WP1'!B34 -> 2022-2026 | G26: ='MRP WP1'!O34 -> 4.6
D27: ='MRP WP1'!B35 -> 2027-2031 | G27: ='MRP WP1'!O35 -> 5.4
D29: Average | G29: =ROUND(AVERAGE(G20:G27),2) -> 4.36 | H29: %
B31: (2) | C31: From page 5 of this Attachment.

Sheet 6.4 CEM RPM Bond Ratings
B1: =Input!G28 -> Duke Energy Kentucky, Inc.
B2: Comparison of Long-Term Issuer Ratings for the
B3: =CONCATENATE('6.3 CEM RPM Summary'!G6," of Comparable risk to the") -> Proxy Group of Forty-Eight Non-Price Regulated Companies of Comparable risk to the
B4: ='6.2 CEM DCF'!B3 -> Proxy Group of Seven Natural Gas Distribution Companies
D7: Moody's | H7: Standard & Poor's
D8: Long-Term Issuer Rating | H8: =D8 -> Long-Term Issuer Rating
D9: =TEXT(Input!E2, "mmmm yyyy") -> March 2021 | H9: =D9 -> March 2021
B11: ='6.3 CEM RPM Summary'!G6 -> Proxy Group of Forty-Eight Non-Price Regulated Companies | D11: Long-Term Issuer Rating | F11: Numerical Weighting (1) | H11: =D11 -> Long-Term Issuer Rating | J11: Numerical Weighting (1)
A13: =Input!C2 -> AAPL | B13: =VLOOKUP($A13,'CEM Data Lookup'!$A:$Q,2,FALSE) -> Apple Inc. | D13: ='CEM Data Lookup'!K4 -> Aa1 | F13: =IFERROR(VLOOKUP('6.4 CEM RPM Bond Ratings'!D13,'3.6 MOODY_S&P numbericl'!B:D,3,FALSE),"--") -> 2 | H13: ='CEM Data Lookup'!L4 -> AA+ | J13: =IFERROR(VLOOKUP(H13,'3.6 MOODY_S&P numbericl'!F:H,3,FALSE),"--") -> 2
A14: =Input!C3 -> ABT | B14: =VLOOKUP($A14,'CEM Data Lookup'!$A:$Q,2,FALSE) -> Abbott Labs. | D14: ='CEM Data Lookup'!K5 -> A3 | F14: =IFERROR(VLOOKUP('6.4 CEM RPM Bond Ratings'!D14,'3.6 MOODY_S&P numbericl'!B:D,3,FALSE),"--") -> 7 | H14: ='CEM Data Lookup'!L5 -> A | J14: =IFERROR(VLOOKUP(H14,'3.6 MOODY_S&P numbericl'!F:H,3,FALSE),"--") -> 6
A15: =Input!C4 -> AIZ | B15: =VLOOKUP($A15,'CEM Data Lookup'!$A:$Q,2,FALSE) -> Assurant Inc. | D15: ='CEM Data Lookup'!K6 -> Baa3 | F15: =IFERROR(VLOOKUP('6.4 CEM RPM Bond Ratings'!D15,'3.6 MOODY_S&P numbericl'!B:D,3,FALSE),"--") -> 10 | H15: ='CEM Data Lookup'!L6 -> BBB | J15: =IFERROR(VLOOKUP(H15,'3.6 MOODY_S&P numbericl'!F:H,3,FALSE),"--") -> 9
A16: =Input!C5 -> ANSS | B16: =VLOOKUP($A16,'CEM Data Lookup'!$A:$Q,2,FALSE) -> ANSYS, Inc. | D16: ='CEM Data Lookup'!K7 -> NA | F16: =IFERROR(VLOOKUP('6.4 CEM RPM Bond Ratings'!D16,'3.6 MOODY_S&P numbericl'!B:D,3,FALSE),"--") -> -- | H16: ='CEM Data Lookup'!L7 -> NA | J16: =IFERROR(VLOOKUP(H16,'3.6 MOODY_S&P numbericl'!F:H,3,FALSE),"--") -> --
A17: =Input!C6 -> BAH | B17: =VLOOKUP($A17,'CEM Data Lookup'!$A:$Q,2,FALSE) -> Booz Allen Hamilton | D17: ='CEM Data Lookup'!K8 -> NA | F17: =IFERROR(VLOOKUP('6.4 CEM RPM Bond Ratings'!D17,'3.6 MOODY_S&P numbericl'!B:D,3,FALSE),"--") -> -- | H17: ='CEM Data Lookup'!L8 -> NA | J17: =IFERROR(VLOOKUP(H17,'3.6 MOODY_S&P numbericl'!F:H,3,FALSE),"--") -> --
A18: =Input!C7 -> BDX | B18: =VLOOKUP($A18,'CEM Data Lookup'!$A:$Q,2,FALSE) -> Becton, Dickinson | D18: ='CEM Data Lookup'!K9 -> Baa3 | F18: =IFERROR(VLOOKUP('6.4 CEM RPM Bond Ratings'!D18,'3.6 MOODY_S&P numbericl'!B:D,3,FALSE),"--") -> 10 | H18: ='CEM Data Lookup'!L9 -> BBB | J18: =IFERROR(VLOOKUP(H18,'3.6 MOODY_S&P numbericl'!F:H,3,FALSE),"--") -> 9
A19: =Input!C8 -> BFB | B19: =VLOOKUP($A19,'CEM Data Lookup'!$A:$Q,2,FALSE) -> Brown-Forman 'B' | D19: ='CEM Data Lookup'!K10 -> A1 | F19: =IFERROR(VLOOKUP('6.4 CEM RPM Bond Ratings'!D19,'3.6 MOODY_S&P numbericl'!B:D,3,FALSE),"--") -> 5 | H19: ='CEM Data Lookup'!L10 -> A- | J19: =IFERROR(VLOOKUP(H19,'3.6 MOODY_S&P numbericl'!F:H,3,FALSE),"--") -> 7
A20: =Input!C9 -> BR | B20: =VLOOKUP($A20,'CEM Data Lookup'!$A:$Q,2,FALSE) -> Broadridge Fin'l | D20: ='CEM Data Lookup'!K11 -> Baa1 | F20: =IFERROR(VLOOKUP('6.4 CEM RPM Bond Ratings'!D20,'3.6 MOODY_S&P numbericl'!B:D,3,FALSE),"--") -> 8 | H20: ='CEM Data Lookup'!L11 -> BBB+ | J20: =IFERROR(VLOOKUP(H20,'3.6 MOODY_S&P numbericl'!F:H,3,FALSE),"--") -> 8
A21: =Input!C10 -> BRC | B21: =VLOOKUP($A21,'CEM Data Lookup'!$A:$Q,2,FALSE) -> Brady Corp. | D21: ='CEM Data Lookup'!K12 -> NA | F21: =IFERROR(VLOOKUP('6.4 CEM RPM Bond Ratings'!D21,'3.6 MOODY_S&P numbericl'!B:D,3,FALSE),"--") -> -- | H21: ='CEM Data Lookup'!L12 -> NA | J21: =IFERROR(VLOOKUP(H21,'3.6 MOODY_S&P numbericl'!F:H,3,FALSE),"--") -> --
A22: =Input!C11 -> CACI | B22: =VLOOKUP($A22,'CEM Data Lookup'!$A:$Q,2,FALSE) -> CACI Int'l | D22: ='CEM Data Lookup'!K13 -> NA | F22: =IFERROR(VLOOKUP('6.4 CEM RPM Bond Ratings'!D22,'3.6 MOODY_S&P numbericl'!B:D,3,FALSE),"--") -> -- | H22: ='CEM Data Lookup'!L13 -> BB+ | J22: =IFERROR(VLOOKUP(H22,'3.6 MOODY_S&P numbericl'!F:H,3,FALSE),"--") -> 11
A23: =Input!C12 -> CASY | B23: =VLOOKUP($A23,'CEM Data Lookup'!$A:$Q,2,FALSE) -> Casey's Gen'l Stores | D23: ='CEM Data Lookup'!K14 -> NA | F23: =IFERROR(VLOOKUP('6.4 CEM RPM Bond Ratings'!D23,'3.6 MOODY_S&P numbericl'!B:D,3,FALSE),"--") -> -- | H23: ='CEM Data Lookup'!L14 -> NA | J23: =IFERROR(VLOOKUP(H23,'3.6 MOODY_S&P numbericl'!F:H,3,FALSE),"--") -> --
A24: =Input!C13 -> CDNS | B24: =VLOOKUP($A24,'CEM Data Lookup'!$A:$Q,2,FALSE) -> Cadence Design Sys. | D24: ='CEM Data Lookup'!K15 -> Baa2 | F24: =IFERROR(VLOOKUP('6.4 CEM RPM Bond Ratings'!D24,'3.6 MOODY_S&P numbericl'!B:D,3,FALSE),"--") -> 9 | H24: ='CEM Data Lookup'!L15 -> BBB+ | J24: =IFERROR(VLOOKUP(H24,'3.6 MOODY_S&P numbericl'!F:H,3,FALSE),"--") -> 8
A25: =Input!C14 -> CERN | B25: =VLOOKUP($A25,'CEM Data Lookup'!$A:$Q,2,FALSE) -> Cerner Corp. | D25: ='CEM Data Lookup'!K16 -> NA | F25: =IFERROR(VLOOKUP('6.4 CEM RPM Bond Ratings'!D25,'3.6 MOODY_S&P numbericl'!B:D,3,FALSE),"--") -> -- | H25: ='CEM Data Lookup'!L16 -> NA | J25: =IFERROR(VLOOKUP(H25,'3.6 MOODY_S&P numbericl'!F:H,3,FALSE),"--") -> --
A26: =Input!C15 -> CSWI | B26: =VLOOKUP($A26,'CEM Data Lookup'!$A:$Q,2,FALSE) -> CSW Industrials | D26: ='CEM Data Lookup'!K17 -> NA | F26: =IFERROR(VLOOKUP('6.4 CEM RPM Bond Ratings'!D26,'3.6 MOODY_S&P numbericl'!B:D,3,FALSE),"--") -> -- | H26: ='CEM Data Lookup'!L17 -> NA | J26: =IFERROR(VLOOKUP(H26,'3.6 MOODY_S&P numbericl'!F:H,3,FALSE),"--") -> --
A27: =Input!C16 -> DGX | B27: =VLOOKUP($A27,'CEM Data Lookup'!$A:$Q,2,FALSE) -> Quest Diagnostics | D27: ='CEM Data Lookup'!K18 -> Baa2 | F27: =IFERROR(VLOOKUP('6.4 CEM RPM Bond Ratings'!D27,'3.6 MOODY_S&P numbericl'!B:D,3,FALSE),"--") -> 9 | H27: ='CEM Data Lookup'!L18 -> BBB+ | J27: =IFERROR(VLOOKUP(H27,'3.6 MOODY_S&P numbericl'!F:H,3,FALSE),"--") -> 8
A28: =Input!C17 -> EL | B28: =VLOOKUP($A28,'CEM Data Lookup'!$A:$Q,2,FALSE) -> Lauder (Estee) | D28: ='CEM Data Lookup'!K19 -> A1 | F28: =IFERROR(VLOOKUP('6.4 CEM RPM Bond Ratings'!D28,'3.6 MOODY_S&P numbericl'!B:D,3,FALSE),"--") -> 5 | H28: ='CEM Data Lookup'!L19 -> A+ | J28: =IFERROR(VLOOKUP(H28,'3.6 MOODY_S&P numbericl'!F:H,3,FALSE),"--") -> 5
A29: =Input!C18 -> EXPO | B29: =VLOOKUP($A29,'CEM Data Lookup'!$A:$Q,2,FALSE) -> Exponent, Inc. | D29: ='CEM Data Lookup'!K20 -> NA | F29: =IFERROR(VLOOKUP('6.4 CEM RPM Bond Ratings'!D29,'3.6 MOODY_S&P numbericl'!B:D,3,FALSE),"--") -> -- | H29: ='CEM Data Lookup'!L20 -> NA | J29: =IFERROR(VLOOKUP(H29,'3.6 MOODY_S&P numbericl'!F:H,3,FALSE),"--") -> --
A30: =Input!C19 -> FAST | B30: =VLOOKUP($A30,'CEM Data Lookup'!$A:$Q,2,FALSE) -> Fastenal Co. | D30: ='CEM Data Lookup'!K21 -> NA | F30: =IFERROR(VLOOKUP('6.4 CEM RPM Bond Ratings'!D30,'3.6 MOODY_S&P numbericl'!B:D,3,FALSE),"--") -> -- | H30: ='CEM Data Lookup'!L21 -> NA | J30: =IFERROR(VLOOKUP(H30,'3.6 MOODY_S&P numbericl'!F:H,3,FALSE),"--") -> --
A31: =Input!C20 -> GNTX | B31: =VLOOKUP($A31,'CEM Data Lookup'!$A:$Q,2,FALSE) -> Gentex Corp. | D31: ='CEM Data Lookup'!K22 -> NA | F31: =IFERROR(VLOOKUP('6.4 CEM RPM Bond Ratings'!D31,'3.6 MOODY_S&P numbericl'!B:D,3,FALSE),"--") -> -- | H31: ='CEM Data Lookup'!L22 -> NA | J31: =IFERROR(VLOOKUP(H31,'3.6 MOODY_S&P numbericl'!F:H,3,FALSE),"--") -> --
A32: =Input!C21 -> IFF | B32: =VLOOKUP($A32,'CEM Data Lookup'!$A:$Q,2,FALSE) -> Int'l Flavors & Frag | D32: ='CEM Data Lookup'!K23 -> Baa3 | F32: =IFERROR(VLOOKUP('6.4 CEM RPM Bond Ratings'!D32,'3.6 MOODY_S&P numbericl'!B:D,3,FALSE),"--") -> 10 | H32: ='CEM Data Lookup'!L23 -> BBB | J32: =IFERROR(VLOOKUP(H32,'3.6 MOODY_S&P numbericl'!F:H,3,FALSE),"--") -> 9
A33: =Input!C22 -> INGR | B33: =VLOOKUP($A33,'CEM Data Lookup'!$A:$Q,2,FALSE) -> Ingredion Inc. | D33: ='CEM Data Lookup'!K24 -> Baa1 | F33: =IFERROR(VLOOKUP('6.4 CEM RPM Bond Ratings'!D33,'3.6 MOODY_S&P numbericl'!B:D,3,FALSE),"--") -> 8 | H33: ='CEM Data Lookup'!L24 -> BBB | J33: =IFERROR(VLOOKUP(H33,'3.6 MOODY_S&P numbericl'!F:H,3,FALSE),"--") -> 9
A34: =Input!C23 -> IRM | B34: =VLOOKUP($A34,'CEM Data Lookup'!$A:$Q,2,FALSE) -> Iron Mountain | D34: ='CEM Data Lookup'!K25 -> Ba3 | F34: =IFERROR(VLOOKUP('6.4 CEM RPM Bond Ratings'!D34,'3.6 MOODY_S&P numbericl'!B:D,3,FALSE),"--") -> 13 | H34: ='CEM Data Lookup'!L25 -> BB- | J34: =IFERROR(VLOOKUP(H34,'3.6 MOODY_S&P numbericl'!F:H,3,FALSE),"--") -> 13
A35: =Input!C24 -> JBHT | B35: =VLOOKUP($A35,'CEM Data Lookup'!$A:$Q,2,FALSE) -> Hunt (J.B.) | D35: ='CEM Data Lookup'!K26 -> Baa1 | F35: =IFERROR(VLOOKUP('6.4 CEM RPM Bond Ratings'!D35,'3.6 MOODY_S&P numbericl'!B:D,3,FALSE),"--") -> 8 | H35: ='CEM Data Lookup'!L26 -> BBB+ | J35: =IFERROR(VLOOKUP(H35,'3.6 MOODY_S&P numbericl'!F:H,3,FALSE),"--") -> 8
A36: =Input!C25 -> JJSF | B36: =VLOOKUP($A36,'CEM Data Lookup'!$A:$Q,2,FALSE) -> J&J Snack Foods | D36: ='CEM Data Lookup'!K27 -> NA | F36: =IFERROR(VLOOKUP('6.4 CEM RPM Bond Ratings'!D36,'3.6 MOODY_S&P numbericl'!B:D,3,FALSE),"--") -> -- | H36: ='CEM Data Lookup'!L27 -> NA | J36: =IFERROR(VLOOKUP(H36,'3.6 MOODY_S&P numbericl'!F:H,3,FALSE),"--") -> --
A37: =Input!C26 -> JKHY | B37: =VLOOKUP($A37,'CEM Data Lookup'!$A:$Q,2,FALSE) -> Henry (Jack) & Assoc | D37: ='CEM Data Lookup'!K28 -> NA | F37: =IFERROR(VLOOKUP('6.4 CEM RPM Bond Ratings'!D37,'3.6 MOODY_S&P numbericl'!B:D,3,FALSE),"--") -> -- | H37: ='CEM Data Lookup'!L28 -> NA | J37: =IFERROR(VLOOKUP(H37,'3.6 MOODY_S&P numbericl'!F:H,3,FALSE),"--") -> --
A38: =Input!C27 -> MANT | B38: =VLOOKUP($A38,'CEM Data Lookup'!$A:$Q,2,FALSE) -> ManTech Int'l 'A' | D38: ='CEM Data Lookup'!K29 -> WR | F38: =IFERROR(VLOOKUP('6.4 CEM RPM Bond Ratings'!D38,'3.6 MOODY_S&P numbericl'!B:D,3,FALSE),"--") -> -- | H38: ='CEM Data Lookup'!L29 -> BB+ | J38: =IFERROR(VLOOKUP(H38,'3.6 MOODY_S&P numbericl'!F:H,3,FALSE),"--") -> 11
A39: =Input!C28 -> MKC | B39: =VLOOKUP($A39,'CEM Data Lookup'!$A:$Q,2,FALSE) -> McCormick & Co. | D39: ='CEM Data Lookup'!K30 -> Baa2 | F39: =IFERROR(VLOOKUP('6.4 CEM RPM Bond Ratings'!D39,'3.6 MOODY_S&P numbericl'!B:D,3,FALSE),"--") -> 9 | H39: ='CEM Data Lookup'!L30 -> BBB | J39: =IFERROR(VLOOKUP(H39,'3.6 MOODY_S&P numbericl'!F:H,3,FALSE),"--") -> 9
A40: =Input!C29 -> MO | B40: =VLOOKUP($A40,'CEM Data Lookup'!$A:$Q,2,FALSE) -> Altria Group | D40: ='CEM Data Lookup'!K31 -> A3 | F40: =IFERROR(VLOOKUP('6.4 CEM RPM Bond Ratings'!D40,'3.6 MOODY_S&P numbericl'!B:D,3,FALSE),"--") -> 7 | H40: ='CEM Data Lookup'!L31 -> BBB | J40: =IFERROR(VLOOKUP(H40,'3.6 MOODY_S&P numbericl'!F:H,3,FALSE),"--") -> 9
A41: =Input!C30 -> MSA | B41: =VLOOKUP($A41,'CEM Data Lookup'!$A:$Q,2,FALSE) -> MSA Safety | D41: ='CEM Data Lookup'!K32 -> NA | F41: =IFERROR(VLOOKUP('6.4 CEM RPM Bond Ratings'!D41,'3.6 MOODY_S&P numbericl'!B:D,3,FALSE),"--") -> -- | H41: ='CEM Data Lookup'!L32 -> NA | J41: =IFERROR(VLOOKUP(H41,'3.6 MOODY_S&P numbericl'!F:H,3,FALSE),"--") -> --
A42: =Input!C31 -> MSCI | B42: =VLOOKUP($A42,'CEM Data Lookup'!$A:$Q,2,FALSE) -> MSCI Inc. | D42: ='CEM Data Lookup'!K33 -> Ba2 | F42: =IFERROR(VLOOKUP('6.4 CEM RPM Bond Ratings'!D42,'3.6 MOODY_S&P numbericl'!B:D,3,FALSE),"--") -> 12 | H42: ='CEM Data Lookup'!L33 -> BB+ | J42: =IFERROR(VLOOKUP(H42,'3.6 MOODY_S&P numbericl'!F:H,3,FALSE),"--") -> 11
A43: =Input!C32 -> MSI | B43: =VLOOKUP($A43,'CEM Data Lookup'!$A:$Q,2,FALSE) -> Motorola Solutions | D43: ='CEM Data Lookup'!K34 -> Baa3 | F43: =IFERROR(VLOOKUP('6.4 CEM RPM Bond Ratings'!D43,'3.6 MOODY_S&P numbericl'!B:D,3,FALSE),"--") -> 10 | H43: ='CEM Data Lookup'!L34 -> BBB- | J43: =IFERROR(VLOOKUP(H43,'3.6 MOODY_S&P numbericl'!F:H,3,FALSE),"--") -> 10
A44: =Input!C33 -> MTN | B44: =VLOOKUP($A44,'CEM Data Lookup'!$A:$Q,2,FALSE) -> Vail Resorts | D44: ='CEM Data Lookup'!K35 -> B2 | F44: =IFERROR(VLOOKUP('6.4 CEM RPM Bond Ratings'!D44,'3.6 MOODY_S&P numbericl'!B:D,3,FALSE),"--") -> 15 | H44: ='CEM Data Lookup'!L35 -> BB | J44: =IFERROR(VLOOKUP(H44,'3.6 MOODY_S&P numbericl'!F:H,3,FALSE),"--") -> 12
A45: =Input!C34 -> MXIM | B45: =VLOOKUP($A45,'CEM Data Lookup'!$A:$Q,2,FALSE) -> Maxim Integrated | D45: ='CEM Data Lookup'!K36 -> Baa1 | F45: =IFERROR(VLOOKUP('6.4 CEM RPM Bond Ratings'!D45,'3.6 MOODY_S&P numbericl'!B:D,3,FALSE),"--") -> 8 | H45: ='CEM Data Lookup'!L36 -> BBB+ | J45: =IFERROR(VLOOKUP(H45,'3.6 MOODY_S&P numbericl'!F:H,3,FALSE),"--") -> 8
A46: =Input!C35 -> NOC | B46: =VLOOKUP($A46,'CEM Data Lookup'!$A:$Q,2,FALSE) -> Northrop Grumman | D46: ='CEM Data Lookup'!K37 -> Baa2 | F46: =IFERROR(VLOOKUP('6.4 CEM RPM Bond Ratings'!D46,'3.6 MOODY_S&P numbericl'!B:D,3,FALSE),"--") -> 9 | H46: ='CEM Data Lookup'!L37 -> BBB+ | J46: =IFERROR(VLOOKUP(H46,'3.6 MOODY_S&P numbericl'!F:H,3,FALSE),"--") -> 8
A47: =Input!C36 -> ODFL | B47: =VLOOKUP($A47,'CEM Data Lookup'!$A:$Q,2,FALSE) -> Old Dominion Freight | D47: ='CEM Data Lookup'!K38 -> NA | F47: =IFERROR(VLOOKUP('6.4 CEM RPM Bond Ratings'!D47,'3.6 MOODY_S&P numbericl'!B:D,3,FALSE),"--") -> -- | H47: ='CEM Data Lookup'!L38 -> NA | J47: =IFERROR(VLOOKUP(H47,'3.6 MOODY_S&P numbericl'!F:H,3,FALSE),"--") -> --
A48: =Input!C37 -> PKI | B48: =VLOOKUP($A48,'CEM Data Lookup'!$A:$Q,2,FALSE) -> PerkinElmer Inc. | D48: ='CEM Data Lookup'!K39 -> Baa3 | F48: =IFERROR(VLOOKUP('6.4 CEM RPM Bond Ratings'!D48,'3.6 MOODY_S&P numbericl'!B:D,3,FALSE),"--") -> 10 | H48: ='CEM Data Lookup'!L39 -> BBB | J48: =IFERROR(VLOOKUP(H48,'3.6 MOODY_S&P numbericl'!F:H,3,FALSE),"--") -> 9
A49: =Input!C38 -> PM | B49: =VLOOKUP($A49,'CEM Data Lookup'!$A:$Q,2,FALSE) -> Philip Morris Int'l | D49: ='CEM Data Lookup'!K40 -> A2 | F49: =IFERROR(VLOOKUP('6.4 CEM RPM Bond Ratings'!D49,'3.6 MOODY_S&P numbericl'!B:D,3,FALSE),"--") -> 6 | H49: ='CEM Data Lookup'!L40 -> A | J49: =IFERROR(VLOOKUP(H49,'3.6 MOODY_S&P numbericl'!F:H,3,FALSE),"--") -> 6
A50: =Input!C39 -> POOL | B50: =VLOOKUP($A50,'CEM Data Lookup'!$A:$Q,2,FALSE) -> Pool Corp. | D50: ='CEM Data Lookup'!K41 -> NA | F50: =IFERROR(VLOOKUP('6.4 CEM RPM Bond Ratings'!D50,'3.6 MOODY_S&P numbericl'!B:D,3,FALSE),"--") -> -- | H50: ='CEM Data Lookup'!L41 -> NA | J50: =IFERROR(VLOOKUP(H50,'3.6 MOODY_S&P numbericl'!F:H,3,FALSE),"--") -> --
A51: =Input!C40 -> POST | B51: =VLOOKUP($A51,'CEM Data Lookup'!$A:$Q,2,FALSE) -> Post Holdings | D51: ='CEM Data Lookup'!K42 -> B2 | F51: =IFERROR(VLOOKUP('6.4 CEM RPM Bond Ratings'!D51,'3.6 MOODY_S&P numbericl'!B:D,3,FALSE),"--") -> 15 | H51: ='CEM Data Lookup'!L42 -> B+ | J51: =IFERROR(VLOOKUP(H51,'3.6 MOODY_S&P numbericl'!F:H,3,FALSE),"--") -> 14
A52: =Input!C41 -> RLI | B52: =VLOOKUP($A52,'CEM Data Lookup'!$A:$Q,2,FALSE) -> RLI Corp. | D52: ='CEM Data Lookup'!K43 -> Baa2 | F52: =IFERROR(VLOOKUP('6.4 CEM RPM Bond Ratings'!D52,'3.6 MOODY_S&P numbericl'!B:D,3,FALSE),"--") -> 9 | H52: ='CEM Data Lookup'!L43 -> BBB+ | J52: =IFERROR(VLOOKUP(H52,'3.6 MOODY_S&P numbericl'!F:H,3,FALSE),"--") -> 8
A53: =Input!C42 -> ROL | B53: =VLOOKUP($A53,'CEM Data Lookup'!$A:$Q,2,FALSE) -> Rollins, Inc. | D53: ='CEM Data Lookup'!K44 -> NA | F53: =IFERROR(VLOOKUP('6.4 CEM RPM Bond Ratings'!D53,'3.6 MOODY_S&P numbericl'!B:D,3,FALSE),"--") -> -- | H53: ='CEM Data Lookup'!L44 -> NA | J53: =IFERROR(VLOOKUP(H53,'3.6 MOODY_S&P numbericl'!F:H,3,FALSE),"--") -> --
A54: =Input!C43 -> SIGI | B54: =VLOOKUP($A54,'CEM Data Lookup'!$A:$Q,2,FALSE) -> Selective Ins. Group | D54: ='CEM Data Lookup'!K45 -> Baa2 | F54: =IFERROR(VLOOKUP('6.4 CEM RPM Bond Ratings'!D54,'3.6 MOODY_S&P numbericl'!B:D,3,FALSE),"--") -> 9 | H54: ='CEM Data Lookup'!L45 -> BBB | J54: =IFERROR(VLOOKUP(H54,'3.6 MOODY_S&P numbericl'!F:H,3,FALSE),"--") -> 9
A55: =Input!C44 -> SIRI | B55: =VLOOKUP($A55,'CEM Data Lookup'!$A:$Q,2,FALSE) -> Sirius XM Holdings | D55: ='CEM Data Lookup'!K46 -> NA | F55: =IFERROR(VLOOKUP('6.4 CEM RPM Bond Ratings'!D55,'3.6 MOODY_S&P numbericl'!B:D,3,FALSE),"--") -> -- | H55: ='CEM Data Lookup'!L46 -> BB | J55: =IFERROR(VLOOKUP(H55,'3.6 MOODY_S&P numbericl'!F:H,3,FALSE),"--") -> 12
A56: =Input!C45 -> TECH | B56: =VLOOKUP($A56,'CEM Data Lookup'!$A:$Q,2,FALSE) -> Bio-Techne Corp. | D56: ='CEM Data Lookup'!K47 -> NA | F56: =IFERROR(VLOOKUP('6.4 CEM RPM Bond Ratings'!D56,'3.6 MOODY_S&P numbericl'!B:D,3,FALSE),"--") -> -- | H56: ='CEM Data Lookup'!L47 -> NA | J56: =IFERROR(VLOOKUP(H56,'3.6 MOODY_S&P numbericl'!F:H,3,FALSE),"--") -> --
A57: =Input!C46 -> TTEK | B57: =VLOOKUP($A57,'CEM Data Lookup'!$A:$Q,2,FALSE) -> Tetra Tech | D57: ='CEM Data Lookup'!K48 -> NA | F57: =IFERROR(VLOOKUP('6.4 CEM RPM Bond Ratings'!D57,'3.6 MOODY_S&P numbericl'!B:D,3,FALSE),"--") -> -- | H57: ='CEM Data Lookup'!L48 -> NA | J57: =IFERROR(VLOOKUP(H57,'3.6 MOODY_S&P numbericl'!F:H,3,FALSE),"--") -> --
A58: =Input!C47 -> WAT | B58: =VLOOKUP($A58,'CEM Data Lookup'!$A:$Q,2,FALSE) -> Waters Corp. | D58: ='CEM Data Lookup'!K49 -> NA | F58: =IFERROR(VLOOKUP('6.4 CEM RPM Bond Ratings'!D58,'3.6 MOODY_S&P numbericl'!B:D,3,FALSE),"--") -> -- | H58: ='CEM Data Lookup'!L49 -> NA | J58: =IFERROR(VLOOKUP(H58,'3.6 MOODY_S&P numbericl'!F:H,3,FALSE),"--") -> --
A59: =Input!C48 -> WST | B59: =VLOOKUP($A59,'CEM Data Lookup'!$A:$Q,2,FALSE) -> West Pharmac. Svcs. | D59: ='CEM Data Lookup'!K50 -> NA | F59: =IFERROR(VLOOKUP('6.4 CEM RPM Bond Ratings'!D59,'3.6 MOODY_S&P numbericl'!B:D,3,FALSE),"--") -> -- | H59: ='CEM Data Lookup'!L50 -> NA | J59: =IFERROR(VLOOKUP(H59,'3.6 MOODY_S&P numbericl'!F:H,3,FALSE),"--") -> --
A60: =Input!C49 -> WU | B60: =VLOOKUP($A60,'CEM Data Lookup'!$A:$Q,2,FALSE) -> Western Union | D60: ='CEM Data Lookup'!K51 -> Baa2 | F60: =IFERROR(VLOOKUP('6.4 CEM RPM Bond Ratings'!D60,'3.6 MOODY_S&P numbericl'!B:D,3,FALSE),"--") -> 9 | H60: ='CEM Data Lookup'!L51 -> BBB | J60: =IFERROR(VLOOKUP(H60,'3.6 MOODY_S&P numbericl'!F:H,3,FALSE),"--") -> 9
B62: Average | D62: Baa2 | F62: =ROUND(AVERAGE(F12:F61),1) -> 8.9 | H62: BBB | J62: =ROUND(AVERAGE(J12:J61),1) -> 8.9
B64: Notes:
B65: (1) | C65: From page 6 of Attachment DWD-3.
B67: Source of Information:
B68: Bloomberg Professional Services

Sheet 6.5 CEM Beta Adjusted RP
A1: =Input!G28 -> Duke Energy Kentucky, Inc.
A2: Derivation of Equity Risk Premium Based on the Total Market Approach
A3: Using the Beta for
A4: ='6.4 CEM RPM Bond Ratings'!B3 -> Proxy Group of Forty-Eight Non-Price Regulated Companies of Comparable risk to the
A5: ='6.4 CEM RPM Bond Ratings'!B4 -> Proxy Group of Seven Natural Gas Distribution Companies
A7: Line No. | C7: Equity Risk Premium Measure | F7: ='6.4 CEM RPM Bond Ratings'!B11 -> Proxy Group of Forty-Eight Non-Price Regulated Companies
B10: Ibbotson-Based Equity Risk Premiums:
A12: 1. | C12: Ibbotson Equity Risk Premium (1) | F12: ='3.8-3.9 Beta Adjusted ERP'!F11 -> 5.92 | G12: %
A14: 2. | C14: Regression on Ibbotson Risk Premium Data (2) | F14: ='MRP ERP WP'!$AK$42*100 -> 8.834599862
A16: 3. | C16: Ibbotson Equity Risk Premium based on PRPM (3) | F16: ='PRPM WP 1'!$K$1159*100 -> 9.404694417
A18: 4. | C18: Equity Risk Premium Based on Value Line Summary and Index (4) | F18: ='MRP WP1'!$M$22*100-'MRP WP1'!$M$37 -> 5.03
A20: 5 | C20: Equity Risk Premium Based on Value Line S&P 500 Companies (5) | F20: ='3.8-3.9 Beta Adjusted ERP'!F19 -> 10.76759088
A22: 6. | C22: Equity Risk Premium Based on Bloomberg S&P 500 Companies (6) | F22: ='3.8-3.9 Beta Adjusted ERP'!F21 -> 12.16673776
A24: 7. | C24: Conclusion of Equity Risk Premium | F24: =ROUND(AVERAGE(F12,F14,F16,F18,F20,F22),2) -> 8.69 | G24: %
A26: 8. | C26: Adjusted Beta (7) | F26: ='6.6 CEM CAPM Backup'!H62 -> 0.92
A28: 9. | C28: Forecasted Equity Risk Premium | F28: =ROUND(F24*F26,2) -> 7.99 | G28: %
A30: Notes:
B31: (1) | C31: From note 1 of page 9 of Attachment DWD-3.
B32: (2) | C32: From note 2 of page 9 of Attachment DWD-3.
B33: (3) | C33: From note 3 of page 9 of Attachment DWD-3.
B34: (4) | C34: From note 4 of page 9 of Attachment DWD-3.
B35: (5) | C35: From note 5 of page 9 of Attachment DWD-3.
B36: (6) | C36: From note 6 of page 9 of Attachment DWD-3.
B37: (7) | C37: Average of mean and median beta from page 6 of this Attachment.
B39: Sources of Information:
C40: ='4.2 CAPM Notes'!B60 -> Stocks, Bonds, Bills, and Inflation - 2020 SBBI Yearbook, John Wiley & Sons, Inc.
C41: Value Line Summary and Index
C42: ='4.2 CAPM Notes'!B59 -> Blue Chip Financial Forecasts, April 1, 2021 and December 1, 2020
C43: Bloomberg Professional Services

Sheet 6.6 CEM CAPM Backup
B1: =Input!G28 -> Duke Energy Kentucky, Inc.
B2: Traditional CAPM and ECAPM Results for the Proxy Group of Non-Price-Regulated Companies Comparable in Total Risk to the
B3: ='6.5 CEM Beta Adjusted RP'!A5 -> Proxy Group of Seven Natural Gas Distribution Companies
D5: [1] | F5: [2] | H5: [3] | J5: [4] | M5: [5] | P5: [6] | S5: [7] | V5: [8]
B7: ='6.5 CEM Beta Adjusted RP'!F7 -> Proxy Group of Forty-Eight Non-Price Regulated Companies | D7: Value Line Adjusted Beta | F7: Bloomberg Beta | H7: Average Beta | J7: Market Risk Premium (1) | M7: Risk-Free Rate (2) | P7: Traditional CAPM Cost Rate | S7: ECAPM Cost Rate | V7: Indicated Common Equity Cost Rate (3)
A9: =Input!C2 -> AAPL | B9: =VLOOKUP($A9,'CEM Data Lookup'!$A:$Q,2,FALSE) -> Apple Inc. | D9: ='MRP WP1'!E71 -> 0.9 | F9: =VLOOKUP($A9,'CEM Data Lookup'!$A:$Q,8,FALSE) -> 1.018661261 | H9: =ROUND(AVERAGE(D9:F9),2) -> 0.96 | J9: ='MRP WP1'!H$64 -> 9.541734111 | K9: % | M9: ='MRP WP1'!F$37 -> 2.73 | N9: % | P9: =H9*(J9)+M9 -> 11.89006475 | Q9: % | S9: =ROUND(0.75*(H9*J9)+(0.25*J9)+M9,4) -> 11.9855 | T9: % | V9: =ROUND(AVERAGE(P9,S9),2) -> 11.94 | W9: %
A10: =Input!C3 -> ABT | B10: =VLOOKUP($A10,'CEM Data Lookup'!$A:$Q,2,FALSE) -> Abbott Labs. | D10: ='MRP WP1'!E72 -> 0.95 | F10: =VLOOKUP($A10,'CEM Data Lookup'!$A:$Q,8,FALSE) -> 0.8556768894 | H10: =ROUND(AVERAGE(D10:F10),2) -> 0.9 | J10: ='MRP WP1'!H$64 -> 9.541734111 | M10: ='MRP WP1'!F$37 -> 2.73 | P10: =H10*(J10)+M10 -> 11.3175607 | S10: =ROUND(0.75*(H10*J10)+(0.25*J10)+M10,4) -> 11.5561 | V10: =ROUND(AVERAGE(P10,S10),2) -> 11.44
A11: =Input!C4 -> AIZ | B11: =VLOOKUP($A11,'CEM Data Lookup'!$A:$Q,2,FALSE) -> Assurant Inc. | D11: ='MRP WP1'!E73 -> 0.95 | F11: =VLOOKUP($A11,'CEM Data Lookup'!$A:$Q,8,FALSE) -> 0.9803740978 | H11: 0.97 | J11: ='MRP WP1'!H$64 -> 9.541734111 | M11: ='MRP WP1'!F$37 -> 2.73 | P11: 11.98548209 | S11: 12.057 | V11: 12.02
A12: =Input!C5 -> ANSS | B12: =VLOOKUP($A12,'CEM Data Lookup'!$A:$Q,2,FALSE) -> ANSYS, Inc. | D12: ='MRP WP1'!E74 -> 0.85 | F12: =VLOOKUP($A12,'CEM Data Lookup'!$A:$Q,8,FALSE) -> 0.9702615738 | H12: 0.91 | J12: ='MRP WP1'!H$64 -> 9.541734111 | M12: ='MRP WP1'!F$37 -> 2.73 | P12: 11.41297804 | S12: 11.6277 | V12: 11.52
A13: =Input!C6 -> BAH | B13: =VLOOKUP($A13,'CEM Data Lookup'!$A:$Q,2,FALSE) -> Booz Allen Hamilton | D13: ='MRP WP1'!E75 -> 0.9 | F13: =VLOOKUP($A13,'CEM Data Lookup'!$A:$Q,8,FALSE) -> 0.9037358761 | H13: 0.9 | J13: ='MRP WP1'!H$64 -> 9.541734111 | M13: ='MRP WP1'!F$37 -> 2.73 | P13: 11.3175607 | S13: 11.5561 | V13: 11.44
A14: =Input!C7 -> BDX | B14: =VLOOKUP($A14,'CEM Data Lookup'!$A:$Q,2,FALSE) -> Becton, Dickinson | D14: ='MRP WP1'!E76 -> 0.8 | F14: =VLOOKUP($A14,'CEM Data Lookup'!$A:$Q,8,FALSE) -> 0.5874222517 | H14: 0.69 | J14: ='MRP WP1'!H$64 -> 9.541734111 | M14: ='MRP WP1'!F$37 -> 2.73 | P14: 9.313796537 | S14: 10.0533 | V14: 9.68
A15: =Input!C8 -> BFB | B15: =VLOOKUP($A15,'CEM Data Lookup'!$A:$Q,2,FALSE) -> Brown-Forman 'B' | D15: ='MRP WP1'!E77 -> 0.85 | F15: =VLOOKUP($A15,'CEM Data Lookup'!$A:$Q,8,FALSE) -> 0.9805150628 | H15: 0.92 | J15: ='MRP WP1'!H$64 -> 9.541734111 | M15: ='MRP WP1'!F$37 -> 2.73 | P15: 11.50839538 | S15: 11.6992 | V15: 11.6
A16: =Input!C9 -> BR | B16: =VLOOKUP($A16,'CEM Data Lookup'!$A:$Q,2,FALSE) -> Broadridge Fin'l | D16: ='MRP WP1'!E78 -> 0.85 | F16: =VLOOKUP($A16,'CEM Data Lookup'!$A:$Q,8,FALSE) -> 0.8266204 | H16: 0.84 | J16: ='MRP WP1'!H$64 -> 9.541734111 | M16: ='MRP WP1'!F$37 -> 2.73 | P16: 10.74505665 | S16: 11.1267 | V16: 10.94
A17: =Input!C10 -> BRC | B17: =VLOOKUP($A17,'CEM Data Lookup'!$A:$Q,2,FALSE) -> Brady Corp. | D17: ='MRP WP1'!E79 -> 1 | F17: =VLOOKUP($A17,'CEM Data Lookup'!$A:$Q,8,FALSE) -> 1.053110003 | H17: 1.03 | J17: ='MRP WP1'!H$64 -> 9.541734111 | M17: ='MRP WP1'!F$37 -> 2.73 | P17: 12.55798613 | S17: 12.4864 | V17: 12.52
A18: =Input!C11 -> CACI | B18: =VLOOKUP($A18,'CEM Data Lookup'!$A:$Q,2,FALSE) -> CACI Int'l | D18: ='MRP WP1'!E80 -> 0.95 | F18: =VLOOKUP($A18,'CEM Data Lookup'!$A:$Q,8,FALSE) -> 0.9986667633 | H18: 0.97 | J18: ='MRP WP1'!H$64 -> 9.541734111 | M18: ='MRP WP1'!F$37 -> 2.73 | P18: 11.98548209 | S18: 12.057 | V18: 12.02
A19: =Input!C12 -> CASY | B19: =VLOOKUP($A19,'CEM Data Lookup'!$A:$Q,2,FALSE) -> Casey's Gen'l Stores | D19: ='MRP WP1'!E81 -> 0.85 | F19: =VLOOKUP($A19,'CEM Data Lookup'!$A:$Q,8,FALSE) -> 0.9072591066 | H19: 0.88 | J19: ='MRP WP1'!H$64 -> 9.541734111 | M19: ='MRP WP1'!F$37 -> 2.73 | P19: 11.12672602 | S19: 11.413 | V19: 11.27
A20: =Input!C13 -> CDNS | B20: =VLOOKUP($A20,'CEM Data Lookup'!$A:$Q,2,FALSE) -> Cadence Design Sys. | D20: ='MRP WP1'!E82 -> 0.9 | F20: =VLOOKUP($A20,'CEM Data Lookup'!$A:$Q,8,FALSE) -> 0.9843332767 | H20: 0.94 | J20: ='MRP WP1'!H$64 -> 9.541734111 | M20: ='MRP WP1'!F$37 -> 2.73 | P20: 11.69923006 | S20: 11.8424 | V20: 11.77
A21: =Input!C14 -> CERN | B21: =VLOOKUP($A21,'CEM Data Lookup'!$A:$Q,2,FALSE) -> Cerner Corp. | D21: ='MRP WP1'!E83 -> 0.9 | F21: =VLOOKUP($A21,'CEM Data Lookup'!$A:$Q,8,FALSE) -> 0.8874267936 | H21: 0.89 | J21: ='MRP WP1'!H$64 -> 9.541734111 | M21: ='MRP WP1'!F$37 -> 2.73 | P21: 11.22214336 | S21: 11.4845 | V21: 11.35
A22: =Input!C15 -> CSWI | B22: =VLOOKUP($A22,'CEM Data Lookup'!$A:$Q,2,FALSE) -> CSW Industrials | D22: ='MRP WP1'!E84 -> 0.85 | F22: =VLOOKUP($A22,'CEM Data Lookup'!$A:$Q,8,FALSE) -> 1.03445971 | H22: 0.94 | J22: ='MRP WP1'!H$64 -> 9.541734111 | M22: ='MRP WP1'!F$37 -> 2.73 | P22: 11.69923006 | S22: 11.8424 | V22: 11.77
A23: =Input!C16 -> DGX | B23: =VLOOKUP($A23,'CEM Data Lookup'!$A:$Q,2,FALSE) -> Quest Diagnostics | D23: ='MRP WP1'!E85 -> 0.85 | F23: =VLOOKUP($A23,'CEM Data Lookup'!$A:$Q,8,FALSE) -> 0.9627068639 | H23: 0.91 | J23: ='MRP WP1'!H$64 -> 9.541734111 | M23: ='MRP WP1'!F$37 -> 2.73 | P23: 11.41297804 | S23: 11.6277 | V23: 11.52
A24: =Input!C17 -> EL | B24: =VLOOKUP($A24,'CEM Data Lookup'!$A:$Q,2,FALSE) -> Lauder (Estee) | D24: ='MRP WP1'!E86 -> 0.95 | F24: =VLOOKUP($A24,'CEM Data Lookup'!$A:$Q,8,FALSE) -> 1.008492231 | H24: 0.98 | J24: ='MRP WP1'!H$64 -> 9.541734111 | M24: ='MRP WP1'!F$37 -> 2.73 | P24: 12.08089943 | S24: 12.1286 | V24: 12.1
A25: =Input!C18 -> EXPO | B25: =VLOOKUP($A25,'CEM Data Lookup'!$A:$Q,2,FALSE) -> Exponent, Inc. | D25: ='MRP WP1'!E87 -> 0.9 | F25: =VLOOKUP($A25,'CEM Data Lookup'!$A:$Q,8,FALSE) -> 0.939268887 | H25: 0.92 | J25: ='MRP WP1'!H$64 -> 9.541734111 | M25: ='MRP WP1'!F$37 -> 2.73 | P25: 11.50839538 | S25: 11.6992 | V25: 11.6
A26: =Input!C19 -> FAST | B26: =VLOOKUP($A26,'CEM Data Lookup'!$A:$Q,2,FALSE) -> Fastenal Co. | D26: ='MRP WP1'!E88 -> 0.9 | F26: =VLOOKUP($A26,'CEM Data Lookup'!$A:$Q,8,FALSE) -> 0.9674893618 | H26: 0.93 | J26: ='MRP WP1'!H$64 -> 9.541734111 | M26: ='MRP WP1'!F$37 -> 2.73 | P26: 11.60381272 | S26: 11.7708 | V26: 11.69
A27: =Input!C20 -> GNTX | B27: =VLOOKUP($A27,'CEM Data Lookup'!$A:$Q,2,FALSE) -> Gentex Corp. | D27: ='MRP WP1'!E89 -> 0.95 | F27: =VLOOKUP($A27,'CEM Data Lookup'!$A:$Q,8,FALSE) -> 1.066707015 | H27: 1.01 | J27: ='MRP WP1'!H$64 -> 9.541734111 | M27: ='MRP WP1'!F$37 -> 2.73 | P27: 12.36715145 | S27: 12.3433 | V27: 12.36
A28: =Input!C21 -> IFF | B28: =VLOOKUP($A28,'CEM Data Lookup'!$A:$Q,2,FALSE) -> Int'l Flavors & Frag | D28: ='MRP WP1'!E90 -> 0.95 | F28: =VLOOKUP($A28,'CEM Data Lookup'!$A:$Q,8,FALSE) -> 1.075577259 | H28: 1.01 | J28: ='MRP WP1'!H$64 -> 9.541734111 | M28: ='MRP WP1'!F$37 -> 2.73 | P28: 12.36715145 | S28: 12.3433 | V28: 12.36
A29: =Input!C22 -> INGR | B29: =VLOOKUP($A29,'CEM Data Lookup'!$A:$Q,2,FALSE) -> Ingredion Inc. | D29: ='MRP WP1'!E91 -> 0.9 | F29: =VLOOKUP($A29,'CEM Data Lookup'!$A:$Q,8,FALSE) -> 0.9270150661 | H29: 0.91 | J29: ='MRP WP1'!H$64 -> 9.541734111 | M29: ='MRP WP1'!F$37 -> 2.73 | P29: 11.41297804 | S29: 11.6277 | V29: 11.52
A30: =Input!C23 -> IRM | B30: =VLOOKUP($A30,'CEM Data Lookup'!$A:$Q,2,FALSE) -> Iron Mountain | D30: ='MRP WP1'!E92 -> 0.9 | F30: =VLOOKUP($A30,'CEM Data Lookup'!$A:$Q,8,FALSE) -> 1.02173388 | H30: 0.96 | J30: ='MRP WP1'!H$64 -> 9.541734111 | M30: ='MRP WP1'!F$37 -> 2.73 | P30: 11.89006475 | S30: 11.9855 | V30: 11.94
A31: =Input!C24 -> JBHT | B31: =VLOOKUP($A31,'CEM Data Lookup'!$A:$Q,2,FALSE) -> Hunt (J.B.) | D31: ='MRP WP1'!E93 -> 0.95 | F31: =VLOOKUP($A31,'CEM Data Lookup'!$A:$Q,8,FALSE) -> 0.9215813875 | H31: 0.94 | J31: ='MRP WP1'!H$64 -> 9.541734111 | M31: ='MRP WP1'!F$37 -> 2.73 | P31: 11.69923006 | S31: 11.8424 | V31: 11.77
A32: =Input!C25 -> JJSF | B32: =VLOOKUP($A32,'CEM Data Lookup'!$A:$Q,2,FALSE) -> J&J Snack Foods | D32: ='MRP WP1'!E94 -> 0.9 | F32: =VLOOKUP($A32,'CEM Data Lookup'!$A:$Q,8,FALSE) -> 0.7728626132 | H32: 0.84 | J32: ='MRP WP1'!H$64 -> 9.541734111 | M32: ='MRP WP1'!F$37 -> 2.73 | P32: 10.74505665 | S32: 11.1267 | V32: 10.94
A33: =Input!C26 -> JKHY | B33: =VLOOKUP($A33,'CEM Data Lookup'!$A:$Q,2,FALSE) -> Henry (Jack) & Assoc | D33: ='MRP WP1'!E95 -> 0.85 | F33: =VLOOKUP($A33,'CEM Data Lookup'!$A:$Q,8,FALSE) -> 0.8934056759 | H33: 0.87 | J33: ='MRP WP1'!H$64 -> 9.541734111 | M33: ='MRP WP1'!F$37 -> 2.73 | P33: 11.03130868 | S33: 11.3414 | V33: 11.19
A34: =Input!C27 -> MANT | B34: =VLOOKUP($A34,'CEM Data Lookup'!$A:$Q,2,FALSE) -> ManTech Int'l 'A' | D34: ='MRP WP1'!E96 -> 0.85 | F34: =VLOOKUP($A34,'CEM Data Lookup'!$A:$Q,8,FALSE) -> 1.12122035 | H34: 0.99 | J34: ='MRP WP1'!H$64 -> 9.541734111 | M34: ='MRP WP1'!F$37 -> 2.73 | P34: 12.17631677 | S34: 12.2002 | V34: 12.19
A35: =Input!C28 -> MKC | B35: =VLOOKUP($A35,'CEM Data Lookup'!$A:$Q,2,FALSE) -> McCormick & Co. | D35: ='MRP WP1'!E97 -> 0.85 | F35: =VLOOKUP($A35,'CEM Data Lookup'!$A:$Q,8,FALSE) -> 0.6942995787 | H35: 0.77 | J35: ='MRP WP1'!H$64 -> 9.541734111 | M35: ='MRP WP1'!F$37 -> 2.73 | P35: 10.07713527 | S35: 10.6258 | V35: 10.35
A36: =Input!C29 -> MO | B36: =VLOOKUP($A36,'CEM Data Lookup'!$A:$Q,2,FALSE) -> Altria Group | D36: ='MRP WP1'!E98 -> 0.9 | F36: =VLOOKUP($A36,'CEM Data Lookup'!$A:$Q,8,FALSE) -> 0.8878540993 | H36: 0.89 | J36: ='MRP WP1'!H$64 -> 9.541734111 | M36: ='MRP WP1'!F$37 -> 2.73 | P36: 11.22214336 | S36: 11.4845 | V36: 11.35
A37: =Input!C30 -> MSA | B37: =VLOOKUP($A37,'CEM Data Lookup'!$A:$Q,2,FALSE) -> MSA Safety | D37: ='MRP WP1'!E99 -> 1 | F37: =VLOOKUP($A37,'CEM Data Lookup'!$A:$Q,8,FALSE) -> 1.003736377 | H37: 1 | J37: ='MRP WP1'!H$64 -> 9.541734111 | M37: ='MRP WP1'!F$37 -> 2.73 | P37: 12.27173411 | S37: 12.2717 | V37: 12.27
A38: =Input!C31 -> MSCI | B38: =VLOOKUP($A38,'CEM Data Lookup'!$A:$Q,2,FALSE) -> MSCI Inc. | D38: ='MRP WP1'!E100 -> 0.95 | F38: =VLOOKUP($A38,'CEM Data Lookup'!$A:$Q,8,FALSE) -> 0.9259572029 | H38: 0.94 | J38: ='MRP WP1'!H$64 -> 9.541734111 | M38: ='MRP WP1'!F$37 -> 2.73 | P38: 11.69923006 | S38: 11.8424 | V38: 11.77
A39: =Input!C32 -> MSI | B39: =VLOOKUP($A39,'CEM Data Lookup'!$A:$Q,2,FALSE) -> Motorola Solutions | D39: ='MRP WP1'!E101 -> 0.9 | F39: =VLOOKUP($A39,'CEM Data Lookup'!$A:$Q,8,FALSE) -> 0.9497645497 | H39: 0.92 | J39: ='MRP WP1'!H$64 -> 9.541734111 | M39: ='MRP WP1'!F$37 -> 2.73 | P39: 11.50839538 | S39: 11.6992 | V39: 11.6
A40: =Input!C33 -> MTN | B40: =VLOOKUP($A40,'CEM Data Lookup'!$A:$Q,2,FALSE) -> Vail Resorts | D40: ='MRP WP1'!E102 -> 0.9 | F40: =VLOOKUP($A40,'CEM Data Lookup'!$A:$Q,8,FALSE) -> 1.145390511 | H40: 1.02 | J40: ='MRP WP1'!H$64 -> 9.541734111 | M40: ='MRP WP1'!F$37 -> 2.73 | P40: 12.46256879 | S40: 12.4149 | V40: 12.44
A41: =Input!C34 -> MXIM | B41: =VLOOKUP($A41,'CEM Data Lookup'!$A:$Q,2,FALSE) -> Maxim Integrated | D41: ='MRP WP1'!E103 -> 0.95 | F41: =VLOOKUP($A41,'CEM Data Lookup'!$A:$Q,8,FALSE) -> 0.9958577156 | H41: 0.97 | J41: ='MRP WP1'!H$64 -> 9.541734111 | M41: ='MRP WP1'!F$37 -> 2.73 | P41: 11.98548209 | S41: 12.057 | V41: 12.02
A42: =Input!C35 -> NOC | B42: =VLOOKUP($A42,'CEM Data Lookup'!$A:$Q,2,FALSE) -> Northrop Grumman | D42: ='MRP WP1'!E104 -> 0.85 | F42: =VLOOKUP($A42,'CEM Data Lookup'!$A:$Q,8,FALSE) -> 0.7867762446 | H42: 0.82 | J42: ='MRP WP1'!H$64 -> 9.541734111 | M42: ='MRP WP1'!F$37 -> 2.73 | P42: 10.55422197 | S42: 10.9836 | V42: 10.77
A43: =Input!C36 -> ODFL | B43: =VLOOKUP($A43,'CEM Data Lookup'!$A:$Q,2,FALSE) -> Old Dominion Freight | D43: ='MRP WP1'!E105 -> 0.9 | F43: =VLOOKUP($A43,'CEM Data Lookup'!$A:$Q,8,FALSE) -> 0.9823446274 | H43: 0.94 | J43: ='MRP WP1'!H$64 -> 9.541734111 | M43: ='MRP WP1'!F$37 -> 2.73 | P43: 11.69923006 | S43: 11.8424 | V43: 11.77
A44: =Input!C37 -> PKI | B44: =VLOOKUP($A44,'CEM Data Lookup'!$A:$Q,2,FALSE) -> PerkinElmer Inc. | D44: ='MRP WP1'!E106 -> 0.95 | F44: =VLOOKUP($A44,'CEM Data Lookup'!$A:$Q,8,FALSE) -> 0.8428275585 | H44: 0.9 | J44: ='MRP WP1'!H$64 -> 9.541734111 | M44: ='MRP WP1'!F$37 -> 2.73 | P44: 11.3175607 | S44: 11.5561 | V44: 11.44
A45: =Input!C38 -> PM | B45: =VLOOKUP($A45,'CEM Data Lookup'!$A:$Q,2,FALSE) -> Philip Morris Int'l | D45: ='MRP WP1'!E107 -> 0.95 | F45: =VLOOKUP($A45,'CEM Data Lookup'!$A:$Q,8,FALSE) -> 0.924968183 | H45: 0.94 | J45: ='MRP WP1'!H$64 -> 9.541734111 | M45: ='MRP WP1'!F$37 -> 2.73 | P45: 11.69923006 | S45: 11.8424 | V45: 11.77
A46: =Input!C39 -> POOL | B46: =VLOOKUP($A46,'CEM Data Lookup'!$A:$Q,2,FALSE) -> Pool Corp. | D46: ='MRP WP1'!E108 -> 0.9 | F46: =VLOOKUP($A46,'CEM Data Lookup'!$A:$Q,8,FALSE) -> 0.9361380935 | H46: 0.92 | J46: ='MRP WP1'!H$64 -> 9.541734111 | M46: ='MRP WP1'!F$37 -> 2.73 | P46: 11.50839538 | S46: 11.6992 | V46: 11.6
A47: =Input!C40 -> POST | B47: =VLOOKUP($A47,'CEM Data Lookup'!$A:$Q,2,FALSE) -> Post Holdings | D47: ='MRP WP1'!E109 -> 0.95 | F47: =VLOOKUP($A47,'CEM Data Lookup'!$A:$Q,8,FALSE) -> 0.8975200653 | H47: 0.92 | J47: ='MRP WP1'!H$64 -> 9.541734111 | M47: ='MRP WP1'!F$37 -> 2.73 | P47: 11.50839538 | S47: 11.6992 | V47: 11.6
A48: =Input!C41 -> RLI | B48: =VLOOKUP($A48,'CEM Data Lookup'!$A:$Q,2,FALSE) -> RLI Corp. | D48: ='MRP WP1'!E110 -> 0.8 | F48: =VLOOKUP($A48,'CEM Data Lookup'!$A:$Q,8,FALSE) -> 0.885623455 | H48: 0.84 | J48: ='MRP WP1'!H$64 -> 9.541734111 | M48: ='MRP WP1'!F$37 -> 2.73 | P48: 10.74505665 | S48: 11.1267 | V48: 10.94
A49: =Input!C42 -> ROL | B49: =VLOOKUP($A49,'CEM Data Lookup'!$A:$Q,2,FALSE) -> Rollins, Inc. | D49: ='MRP WP1'!E111 -> 0.85 | F49: =VLOOKUP($A49,'CEM Data Lookup'!$A:$Q,8,FALSE) -> 0.6865788698 | H49: 0.77 | J49: ='MRP WP1'!H$64 -> 9.541734111 | M49: ='MRP WP1'!F$37 -> 2.73 | P49: 10.07713527 | S49: 10.6258 | V49: 10.35
A50: =Input!C43 -> SIGI | B50: =VLOOKUP($A50,'CEM Data Lookup'!$A:$Q,2,FALSE) -> Selective Ins. Group | D50: ='MRP WP1'!E112 -> 0.85 | F50: =VLOOKUP($A50,'CEM Data Lookup'!$A:$Q,8,FALSE) -> 0.9614696503 | H50: 0.91 | J50: ='MRP WP1'!H$64 -> 9.541734111 | M50: ='MRP WP1'!F$37 -> 2.73 | P50: 11.41297804 | S50: 11.6277 | V50: 11.52
A51: =Input!C44 -> SIRI | B51: =VLOOKUP($A51,'CEM Data Lookup'!$A:$Q,2,FALSE) -> Sirius XM Holdings | D51: ='MRP WP1'!E113 -> 1 | F51: =VLOOKUP($A51,'CEM Data Lookup'!$A:$Q,8,FALSE) -> 1.101481438 | H51: 1.05 | J51: ='MRP WP1'!H$64 -> 9.541734111 | M51: ='MRP WP1'!F$37 -> 2.73 | P51: 12.74882082 | S51: 12.6295 | V51: 12.69
A52: =Input!C45 -> TECH | B52: =VLOOKUP($A52,'CEM Data Lookup'!$A:$Q,2,FALSE) -> Bio-Techne Corp. | D52: ='MRP WP1'!E114 -> 0.8 | F52: =VLOOKUP($A52,'CEM Data Lookup'!$A:$Q,8,FALSE) -> 0.923523128 | H52: 0.86 | J52: ='MRP WP1'!H$64 -> 9.541734111 | M52: ='MRP WP1'!F$37 -> 2.73 | P52: 10.93589134 | S52: 11.2699 | V52: 11.1
A53: =Input!C46 -> TTEK | B53: =VLOOKUP($A53,'CEM Data Lookup'!$A:$Q,2,FALSE) -> Tetra Tech | D53: ='MRP WP1'!E115 -> 0.9 | F53: =VLOOKUP($A53,'CEM Data Lookup'!$A:$Q,8,FALSE) -> 1.050180554 | H53: 0.98 | J53: ='MRP WP1'!H$64 -> 9.541734111 | M53: ='MRP WP1'!F$37 -> 2.73 | P53: 12.08089943 | S53: 12.1286 | V53: 12.1
A54: =Input!C47 -> WAT | B54: =VLOOKUP($A54,'CEM Data Lookup'!$A:$Q,2,FALSE) -> Waters Corp. | D54: ='MRP WP1'!E116 -> 0.95 | F54: =VLOOKUP($A54,'CEM Data Lookup'!$A:$Q,8,FALSE) -> 0.8531792164 | H54: 0.9 | J54: ='MRP WP1'!H$64 -> 9.541734111 | M54: ='MRP WP1'!F$37 -> 2.73 | P54: 11.3175607 | S54: 11.5561 | V54: 11.44
A55: =Input!C48 -> WST | B55: =VLOOKUP($A55,'CEM Data Lookup'!$A:$Q,2,FALSE) -> West Pharmac. Svcs. | D55: ='MRP WP1'!E117 -> 0.85 | F55: =VLOOKUP($A55,'CEM Data Lookup'!$A:$Q,8,FALSE) -> 0.758402288 | H55: 0.8 | J55: ='MRP WP1'!H$64 -> 9.541734111 | M55: ='MRP WP1'!F$37 -> 2.73 | P55: 10.36338729 | S55: 10.8405 | V55: 10.6
A56: =Input!C49 -> WU | B56: =VLOOKUP($A56,'CEM Data Lookup'!$A:$Q,2,FALSE) -> Western Union | D56: ='MRP WP1'!E118 -> 0.8 | F56: =VLOOKUP($A56,'CEM Data Lookup'!$A:$Q,8,FALSE) -> 1.046673775 | H56: 0.92 | J56: ='MRP WP1'!H$64 -> 9.541734111 | M56: ='MRP WP1'!F$37 -> 2.73 | P56: 11.50839538 | S56: 11.6992 | V56: 11.6
F58: Mean | H58: =ROUND(AVERAGE(H9:H56),2) -> 0.92 | P58: =ROUND(AVERAGE(P9:P56),2) -> 11.47 | Q58: % | S58: =ROUND(AVERAGE(S9:S56),2) -> 11.67 | T58: % | V58: =ROUND(AVERAGE(V9:V56),2) -> 11.57 | W58: %
F60: Median | H60: =ROUND(MEDIAN(H9:H56),2) -> 0.92 | P60: =ROUND(MEDIAN(P9:P56),2) -> 11.51 | Q60: % | S60: =ROUND(MEDIAN(S9:S56),2) -> 11.7 | T60: % | V60: =ROUND(MEDIAN(V9:V56),2) -> 11.6 | W60: %
F62: Average of Mean and Median | H62: =ROUND(AVERAGE(H58:H60),2) -> 0.92 | P62: =ROUND(AVERAGE(P58:P60),2) -> 11.49 | Q62: % | S62: =ROUND(AVERAGE(S58:S60),2) -> 11.69 | T62: % | V62: =ROUND(AVERAGE(V58:V60),2) -> 11.59 | W62: %
C64: Notes:
C65: (1) | D65: From note 1 of page 2 of Attachment DWD-4.
C66: (2) | D66: From note 2 of page 2 of Attachment DWD-4.
C67: (3) | D67: Average of CAPM and ECAPM cost rates.

Sheet 7.1 Risk Adjustment
C1: =Input!G28 -> Duke Energy Kentucky, Inc.
C2: Derivation of Investment Risk Adjustment Based upon
C3: Ibbotson Associates' Size Premia for the Decile Portfolios of the NYSE/AMEX/NASDAQ
E6: [1] | I6: [2] | K6: [3] | M6: [4]
M7: Spread from Applicable Size Premium (4)
E8: Market Capitalization on September 30, 2020 (1) | I8: Applicable Decile of the NYSE/AMEX/ NASDAQ (2)
K9: Applicable Size Premium (3)
A11: Line No.
E12: ( millions ) | G12: (times larger)
A14: 1. | C14: ='7.2 Market Cap'!B11 -> Duke Energy Kentucky, Inc. | E14: ='7.2 Market Cap'!P13 -> 1241.111808 | I14: 7 | K14: =M29 -> 0.0154
A16: 2. | C16: =Input!I31 -> Proxy Group of Seven Natural Gas Distribution Companies | E16: ='7.2 Market Cap'!P24 -> 4574.713 | G16: =ROUND(E16/E14,1) -> 3.7 | H16: x | I16: 4 | K16: =M26 -> 0.0075 | M16: =K14-K16 -> 0.0079
G18: [A] | I18: [B] | K18: [C] | M18: [D]
G20: Decile | I20: Market Capitalization of Smallest Company | K20: Market Capitalization of Largest Company | M20: Size Premium (Return in Excess of CAPM)*
I21: ( millions ) | K21: ( millions )
E23: Largest | G23: 1 | I23: 29025.803 | K23: 1966078.882 | M23: -0.0022
G24: 2 | I24: 13178.743 | K24: 28808.073 | M24: 0.0049
G25: 3 | I25: 6743.361 | K25: 13177.828 | M25: 0.0071
G26: 4 | I26: 3861.858 | K26: 6710.676 | M26: 0.0075
G27: 5 | I27: 2445.693 | K27: 3836.536 | M27: 0.0109
G28: 6 | I28: 1591.865 | K28: 2444.745 | M28: 0.0137
G29: 7 | I29: 911.586 | K29: 1591.765 | M29: 0.0154
G30: 8 | I30: 451.955 | K30: 911.103 | M30: 0.0146
G31: 9 | I31: 190.019 | K31: 451.8 | M31: 0.0229
E32: Smallest | G32: 10 | I32: 2.194 | K32: 189.831 | M32: 0.0501
H33: *From 2021 Duff & Phelps Cost of Capital Navigator
C34: Notes:
D35: (1) | E35: From page 2 of this Attachment.
D36: (2) | E36: Gleaned from Columns [B] and [C] on the bottom of this page. The appropriate decile (Column [A]) corresponds to the market capitalization of the proxy group, which is found in Column [1].
D37: (3) | E37: Corresponding risk premium to the decile is provided in Column [D] on the bottom of this page.
D38: (4) | E38: =CONCATENATE("Line No. 1 Column [3] – Line No. 2 Column [3]. For example, the ",TEXT((M16*100),"#0.00"),"% in Column [4], Line No. 2 is derived as follows ",TEXT((M16*100),"#0.00"),"% = ",K14*100,"% - ",TEXT((K16*100),"#0.00"),"%.") -> Line No. 1 Column [3] – Line No. 2 Column [3]. For example, the 0.79% in Column [4], Line No. 2 is derived as follows 0.79% = 1.54% - 0.75%.

Sheet 7.2 Market Cap
B1: =Input!G28 -> Duke Energy Kentucky, Inc.
B2: =CONCATENATE("Market Capitalization of ",B1," and the") -> Market Capitalization of Duke Energy Kentucky, Inc. and the
B3: =Input!I31 -> Proxy Group of Seven Natural Gas Distribution Companies
F6: [1] | H6: [2] | J6: [3] | L6: [4] | N6: [5] | P6: [6]
B8: Company | D8: Exchange | F8: =CONCATENATE("Common Stock Shares Outstanding at Fiscal Year End ",YEAR(Input!G49)) -> Common Stock Shares Outstanding at Fiscal Year End 2020 | H8: Book Value per Share at Fiscal Year End 2020 (1) | J8: =CONCATENATE("Total Common Equity at Fiscal Year End ",YEAR(Input!G49)) -> Total Common Equity at Fiscal Year End 2020 | L8: =CONCATENATE("Closing Stock Market Price on ",TEXT(Input!E2,"mmmm dd, yyyy")) -> Closing Stock Market Price on March 31, 2021 | N8: =CONCATENATE("Market-to-Book Ratio on ",TEXT(Input!E2,"mmmm dd, yyyy")," (2)") -> Market-to-Book Ratio on March 31, 2021 (2) | P8: =CONCATENATE("Market Capitalization on ",TEXT(Input!E2,"mmmm dd, yyyy")," (3)") -> Market Capitalization on March 31, 2021 (3)
F9: ( millions ) | J9: ( millions ) | P9: ( millions )
B11: =Input!G28 -> Duke Energy Kentucky, Inc. | F11: NA | H11: NA | J11: =Input!G43/1000000 -> 718.236 | K11: (4) | L11: NA
B13: =CONCATENATE("Based upon ",B15) -> Based upon Proxy Group of Seven Natural Gas Distribution Companies | N13: =N24 -> 172.8 | O13: (5) | P13: =IFERROR(N13*J11/100,"NA") -> 1241.111808 | Q13: (6)
B15: =Input!I31 -> Proxy Group of Seven Natural Gas Distribution Companies
A16: =IFERROR(Input!A2,"NA") -> ATO | B16: ='Proxy Data Lookup'!B3 -> Atmos Energy Corporation | D16: =Input!B2 -> NYSE | F16: ='3. ATO'!$C$15/1000000 -> 125.882477 | H16: =IFERROR(ROUND(J16/F16,3),"NA") -> 53.949 | J16: ='3. ATO'!$C$16/1000000 -> 6791.203 | L16: ='Proxy Prices'!B$6 -> 98.85 | N16: =IFERROR(ROUND(L16/H16*100,1),"NA") -> 183.2 | O16: % | P16: =IFERROR(ROUND(F16*L16,3),"NA") -> 12443.483
A17: =IFERROR(Input!A3,"NA") -> NJR | B17: ='Proxy Data Lookup'!B4 -> New Jersey Resources Corporation | D17: =Input!B3 -> NYSE | F17: ='3. NJR'!$C$15/1000000 -> 95.949183 | H17: =IFERROR(ROUND(J17/F17,3),"NA") -> 19.226 | J17: ='3. NJR'!$C$16/1000000 -> 1844.692 | L17: ='Proxy Prices'!C$6 -> 39.87 | N17: =IFERROR(ROUND(L17/H17*100,1),"NA") -> 207.4 | P17: 3825.494
A18: =IFERROR(Input!A4,"NA") -> NWN | B18: ='Proxy Data Lookup'!B5 -> Northwest Natural Holding Company | D18: =Input!B4 -> NYSE | F18: ='3. NWN'!$C$15/1000000 -> 30.589 | H18: 29.054 | J18: ='3. NWN'!$C$16/1000000 -> 888.733 | L18: ='Proxy Prices'!D$6 -> 53.95 | N18: 185.7 | P18: 1650.277
A19: =IFERROR(Input!A5,"NA") -> OGS | B19: ='Proxy Data Lookup'!B6 -> ONE Gas, Inc. | D19: =Input!B5 -> NYSE | F19: ='3. OGS'!$C$15/1000000 -> 53.166733 | H19: 42.006 | J19: ='3. OGS'!$C$16/1000000 -> 2233.311 | L19: ='Proxy Prices'!E$6 -> 76.91 | N19: 183.1 | P19: 4089.053
A20: =IFERROR(Input!A6,"NA") -> SJI | B20: ='Proxy Data Lookup'!B7 -> South Jersey Industries, Inc. | D20: =Input!B6 -> NYSE | F20: ='3. SJI'!$C$15/1000000 -> 100.59194 | H20: 16.571 | J20: ='3. SJI'!$C$16/1000000 -> 1666.876 | L20: ='Proxy Prices'!F$6 -> 22.58 | N20: 136.3 | P20: 2271.366
A21: =IFERROR(Input!A7,"NA") -> SWX | B21: ='Proxy Data Lookup'!B8 -> Southwest Gas Holdings, Inc. | D21: =Input!B7 -> NYSE | F21: ='3. SWX'!$C$15/1000000 -> 57.192925 | H21: 46.771 | J21: ='3. SWX'!$C$16/1000000 -> 2674.953 | L21: ='Proxy Prices'!G$6 -> 68.71 | N21: 146.9 | P21: 3929.726
A22: =IFERROR(Input!A8,"NA") -> SR | B22: ='Proxy Data Lookup'!B9 -> Spire Inc. | D22: =Input!B8 -> NYSE | F22: ='3. SR'!$C$15/1000000 -> 51.611789 | H22: 44.182 | J22: ='3. SR'!$C$16/1000000 -> 2280.3 | L22: ='Proxy Prices'!H$6 -> 73.89 | N22: 167.2 | P22: 3813.595
B24: Average | F24: =ROUND(AVERAGE(F15:F23),3) -> 73.569 | H24: =ROUND(AVERAGE(H15:H23),3) -> 35.966 | J24: =ROUND(AVERAGE(J15:J23),3) -> 2625.724 | L24: =ROUND(AVERAGE(L15:L23),3) -> 62.109 | N24: =ROUND(AVERAGE(N15:N23),1) -> 172.8 | O24: % | P24: =ROUND(AVERAGE(P15:P23),3) -> 4574.713
C26: NA= Not Available
D28: Notes: | E28: (1) | F28: Column 3 / Column 1.
E29: (2) | F29: Column 4 / Column 2.
E30: (3) | F30: Column 1 * Column 4.
E31: (4) | F31: Requested rate base multiplied by the requested common equity ratio.
E32: (5) | F32: =CONCATENATE("The market-to-book ratio of ",Input!G28," on ",TEXT(Input!E2,"mmmm dd, yyyy")," is assumed to be equal to the market-to-book ratio of ",'7.2 Market Cap'!B3," on ",TEXT(Input!E2,"mmmm dd, yyyy")," as appropriate.") -> The market-to-book ratio of Duke Energy Kentucky, Inc. on March 31, 2021 is assumed to be equal to the market-to-book ratio of Proxy Group of Seven Natural Gas Distribution Companies on March 31, 2021 as appropriate.
E33: (6) | F33: Column [3] multiplied by Column [5].
B36: Source of Information: | C36: =CONCATENATE(YEAR(Input!G49)," Annual Forms 10K") -> 2020 Annual Forms 10K
C37: yahoo.finance.com
C38: Bloomberg Professional

Sheet 8.1 Equity Contributions
A1: =Input!G28 -> Duke Energy Kentucky, Inc.
A2: Derivation of the Flotation Cost Adjustment to the Cost of Common Equity
A5: Equity Issuances since 2010
E8: [Column 1] | G8: [Column 2] | I8: [Column 3] | K8: [Column 4] | M8: [Column 5] | O8: [Column 6] | Q8: [Column 7] | S8: [Column 8] | U8: [Column 9] | W8: [Column 10]
A10: Date of Offering | C10: Transaction (1) | E10: Shares Issued | G10: Market Price per Share | I10: Average Offering Price per Share | K10: Market Pressure (2) | M10: Total Offering Expense per Share | O10: Net Proceeds per Share (3) | Q10: Gross Equity Issue before Costs (4) | S10: Total Net Proceeds (5) | U10: Total Flotation Costs (6) | W10: Flotation Cost Percentage (7)
A12: 2019-11-18 | C12: Equity Offering | E12: 28750000 | G12: 88.65 | I12: 85.99 | K12: =G12-I12 -> 2.66 | M12: =592000/E12 -> 0.02059130435 | O12: =G12-M12-K12 -> 85.9694087 | Q12: =E12*G12 -> 2548687500 | S12: =O12*E12 -> 2471620500 | U12: =E12*(SUM(K12:M12)) -> 77067000 | W12: =(Q12-S12)/Q12 -> 0.03023791657
A13: 2018-03-06 | C13: Equity Offering | E13: 21275000 | G13: 75.86 | I13: 74.072 | K13: =G13-I13 -> 1.788 | M13: =450000/E13 -> 0.02115158637 | O13: =G13-M13-K13 -> 74.05084841 | Q13: =E13*G13 -> 1613921500 | S13: =O13*E13 -> 1575431800 | U13: =E13*(SUM(K13:M13)) -> 38489700 | W13: =(Q13-S13)/Q13 -> 0.02384855769
A14: 2016-03-01 | C14: Equity Offering | E14: 10637500 | G14: 73.35 | I14: 69.84 | K14: =G14-I14 -> 3.51 | M14: =400000/E14 -> 0.03760282021 | O14: =G14-M14-K14 -> 69.80239718 | Q14: =E14*G14 -> 780260625 | S14: =O14*E14 -> 742523000 | U14: =E14*(SUM(K14:M14)) -> 37737625 | W14: =(Q14-S14)/Q14 -> 0.04836540996
Q16: =SUM(Q12:Q14) -> 4942869625 | S16: =SUM(S12:S14) -> 4789575300 | U16: =SUM(U12:U14) -> 153294325 | W16: =(Q16-S16)/Q16 -> 0.03101322443
A22: Flotation Cost Adjustment
C26: Average Dividend Yield | E26: Average Projected EPS Growth Rate | G26: Adjusted Dividend Yield | I26: Average DCF Cost Rate Unadjusted for Flotation (8) | K26: DCF Cost Rate Adjusted for Flotation (9) | M26: Flotation Cost Adjustment (10)
A27: =Input!I31 -> Proxy Group of Seven Natural Gas Distribution Companies | C27: =ROUND(AVERAGE('2.1 DCF Summary'!D9:D15),2) -> 3.74 | D27: % | E27: =ROUND(AVERAGE('2.1 DCF Summary'!S9:S15),2) -> 5.94 | F27: % | G27: =ROUND(C27*(1+(0.5*(E27/100))),2) -> 3.85 | H27: % | I27: =G27+E27 -> 9.79 | J27: % | K27: =(G27/(1-$W$16))+E27 -> 9.913222439 | L27: % | M27: =K27-I27 -> 0.1232224392 | N27: %
A31: See page 2 of this Attachment for notes.
A33: Source of Information: Company SEC filings

Sheet 9.1 Rate Mechanisms
A2: Summary of Adjustment Clauses & Alternative Regulation/Incentive Plans
D4: Adjustment Clauses | I4: Alternative Regulation / Incentive Plans
A5: Company | B5: Parent | C5: State | D5: Gas Commodity | E5: Decoupling (F/P) [1] | F5: Capital Investment [2] | G5: Energy Efficiency [3] | H5: Other [4] | I5: Formula-Based Rates | J5: Earnings Sharing/PBR
A6: Atmos Energy | B6: ATO | C6: Colorado | D6: ü | F6: ü | G6: ü | H6: ü
A7: Atmos Energy | B7: ATO | C7: Kansas | D7: ü | E7: P | F7: ü | H7: ü
A8: Atmos Energy | B8: ATO | C8: Kentucky | D8: ü | E8: P | F8: ü | G8: ü | J8: ü
A9: Atmos Energy | B9: ATO | C9: Louisiana | D9: ü | E9: P | F9: ü | I9: ü | J9: ü
A10: Atmos Energy | B10: ATO | C10: Mississippi | D10: ü | E10: P | F10: ü | G10: ü | H10: ü | I10: ü
A11: Atmos Energy | B11: ATO | C11: Tennessee | D11: ü | E11: P | F11: ü | I11: ü | J11: ü
A12: Atmos Energy | B12: ATO | C12: Texas | D12: ü | E12: P | F12: ü | G12: ü | H12: ü | I12: ü
A13: Atmos Energy | B13: ATO | C13: Virginia | D13: ü | E13: P | F13: ü
A14: New Jersey Natural Gas | B14: NJR | C14: New Jersey | D14: ü | E14: F | F14: ü | G14: ü | H14: ü
A15: Northwest Natural Gas | B15: NWN | C15: Oregon | D15: ü | E15: P | G15: ü | H15: ü
A16: Northwest Natural Gas | B16: NWN | C16: Washington | D16: ü | G16: ü | H16: ü
A17: Kansas Gas Service | B17: OGS | C17: Kansas | D17: ü | E17: P | F17: ü | H17: ü
A18: Oklahoma Natural Gas | B18: OGS | C18: Oklahoma | D18: ü | E18: P | F18: ü | G18: ü | H18: ü | I18: ü | J18: ü
A19: Texas Gas Service | B19: OGS | C19: Texas | D19: ü | E19: P | F19: ü | G19: ü | H19: ü | I19: ü
A20: Elizabethtown Gas | B20: SJI | C20: New Jersey | D20: ü | E20: P | F20: ü | G20: ü | H20: ü
A21: South Jersey Gas | B21: SJI | C21: New Jersey | D21: ü | E21: F | F21: ü | G21: ü | H21: ü
A22: Southwest Gas Corporation | B22: SWX | C22: Arizona | D22: ü | E22: F | F22: ü | G22: ü | H22: ü
A23: Southwest Gas Corporation | B23: SWX | C23: California | D23: ü | E23: F | F23: ü | G23: ü | H23: ü
A24: Southwest Gas Corporation | B24: SWX | C24: Nevada | D24: ü | E24: F | F24: ü | G24: ü | H24: ü
A25: Alabama Gas Corporation | B25: SR | C25: Alabama | D25: ü | E25: P | F25: ü | H25: ü | I25: ü
A26: Spire Gulf Inc. (Mobile Gas Corporation) | B26: SR | C26: Alabama | D26: ü | E26: P | F26: ü | H26: ü | I26: ü
A27: Spire Missouri East | B27: SR | C27: Missouri | D27: ü | E27: P | F27: ü | H27: ü
A28: Spire Missouri West | B28: SR | C28: Missouri | D28: ü | E28: P | F28: ü | H28: ü
A34: Notes:
A35: Note: A mechanism may cover one or more cost categories; therefore, designations may not indicate separate mechanisms for each category.
A36: [1] Full or partial decoupling (such as Fixed Variable rate design, weather normalization clauses, and recovery of lost revenues as a result of Energy Efficiency programs). All full or partial decoupling mechanisms include weather normalization adjustments. | F36: [4] Pension expenses, bad debt costs, storm costs, transmission/transportation costs, environmental, regulatory fee, government & franchise fees and taxes, economic development, and low income programs.
A37: [2] Includes recovery of costs related to infrastructure replacement, system integrity/hardening, and other capital expenditures. | F37: Sources: Operating company tariffs; Regulatory Research Associates, Alternative Ratemaking Plans in the US, April 16, 2020; Regulatory Research Associates, Adjustment Clauses: A State-by-State Overview, November 12, 2019; Edison Electric Institute, Alternative Regulation for Emerging Utility Challenges: 2015 Update, November 11, 2015.
A38: [3] Utility-sponsored conservation, energy efficiency, or other demand side management programs.

Sheet Input
A1: Utility Proxy Group | B1: Proxy Company - Exchange | C1: CEM Proxy Group | E1: Growth Rate Input Date
A2: ATO | B2: NYSE | C2: AAPL | E2: 2021-03-31
A3: NJR | B3: NYSE | C3: ABT
A4: NWN | B4: NYSE | C4: AIZ | E4: User Computer Title
A5: OGS | B5: NYSE | C5: ANSS
A6: SJI | B6: NYSE | C6: BAH
A7: SWX | B7: NYSE | C7: BDX | E7: Recommended Common Equity Cost Rate
A8: SR | B8: NYSE | C8: BFB | E8: 0.103
C9: BR
C10: BRC | E10: DATA INPUTS
C11: CACI
C12: CASY | E12: Capital Structure | G12: Source:
C13: CDNS | E13: Debt % | F13: 0.46721 | G13: Company
C14: CERN | E14: Equity % | F14: 0.50695 | G14: Company
C15: CSWI | E15: Short-Term Debt % | F15: 0.02584 | G15: Company
C16: DGX | E16: Debt Cost (%) | F16: 0.03843 | G16: Company
C17: EL | E17: Short-Term Debt Cost (%) | F17: 0.01667 | G17: Company
C18: EXPO
C19: FAST
C20: GNTX | E20: SBBI (1926-2020) | G20: Notes:
C21: IFF | E21: SBBI Common Stocks Total Return (%) | F21: 12.2 | G21: Update annually from Stocks, Bonds, Bills, and Inflation - Ibbotson® SBBI® Market Report
C22: INGR | E22: SBBI Long-Term Gov't Bonds Income (%) | F22: 5.05 | G22: Update annually from Stocks, Bonds, Bills, and Inflation - Ibbotson® SBBI® Market Report
C23: IRM
C24: JBHT | E24: VL Appr Potential Week Ending: | G24: PRPM Date ("Month Year") | I24: Blue Chip Update Date ("Month Day, Year")
C25: JJSF | E25: 2021-04-02 | G25: March 2021 | I25: April 1, 2021 and December 1, 2020
C26: JKHY
C27: MANT | E27: S&P Utilties Index Companies | G27: Company Name | I27: Abbreviated
C28: MKC | E28: AEE | G28: Duke Energy Kentucky, Inc. | I28: DUK KY
C29: MO | E29: AEP
C30: MSA | E30: AES | G30: Regulatory Jurisdiction
C31: MSCI | E31: ATO | G31: Kentucky Public Service Commission | I31: Proxy Group of Seven Natural Gas Distribution Companies
C32: MSI | E32: AWK | I32: Proxy Group of Forty-Eight Non-Price Regulated Companies
C33: MTN | E33: CMS | G33: Industry ("Natural Gas", "Water", "Electric")
C34: MXIM | E34: CNP | G34: Natural Gas
C35: NOC | E35: D
C36: ODFL | E36: DTE | G36: Common Stock Shares Outstanding at Fiscal Year End
C37: PKI | E37: DUK | G37: NA
C38: PM | E38: ED
C39: POOL | E39: EIX | G39: Book Value per Share at Fiscal Year End
C40: POST | E40: ES | G40: NA
C41: RLI | E41: ETR
C42: ROL | E42: EVRG | G42: Book Equity
C43: SIGI | E43: EXC | G43: 718236000 | H43: Company Provided - Q4 2020 Financial Statement, at p. 8
C44: SIRI | E44: FE
C45: TECH | E45: LNT | G45: Closing Stock Market Price
C46: TTEK | E46: NEE | G46: NA
C47: WAT | E47: NI
C48: WST | E48: NRG | G48: Date of Annual Report Filing ("'Month Day, Year")
C49: WU | E49: PEG | G49: December 31, 2020
E50: PNW
E51: PPL | G51: Business Risk Adjustment
E52: SO | G52: NA
E53: SRE
E54: WEC
E55: XEL
A57: =COUNTA(A2:A26) -> 7 | C57: =COUNTA(C2:C53) -> 48

Sheet Market Data
A1: Bond Index - Date | B1: 2021-03-31 | C1: 2021-02-26 | D1: 2021-01-31
A2: MOODUAA Index | B2: 3.27 | C2: 2.93 | D2: 2.73
A3: MOODUA Index | B3: 3.44 | C3: 3.09 | D3: 2.91
A4: MOODUBAA Index | B4: 3.72 | C4: 3.37 | D4: 3.18
A5: MOODCAAA Index | B5: 3.04 | C5: 2.7 | D5: 2.45
A6: MOODCAA Index | B6: 3.17 | C6: 2.83 | D6: 2.61
A7: MOODCA Index | B7: 3.37 | C7: 3.03 | D7: 2.84
A8: MOODCBAA Index | B8: 3.74 | C8: 3.42 | D8: 3.24
A10: Historical Risk Premium Data
A11: Arithmetic Mean of Monthly Returns on Large Company Common Stocks (1928 - 2020) | B11: 0.1194
A12: Arithmetic Mean of Moody's Aaa and Aa Corporate Bond Yields (1928 - 2020) | B12: 0.0602
A13: Arithmetic Mean Holding Period Returns on the S&P Utility Index (1928 - 2020) | B13: 0.1065
A14: Arithmetic Mean on Moody's A Rated Public Utility Bond Yields (1928 - 2020) | B14: 0.0649

Sheet Proxy Data Lookup
C1: EPS Growth Rates | G1: Beta | J1: Annual Div. | K1: Value Line Beta Calculation | O1: Bond Ratings
A2: Ticker | B2: Company Name | C2: Zacks | D2: Yahoo | E2: Bloomberg | F2: Value Line | G2: Value Line | H2: Bloomberg | I2: Unadjusted | K2: R Factor | L2: Std. Error | M2: Std. Dev Y | N2: Std. Dev Beta | O2: S&P | P2: Moody's | R2: S&P | S2: Moody's | V2: S&P | W2: Moody's
A3: =Input!A2 -> ATO | B3: Atmos Energy Corporation | C3: 0.073 | D3: 0.07 | E3: 0.07098 | F3: 0.07 | G3: 0.8 | H3: 0.9082199931 | I3: 0.66 | J3: 2.5 | K3: 0.5168 | L3: 2.7453 | M3: 3.2005 | N3: 0.0685 | O3: A- | P3: A1 | R3: BBB | S3: NR | T3: Elizabethtown Gas Company | U3: SJI | V3: =IFERROR(VLOOKUP(R3,'3.6 MOODY_S&P numbericl'!$F$6:$H$26,3,FALSE),"NR") -> 9 | W3: =IFERROR(VLOOKUP(S3,'3.6 MOODY_S&P numbericl'!$B$6:$D$26,3,FALSE),"NR") -> NR
A4: =Input!A3 -> NJR | B4: New Jersey Resources Corporation | C4: 0.06 | D4: 0.06 | E4: 0.07733 | F4: 0.015 | G4: 0.95 | H4: 0.9634966254 | I4: 0.92 | J4: 1.33 | K4: 0.6069 | L4: 3.0205 | M4: 3.7932 | N4: 0.0754 | O4: NR | P4: A1 | R4: BBB | S4: A3 | T4: South Jersey Gas Company | U4: SJI | V4: =IFERROR(VLOOKUP(R4,'3.6 MOODY_S&P numbericl'!$F$6:$H$26,3,FALSE),"NR") -> 9 | W4: =IFERROR(VLOOKUP(S4,'3.6 MOODY_S&P numbericl'!$B$6:$D$26,3,FALSE),"NR") -> 7
A5: =Input!A4 -> NWN | B5: Northwest Natural Holding Company | C5: NA | D5: 0.031 | E5: 0.05 | F5: 0.055 | G5: 0.8 | H5: 0.834400475 | I5: 0.69 | J5: 1.92 | K5: 0.4791 | L5: 3.1454 | M5: 3.5765 | N5: 0.0785 | O5: A+ | P5: Baa1 | V5: =AVERAGE(V3:V4) -> 9 | W5: =AVERAGE(W3:W4) -> 7
A6: =Input!A5 -> OGS | B6: ONE Gas, Inc. | C6: 0.05 | D6: 0.05 | E6: 0.05667 | F6: 0.065 | G6: 0.8 | H6: 0.9912618399 | I6: 0.67 | J6: 2.32 | K6: 0.5278 | L6: 2.7077 | M6: 3.1816 | N6: 0.0676 | O6: BBB+ | P6: A3
A7: =Input!A6 -> SJI | B7: South Jersey Industries, Inc. | C7: 0.044 | D7: 0.044 | E7: 0.0268 | F7: 0.105 | G7: 1.05 | H7: 0.9713575244 | I7: 1 | J7: 1.21 | K7: 0.5839 | L7: 3.4767 | M7: 4.2742 | N7: 0.0868 | O7: BBB | P7: A3 | R7: A- | S7: Baa1 | T7: Southwest Gas Corporation | U7: SWX | V7: =IFERROR(VLOOKUP(R7,'3.6 MOODY_S&P numbericl'!$F$6:$H$26,3,FALSE),"NR") -> 7 | W7: =IFERROR(VLOOKUP(S7,'3.6 MOODY_S&P numbericl'!$B$6:$D$26,3,FALSE),"NR") -> 8
A8: =Input!A7 -> SWX | B8: Southwest Gas Holdings, Inc. | C8: 0.05 | D8: 0.04 | E8: 0.05 | F8: 0.08 | G8: 0.95 | H8: 1.073066592 | I8: 0.88 | J8: 2.38 | K8: 0.5892 | L8: 3.0244 | M8: 3.736 | N8: 0.0755 | O8: A- | P8: Baa1
A9: =Input!A8 -> SR | B9: Spire Inc. | C9: 0.05 | D9: 0.057 | E9: 0.1262 | F9: 0.09 | G9: 0.85 | H9: 0.9871286154 | I9: 0.71 | J9: 2.6 | K9: 0.5339 | L9: 2.8287 | M9: 3.3389 | N9: 0.0706 | O9: A- | P9: A1/A2 | R9: A- | S9: A2 | T9: Spire Alabama Inc. | U9: SR | V9: =IFERROR(VLOOKUP(R9,'3.6 MOODY_S&P numbericl'!$F$6:$H$26,3,FALSE),"NR") -> 7 | W9: =IFERROR(VLOOKUP(S9,'3.6 MOODY_S&P numbericl'!$B$6:$D$26,3,FALSE),"NR") -> 6
R10: A- | S10: A1 | T10: Spire Missouri Inc. | U10: SR | V10: =IFERROR(VLOOKUP(R10,'3.6 MOODY_S&P numbericl'!$F$6:$H$26,3,FALSE),"NR") -> 7 | W10: =IFERROR(VLOOKUP(S10,'3.6 MOODY_S&P numbericl'!$B$6:$D$26,3,FALSE),"NR") -> 5
V11: =AVERAGE(V9:V10) -> 7 | W11: =AVERAGE(W9:W10) -> 5.5

Sheet Proxy Price Data
B1: Tickers | C1: ATO | D1: NJR | E1: NWN | F1: OGS | G1: SJI | H1: SWX | I1: SR
B2: PX_LAST | C2: ATO US Equity | D2: NJR US Equity | E2: NWN US Equity | F2: OGS US Equity | G2: SJI US Equity | H2: SWX US Equity | I2: SR US Equity
A3: 1 | B3: 2021-03-31 | C3: 98.85 | D3: 39.87 | E3: 53.95 | F3: 76.91 | G3: 22.58 | H3: 68.71 | I3: 73.89
A4: =A3+1 -> 2 | B4: 2021-03-30 | C4: 98.89 | D4: 40.5 | E4: 53.69 | F4: 76.06 | G4: 22.94 | H4: 69.1 | I4: 73.88
A5: =A4+1 -> 3 | B5: 2021-03-29 | C5: 98.85 | D5: 40.66 | E5: 53.88 | F5: 76.27 | G5: 22.67 | H5: 69.33 | I5: 73.62
A6: 4 | B6: 2021-03-26 | C6: 97.24 | D6: 39.77 | E6: 52.63 | F6: 74.99 | G6: 22.25 | H6: 67.26 | I6: 74.05
A7: 5 | B7: 2021-03-25 | C7: 97.08 | D7: 40.12 | E7: 52.7 | F7: 75.22 | G7: 22.58 | H7: 68.51 | I7: 72.99
A8: 6 | B8: 2021-03-24 | C8: 95.85 | D8: 39.97 | E8: 53.11 | F8: 74.47 | G8: 22.41 | H8: 68.56 | I8: 72.26
A9: 7 | B9: 2021-03-23 | C9: 94.18 | D9: 39.38 | E9: 51.23 | F9: 73.31 | G9: 22.56 | H9: 67.22 | I9: 71.6
A10: 8 | B10: 2021-03-22 | C10: 93.54 | D10: 40.51 | E10: 50.05 | F10: 73.11 | G10: 22.79 | H10: 66.5 | I10: 72.35
A11: 9 | B11: 2021-03-19 | C11: 94.09 | D11: 41.61 | E11: 52.96 | F11: 74.74 | G11: 22.57 | H11: 67.8 | I11: 73.74
A12: 10 | B12: 2021-03-18 | C12: 93.53 | D12: 40.25 | E12: 51.44 | F12: 74.71 | G12: 21.51 | H12: 67.12 | I12: 74.1
A13: 11 | B13: 2021-03-17 | C13: 92.43 | D13: 39.48 | E13: 50.57 | F13: 74.77 | G13: 22.5 | H13: 66.07 | I13: 73.48
A14: 12 | B14: 2021-03-16 | C14: 93.8 | D14: 42.14 | E14: 53.36 | F14: 77.53 | G14: 27.82 | H14: 67.26 | I14: 75.53
A15: 13 | B15: 2021-03-15 | C15: 93.19 | D15: 42.42 | E15: 54.15 | F15: 77.03 | G15: 28.64 | H15: 66.27 | I15: 74.64
A16: 14 | B16: 2021-03-12 | C16: 91.42 | D16: 41.48 | E16: 53.22 | F16: 75.13 | G16: 27.93 | H16: 65.33 | I16: 75.13
A17: 15 | B17: 2021-03-11 | C17: 89.88 | D17: 40.69 | E17: 52.12 | F17: 73.75 | G17: 27.46 | H17: 65.51 | I17: 72.87
A18: 16 | B18: 2021-03-10 | C18: 90.81 | D18: 40.86 | E18: 53.01 | F18: 74.44 | G18: 28.8 | H18: 67.95 | I18: 72.47
A19: 17 | B19: 2021-03-09 | C19: 89.34 | D19: 40.24 | E19: 52.25 | F19: 73.39 | G19: 28.05 | H19: 68.69 | I19: 71.97
A20: 18 | B20: 2021-03-08 | C20: 91.64 | D20: 41.05 | E20: 53.74 | F20: 75.02 | G20: 28.34 | H20: 71.08 | I20: 72.77
A21: 19 | B21: 2021-03-05 | C21: 91.71 | D21: 40.22 | E21: 51.71 | F21: 73.6 | G21: 26.68 | H21: 69.28 | I21: 70.92
A22: 20 | B22: 2021-03-04 | C22: 88.9 | D22: 39.27 | E22: 48.57 | F22: 68.79 | G22: 25.11 | H22: 65.17 | I22: 67.98
A23: 21 | B23: 2021-03-03 | C23: 88.45 | D23: 39.65 | E23: 47.47 | F23: 68.77 | G23: 26.23 | H23: 63.73 | I23: 67.28
A24: 22 | B24: 2021-03-02 | C24: 87.24 | D24: 39.39 | E24: 47.8 | F24: 68.78 | G24: 25.87 | H24: 63.38 | I24: 66.81
A25: 23 | B25: 2021-03-01 | C25: 85.75 | D25: 40.29 | E25: 48.25 | F25: 69.55 | G25: 25.61 | H25: 63.64 | I25: 66.97
A26: 24 | B26: 2021-02-26 | C26: 84.61 | D26: 39.29 | E26: 47.99 | F26: 66.97 | G26: 25.11 | H26: 62.35 | I26: 66.42
A27: 25 | B27: 2021-02-25 | C27: 88.23 | D27: 39.48 | E27: 48.79 | F27: 69.01 | G27: 25.51 | H27: 64.11 | I27: 67.94
A28: 26 | B28: 2021-02-24 | C28: 88.67 | D28: 39.14 | E28: 49.16 | F28: 69.85 | G28: 25.25 | H28: 65.01 | I28: 68.06
A29: 27 | B29: 2021-02-23 | C29: 89.63 | D29: 39.31 | E29: 49.06 | F29: 70.01 | G29: 25.37 | H29: 65.86 | I29: 68.69
A30: 28 | B30: 2021-02-22 | C30: 89.41 | D30: 39.26 | E30: 47.69 | F30: 70.02 | G30: 24.5 | H30: 64.26 | I30: 66.74
A31: 29 | B31: 2021-02-19 | C31: 93.56 | D31: 39.6 | E31: 48.88 | F31: 74.06 | G31: 24.26 | H31: 64.8 | I31: 67.67
A32: 30 | B32: 2021-02-18 | C32: 93.69 | D32: 38.97 | E32: 48.22 | F32: 73.58 | G32: 23.92 | H32: 64.34 | I32: 67.61
A33: 31 | B33: 2021-02-17 | C33: 92.43 | D33: 38.87 | E33: 47.82 | F33: 72.97 | G33: 23.94 | H33: 63.66 | I33: 66.47
A34: 32 | B34: 2021-02-16 | C34: 91.13 | D34: 37.81 | E34: 46.83 | F34: 72.23 | G34: 23.55 | H34: 62.36 | I34: 64.81
A35: 33 | B35: 2021-02-12 | C35: 91.05 | D35: 36.62 | E35: 46.32 | F35: 72.69 | G35: 23.66 | H35: 61.83 | I35: 63.97
A36: 34 | B36: 2021-02-11 | C36: 91.04 | D36: 37.18 | E36: 47.32 | F36: 73.35 | G36: 23.49 | H36: 62.53 | I36: 63.82
A37: 35 | B37: 2021-02-10 | C37: 91.85 | D37: 37.38 | E37: 46.67 | F37: 73.73 | G37: 23.48 | H37: 61.73 | I37: 63.22
A38: 36 | B38: 2021-02-09 | C38: 89.6 | D38: 37.21 | E38: 46.71 | F38: 72.54 | G38: 23.6 | H38: 61.25 | I38: 64.24
A39: 37 | B39: 2021-02-08 | C39: 89.08 | D39: 36.3 | E39: 45.79 | F39: 72.55 | G39: 22.76 | H39: 61.39 | I39: 64.75
A40: 38 | B40: 2021-02-05 | C40: 89.05 | D40: 36.62 | E40: 46.14 | F40: 72.9 | G40: 23.04 | H40: 62.55 | I40: 65.1
A41: 39 | B41: 2021-02-04 | C41: 88.78 | D41: 36.05 | E41: 45.09 | F41: 72.41 | G41: 22.76 | H41: 61.91 | I41: 64.02
A42: 40 | B42: 2021-02-03 | C42: 87.05 | D42: 35.57 | E42: 43.75 | F42: 71.91 | G42: 22.36 | H42: 60.51 | I42: 62.26
A43: 41 | B43: 2021-02-02 | C43: 88.66 | D43: 35.94 | E43: 44.38 | F43: 73.46 | G43: 22.64 | H43: 60.62 | I43: 62.97
A44: 42 | B44: 2021-02-01 | C44: 88.65 | D44: 35.66 | E44: 45.26 | F44: 73.83 | G44: 23.06 | H44: 60.76 | I44: 62.35
A45: 43 | B45: 2021-01-29 | C45: 89 | D45: 35.01 | E45: 46.71 | F45: 73.13 | G45: 23.1 | H45: 59.96 | I45: 61.19
A46: 44 | B46: 2021-01-28 | C46: 88.57 | D46: 34.91 | E46: 44.17 | F46: 73.05 | G46: 22.15 | H46: 60.33 | I46: 60.46
A47: 45 | B47: 2021-01-27 | C47: 90.83 | D47: 35.46 | E47: 46.5 | F47: 74.6 | G47: 23.08 | H47: 60.42 | I47: 60.89
A48: 46 | B48: 2021-01-26 | C48: 90.95 | D48: 35.26 | E48: 45.16 | F48: 72.31 | G48: 22.05 | H48: 60.85 | I48: 60.32
A49: 47 | B49: 2021-01-25 | C49: 90.44 | D49: 35.8 | E49: 44.4 | F49: 72.48 | G49: 22.66 | H49: 60.56 | I49: 61.59
A50: 48 | B50: 2021-01-22 | C50: 89.09 | D50: 35.43 | E50: 43.24 | F50: 70.79 | G50: 21.64 | H50: 58.62 | I50: 61.75
A51: 49 | B51: 2021-01-21 | C51: 89.45 | D51: 34.96 | E51: 42.92 | F51: 70.62 | G51: 21.1 | H51: 57.55 | I51: 61.09
A52: 50 | B52: 2021-01-20 | C52: 90.09 | D52: 35.72 | E52: 42.44 | F52: 71 | G52: 21.2 | H52: 58.27 | I52: 60.75
A53: 51 | B53: 2021-01-19 | C53: 90.08 | D53: 36.52 | E53: 43.49 | F53: 71.35 | G53: 21.96 | H53: 58.89 | I53: 61.16
A54: 52 | B54: 2021-01-15 | C54: 90.03 | D54: 37.73 | E54: 44.71 | F54: 71.99 | G54: 22.72 | H54: 60.11 | I54: 61.65
A55: 53 | B55: 2021-01-14 | C55: 87.64 | D55: 37.74 | E55: 44.4 | F55: 71.46 | G55: 22.52 | H55: 59.89 | I55: 61.21
A56: 54 | B56: 2021-01-13 | C56: 88.46 | D56: 37.38 | E56: 44.5 | F56: 71.49 | G56: 22.02 | H56: 59.6 | I56: 61.54
A57: 55 | B57: 2021-01-12 | C57: 87.62 | D57: 36.84 | E57: 43.64 | F57: 71.56 | G57: 21.95 | H57: 59.79 | I57: 61.01
A58: 56 | B58: 2021-01-11 | C58: 87.67 | D58: 35.78 | E58: 43.87 | F58: 71.92 | G58: 21.86 | H58: 58.11 | I58: 60.95
A59: 57 | B59: 2021-01-08 | C59: 89.26 | D59: 35.44 | E59: 43.93 | F59: 72.61 | G59: 21.61 | H59: 58.51 | I59: 62.13
A60: 58 | B60: 2021-01-07 | C60: 89.77 | D60: 35.34 | E60: 43.85 | F60: 74.41 | G60: 21.63 | H60: 59.22 | I60: 62.24
A61: 59 | B61: 2021-01-06 | C61: 93.71 | D61: 35.63 | E61: 45.27 | F61: 77.49 | G61: 22.06 | H61: 60.96 | I61: 63.74
A62: 60 | B62: 2021-01-05 | C62: 92.61 | D62: 33.67 | E62: 43.96 | F62: 74.88 | G62: 21.08 | H62: 58.92 | I62: 62.39

Sheet Proxy Prices
B4: ATO | C4: NJR | D4: NWN | E4: OGS | F4: SJI | G4: SWX | H4: SR
A5: =IF('Proxy Price Data'!B2="","",'Proxy Price Data'!B2) -> PX_LAST | B5: =IF('Proxy Price Data'!C2="","",'Proxy Price Data'!C2) -> ATO US Equity | C5: =IF('Proxy Price Data'!D2="","",'Proxy Price Data'!D2) -> NJR US Equity | D5: =IF('Proxy Price Data'!E2="","",'Proxy Price Data'!E2) -> NWN US Equity | E5: =IF('Proxy Price Data'!F2="","",'Proxy Price Data'!F2) -> OGS US Equity | F5: =IF('Proxy Price Data'!G2="","",'Proxy Price Data'!G2) -> SJI US Equity | G5: =IF('Proxy Price Data'!H2="","",'Proxy Price Data'!H2) -> SWX US Equity | H5: =IF('Proxy Price Data'!I2="","",'Proxy Price Data'!I2) -> SR US Equity
A6: =IF('Proxy Price Data'!B3="","",'Proxy Price Data'!B3) -> 2021-03-31 | B6: =IF('Proxy Price Data'!C3="","",'Proxy Price Data'!C3) -> 98.85 | C6: =IF('Proxy Price Data'!D3="","",'Proxy Price Data'!D3) -> 39.87 | D6: =IF('Proxy Price Data'!E3="","",'Proxy Price Data'!E3) -> 53.95 | E6: =IF('Proxy Price Data'!F3="","",'Proxy Price Data'!F3) -> 76.91 | F6: =IF('Proxy Price Data'!G3="","",'Proxy Price Data'!G3) -> 22.58 | G6: =IF('Proxy Price Data'!H3="","",'Proxy Price Data'!H3) -> 68.71 | H6: =IF('Proxy Price Data'!I3="","",'Proxy Price Data'!I3) -> 73.89
A7: =IF('Proxy Price Data'!B4="","",'Proxy Price Data'!B4) -> 2021-03-30 | B7: =IF('Proxy Price Data'!C4="","",'Proxy Price Data'!C4) -> 98.89 | C7: =IF('Proxy Price Data'!D4="","",'Proxy Price Data'!D4) -> 40.5 | D7: =IF('Proxy Price Data'!E4="","",'Proxy Price Data'!E4) -> 53.69 | E7: =IF('Proxy Price Data'!F4="","",'Proxy Price Data'!F4) -> 76.06 | F7: =IF('Proxy Price Data'!G4="","",'Proxy Price Data'!G4) -> 22.94 | G7: =IF('Proxy Price Data'!H4="","",'Proxy Price Data'!H4) -> 69.1 | H7: =IF('Proxy Price Data'!I4="","",'Proxy Price Data'!I4) -> 73.88
A8: =IF('Proxy Price Data'!B5="","",'Proxy Price Data'!B5) -> 2021-03-29 | B8: =IF('Proxy Price Data'!C5="","",'Proxy Price Data'!C5) -> 98.85 | C8: =IF('Proxy Price Data'!D5="","",'Proxy Price Data'!D5) -> 40.66 | D8: =IF('Proxy Price Data'!E5="","",'Proxy Price Data'!E5) -> 53.88 | E8: =IF('Proxy Price Data'!F5="","",'Proxy Price Data'!F5) -> 76.27 | F8: =IF('Proxy Price Data'!G5="","",'Proxy Price Data'!G5) -> 22.67 | G8: =IF('Proxy Price Data'!H5="","",'Proxy Price Data'!H5) -> 69.33 | H8: =IF('Proxy Price Data'!I5="","",'Proxy Price Data'!I5) -> 73.62
A9: =IF('Proxy Price Data'!B6="","",'Proxy Price Data'!B6) -> 2021-03-26 | B9: =IF('Proxy Price Data'!C6="","",'Proxy Price Data'!C6) -> 97.24 | C9: =IF('Proxy Price Data'!D6="","",'Proxy Price Data'!D6) -> 39.77 | D9: =IF('Proxy Price Data'!E6="","",'Proxy Price Data'!E6) -> 52.63 | E9: =IF('Proxy Price Data'!F6="","",'Proxy Price Data'!F6) -> 74.99 | F9: =IF('Proxy Price Data'!G6="","",'Proxy Price Data'!G6) -> 22.25 | G9: =IF('Proxy Price Data'!H6="","",'Proxy Price Data'!H6) -> 67.26 | H9: =IF('Proxy Price Data'!I6="","",'Proxy Price Data'!I6) -> 74.05
A10: =IF('Proxy Price Data'!B7="","",'Proxy Price Data'!B7) -> 2021-03-25 | B10: =IF('Proxy Price Data'!C7="","",'Proxy Price Data'!C7) -> 97.08 | C10: =IF('Proxy Price Data'!D7="","",'Proxy Price Data'!D7) -> 40.12 | D10: =IF('Proxy Price Data'!E7="","",'Proxy Price Data'!E7) -> 52.7 | E10: =IF('Proxy Price Data'!F7="","",'Proxy Price Data'!F7) -> 75.22 | F10: =IF('Proxy Price Data'!G7="","",'Proxy Price Data'!G7) -> 22.58 | G10: =IF('Proxy Price Data'!H7="","",'Proxy Price Data'!H7) -> 68.51 | H10: =IF('Proxy Price Data'!I7="","",'Proxy Price Data'!I7) -> 72.99
A11: =IF('Proxy Price Data'!B8="","",'Proxy Price Data'!B8) -> 2021-03-24 | B11: =IF('Proxy Price Data'!C8="","",'Proxy Price Data'!C8) -> 95.85 | C11: =IF('Proxy Price Data'!D8="","",'Proxy Price Data'!D8) -> 39.97 | D11: =IF('Proxy Price Data'!E8="","",'Proxy Price Data'!E8) -> 53.11 | E11: =IF('Proxy Price Data'!F8="","",'Proxy Price Data'!F8) -> 74.47 | F11: =IF('Proxy Price Data'!G8="","",'Proxy Price Data'!G8) -> 22.41 | G11: =IF('Proxy Price Data'!H8="","",'Proxy Price Data'!H8) -> 68.56 | H11: =IF('Proxy Price Data'!I8="","",'Proxy Price Data'!I8) -> 72.26
A12: =IF('Proxy Price Data'!B9="","",'Proxy Price Data'!B9) -> 2021-03-23 | B12: =IF('Proxy Price Data'!C9="","",'Proxy Price Data'!C9) -> 94.18 | C12: =IF('Proxy Price Data'!D9="","",'Proxy Price Data'!D9) -> 39.38 | D12: =IF('Proxy Price Data'!E9="","",'Proxy Price Data'!E9) -> 51.23 | E12: =IF('Proxy Price Data'!F9="","",'Proxy Price Data'!F9) -> 73.31 | F12: =IF('Proxy Price Data'!G9="","",'Proxy Price Data'!G9) -> 22.56 | G12: =IF('Proxy Price Data'!H9="","",'Proxy Price Data'!H9) -> 67.22 | H12: =IF('Proxy Price Data'!I9="","",'Proxy Price Data'!I9) -> 71.6
A13: =IF('Proxy Price Data'!B10="","",'Proxy Price Data'!B10) -> 2021-03-22 | B13: =IF('Proxy Price Data'!C10="","",'Proxy Price Data'!C10) -> 93.54 | C13: =IF('Proxy Price Data'!D10="","",'Proxy Price Data'!D10) -> 40.51 | D13: =IF('Proxy Price Data'!E10="","",'Proxy Price Data'!E10) -> 50.05 | E13: =IF('Proxy Price Data'!F10="","",'Proxy Price Data'!F10) -> 73.11 | F13: =IF('Proxy Price Data'!G10="","",'Proxy Price Data'!G10) -> 22.79 | G13: =IF('Proxy Price Data'!H10="","",'Proxy Price Data'!H10) -> 66.5 | H13: =IF('Proxy Price Data'!I10="","",'Proxy Price Data'!I10) -> 72.35
A14: =IF('Proxy Price Data'!B11="","",'Proxy Price Data'!B11) -> 2021-03-19 | B14: =IF('Proxy Price Data'!C11="","",'Proxy Price Data'!C11) -> 94.09 | C14: =IF('Proxy Price Data'!D11="","",'Proxy Price Data'!D11) -> 41.61 | D14: =IF('Proxy Price Data'!E11="","",'Proxy Price Data'!E11) -> 52.96 | E14: =IF('Proxy Price Data'!F11="","",'Proxy Price Data'!F11) -> 74.74 | F14: =IF('Proxy Price Data'!G11="","",'Proxy Price Data'!G11) -> 22.57 | G14: =IF('Proxy Price Data'!H11="","",'Proxy Price Data'!H11) -> 67.8 | H14: =IF('Proxy Price Data'!I11="","",'Proxy Price Data'!I11) -> 73.74
A15: =IF('Proxy Price Data'!B12="","",'Proxy Price Data'!B12) -> 2021-03-18 | B15: =IF('Proxy Price Data'!C12="","",'Proxy Price Data'!C12) -> 93.53 | C15: =IF('Proxy Price Data'!D12="","",'Proxy Price Data'!D12) -> 40.25 | D15: =IF('Proxy Price Data'!E12="","",'Proxy Price Data'!E12) -> 51.44 | E15: =IF('Proxy Price Data'!F12="","",'Proxy Price Data'!F12) -> 74.71 | F15: =IF('Proxy Price Data'!G12="","",'Proxy Price Data'!G12) -> 21.51 | G15: =IF('Proxy Price Data'!H12="","",'Proxy Price Data'!H12) -> 67.12 | H15: =IF('Proxy Price Data'!I12="","",'Proxy Price Data'!I12) -> 74.1
A16: =IF('Proxy Price Data'!B13="","",'Proxy Price Data'!B13) -> 2021-03-17 | B16: =IF('Proxy Price Data'!C13="","",'Proxy Price Data'!C13) -> 92.43 | C16: =IF('Proxy Price Data'!D13="","",'Proxy Price Data'!D13) -> 39.48 | D16: =IF('Proxy Price Data'!E13="","",'Proxy Price Data'!E13) -> 50.57 | E16: =IF('Proxy Price Data'!F13="","",'Proxy Price Data'!F13) -> 74.77 | F16: =IF('Proxy Price Data'!G13="","",'Proxy Price Data'!G13) -> 22.5 | G16: =IF('Proxy Price Data'!H13="","",'Proxy Price Data'!H13) -> 66.07 | H16: =IF('Proxy Price Data'!I13="","",'Proxy Price Data'!I13) -> 73.48
A17: =IF('Proxy Price Data'!B14="","",'Proxy Price Data'!B14) -> 2021-03-16 | B17: =IF('Proxy Price Data'!C14="","",'Proxy Price Data'!C14) -> 93.8 | C17: =IF('Proxy Price Data'!D14="","",'Proxy Price Data'!D14) -> 42.14 | D17: =IF('Proxy Price Data'!E14="","",'Proxy Price Data'!E14) -> 53.36 | E17: =IF('Proxy Price Data'!F14="","",'Proxy Price Data'!F14) -> 77.53 | F17: =IF('Proxy Price Data'!G14="","",'Proxy Price Data'!G14) -> 27.82 | G17: =IF('Proxy Price Data'!H14="","",'Proxy Price Data'!H14) -> 67.26 | H17: =IF('Proxy Price Data'!I14="","",'Proxy Price Data'!I14) -> 75.53
A18: =IF('Proxy Price Data'!B15="","",'Proxy Price Data'!B15) -> 2021-03-15 | B18: =IF('Proxy Price Data'!C15="","",'Proxy Price Data'!C15) -> 93.19 | C18: =IF('Proxy Price Data'!D15="","",'Proxy Price Data'!D15) -> 42.42 | D18: =IF('Proxy Price Data'!E15="","",'Proxy Price Data'!E15) -> 54.15 | E18: =IF('Proxy Price Data'!F15="","",'Proxy Price Data'!F15) -> 77.03 | F18: =IF('Proxy Price Data'!G15="","",'Proxy Price Data'!G15) -> 28.64 | G18: =IF('Proxy Price Data'!H15="","",'Proxy Price Data'!H15) -> 66.27 | H18: =IF('Proxy Price Data'!I15="","",'Proxy Price Data'!I15) -> 74.64
A19: =IF('Proxy Price Data'!B16="","",'Proxy Price Data'!B16) -> 2021-03-12 | B19: =IF('Proxy Price Data'!C16="","",'Proxy Price Data'!C16) -> 91.42 | C19: =IF('Proxy Price Data'!D16="","",'Proxy Price Data'!D16) -> 41.48 | D19: =IF('Proxy Price Data'!E16="","",'Proxy Price Data'!E16) -> 53.22 | E19: =IF('Proxy Price Data'!F16="","",'Proxy Price Data'!F16) -> 75.13 | F19: =IF('Proxy Price Data'!G16="","",'Proxy Price Data'!G16) -> 27.93 | G19: =IF('Proxy Price Data'!H16="","",'Proxy Price Data'!H16) -> 65.33 | H19: =IF('Proxy Price Data'!I16="","",'Proxy Price Data'!I16) -> 75.13
A20: =IF('Proxy Price Data'!B17="","",'Proxy Price Data'!B17) -> 2021-03-11 | B20: =IF('Proxy Price Data'!C17="","",'Proxy Price Data'!C17) -> 89.88 | C20: =IF('Proxy Price Data'!D17="","",'Proxy Price Data'!D17) -> 40.69 | D20: =IF('Proxy Price Data'!E17="","",'Proxy Price Data'!E17) -> 52.12 | E20: =IF('Proxy Price Data'!F17="","",'Proxy Price Data'!F17) -> 73.75 | F20: =IF('Proxy Price Data'!G17="","",'Proxy Price Data'!G17) -> 27.46 | G20: =IF('Proxy Price Data'!H17="","",'Proxy Price Data'!H17) -> 65.51 | H20: =IF('Proxy Price Data'!I17="","",'Proxy Price Data'!I17) -> 72.87
A21: =IF('Proxy Price Data'!B18="","",'Proxy Price Data'!B18) -> 2021-03-10 | B21: =IF('Proxy Price Data'!C18="","",'Proxy Price Data'!C18) -> 90.81 | C21: =IF('Proxy Price Data'!D18="","",'Proxy Price Data'!D18) -> 40.86 | D21: =IF('Proxy Price Data'!E18="","",'Proxy Price Data'!E18) -> 53.01 | E21: =IF('Proxy Price Data'!F18="","",'Proxy Price Data'!F18) -> 74.44 | F21: =IF('Proxy Price Data'!G18="","",'Proxy Price Data'!G18) -> 28.8 | G21: =IF('Proxy Price Data'!H18="","",'Proxy Price Data'!H18) -> 67.95 | H21: =IF('Proxy Price Data'!I18="","",'Proxy Price Data'!I18) -> 72.47
A22: =IF('Proxy Price Data'!B19="","",'Proxy Price Data'!B19) -> 2021-03-09 | B22: =IF('Proxy Price Data'!C19="","",'Proxy Price Data'!C19) -> 89.34 | C22: =IF('Proxy Price Data'!D19="","",'Proxy Price Data'!D19) -> 40.24 | D22: =IF('Proxy Price Data'!E19="","",'Proxy Price Data'!E19) -> 52.25 | E22: =IF('Proxy Price Data'!F19="","",'Proxy Price Data'!F19) -> 73.39 | F22: =IF('Proxy Price Data'!G19="","",'Proxy Price Data'!G19) -> 28.05 | G22: =IF('Proxy Price Data'!H19="","",'Proxy Price Data'!H19) -> 68.69 | H22: =IF('Proxy Price Data'!I19="","",'Proxy Price Data'!I19) -> 71.97
A23: =IF('Proxy Price Data'!B20="","",'Proxy Price Data'!B20) -> 2021-03-08 | B23: =IF('Proxy Price Data'!C20="","",'Proxy Price Data'!C20) -> 91.64 | C23: =IF('Proxy Price Data'!D20="","",'Proxy Price Data'!D20) -> 41.05 | D23: =IF('Proxy Price Data'!E20="","",'Proxy Price Data'!E20) -> 53.74 | E23: =IF('Proxy Price Data'!F20="","",'Proxy Price Data'!F20) -> 75.02 | F23: =IF('Proxy Price Data'!G20="","",'Proxy Price Data'!G20) -> 28.34 | G23: =IF('Proxy Price Data'!H20="","",'Proxy Price Data'!H20) -> 71.08 | H23: =IF('Proxy Price Data'!I20="","",'Proxy Price Data'!I20) -> 72.77
A24: =IF('Proxy Price Data'!B21="","",'Proxy Price Data'!B21) -> 2021-03-05 | B24: =IF('Proxy Price Data'!C21="","",'Proxy Price Data'!C21) -> 91.71 | C24: =IF('Proxy Price Data'!D21="","",'Proxy Price Data'!D21) -> 40.22 | D24: =IF('Proxy Price Data'!E21="","",'Proxy Price Data'!E21) -> 51.71 | E24: =IF('Proxy Price Data'!F21="","",'Proxy Price Data'!F21) -> 73.6 | F24: =IF('Proxy Price Data'!G21="","",'Proxy Price Data'!G21) -> 26.68 | G24: =IF('Proxy Price Data'!H21="","",'Proxy Price Data'!H21) -> 69.28 | H24: =IF('Proxy Price Data'!I21="","",'Proxy Price Data'!I21) -> 70.92
A25: =IF('Proxy Price Data'!B22="","",'Proxy Price Data'!B22) -> 2021-03-04 | B25: =IF('Proxy Price Data'!C22="","",'Proxy Price Data'!C22) -> 88.9 | C25: =IF('Proxy Price Data'!D22="","",'Proxy Price Data'!D22) -> 39.27 | D25: =IF('Proxy Price Data'!E22="","",'Proxy Price Data'!E22) -> 48.57 | E25: =IF('Proxy Price Data'!F22="","",'Proxy Price Data'!F22) -> 68.79 | F25: =IF('Proxy Price Data'!G22="","",'Proxy Price Data'!G22) -> 25.11 | G25: =IF('Proxy Price Data'!H22="","",'Proxy Price Data'!H22) -> 65.17 | H25: =IF('Proxy Price Data'!I22="","",'Proxy Price Data'!I22) -> 67.98
A26: =IF('Proxy Price Data'!B23="","",'Proxy Price Data'!B23) -> 2021-03-03 | B26: =IF('Proxy Price Data'!C23="","",'Proxy Price Data'!C23) -> 88.45 | C26: =IF('Proxy Price Data'!D23="","",'Proxy Price Data'!D23) -> 39.65 | D26: =IF('Proxy Price Data'!E23="","",'Proxy Price Data'!E23) -> 47.47 | E26: =IF('Proxy Price Data'!F23="","",'Proxy Price Data'!F23) -> 68.77 | F26: =IF('Proxy Price Data'!G23="","",'Proxy Price Data'!G23) -> 26.23 | G26: =IF('Proxy Price Data'!H23="","",'Proxy Price Data'!H23) -> 63.73 | H26: =IF('Proxy Price Data'!I23="","",'Proxy Price Data'!I23) -> 67.28
A27: =IF('Proxy Price Data'!B24="","",'Proxy Price Data'!B24) -> 2021-03-02 | B27: =IF('Proxy Price Data'!C24="","",'Proxy Price Data'!C24) -> 87.24 | C27: =IF('Proxy Price Data'!D24="","",'Proxy Price Data'!D24) -> 39.39 | D27: =IF('Proxy Price Data'!E24="","",'Proxy Price Data'!E24) -> 47.8 | E27: =IF('Proxy Price Data'!F24="","",'Proxy Price Data'!F24) -> 68.78 | F27: =IF('Proxy Price Data'!G24="","",'Proxy Price Data'!G24) -> 25.87 | G27: =IF('Proxy Price Data'!H24="","",'Proxy Price Data'!H24) -> 63.38 | H27: =IF('Proxy Price Data'!I24="","",'Proxy Price Data'!I24) -> 66.81
A28: =IF('Proxy Price Data'!B25="","",'Proxy Price Data'!B25) -> 2021-03-01 | B28: =IF('Proxy Price Data'!C25="","",'Proxy Price Data'!C25) -> 85.75 | C28: =IF('Proxy Price Data'!D25="","",'Proxy Price Data'!D25) -> 40.29 | D28: =IF('Proxy Price Data'!E25="","",'Proxy Price Data'!E25) -> 48.25 | E28: =IF('Proxy Price Data'!F25="","",'Proxy Price Data'!F25) -> 69.55 | F28: =IF('Proxy Price Data'!G25="","",'Proxy Price Data'!G25) -> 25.61 | G28: =IF('Proxy Price Data'!H25="","",'Proxy Price Data'!H25) -> 63.64 | H28: =IF('Proxy Price Data'!I25="","",'Proxy Price Data'!I25) -> 66.97
A29: =IF('Proxy Price Data'!B26="","",'Proxy Price Data'!B26) -> 2021-02-26 | B29: =IF('Proxy Price Data'!C26="","",'Proxy Price Data'!C26) -> 84.61 | C29: =IF('Proxy Price Data'!D26="","",'Proxy Price Data'!D26) -> 39.29 | D29: =IF('Proxy Price Data'!E26="","",'Proxy Price Data'!E26) -> 47.99 | E29: =IF('Proxy Price Data'!F26="","",'Proxy Price Data'!F26) -> 66.97 | F29: =IF('Proxy Price Data'!G26="","",'Proxy Price Data'!G26) -> 25.11 | G29: =IF('Proxy Price Data'!H26="","",'Proxy Price Data'!H26) -> 62.35 | H29: =IF('Proxy Price Data'!I26="","",'Proxy Price Data'!I26) -> 66.42
A30: =IF('Proxy Price Data'!B27="","",'Proxy Price Data'!B27) -> 2021-02-25 | B30: =IF('Proxy Price Data'!C27="","",'Proxy Price Data'!C27) -> 88.23 | C30: =IF('Proxy Price Data'!D27="","",'Proxy Price Data'!D27) -> 39.48 | D30: =IF('Proxy Price Data'!E27="","",'Proxy Price Data'!E27) -> 48.79 | E30: =IF('Proxy Price Data'!F27="","",'Proxy Price Data'!F27) -> 69.01 | F30: =IF('Proxy Price Data'!G27="","",'Proxy Price Data'!G27) -> 25.51 | G30: =IF('Proxy Price Data'!H27="","",'Proxy Price Data'!H27) -> 64.11 | H30: =IF('Proxy Price Data'!I27="","",'Proxy Price Data'!I27) -> 67.94
A31: =IF('Proxy Price Data'!B28="","",'Proxy Price Data'!B28) -> 2021-02-24 | B31: =IF('Proxy Price Data'!C28="","",'Proxy Price Data'!C28) -> 88.67 | C31: =IF('Proxy Price Data'!D28="","",'Proxy Price Data'!D28) -> 39.14 | D31: =IF('Proxy Price Data'!E28="","",'Proxy Price Data'!E28) -> 49.16 | E31: =IF('Proxy Price Data'!F28="","",'Proxy Price Data'!F28) -> 69.85 | F31: =IF('Proxy Price Data'!G28="","",'Proxy Price Data'!G28) -> 25.25 | G31: =IF('Proxy Price Data'!H28="","",'Proxy Price Data'!H28) -> 65.01 | H31: =IF('Proxy Price Data'!I28="","",'Proxy Price Data'!I28) -> 68.06
A32: =IF('Proxy Price Data'!B29="","",'Proxy Price Data'!B29) -> 2021-02-23 | B32: =IF('Proxy Price Data'!C29="","",'Proxy Price Data'!C29) -> 89.63 | C32: =IF('Proxy Price Data'!D29="","",'Proxy Price Data'!D29) -> 39.31 | D32: =IF('Proxy Price Data'!E29="","",'Proxy Price Data'!E29) -> 49.06 | E32: =IF('Proxy Price Data'!F29="","",'Proxy Price Data'!F29) -> 70.01 | F32: =IF('Proxy Price Data'!G29="","",'Proxy Price Data'!G29) -> 25.37 | G32: =IF('Proxy Price Data'!H29="","",'Proxy Price Data'!H29) -> 65.86 | H32: =IF('Proxy Price Data'!I29="","",'Proxy Price Data'!I29) -> 68.69
A33: =IF('Proxy Price Data'!B30="","",'Proxy Price Data'!B30) -> 2021-02-22 | B33: =IF('Proxy Price Data'!C30="","",'Proxy Price Data'!C30) -> 89.41 | C33: =IF('Proxy Price Data'!D30="","",'Proxy Price Data'!D30) -> 39.26 | D33: =IF('Proxy Price Data'!E30="","",'Proxy Price Data'!E30) -> 47.69 | E33: =IF('Proxy Price Data'!F30="","",'Proxy Price Data'!F30) -> 70.02 | F33: =IF('Proxy Price Data'!G30="","",'Proxy Price Data'!G30) -> 24.5 | G33: =IF('Proxy Price Data'!H30="","",'Proxy Price Data'!H30) -> 64.26 | H33: =IF('Proxy Price Data'!I30="","",'Proxy Price Data'!I30) -> 66.74
A34: =IF('Proxy Price Data'!B31="","",'Proxy Price Data'!B31) -> 2021-02-19 | B34: =IF('Proxy Price Data'!C31="","",'Proxy Price Data'!C31) -> 93.56 | C34: =IF('Proxy Price Data'!D31="","",'Proxy Price Data'!D31) -> 39.6 | D34: =IF('Proxy Price Data'!E31="","",'Proxy Price Data'!E31) -> 48.88 | E34: =IF('Proxy Price Data'!F31="","",'Proxy Price Data'!F31) -> 74.06 | F34: =IF('Proxy Price Data'!G31="","",'Proxy Price Data'!G31) -> 24.26 | G34: =IF('Proxy Price Data'!H31="","",'Proxy Price Data'!H31) -> 64.8 | H34: =IF('Proxy Price Data'!I31="","",'Proxy Price Data'!I31) -> 67.67
A35: =IF('Proxy Price Data'!B32="","",'Proxy Price Data'!B32) -> 2021-02-18 | B35: =IF('Proxy Price Data'!C32="","",'Proxy Price Data'!C32) -> 93.69 | C35: =IF('Proxy Price Data'!D32="","",'Proxy Price Data'!D32) -> 38.97 | D35: =IF('Proxy Price Data'!E32="","",'Proxy Price Data'!E32) -> 48.22 | E35: =IF('Proxy Price Data'!F32="","",'Proxy Price Data'!F32) -> 73.58 | F35: =IF('Proxy Price Data'!G32="","",'Proxy Price Data'!G32) -> 23.92 | G35: =IF('Proxy Price Data'!H32="","",'Proxy Price Data'!H32) -> 64.34 | H35: =IF('Proxy Price Data'!I32="","",'Proxy Price Data'!I32) -> 67.61
A36: =IF('Proxy Price Data'!B33="","",'Proxy Price Data'!B33) -> 2021-02-17 | B36: =IF('Proxy Price Data'!C33="","",'Proxy Price Data'!C33) -> 92.43 | C36: =IF('Proxy Price Data'!D33="","",'Proxy Price Data'!D33) -> 38.87 | D36: =IF('Proxy Price Data'!E33="","",'Proxy Price Data'!E33) -> 47.82 | E36: =IF('Proxy Price Data'!F33="","",'Proxy Price Data'!F33) -> 72.97 | F36: =IF('Proxy Price Data'!G33="","",'Proxy Price Data'!G33) -> 23.94 | G36: =IF('Proxy Price Data'!H33="","",'Proxy Price Data'!H33) -> 63.66 | H36: =IF('Proxy Price Data'!I33="","",'Proxy Price Data'!I33) -> 66.47
A37: =IF('Proxy Price Data'!B34="","",'Proxy Price Data'!B34) -> 2021-02-16 | B37: =IF('Proxy Price Data'!C34="","",'Proxy Price Data'!C34) -> 91.13 | C37: =IF('Proxy Price Data'!D34="","",'Proxy Price Data'!D34) -> 37.81 | D37: =IF('Proxy Price Data'!E34="","",'Proxy Price Data'!E34) -> 46.83 | E37: =IF('Proxy Price Data'!F34="","",'Proxy Price Data'!F34) -> 72.23 | F37: =IF('Proxy Price Data'!G34="","",'Proxy Price Data'!G34) -> 23.55 | G37: =IF('Proxy Price Data'!H34="","",'Proxy Price Data'!H34) -> 62.36 | H37: =IF('Proxy Price Data'!I34="","",'Proxy Price Data'!I34) -> 64.81
A38: =IF('Proxy Price Data'!B35="","",'Proxy Price Data'!B35) -> 2021-02-12 | B38: =IF('Proxy Price Data'!C35="","",'Proxy Price Data'!C35) -> 91.05 | C38: =IF('Proxy Price Data'!D35="","",'Proxy Price Data'!D35) -> 36.62 | D38: =IF('Proxy Price Data'!E35="","",'Proxy Price Data'!E35) -> 46.32 | E38: =IF('Proxy Price Data'!F35="","",'Proxy Price Data'!F35) -> 72.69 | F38: =IF('Proxy Price Data'!G35="","",'Proxy Price Data'!G35) -> 23.66 | G38: =IF('Proxy Price Data'!H35="","",'Proxy Price Data'!H35) -> 61.83 | H38: =IF('Proxy Price Data'!I35="","",'Proxy Price Data'!I35) -> 63.97
A39: =IF('Proxy Price Data'!B36="","",'Proxy Price Data'!B36) -> 2021-02-11 | B39: =IF('Proxy Price Data'!C36="","",'Proxy Price Data'!C36) -> 91.04 | C39: =IF('Proxy Price Data'!D36="","",'Proxy Price Data'!D36) -> 37.18 | D39: =IF('Proxy Price Data'!E36="","",'Proxy Price Data'!E36) -> 47.32 | E39: =IF('Proxy Price Data'!F36="","",'Proxy Price Data'!F36) -> 73.35 | F39: =IF('Proxy Price Data'!G36="","",'Proxy Price Data'!G36) -> 23.49 | G39: =IF('Proxy Price Data'!H36="","",'Proxy Price Data'!H36) -> 62.53 | H39: =IF('Proxy Price Data'!I36="","",'Proxy Price Data'!I36) -> 63.82
A40: =IF('Proxy Price Data'!B37="","",'Proxy Price Data'!B37) -> 2021-02-10 | B40: =IF('Proxy Price Data'!C37="","",'Proxy Price Data'!C37) -> 91.85 | C40: =IF('Proxy Price Data'!D37="","",'Proxy Price Data'!D37) -> 37.38 | D40: =IF('Proxy Price Data'!E37="","",'Proxy Price Data'!E37) -> 46.67 | E40: =IF('Proxy Price Data'!F37="","",'Proxy Price Data'!F37) -> 73.73 | F40: =IF('Proxy Price Data'!G37="","",'Proxy Price Data'!G37) -> 23.48 | G40: =IF('Proxy Price Data'!H37="","",'Proxy Price Data'!H37) -> 61.73 | H40: =IF('Proxy Price Data'!I37="","",'Proxy Price Data'!I37) -> 63.22
A41: =IF('Proxy Price Data'!B38="","",'Proxy Price Data'!B38) -> 2021-02-09 | B41: =IF('Proxy Price Data'!C38="","",'Proxy Price Data'!C38) -> 89.6 | C41: =IF('Proxy Price Data'!D38="","",'Proxy Price Data'!D38) -> 37.21 | D41: =IF('Proxy Price Data'!E38="","",'Proxy Price Data'!E38) -> 46.71 | E41: =IF('Proxy Price Data'!F38="","",'Proxy Price Data'!F38) -> 72.54 | F41: =IF('Proxy Price Data'!G38="","",'Proxy Price Data'!G38) -> 23.6 | G41: =IF('Proxy Price Data'!H38="","",'Proxy Price Data'!H38) -> 61.25 | H41: =IF('Proxy Price Data'!I38="","",'Proxy Price Data'!I38) -> 64.24
A42: =IF('Proxy Price Data'!B39="","",'Proxy Price Data'!B39) -> 2021-02-08 | B42: =IF('Proxy Price Data'!C39="","",'Proxy Price Data'!C39) -> 89.08 | C42: =IF('Proxy Price Data'!D39="","",'Proxy Price Data'!D39) -> 36.3 | D42: =IF('Proxy Price Data'!E39="","",'Proxy Price Data'!E39) -> 45.79 | E42: =IF('Proxy Price Data'!F39="","",'Proxy Price Data'!F39) -> 72.55 | F42: =IF('Proxy Price Data'!G39="","",'Proxy Price Data'!G39) -> 22.76 | G42: =IF('Proxy Price Data'!H39="","",'Proxy Price Data'!H39) -> 61.39 | H42: =IF('Proxy Price Data'!I39="","",'Proxy Price Data'!I39) -> 64.75
A43: =IF('Proxy Price Data'!B40="","",'Proxy Price Data'!B40) -> 2021-02-05 | B43: =IF('Proxy Price Data'!C40="","",'Proxy Price Data'!C40) -> 89.05 | C43: =IF('Proxy Price Data'!D40="","",'Proxy Price Data'!D40) -> 36.62 | D43: =IF('Proxy Price Data'!E40="","",'Proxy Price Data'!E40) -> 46.14 | E43: =IF('Proxy Price Data'!F40="","",'Proxy Price Data'!F40) -> 72.9 | F43: =IF('Proxy Price Data'!G40="","",'Proxy Price Data'!G40) -> 23.04 | G43: =IF('Proxy Price Data'!H40="","",'Proxy Price Data'!H40) -> 62.55 | H43: =IF('Proxy Price Data'!I40="","",'Proxy Price Data'!I40) -> 65.1
A44: =IF('Proxy Price Data'!B41="","",'Proxy Price Data'!B41) -> 2021-02-04 | B44: =IF('Proxy Price Data'!C41="","",'Proxy Price Data'!C41) -> 88.78 | C44: =IF('Proxy Price Data'!D41="","",'Proxy Price Data'!D41) -> 36.05 | D44: =IF('Proxy Price Data'!E41="","",'Proxy Price Data'!E41) -> 45.09 | E44: =IF('Proxy Price Data'!F41="","",'Proxy Price Data'!F41) -> 72.41 | F44: =IF('Proxy Price Data'!G41="","",'Proxy Price Data'!G41) -> 22.76 | G44: =IF('Proxy Price Data'!H41="","",'Proxy Price Data'!H41) -> 61.91 | H44: =IF('Proxy Price Data'!I41="","",'Proxy Price Data'!I41) -> 64.02
A45: =IF('Proxy Price Data'!B42="","",'Proxy Price Data'!B42) -> 2021-02-03 | B45: =IF('Proxy Price Data'!C42="","",'Proxy Price Data'!C42) -> 87.05 | C45: =IF('Proxy Price Data'!D42="","",'Proxy Price Data'!D42) -> 35.57 | D45: =IF('Proxy Price Data'!E42="","",'Proxy Price Data'!E42) -> 43.75 | E45: =IF('Proxy Price Data'!F42="","",'Proxy Price Data'!F42) -> 71.91 | F45: =IF('Proxy Price Data'!G42="","",'Proxy Price Data'!G42) -> 22.36 | G45: =IF('Proxy Price Data'!H42="","",'Proxy Price Data'!H42) -> 60.51 | H45: =IF('Proxy Price Data'!I42="","",'Proxy Price Data'!I42) -> 62.26
A46: =IF('Proxy Price Data'!B43="","",'Proxy Price Data'!B43) -> 2021-02-02 | B46: =IF('Proxy Price Data'!C43="","",'Proxy Price Data'!C43) -> 88.66 | C46: =IF('Proxy Price Data'!D43="","",'Proxy Price Data'!D43) -> 35.94 | D46: =IF('Proxy Price Data'!E43="","",'Proxy Price Data'!E43) -> 44.38 | E46: =IF('Proxy Price Data'!F43="","",'Proxy Price Data'!F43) -> 73.46 | F46: =IF('Proxy Price Data'!G43="","",'Proxy Price Data'!G43) -> 22.64 | G46: =IF('Proxy Price Data'!H43="","",'Proxy Price Data'!H43) -> 60.62 | H46: =IF('Proxy Price Data'!I43="","",'Proxy Price Data'!I43) -> 62.97
A47: =IF('Proxy Price Data'!B44="","",'Proxy Price Data'!B44) -> 2021-02-01 | B47: =IF('Proxy Price Data'!C44="","",'Proxy Price Data'!C44) -> 88.65 | C47: =IF('Proxy Price Data'!D44="","",'Proxy Price Data'!D44) -> 35.66 | D47: =IF('Proxy Price Data'!E44="","",'Proxy Price Data'!E44) -> 45.26 | E47: =IF('Proxy Price Data'!F44="","",'Proxy Price Data'!F44) -> 73.83 | F47: =IF('Proxy Price Data'!G44="","",'Proxy Price Data'!G44) -> 23.06 | G47: =IF('Proxy Price Data'!H44="","",'Proxy Price Data'!H44) -> 60.76 | H47: =IF('Proxy Price Data'!I44="","",'Proxy Price Data'!I44) -> 62.35
A48: =IF('Proxy Price Data'!B45="","",'Proxy Price Data'!B45) -> 2021-01-29 | B48: =IF('Proxy Price Data'!C45="","",'Proxy Price Data'!C45) -> 89 | C48: =IF('Proxy Price Data'!D45="","",'Proxy Price Data'!D45) -> 35.01 | D48: =IF('Proxy Price Data'!E45="","",'Proxy Price Data'!E45) -> 46.71 | E48: =IF('Proxy Price Data'!F45="","",'Proxy Price Data'!F45) -> 73.13 | F48: =IF('Proxy Price Data'!G45="","",'Proxy Price Data'!G45) -> 23.1 | G48: =IF('Proxy Price Data'!H45="","",'Proxy Price Data'!H45) -> 59.96 | H48: =IF('Proxy Price Data'!I45="","",'Proxy Price Data'!I45) -> 61.19
A49: =IF('Proxy Price Data'!B46="","",'Proxy Price Data'!B46) -> 2021-01-28 | B49: =IF('Proxy Price Data'!C46="","",'Proxy Price Data'!C46) -> 88.57 | C49: =IF('Proxy Price Data'!D46="","",'Proxy Price Data'!D46) -> 34.91 | D49: =IF('Proxy Price Data'!E46="","",'Proxy Price Data'!E46) -> 44.17 | E49: =IF('Proxy Price Data'!F46="","",'Proxy Price Data'!F46) -> 73.05 | F49: =IF('Proxy Price Data'!G46="","",'Proxy Price Data'!G46) -> 22.15 | G49: =IF('Proxy Price Data'!H46="","",'Proxy Price Data'!H46) -> 60.33 | H49: =IF('Proxy Price Data'!I46="","",'Proxy Price Data'!I46) -> 60.46
A50: =IF('Proxy Price Data'!B47="","",'Proxy Price Data'!B47) -> 2021-01-27 | B50: =IF('Proxy Price Data'!C47="","",'Proxy Price Data'!C47) -> 90.83 | C50: =IF('Proxy Price Data'!D47="","",'Proxy Price Data'!D47) -> 35.46 | D50: =IF('Proxy Price Data'!E47="","",'Proxy Price Data'!E47) -> 46.5 | E50: =IF('Proxy Price Data'!F47="","",'Proxy Price Data'!F47) -> 74.6 | F50: =IF('Proxy Price Data'!G47="","",'Proxy Price Data'!G47) -> 23.08 | G50: =IF('Proxy Price Data'!H47="","",'Proxy Price Data'!H47) -> 60.42 | H50: =IF('Proxy Price Data'!I47="","",'Proxy Price Data'!I47) -> 60.89
A51: =IF('Proxy Price Data'!B48="","",'Proxy Price Data'!B48) -> 2021-01-26 | B51: =IF('Proxy Price Data'!C48="","",'Proxy Price Data'!C48) -> 90.95 | C51: =IF('Proxy Price Data'!D48="","",'Proxy Price Data'!D48) -> 35.26 | D51: =IF('Proxy Price Data'!E48="","",'Proxy Price Data'!E48) -> 45.16 | E51: =IF('Proxy Price Data'!F48="","",'Proxy Price Data'!F48) -> 72.31 | F51: =IF('Proxy Price Data'!G48="","",'Proxy Price Data'!G48) -> 22.05 | G51: =IF('Proxy Price Data'!H48="","",'Proxy Price Data'!H48) -> 60.85 | H51: =IF('Proxy Price Data'!I48="","",'Proxy Price Data'!I48) -> 60.32
A52: =IF('Proxy Price Data'!B49="","",'Proxy Price Data'!B49) -> 2021-01-25 | B52: =IF('Proxy Price Data'!C49="","",'Proxy Price Data'!C49) -> 90.44 | C52: =IF('Proxy Price Data'!D49="","",'Proxy Price Data'!D49) -> 35.8 | D52: =IF('Proxy Price Data'!E49="","",'Proxy Price Data'!E49) -> 44.4 | E52: =IF('Proxy Price Data'!F49="","",'Proxy Price Data'!F49) -> 72.48 | F52: =IF('Proxy Price Data'!G49="","",'Proxy Price Data'!G49) -> 22.66 | G52: =IF('Proxy Price Data'!H49="","",'Proxy Price Data'!H49) -> 60.56 | H52: =IF('Proxy Price Data'!I49="","",'Proxy Price Data'!I49) -> 61.59
A53: =IF('Proxy Price Data'!B50="","",'Proxy Price Data'!B50) -> 2021-01-22 | B53: =IF('Proxy Price Data'!C50="","",'Proxy Price Data'!C50) -> 89.09 | C53: =IF('Proxy Price Data'!D50="","",'Proxy Price Data'!D50) -> 35.43 | D53: =IF('Proxy Price Data'!E50="","",'Proxy Price Data'!E50) -> 43.24 | E53: =IF('Proxy Price Data'!F50="","",'Proxy Price Data'!F50) -> 70.79 | F53: =IF('Proxy Price Data'!G50="","",'Proxy Price Data'!G50) -> 21.64 | G53: =IF('Proxy Price Data'!H50="","",'Proxy Price Data'!H50) -> 58.62 | H53: =IF('Proxy Price Data'!I50="","",'Proxy Price Data'!I50) -> 61.75
A54: =IF('Proxy Price Data'!B51="","",'Proxy Price Data'!B51) -> 2021-01-21 | B54: =IF('Proxy Price Data'!C51="","",'Proxy Price Data'!C51) -> 89.45 | C54: =IF('Proxy Price Data'!D51="","",'Proxy Price Data'!D51) -> 34.96 | D54: =IF('Proxy Price Data'!E51="","",'Proxy Price Data'!E51) -> 42.92 | E54: =IF('Proxy Price Data'!F51="","",'Proxy Price Data'!F51) -> 70.62 | F54: =IF('Proxy Price Data'!G51="","",'Proxy Price Data'!G51) -> 21.1 | G54: =IF('Proxy Price Data'!H51="","",'Proxy Price Data'!H51) -> 57.55 | H54: =IF('Proxy Price Data'!I51="","",'Proxy Price Data'!I51) -> 61.09
A55: =IF('Proxy Price Data'!B52="","",'Proxy Price Data'!B52) -> 2021-01-20 | B55: =IF('Proxy Price Data'!C52="","",'Proxy Price Data'!C52) -> 90.09 | C55: =IF('Proxy Price Data'!D52="","",'Proxy Price Data'!D52) -> 35.72 | D55: =IF('Proxy Price Data'!E52="","",'Proxy Price Data'!E52) -> 42.44 | E55: =IF('Proxy Price Data'!F52="","",'Proxy Price Data'!F52) -> 71 | F55: =IF('Proxy Price Data'!G52="","",'Proxy Price Data'!G52) -> 21.2 | G55: =IF('Proxy Price Data'!H52="","",'Proxy Price Data'!H52) -> 58.27 | H55: =IF('Proxy Price Data'!I52="","",'Proxy Price Data'!I52) -> 60.75
A56: =IF('Proxy Price Data'!B53="","",'Proxy Price Data'!B53) -> 2021-01-19 | B56: =IF('Proxy Price Data'!C53="","",'Proxy Price Data'!C53) -> 90.08 | C56: =IF('Proxy Price Data'!D53="","",'Proxy Price Data'!D53) -> 36.52 | D56: =IF('Proxy Price Data'!E53="","",'Proxy Price Data'!E53) -> 43.49 | E56: =IF('Proxy Price Data'!F53="","",'Proxy Price Data'!F53) -> 71.35 | F56: =IF('Proxy Price Data'!G53="","",'Proxy Price Data'!G53) -> 21.96 | G56: =IF('Proxy Price Data'!H53="","",'Proxy Price Data'!H53) -> 58.89 | H56: =IF('Proxy Price Data'!I53="","",'Proxy Price Data'!I53) -> 61.16
A57: =IF('Proxy Price Data'!B54="","",'Proxy Price Data'!B54) -> 2021-01-15 | B57: =IF('Proxy Price Data'!C54="","",'Proxy Price Data'!C54) -> 90.03 | C57: =IF('Proxy Price Data'!D54="","",'Proxy Price Data'!D54) -> 37.73 | D57: =IF('Proxy Price Data'!E54="","",'Proxy Price Data'!E54) -> 44.71 | E57: =IF('Proxy Price Data'!F54="","",'Proxy Price Data'!F54) -> 71.99 | F57: =IF('Proxy Price Data'!G54="","",'Proxy Price Data'!G54) -> 22.72 | G57: =IF('Proxy Price Data'!H54="","",'Proxy Price Data'!H54) -> 60.11 | H57: =IF('Proxy Price Data'!I54="","",'Proxy Price Data'!I54) -> 61.65
A58: =IF('Proxy Price Data'!B55="","",'Proxy Price Data'!B55) -> 2021-01-14 | B58: =IF('Proxy Price Data'!C55="","",'Proxy Price Data'!C55) -> 87.64 | C58: =IF('Proxy Price Data'!D55="","",'Proxy Price Data'!D55) -> 37.74 | D58: =IF('Proxy Price Data'!E55="","",'Proxy Price Data'!E55) -> 44.4 | E58: =IF('Proxy Price Data'!F55="","",'Proxy Price Data'!F55) -> 71.46 | F58: =IF('Proxy Price Data'!G55="","",'Proxy Price Data'!G55) -> 22.52 | G58: =IF('Proxy Price Data'!H55="","",'Proxy Price Data'!H55) -> 59.89 | H58: =IF('Proxy Price Data'!I55="","",'Proxy Price Data'!I55) -> 61.21
A59: =IF('Proxy Price Data'!B56="","",'Proxy Price Data'!B56) -> 2021-01-13 | B59: =IF('Proxy Price Data'!C56="","",'Proxy Price Data'!C56) -> 88.46 | C59: =IF('Proxy Price Data'!D56="","",'Proxy Price Data'!D56) -> 37.38 | D59: =IF('Proxy Price Data'!E56="","",'Proxy Price Data'!E56) -> 44.5 | E59: =IF('Proxy Price Data'!F56="","",'Proxy Price Data'!F56) -> 71.49 | F59: =IF('Proxy Price Data'!G56="","",'Proxy Price Data'!G56) -> 22.02 | G59: =IF('Proxy Price Data'!H56="","",'Proxy Price Data'!H56) -> 59.6 | H59: =IF('Proxy Price Data'!I56="","",'Proxy Price Data'!I56) -> 61.54
A60: =IF('Proxy Price Data'!B57="","",'Proxy Price Data'!B57) -> 2021-01-12 | B60: =IF('Proxy Price Data'!C57="","",'Proxy Price Data'!C57) -> 87.62 | C60: =IF('Proxy Price Data'!D57="","",'Proxy Price Data'!D57) -> 36.84 | D60: =IF('Proxy Price Data'!E57="","",'Proxy Price Data'!E57) -> 43.64 | E60: =IF('Proxy Price Data'!F57="","",'Proxy Price Data'!F57) -> 71.56 | F60: =IF('Proxy Price Data'!G57="","",'Proxy Price Data'!G57) -> 21.95 | G60: =IF('Proxy Price Data'!H57="","",'Proxy Price Data'!H57) -> 59.79 | H60: =IF('Proxy Price Data'!I57="","",'Proxy Price Data'!I57) -> 61.01
A61: =IF('Proxy Price Data'!B58="","",'Proxy Price Data'!B58) -> 2021-01-11 | B61: =IF('Proxy Price Data'!C58="","",'Proxy Price Data'!C58) -> 87.67 | C61: =IF('Proxy Price Data'!D58="","",'Proxy Price Data'!D58) -> 35.78 | D61: =IF('Proxy Price Data'!E58="","",'Proxy Price Data'!E58) -> 43.87 | E61: =IF('Proxy Price Data'!F58="","",'Proxy Price Data'!F58) -> 71.92 | F61: =IF('Proxy Price Data'!G58="","",'Proxy Price Data'!G58) -> 21.86 | G61: =IF('Proxy Price Data'!H58="","",'Proxy Price Data'!H58) -> 58.11 | H61: =IF('Proxy Price Data'!I58="","",'Proxy Price Data'!I58) -> 60.95
A62: =IF('Proxy Price Data'!B59="","",'Proxy Price Data'!B59) -> 2021-01-08 | B62: =IF('Proxy Price Data'!C59="","",'Proxy Price Data'!C59) -> 89.26 | C62: =IF('Proxy Price Data'!D59="","",'Proxy Price Data'!D59) -> 35.44 | D62: =IF('Proxy Price Data'!E59="","",'Proxy Price Data'!E59) -> 43.93 | E62: =IF('Proxy Price Data'!F59="","",'Proxy Price Data'!F59) -> 72.61 | F62: =IF('Proxy Price Data'!G59="","",'Proxy Price Data'!G59) -> 21.61 | G62: =IF('Proxy Price Data'!H59="","",'Proxy Price Data'!H59) -> 58.51 | H62: =IF('Proxy Price Data'!I59="","",'Proxy Price Data'!I59) -> 62.13
A63: =IF('Proxy Price Data'!B60="","",'Proxy Price Data'!B60) -> 2021-01-07 | B63: =IF('Proxy Price Data'!C60="","",'Proxy Price Data'!C60) -> 89.77 | C63: =IF('Proxy Price Data'!D60="","",'Proxy Price Data'!D60) -> 35.34 | D63: =IF('Proxy Price Data'!E60="","",'Proxy Price Data'!E60) -> 43.85 | E63: =IF('Proxy Price Data'!F60="","",'Proxy Price Data'!F60) -> 74.41 | F63: =IF('Proxy Price Data'!G60="","",'Proxy Price Data'!G60) -> 21.63 | G63: =IF('Proxy Price Data'!H60="","",'Proxy Price Data'!H60) -> 59.22 | H63: =IF('Proxy Price Data'!I60="","",'Proxy Price Data'!I60) -> 62.24
A64: =IF('Proxy Price Data'!B61="","",'Proxy Price Data'!B61) -> 2021-01-06 | B64: =IF('Proxy Price Data'!C61="","",'Proxy Price Data'!C61) -> 93.71 | C64: =IF('Proxy Price Data'!D61="","",'Proxy Price Data'!D61) -> 35.63 | D64: =IF('Proxy Price Data'!E61="","",'Proxy Price Data'!E61) -> 45.27 | E64: =IF('Proxy Price Data'!F61="","",'Proxy Price Data'!F61) -> 77.49 | F64: =IF('Proxy Price Data'!G61="","",'Proxy Price Data'!G61) -> 22.06 | G64: =IF('Proxy Price Data'!H61="","",'Proxy Price Data'!H61) -> 60.96 | H64: =IF('Proxy Price Data'!I61="","",'Proxy Price Data'!I61) -> 63.74
A65: =IF('Proxy Price Data'!B62="","",'Proxy Price Data'!B62) -> 2021-01-05 | B65: =IF('Proxy Price Data'!C62="","",'Proxy Price Data'!C62) -> 92.61 | C65: =IF('Proxy Price Data'!D62="","",'Proxy Price Data'!D62) -> 33.67 | D65: =IF('Proxy Price Data'!E62="","",'Proxy Price Data'!E62) -> 43.96 | E65: =IF('Proxy Price Data'!F62="","",'Proxy Price Data'!F62) -> 74.88 | F65: =IF('Proxy Price Data'!G62="","",'Proxy Price Data'!G62) -> 21.08 | G65: =IF('Proxy Price Data'!H62="","",'Proxy Price Data'!H62) -> 58.92 | H65: =IF('Proxy Price Data'!I62="","",'Proxy Price Data'!I62) -> 62.39
A67: Average Price | B67: =IFERROR(ROUND(AVERAGE(B6:B65),2),0) -> 90.97 | C67: =IFERROR(ROUND(AVERAGE(C6:C65),2),0) -> 38.18 | D67: 48.01 | E67: 72.93 | F67: 23.71 | G67: 63.43 | H67: 66.81
A69: Indicated Dividend | B69: ='Proxy Data Lookup'!$J3 -> 2.5 | C69: ='Proxy Data Lookup'!$J4 -> 1.33 | D69: ='Proxy Data Lookup'!$J5 -> 1.92 | E69: ='Proxy Data Lookup'!$J6 -> 2.32 | F69: ='Proxy Data Lookup'!$J7 -> 1.21 | G69: ='Proxy Data Lookup'!$J8 -> 2.38 | H69: ='Proxy Data Lookup'!$J9 -> 2.6
A71: Indicated Dividend Yield | B71: =IFERROR(ROUND(B69/B67,4),0) -> 0.0275 | C71: =IFERROR(ROUND(C69/C67,4),0) -> 0.0348 | D71: 0.04 | E71: 0.0318 | F71: 0.051 | G71: 0.0375 | H71: 0.0389

Sheet CEM Data Lookup
C2: EPS Growth Rates | G2: Beta | J2: Annual Div. | K2: Bond Ratings | M2: Value Line Beta Calculation
A3: Ticker | B3: Company Name | C3: Zacks | D3: Yahoo | E3: Bloomberg | F3: Value Line | G3: Value Line | H3: Bloomberg | I3: Unadjusted | K3: Moody's | L3: S&P | M3: R Factor | N3: Std. Error | O3: Std. Dev Y | P3: Std. Dev Beta
A4: =Input!C2 -> AAPL | B4: Apple Inc. | C4: 0.11 | D4: 0.1469 | E4: 0.095 | F4: 0.145 | G4: 0.9 | H4: 1.018661261 | I4: 0.81 | J4: 0.82 | K4: Aa1 | L4: AA+ | M4: 0.5381 | N4: 3.1746 | O4: 3.7591 | P4: 0.0792
A5: =Input!C3 -> ABT | B5: Abbott Labs. | C5: 0.14 | D5: 0.1558 | E5: 0.14195 | F5: 0.12 | G5: 0.95 | H5: 0.8556768894 | I5: 0.88 | J5: 1.8 | K5: A3 | L5: A | M5: 0.6245 | N5: 2.7401 | O5: 3.5017 | P5: 0.0684
A6: =Input!C4 -> AIZ | B6: Assurant Inc. | C6: NA | D6: 0.194 | E6: NA | F6: 0.115 | G6: 0.9 | H6: 0.9803740978 | I6: 0.84 | J6: 2.64 | K6: Baa3 | L6: BBB | M6: 0.5804 | N6: 2.9537 | O6: 3.62 | P6: 0.0737
A7: =Input!C5 -> ANSS | B7: ANSYS, Inc. | C7: NA | D7: 0.08 | E7: 0.1205 | F7: 0.1 | G7: 0.85 | H7: 0.9702615738 | I7: 0.74 | J7: NA | K7: NA | L7: NA | M7: 0.5412 | N7: 2.8841 | O7: 3.423 | P7: 0.072
A8: =Input!C6 -> BAH | B8: Booz Allen Hamilton | C8: 0.106 | D8: 0.1099 | E8: NA | F8: 0.125 | G8: 0.9 | H8: 0.9037358761 | I8: 0.82 | J8: 1.48 | K8: NA | L8: NA | M8: 0.5601 | N8: 3.0468 | O8: 3.6706 | P8: 0.076
A9: =Input!C7 -> BDX | B9: Becton, Dickinson | C9: 0.09 | D9: 0.12 | E9: 0.09537 | F9: 0.09 | G9: 0.8 | H9: 0.5874222517 | I9: 0.66 | J9: 3.32 | K9: Baa3 | L9: BBB | M9: 0.4945 | N9: 2.8952 | O9: 3.3246 | P9: 0.0722
A10: =Input!C8 -> BFB | B10: Brown-Forman 'B' | C10: NA | D10: 0.0753 | E10: 0.0539 | F10: 0.12 | G10: 0.9 | H10: 0.9805150628 | I10: 0.77 | J10: 0.718 | K10: A1 | L10: A- | M10: 0.5759 | N10: 2.7453 | O10: 3.3514 | P10: 0.0685
A11: =Input!C9 -> BR | B11: Broadridge Fin'l | C11: NA | D11: 0.1 | E11: 0.107 | F11: 0.105 | G11: 0.85 | H11: 0.8266204 | I11: 0.7 | J11: 2.3 | K11: Baa1 | L11: BBB+ | M11: 0.5412 | N11: 2.7332 | O11: 3.244 | P11: 0.0682
A12: =Input!C10 -> BRC | B12: Brady Corp. | C12: 0.07 | D12: 0.07 | E12: 0.07333 | F12: 0.08 | G12: 1 | H12: 1.053110003 | I12: 0.93 | J12: 0.88 | K12: NA | L12: NA | M12: 0.6126 | N12: 3.0007 | O12: 3.7889 | P12: 0.0749
A13: =Input!C11 -> CACI | B13: CACI Int'l | C13: 0.105 | D13: 0.1291 | E13: 0.1053 | F13: 0.14 | G13: 0.95 | H13: 0.9986667633 | I13: 0.86 | J13: NA | K13: NA | L13: BB+ | M13: 0.5607 | N13: 3.1684 | O13: 3.8191 | P13: 0.0791
A14: =Input!C12 -> CASY | B14: Casey's Gen'l Stores | C14: NA | D14: 0.0785 | E14: 0.15805 | F14: 0.09 | G14: 0.9 | H14: 0.9072591066 | I14: 0.78 | J14: 1.36 | K14: NA | L14: NA | M14: 0.5154 | N14: 3.2522 | O14: 3.7879 | P14: 0.0812
A15: =Input!C13 -> CDNS | B15: Cadence Design Sys. | C15: 0.111 | D15: 0.111 | E15: 0.119 | F15: 0.13 | G15: 0.9 | H15: 0.9843332767 | I15: 0.79 | J15: NA | K15: Baa2 | L15: BBB+ | M15: 0.5468 | N15: 3.0338 | O15: 3.6165 | P15: 0.0757
A16: =Input!C14 -> CERN | B16: Cerner Corp. | C16: 0.123 | D16: 0.1151 | E16: 0.0861 | F16: 0.08 | G16: 0.9 | H16: 0.8874267936 | I16: 0.84 | J16: 0.88 | K16: NA | L16: NA | M16: 0.6112 | N16: 2.7309 | O16: 3.4436 | P16: 0.0681
A17: =Input!C15 -> CSWI | B17: CSW Industrials | C17: NA | D17: 0.12 | E17: NA | F17: 0.085 | G17: 0.9 | H17: 1.03445971 | I17: 0.81 | J17: 0.54 | K17: NA | L17: NA | M17: 0.574 | N17: 2.8884 | O17: 3.5204 | P17: 0.0721
A18: =Input!C16 -> DGX | B18: Quest Diagnostics | C18: 0.265 | D18: 0.0922 | E18: -0.06933 | F18: 0.1 | G18: 0.85 | H18: 0.9627068639 | I18: 0.75 | J18: 2.48 | K18: Baa2 | L18: BBB+ | M18: 0.5648 | N18: 2.7411 | O18: 3.3152 | P18: 0.0684
A19: =Input!C17 -> EL | B19: Lauder (Estee) | C19: 0.107 | D19: 0.211 | E19: 0.17225 | F19: 0.11 | G19: 0.95 | H19: 1.008492231 | I19: 0.85 | J19: 2.12 | K19: A1 | L19: A+ | M19: 0.6021 | N19: 2.8216 | O19: 3.5271 | P19: 0.0704
A20: =Input!C18 -> EXPO | B20: Exponent, Inc. | C20: NA | D20: 0.15 | E20: 0.133 | F20: 0.12 | G20: 0.9 | H20: 0.939268887 | I20: 0.79 | J20: 0.8 | K20: NA | L20: NA | M20: 0.5605 | N20: 2.9131 | O20: 3.5107 | P20: 0.0727
A21: =Input!C19 -> FAST | B21: Fastenal Co. | C21: 0.09 | D21: 0.0804 | E21: 0.1015 | F21: 0.08 | G21: 0.9 | H21: 0.9674893618 | I21: 0.85 | J21: 1.12 | K21: NA | L21: NA | M21: 0.5488 | N21: 3.2203 | O21: 3.8448 | P21: 0.0804
A22: =Input!C20 -> GNTX | B22: Gentex Corp. | C22: 0.047 | D22: 0.158 | E22: 0.10245 | F22: 0.105 | G22: 0.95 | H22: 1.066707015 | I22: 0.91 | J22: 0.48 | K22: NA | L22: NA | M22: 0.6371 | N22: 2.7546 | O22: 3.567 | P22: 0.0687
A23: =Input!C21 -> IFF | B23: Int'l Flavors & Frag | C23: 0.1 | D23: 0.1 | E23: 0.2105 | F23: 0.065 | G23: 0.95 | H23: 1.075577259 | I23: 0.87 | J23: 3.08 | K23: Baa3 | L23: BBB | M23: 0.5586 | N23: 3.2238 | O23: 3.879 | P23: 0.0804
A24: =Input!C22 -> INGR | B24: Ingredion Inc. | C24: NA | D24: 0.019 | E24: 0.11 | F24: 0.06 | G24: 0.9 | H24: 0.9270150661 | I24: 0.78 | J24: 2.56 | K24: Baa1 | L24: BBB | M24: 0.5608 | N24: 2.8793 | O24: 3.4709 | P24: 0.0718
A25: =Input!C23 -> IRM | B25: Iron Mountain | C25: 0.017 | D25: 0.017 | E25: 0.04 | F25: 0.075 | G25: 0.9 | H25: 1.02173388 | I25: 0.82 | J25: 2.474 | K25: Ba3 | L25: BB- | M25: 0.5515 | N25: 3.0897 | O25: 3.6966 | P25: 0.0771
A26: =Input!C24 -> JBHT | B26: Hunt (J.B.) | C26: 0.15 | D26: 0.2073 | E26: 0.17233 | F26: 0.065 | G26: 0.95 | H26: 0.9215813875 | I26: 0.86 | J26: 1.12 | K26: Baa1 | L26: BBB+ | M26: 0.6034 | N26: 2.8344 | O26: 3.5476 | P26: 0.0707
A27: =Input!C25 -> JJSF | B27: J&J Snack Foods | C27: NA | D27: 0.06 | E27: NA | F27: 0.1 | G27: 0.9 | H27: 0.7728626132 | I27: 0.84 | J27: 2.3 | K27: NA | L27: NA | M27: 0.5858 | N27: 2.9208 | O27: 3.5969 | P27: 0.0729
A28: =Input!C26 -> JKHY | B28: Henry (Jack) & Assoc | C28: 0.109 | D28: 0.1002 | E28: 0.12467 | F28: 0.105 | G28: 0.85 | H28: 0.8934056759 | I28: 0.71 | J28: 1.84 | K28: NA | L28: NA | M28: 0.5383 | N28: 2.7734 | O28: 3.2844 | P28: 0.0692
A29: =Input!C27 -> MANT | B29: ManTech Int'l 'A' | C29: 0.051 | D29: 0.0453 | E29: 0.0506 | F29: 0.12 | G29: 0.85 | H29: 1.12122035 | I29: 0.77 | J29: 1.52 | K29: WR | L29: BB+ | M29: 0.5306 | N29: 3.0653 | O29: 3.6094 | P29: 0.0765
A30: =Input!C28 -> MKC | B30: McCormick & Co. | C30: 0.066 | D30: 0.055 | E30: 0.0582 | F30: 0.065 | G30: 0.8 | H30: 0.6942995787 | I30: 0.66 | J30: 1.36 | K30: Baa2 | L30: BBB | M30: 0.5089 | N30: 2.7887 | O30: 3.2332 | P30: 0.0696
A31: =Input!C29 -> MO | B31: Altria Group | C31: 0.04 | D31: 0.0442 | E31: 0.027 | F31: 0.065 | G31: 0.9 | H31: 0.8878540993 | I31: 0.83 | J31: 3.44 | K31: A3 | L31: BBB | M31: 0.5787 | N31: 2.9215 | O31: 3.5754 | P31: 0.0729
A32: =Input!C30 -> MSA | B32: MSA Safety | C32: NA | D32: 0.18 | E32: 0.09 | F32: 0.065 | G32: 1 | H32: 1.003736377 | I32: 0.94 | J32: 1.72 | K32: NA | L32: NA | M32: 0.614 | N32: 3.0076 | O32: 3.8031 | P32: 0.075
A33: =Input!C31 -> MSCI | B33: MSCI Inc. | C33: NA | D33: 0.1437 | E33: 0.122 | F33: 0.18 | G33: 0.95 | H33: 0.9259572029 | I33: 0.87 | J33: 3.12 | K33: Ba2 | L33: BB+ | M33: 0.5913 | N33: 2.9662 | O33: 3.6709 | P33: 0.074
A34: =Input!C32 -> MSI | B34: Motorola Solutions | C34: 0.09 | D34: 0.0588 | E34: 0.113 | F34: 0.07 | G34: 0.9 | H34: 0.9497645497 | I34: 0.8 | J34: 2.84 | K34: Baa3 | L34: BBB- | M34: 0.5831 | N34: 2.7926 | O34: 3.4307 | P34: 0.0697
A35: =Input!C33 -> MTN | B35: Vail Resorts | C35: NA | D35: 0.698 | E35: 0.8686 | F35: 0.085 | G35: 0.95 | H35: 1.145390511 | I35: 0.88 | J35: NA | K35: B2 | L35: BB | M35: 0.5651 | N35: 3.1939 | O35: 3.8638 | P35: 0.0797
A36: =Input!C34 -> MXIM | B36: Maxim Integrated | C36: 0.1 | D36: 0.1844 | E36: 0.113 | F36: 0.08 | G36: 0.95 | H36: 0.9958577156 | I36: 0.87 | J36: NA | K36: Baa1 | L36: BBB+ | M36: 0.5946 | N36: 2.9404 | O36: 3.6501 | P36: 0.0734
A37: =Input!C35 -> NOC | B37: Northrop Grumman | C37: NA | D37: 0.0544 | E37: 0.04955 | F37: 0.07 | G37: 0.85 | H37: 0.7867762446 | I37: 0.71 | J37: 5.8 | K37: Baa2 | L37: BBB+ | M37: 0.5202 | N37: 2.9032 | O37: 3.3928 | P37: 0.0724
A38: =Input!C36 -> ODFL | B38: Old Dominion Freight | C38: 0.153 | D38: 0.1589 | E38: 0.16177 | F38: 0.09 | G38: 0.9 | H38: 0.9823446274 | I38: 0.83 | J38: 0.8 | K38: NA | L38: NA | M38: 0.5598 | N38: 3.0708 | O38: 3.6988 | P38: 0.0766
A39: =Input!C37 -> PKI | B39: PerkinElmer Inc. | C39: 0.195 | D39: 0.172 | E39: -0.06872 | F39: 0.175 | G39: 0.95 | H39: 0.8428275585 | I39: 0.86 | J39: 0.28 | K39: Baa3 | L39: BBB | M39: 0.5963 | N39: 2.8896 | O39: 3.5925 | P39: 0.0721
A40: =Input!C38 -> PM | B40: Philip Morris Int'l | C40: 0.083 | D40: 0.1142 | E40: 0.10385 | F40: 0.05 | G40: 0.95 | H40: 0.924968183 | I40: 0.88 | J40: 4.8 | K40: A2 | L40: A | M40: 0.5628 | N40: 3.2481 | O40: 3.922 | P40: 0.0811
A41: =Input!C39 -> POOL | B41: Pool Corp. | C41: NA | D41: 0.17 | E41: 0.17 | F41: 0.175 | G41: 0.85 | H41: 0.9361380935 | I41: 0.75 | J41: 2.32 | K41: NA | L41: NA | M41: 0.5034 | N41: 3.2001 | O41: 3.6964 | P41: 0.0799
A42: =Input!C40 -> POST | B42: Post Holdings | C42: NA | D42: 0.312 | E42: 0.203 | F42: 0.115 | G42: 0.95 | H42: 0.8975200653 | I42: 0.86 | J42: NA | K42: B2 | L42: B+ | M42: 0.5813 | N42: 3.0105 | O42: 3.6926 | P42: 0.0751
A43: =Input!C41 -> RLI | B43: RLI Corp. | C43: NA | D43: 0.098 | E43: NA | F43: 0.125 | G43: 0.8 | H43: 0.885623455 | I43: 0.64 | J43: 0.96 | K43: Baa2 | L43: BBB+ | M43: 0.4717 | N43: 2.9883 | O43: 3.3825 | P43: 0.0746
A44: =Input!C42 -> ROL | B44: Rollins, Inc. | C44: NA | D44: 0.082 | E44: NA | F44: 0.115 | G44: 0.85 | H44: 0.6865788698 | I44: 0.73 | J44: 0.32 | K44: NA | L44: NA | M44: 0.5258 | N44: 2.9697 | O44: 3.4845 | P44: 0.0741
A45: =Input!C43 -> SIGI | B45: Selective Ins. Group | C45: NA | D45: 0.051 | E45: NA | F45: 0.085 | G45: 0.85 | H45: 0.9614696503 | I45: 0.77 | J45: 1 | K45: Baa2 | L45: BBB | M45: 0.5397 | N45: 3.0004 | O45: 3.5572 | P45: 0.0749
A46: =Input!C44 -> SIRI | B46: Sirius XM Holdings | C46: 0.148 | D46: 0.1293 | E46: 0.2696 | F46: 0.245 | G46: 0.95 | H46: 1.101481438 | I46: 0.91 | J46: 0.058564 | K46: NA | L46: BB | M46: 0.6316 | N46: 2.7995 | O46: 3.6039 | P46: 0.0699
A47: =Input!C45 -> TECH | B47: Bio-Techne Corp. | C47: 0.15 | D47: 0.15 | E47: 0.19033 | F47: 0.125 | G47: 0.8 | H47: 0.923523128 | I47: 0.67 | J47: 1.28 | K47: NA | L47: NA | M47: 0.4592 | N47: 3.2475 | O47: 3.6485 | P47: 0.081
A48: =Input!C46 -> TTEK | B48: Tetra Tech | C48: 0.15 | D48: 0.15 | E48: 0.1385 | F48: 0.135 | G48: 0.9 | H48: 1.050180554 | I48: 0.84 | J48: 0.68 | K48: NA | L48: NA | M48: 0.5717 | N48: 3.0245 | O48: 3.6791 | P48: 0.0755
A49: =Input!C47 -> WAT | B49: Waters Corp. | C49: 0.088 | D49: 0.0717 | E49: 0.0903 | F49: 0.06 | G49: 0.95 | H49: 0.8531792164 | I49: 0.86 | J49: NA | K49: NA | L49: NA | M49: 0.615 | N49: 2.7531 | O49: 3.4846 | P49: 0.0687
A50: =Input!C48 -> WST | B50: West Pharmac. Svcs. | C50: 0.226 | D50: 0.226 | E50: 0.1721 | F50: 0.17 | G50: 0.85 | H50: 0.758402288 | I50: 0.7 | J50: 0.68 | K50: NA | L50: NA | M50: 0.4811 | N50: 3.1887 | O50: 3.6301 | P50: 0.0796
A51: =Input!C49 -> WU | B51: Western Union | C51: NA | D51: 0.0925 | E51: 0.04567 | F51: 0.06 | G51: 0.8 | H51: 1.046673775 | I51: 0.67 | J51: 0.94 | K51: Baa2 | L51: BBB | M51: 0.5229 | N51: 2.7346 | O51: 3.2018 | P51: 0.0682

Sheet CEM Price Data
A1: Lookup Reference | B1: Tickers | C1: AAPL | D1: ABT | E1: AIZ | F1: ANSS | G1: BAH | H1: BDX | I1: BFB | J1: BR | K1: BRC | L1: CACI | M1: CASY | N1: CDNS | O1: CERN | P1: CSWI | Q1: DGX | R1: EL | S1: EXPO | T1: FAST | U1: GNTX | V1: IFF | W1: INGR | X1: IRM | Y1: JBHT | Z1: JJSF | AA1: JKHY | AB1: MANT | AC1: MKC | AD1: MO | AE1: MSA | AF1: MSCI | AG1: MSI | AH1: MTN | AI1: MXIM | AJ1: NOC | AK1: ODFL | AL1: PKI | AM1: PM | AN1: POOL | AO1: POST | AP1: RLI | AQ1: ROL | AR1: SIGI | AS1: SIRI | AT1: TECH | AU1: TTEK | AV1: WAT | AW1: WST | AX1: WU
B2: PX_LAST | C2: AAPL US Equity | D2: ABT US Equity | E2: AIZ US Equity | F2: ANSS US Equity | G2: BAH US Equity | H2: BDX US Equity | I2: BF/B US Equity | J2: BR US Equity | K2: BRC US Equity | L2: CACI US Equity | M2: CASY US Equity | N2: CDNS US Equity | O2: CERN US Equity | P2: CSWI US Equity | Q2: DGX US Equity | R2: EL US Equity | S2: EXPO US Equity | T2: FAST US Equity | U2: GNTX US Equity | V2: IFF US Equity | W2: INGR US Equity | X2: IRM US Equity | Y2: JBHT US Equity | Z2: JJSF US Equity | AA2: JKHY US Equity | AB2: MANT US Equity | AC2: MKC US Equity | AD2: MO US Equity | AE2: MSA US Equity | AF2: MSCI US Equity | AG2: MSI US Equity | AH2: MTN US Equity | AI2: MXIM US Equity | AJ2: NOC US Equity | AK2: ODFL US Equity | AL2: PKI US Equity | AM2: PM US Equity | AN2: POOL US Equity | AO2: POST US Equity | AP2: RLI US Equity | AQ2: ROL US Equity | AR2: SIGI US Equity | AS2: SIRI US Equity | AT2: TECH US Equity | AU2: TTEK US Equity | AV2: WAT US Equity | AW2: WST US Equity | AX2: WU US Equity
A3: 1 | B3: 2021-03-31 | C3: 122.15 | D3: 119.84 | E3: 141.77 | F3: 339.56 | G3: 80.53 | H3: 243.15 | I3: 68.97 | J3: 153.1 | K3: 53.45 | L3: 246.66 | M3: 216.19 | N3: 136.99 | O3: 71.88 | P3: 135 | Q3: 128.34 | R3: 290.85 | S3: 97.45 | T3: 50.28 | U3: 35.67 | V3: 139.61 | W3: 89.92 | X3: 37.01 | Y3: 168.07 | Z3: 157.03 | AA3: 151.72 | AB3: 86.95 | AC3: 89.16 | AD3: 51.16 | AE3: 150.02 | AF3: 419.28 | AG3: 188.05 | AH3: 291.66 | AI3: 91.37 | AJ3: 323.64 | AK3: 240.41 | AL3: 128.29 | AM3: 88.74 | AN3: 345.24 | AO3: 105.72 | AP3: 111.57 | AQ3: 34.42 | AR3: 72.54 | AS3: 6.09 | AT3: 381.93 | AU3: 135.72 | AV3: 284.17 | AW3: 281.78 | AX3: 24.66
A4: =A3+1 -> 2 | B4: 2021-03-30 | C4: 119.9 | D4: 119.75 | E4: 144.71 | F4: 331.89 | G4: 80.77 | H4: 245.19 | I4: 70 | J4: 152.98 | K4: 54.04 | L4: 246.25 | M4: 217.23 | N4: 130.87 | O4: 71.64 | P4: 135.05 | Q4: 128.49 | R4: 295.13 | S4: 96.24 | T4: 50.62 | U4: 35.89 | V4: 139.75 | W4: 92.19 | X4: 37.16 | Y4: 169.34 | Z4: 156.91 | AA4: 153.4 | AB4: 86.67 | AC4: 89.9 | AD4: 51.26 | AE4: 150.05 | AF4: 417.51 | AG4: 186.61 | AH4: 290.16 | AI4: 89.92 | AJ4: 322.68 | AK4: 240.61 | AL4: 127.73 | AM4: 89.35 | AN4: 342.37 | AO4: 106.69 | AP4: 112.4 | AQ4: 33.92 | AR4: 73.3 | AS4: 6.12 | AT4: 373.47 | AU4: 133.63 | AV4: 282.51 | AW4: 278.34 | AX4: 24.84
A5: =A4+1 -> 3 | B5: 2021-03-29 | C5: 121.39 | D5: 122.23 | E5: 143.77 | F5: 342.23 | G5: 81.42 | H5: 247.14 | I5: 70.41 | J5: 157.31 | K5: 54.36 | L5: 247.95 | M5: 215.17 | N5: 132.75 | O5: 72.49 | P5: 134.4 | Q5: 128.04 | R5: 290.53 | S5: 95.49 | T5: 50.68 | U5: 35.37 | V5: 141.31 | W5: 91.78 | X5: 36.69 | Y5: 167.34 | Z5: 157.97 | AA5: 156.41 | AB5: 87.2 | AC5: 90.13 | AD5: 52.3 | AE5: 147.89 | AF5: 426.37 | AG5: 188.88 | AH5: 284.13 | AI5: 91.04 | AJ5: 323.15 | AK5: 235.34 | AL5: 128.65 | AM5: 90.99 | AN5: 343.48 | AO5: 107.28 | AP5: 112.83 | AQ5: 34.18 | AR5: 73.17 | AS5: 6.15 | AT5: 366.99 | AU5: 130.76 | AV5: 284.02 | AW5: 280.51 | AX5: 24.79
A6: 4 | B6: 2021-03-26 | C6: 121.21 | D6: 122.07 | E6: 144.65 | F6: 342.96 | G6: 79.76 | H6: 245.12 | I6: 69.38 | J6: 153.44 | K6: 55.41 | L6: 241.6 | M6: 216.91 | N6: 132.58 | O6: 72.43 | P6: 135.7 | Q6: 129.24 | R6: 292.31 | S6: 96.58 | T6: 50.56 | U6: 35.7 | V6: 140.52 | W6: 92.78 | X6: 37.28 | Y6: 166.9 | Z6: 157.64 | AA6: 155.19 | AB6: 86.92 | AC6: 90.21 | AD6: 52.5 | AE6: 150.8 | AF6: 424.87 | AG6: 189.6 | AH6: 286.23 | AI6: 93.14 | AJ6: 319.02 | AK6: 235.75 | AL6: 129.55 | AM6: 90.58 | AN6: 341.86 | AO6: 107.47 | AP6: 113.81 | AQ6: 34.19 | AR6: 74.42 | AS6: 6.22 | AT6: 388.24 | AU6: 133.42 | AV6: 281.22 | AW6: 280.31 | AX6: 25.37
A7: 5 | B7: 2021-03-25 | C7: 120.59 | D7: 119.05 | E7: 143.54 | F7: 327.88 | G7: 80.38 | H7: 241.73 | I7: 68.95 | J7: 148.24 | K7: 54.02 | L7: 245.53 | M7: 211.93 | N7: 125.67 | O7: 72.28 | P7: 131.01 | Q7: 127.15 | R7: 286.16 | S7: 94.48 | T7: 49.22 | U7: 34.595 | V7: 139.41 | W7: 90.88 | X7: 36.86 | Y7: 161.42 | Z7: 157.77 | AA7: 152.78 | AB7: 86.7 | AC7: 88.7 | AD7: 50.19 | AE7: 152.75 | AF7: 412.05 | AG7: 184.09 | AH7: 280 | AI7: 88.42 | AJ7: 321.19 | AK7: 231.76 | AL7: 125.85 | AM7: 88.69 | AN7: 335.25 | AO7: 105.54 | AP7: 113.93 | AQ7: 33.91 | AR7: 73.46 | AS7: 6.15 | AT7: 377.22 | AU7: 129.51 | AV7: 273 | AW7: 275.45 | AX7: 24.7
A8: 6 | B8: 2021-03-24 | C8: 120.09 | D8: 118.02 | E8: 142 | F8: 330.37 | G8: 79.73 | H8: 241.77 | I8: 69.07 | J8: 148.87 | K8: 53.01 | L8: 244.81 | M8: 206.09 | N8: 126.97 | O8: 71.83 | P8: 131.5 | Q8: 126.89 | R8: 284.98 | S8: 93.1 | T8: 48.23 | U8: 34.24 | V8: 136.43 | W8: 89.65 | X8: 36.46 | Y8: 159.53 | Z8: 157.04 | AA8: 153.92 | AB8: 85.14 | AC8: 87.53 | AD8: 49.51 | AE8: 149.75 | AF8: 424.03 | AG8: 181.04 | AH8: 278.35 | AI8: 89.39 | AJ8: 316.03 | AK8: 234.11 | AL8: 125.2 | AM8: 88.55 | AN8: 340.1 | AO8: 103.12 | AP8: 110.02 | AQ8: 33.81 | AR8: 72.05 | AS8: 6.11 | AT8: 369.46 | AU8: 127.05 | AV8: 269.05 | AW8: 278.08 | AX8: 24.24
A9: 7 | B9: 2021-03-23 | C9: 122.54 | D9: 120.49 | E9: 140.62 | F9: 333.53 | G9: 80.05 | H9: 240.26 | I9: 69.86 | J9: 147.27 | K9: 53.41 | L9: 246.05 | M9: 209.6 | N9: 128.25 | O9: 71.73 | P9: 128.4 | Q9: 125.21 | R9: 281.28 | S9: 92.9 | T9: 47.7 | U9: 34.52 | V9: 136 | W9: 88.23 | X9: 36.26 | Y9: 155.95 | Z9: 153.7 | AA9: 151.83 | AB9: 84.41 | AC9: 87.56 | AD9: 50.51 | AE9: 154.63 | AF9: 420.76 | AG9: 183.88 | AH9: 299.28 | AI9: 88.85 | AJ9: 314.14 | AK9: 231.65 | AL9: 127.25 | AM9: 88.05 | AN9: 340.91 | AO9: 103.45 | AP9: 108.44 | AQ9: 33.96 | AR9: 71.89 | AS9: 6.24 | AT9: 376.47 | AU9: 128 | AV9: 270.69 | AW9: 283.25 | AX9: 24.62
A10: 8 | B10: 2021-03-22 | C10: 123.39 | D10: 121.47 | E10: 140.75 | F10: 334.86 | G10: 79.83 | H10: 241.62 | I10: 69.18 | J10: 147.59 | K10: 54.52 | L10: 250.11 | M10: 207.35 | N10: 127.97 | O10: 71.97 | P10: 130.11 | Q10: 125.91 | R10: 286.18 | S10: 95.2 | T10: 47.98 | U10: 34.88 | V10: 137.3 | W10: 90.21 | X10: 36.58 | Y10: 158.41 | Z10: 154.39 | AA10: 149.23 | AB10: 84.32 | AC10: 87.85 | AD10: 51.64 | AE10: 159.12 | AF10: 419.36 | AG10: 185.71 | AH10: 313.49 | AI10: 90.66 | AJ10: 314.21 | AK10: 231.25 | AL10: 128.13 | AM10: 89.98 | AN10: 336.22 | AO10: 105.5 | AP10: 108.28 | AQ10: 34.37 | AR10: 72.15 | AS10: 6.31 | AT10: 385.38 | AU10: 130.17 | AV10: 271.63 | AW10: 282.49 | AX10: 24.77
A11: 9 | B11: 2021-03-19 | C11: 119.99 | D11: 120.25 | E11: 143.71 | F11: 324.25 | G11: 79.75 | H11: 239.02 | I11: 68.73 | J11: 146.18 | K11: 55.14 | L11: 247.45 | M11: 207.94 | N11: 125.48 | O11: 71.95 | P11: 132 | Q11: 125.28 | R11: 285.22 | S11: 95.48 | T11: 47.63 | U11: 35.55 | V11: 137.31 | W11: 89.9 | X11: 35.8 | Y11: 162.31 | Z11: 160.65 | AA11: 148.13 | AB11: 85.02 | AC11: 86.54 | AD11: 50.55 | AE11: 159.5 | AF11: 410.36 | AG11: 183.22 | AH11: 313.33 | AI11: 89.32 | AJ11: 308.65 | AK11: 230.61 | AL11: 128.4 | AM11: 89.25 | AN11: 340.8 | AO11: 106.91 | AP11: 112.16 | AQ11: 33.78 | AR11: 73.73 | AS11: 6.08 | AT11: 375.24 | AU11: 128.89 | AV11: 268.7 | AW11: 277.15 | AX11: 24.45
A12: 10 | B12: 2021-03-18 | C12: 120.53 | D12: 118.11 | E12: 142.61 | F12: 321.49 | G12: 80.57 | H12: 239.2 | I12: 70.7 | J12: 145.46 | K12: 55.77 | L12: 248.63 | M12: 204.97 | N12: 124.03 | O12: 71.74 | P12: 132.55 | Q12: 124.26 | R12: 286.99 | S12: 95.32 | T12: 47.5 | U12: 36.12 | V12: 137.68 | W12: 91.29 | X12: 35.81 | Y12: 162.09 | Z12: 162.15 | AA12: 148.4 | AB12: 86.37 | AC12: 86.32 | AD12: 50.57 | AE12: 164.19 | AF12: 405.62 | AG12: 181.41 | AH12: 315.58 | AI12: 88.03 | AJ12: 314.94 | AK12: 230.1 | AL12: 126.56 | AM12: 90.56 | AN12: 336.87 | AO12: 103.76 | AP12: 115.3 | AQ12: 33.01 | AR12: 75.9 | AS12: 6.1 | AT12: 373.99 | AU12: 134.42 | AV12: 268.76 | AW12: 268.95 | AX12: 25
A13: 11 | B13: 2021-03-17 | C13: 124.76 | D13: 117.62 | E13: 138.64 | F13: 328.37 | G13: 80.05 | H13: 239.36 | I13: 71.75 | J13: 146.75 | K13: 55.83 | L13: 246.71 | M13: 206.94 | N13: 128.49 | O13: 72.3 | P13: 132.92 | Q13: 123.12 | R13: 290.74 | S13: 96.31 | T13: 48.41 | U13: 36.69 | V13: 137.85 | W13: 92.4 | X13: 36.19 | Y13: 159.9 | Z13: 164.24 | AA13: 150.74 | AB13: 84.55 | AC13: 86.65 | AD13: 49.78 | AE13: 164.86 | AF13: 413.17 | AG13: 181.34 | AH13: 316.06 | AI13: 91.12 | AJ13: 310.57 | AK13: 227.92 | AL13: 126.39 | AM13: 89.2 | AN13: 339.2 | AO13: 105.09 | AP13: 117.29 | AQ13: 32.67 | AR13: 77.36 | AS13: 6.29 | AT13: 381.82 | AU13: 134.44 | AV13: 268.13 | AW13: 274.59 | AX13: 24.87
A14: 12 | B14: 2021-03-16 | C14: 125.57 | D14: 118.22 | E14: 137.39 | F14: 330.78 | G14: 79.44 | H14: 239.55 | I14: 72.64 | J14: 147.63 | K14: 55.08 | L14: 246.25 | M14: 207.39 | N14: 129.39 | O14: 72.2 | P14: 133.57 | Q14: 122.68 | R14: 288.92 | S14: 97.74 | T14: 47.72 | U14: 36.83 | V14: 136.68 | W14: 92.03 | X14: 35.78 | Y14: 158.17 | Z14: 164.5 | AA14: 151.07 | AB14: 81.81 | AC14: 87.23 | AD14: 49.44 | AE14: 163.35 | AF14: 416.58 | AG14: 182.48 | AH14: 309.74 | AI14: 90.19 | AJ14: 305.84 | AK14: 228.98 | AL14: 125.96 | AM14: 88.2 | AN14: 343.97 | AO14: 104.88 | AP14: 116.75 | AQ14: 32.98 | AR14: 76.85 | AS14: 6.33 | AT14: 388.37 | AU14: 132.8 | AV14: 269.77 | AW14: 274.17 | AX14: 24.8
A15: 13 | B15: 2021-03-15 | C15: 123.99 | D15: 118.1 | E15: 138.16 | F15: 325.71 | G15: 80.63 | H15: 240.76 | I15: 72.39 | J15: 146.39 | K15: 56.9 | L15: 248.5 | M15: 208.36 | N15: 129.39 | O15: 72.38 | P15: 134.2 | Q15: 123.36 | R15: 289.55 | S15: 98.38 | T15: 48.13 | U15: 37.26 | V15: 136.79 | W15: 92.56 | X15: 36.81 | Y15: 161.46 | Z15: 165.84 | AA15: 151.57 | AB15: 82.04 | AC15: 87.34 | AD15: 49.84 | AE15: 165.63 | AF15: 419.55 | AG15: 181.85 | AH15: 309.54 | AI15: 88.91 | AJ15: 305.74 | AK15: 231.99 | AL15: 126.63 | AM15: 87.68 | AN15: 347.57 | AO15: 104.04 | AP15: 117.21 | AQ15: 33.62 | AR15: 77.25 | AS15: 6.25 | AT15: 397.01 | AU15: 135.03 | AV15: 272.63 | AW15: 276.02 | AX15: 25.17
A16: 14 | B16: 2021-03-12 | C16: 121.03 | D16: 116.71 | E16: 136.28 | F16: 316.88 | G16: 78.55 | H16: 238.24 | I16: 71.91 | J16: 144.06 | K16: 57.7 | L16: 241.53 | M16: 206.31 | N16: 125.74 | O16: 71.26 | P16: 138.33 | Q16: 121.87 | R16: 289.21 | S16: 98.9 | T16: 47.15 | U16: 37.02 | V16: 134.84 | W16: 92.35 | X16: 36.87 | Y16: 162.83 | Z16: 166.3 | AA16: 150.69 | AB16: 82.02 | AC16: 86.81 | AD16: 48.65 | AE16: 164.84 | AF16: 416.53 | AG16: 179.11 | AH16: 315 | AI16: 87.98 | AJ16: 301.79 | AK16: 233.81 | AL16: 123.1 | AM16: 87.72 | AN16: 342.44 | AO16: 102.01 | AP16: 117.25 | AQ16: 33.04 | AR16: 75.97 | AS16: 6.16 | AT16: 385.12 | AU16: 133.34 | AV16: 268.83 | AW16: 274.12 | AX16: 24.7
A17: 15 | B17: 2021-03-11 | C17: 121.96 | D17: 117.52 | E17: 136.47 | F17: 322.64 | G17: 78.79 | H17: 238.2 | I17: 71.65 | J17: 144.49 | K17: 56.38 | L17: 236.71 | M17: 202.78 | N17: 130.13 | O17: 71.08 | P17: 135.09 | Q17: 121.86 | R17: 291.64 | S17: 99.73 | T17: 46.37 | U17: 36.82 | V17: 135.87 | W17: 92.37 | X17: 37.01 | Y17: 159.29 | Z17: 165.28 | AA17: 148.66 | AB17: 81.1 | AC17: 85.82 | AD17: 47.8 | AE17: 162.86 | AF17: 410.06 | AG17: 178.53 | AH17: 305.48 | AI17: 89.17 | AJ17: 299.41 | AK17: 229.67 | AL17: 126.24 | AM17: 86.63 | AN17: 346.84 | AO17: 101.96 | AP17: 115.26 | AQ17: 33.25 | AR17: 75.97 | AS17: 6.14 | AT17: 388.01 | AU17: 134.9 | AV17: 273.08 | AW17: 272.89 | AX17: 24.41
A18: 16 | B18: 2021-03-10 | C18: 119.98 | D18: 115.88 | E18: 138.74 | F18: 310.09 | G18: 78.42 | H18: 237.89 | I18: 72.03 | J18: 142.38 | K18: 56.03 | L18: 224.99 | M18: 204.46 | N18: 126.88 | O18: 70.83 | P18: 136.21 | Q18: 116.87 | R18: 285.25 | S18: 98.65 | T18: 46.15 | U18: 36.5 | V18: 135.29 | W18: 91.4 | X18: 36.9 | Y18: 157 | Z18: 168.38 | AA18: 149.47 | AB18: 81.32 | AC18: 85.9 | AD18: 48.2 | AE18: 165.32 | AF18: 409.82 | AG18: 177.76 | AH18: 305.19 | AI18: 86.9 | AJ18: 300 | AK18: 225.93 | AL18: 120.35 | AM18: 86.76 | AN18: 343.2 | AO18: 102.45 | AP18: 114.04 | AQ18: 33.27 | AR18: 75.66 | AS18: 6.06 | AT18: 363.76 | AU18: 133.11 | AV18: 272.45 | AW18: 267.73 | AX18: 24.6
A19: 17 | B19: 2021-03-09 | C19: 121.085 | D19: 116.7 | E19: 134.92 | F19: 308 | G19: 78.04 | H19: 242.85 | I19: 70.68 | J19: 141.98 | K19: 54.81 | L19: 223.21 | M19: 197.35 | N19: 127.3 | O19: 70.53 | P19: 133.2 | Q19: 119.88 | R19: 280.02 | S19: 96.3 | T19: 45.69 | U19: 35.65 | V19: 131.31 | W19: 90.62 | X19: 36.68 | Y19: 160.69 | Z19: 165.17 | AA19: 148.89 | AB19: 80.13 | AC19: 85.02 | AD19: 47.68 | AE19: 162.42 | AF19: 414.52 | AG19: 177.03 | AH19: 304.49 | AI19: 88.11 | AJ19: 298.3 | AK19: 223.82 | AL19: 125.96 | AM19: 87.07 | AN19: 336.51 | AO19: 101.8 | AP19: 111.16 | AQ19: 32.92 | AR19: 73.98 | AS19: 5.97 | AT19: 364.11 | AU19: 129.95 | AV19: 272.68 | AW19: 267.42 | AX19: 24.98
A20: 18 | B20: 2021-03-08 | C20: 116.36 | D20: 115.63 | E20: 133.8 | F20: 293.55 | G20: 78.25 | H20: 246.1 | I20: 69.85 | J20: 141.82 | K20: 55.96 | L20: 218.56 | M20: 202.21 | N20: 119.68 | O20: 70.17 | P20: 130.83 | Q20: 121.09 | R20: 280.07 | S20: 96.13 | T20: 44.66 | U20: 35.62 | V20: 131.23 | W20: 91.9 | X20: 36.57 | Y20: 159.39 | Z20: 165.19 | AA20: 151 | AB20: 79.74 | AC20: 84.15 | AD20: 46.9 | AE20: 163.78 | AF20: 402.63 | AG20: 179.21 | AH20: 315.76 | AI20: 85.03 | AJ20: 305.62 | AK20: 218.65 | AL20: 121.56 | AM20: 86.36 | AN20: 328.34 | AO20: 104.81 | AP20: 112.33 | AQ20: 32.49 | AR20: 74.54 | AS20: 5.91 | AT20: 344.88 | AU20: 126.07 | AV20: 264.67 | AW20: 261.35 | AX20: 25.11
A21: 19 | B21: 2021-03-05 | C21: 121.42 | D21: 117.25 | E21: 131.92 | F21: 308.03 | G21: 76.75 | H21: 246.45 | I21: 71.13 | J21: 142.48 | K21: 54.55 | L21: 218.27 | M21: 203.62 | N21: 126.69 | O21: 70.39 | P21: 128.21 | Q21: 117.96 | R21: 292.89 | S21: 94.81 | T21: 45.18 | U21: 35.3 | V21: 133.72 | W21: 91.53 | X21: 35.79 | Y21: 155.63 | Z21: 159.84 | AA21: 151.78 | AB21: 79.23 | AC21: 84.43 | AD21: 45.12 | AE21: 159.78 | AF21: 414.72 | AG21: 178.87 | AH21: 308.47 | AI21: 88.49 | AJ21: 300.91 | AK21: 219.85 | AL21: 124.05 | AM21: 86.16 | AN21: 330.22 | AO21: 103.53 | AP21: 109.13 | AQ21: 32.94 | AR21: 71.24 | AS21: 5.89 | AT21: 356.21 | AU21: 129.39 | AV21: 266.44 | AW21: 262.4 | AX21: 24.09
A22: 20 | B22: 2021-03-04 | C22: 120.13 | D22: 116.01 | E22: 128.08 | F22: 306.16 | G22: 76.68 | H22: 240.88 | I22: 68.41 | J22: 139.17 | K22: 53.4 | L22: 216.48 | M22: 197.48 | N22: 128.81 | O22: 68.22 | P22: 124.9 | Q22: 117.28 | R22: 285.19 | S22: 92.98 | T22: 44.17 | U22: 34.62 | V22: 130.89 | W22: 89.11 | X22: 34.92 | Y22: 149.29 | Z22: 155.23 | AA22: 147.3 | AB22: 77.62 | AC22: 82.9 | AD22: 44.26 | AE22: 156.16 | AF22: 409 | AG22: 174.91 | AH22: 302.2 | AI22: 86.36 | AJ22: 297.51 | AK22: 215.02 | AL22: 124.22 | AM22: 84.61 | AN22: 323.59 | AO22: 100.88 | AP22: 105.72 | AQ22: 31.9 | AR22: 68.39 | AS22: 5.79 | AT22: 347.9 | AU22: 125.38 | AV22: 261.63 | AW22: 257.29 | AX22: 23.47
A23: 21 | B23: 2021-03-03 | C23: 122.06 | D23: 119.18 | E23: 128.04 | F23: 319.86 | G23: 78.67 | H23: 241.66 | I23: 69.71 | J23: 141.89 | K23: 54.71 | L23: 216.37 | M23: 199.6 | N23: 133.74 | O23: 68.55 | P23: 128.22 | Q23: 116.88 | R23: 289.54 | S23: 96.45 | T23: 46.45 | U23: 35.925 | V23: 131.73 | W23: 90.64 | X23: 34.28 | Y23: 152.59 | Z23: 158.67 | AA23: 152.29 | AB23: 77.27 | AC23: 83.19 | AD23: 45.05 | AE23: 160.78 | AF23: 409.72 | AG23: 178.33 | AH23: 306 | AI23: 89.51 | AJ23: 299.1 | AK23: 222.76 | AL23: 126.38 | AM23: 85.15 | AN23: 331.1 | AO23: 98.64 | AP23: 106.6 | AQ23: 32.46 | AR23: 69.16 | AS23: 5.89 | AT23: 361.24 | AU23: 131.23 | AV23: 265.78 | AW23: 267.62 | AX23: 23.88
A24: 22 | B24: 2021-03-02 | C24: 125.12 | D24: 122.53 | E24: 126.64 | F24: 336.33 | G24: 79.07 | H24: 244.73 | I24: 72.08 | J24: 143.84 | K24: 53.57 | L24: 218.72 | M24: 199.66 | N24: 142.15 | O24: 69.61 | P24: 127.08 | Q24: 118.56 | R24: 289.54 | S24: 96.08 | T24: 47.48 | U24: 35.78 | V24: 137.15 | W24: 89.77 | X24: 35.16 | Y24: 150.73 | Z24: 158.93 | AA24: 151.67 | AB24: 76.93 | AC24: 84.9 | AD24: 44.72 | AE24: 159.32 | AF24: 418.81 | AG24: 179.84 | AH24: 311.36 | AI24: 92.63 | AJ24: 298.78 | AK24: 222.41 | AL24: 127.53 | AM24: 85.07 | AN24: 330.7 | AO24: 98.09 | AP24: 105.68 | AQ24: 33.5 | AR24: 68.64 | AS24: 5.98 | AT24: 375.44 | AU24: 133.23 | AV24: 274.03 | AW24: 278.1 | AX24: 23.68
A25: 23 | B25: 2021-03-01 | C25: 127.79 | D25: 122.21 | E25: 126.3 | F25: 346.11 | G25: 79.39 | H25: 246.06 | I25: 72.86 | J25: 146.48 | K25: 53.65 | L25: 226.92 | M25: 203.02 | N25: 147.44 | O25: 70.15 | P25: 129.31 | Q25: 116.57 | R25: 293.95 | S25: 97.81 | T25: 48.47 | U25: 36.1 | V25: 139.15 | W25: 89.29 | X25: 34.73 | Y25: 149.39 | Z25: 160.27 | AA25: 152.11 | AB25: 80.2 | AC25: 84.55 | AD25: 44.54 | AE25: 167.64 | AF25: 420.03 | AG25: 182.45 | AH25: 314.22 | AI25: 95.18 | AJ25: 293.46 | AK25: 220.72 | AL25: 129.72 | AM25: 84.95 | AN25: 334.2 | AO25: 97.83 | AP25: 106.11 | AQ25: 34.07 | AR25: 70.13 | AS25: 6.02 | AT25: 372.44 | AU25: 140.15 | AV25: 277.04 | AW25: 282.99 | AX25: 23.68
A26: 24 | B26: 2021-02-26 | C26: 121.26 | D26: 119.78 | E26: 123.22 | F26: 340.99 | G26: 77.14 | H26: 241.15 | I26: 71.58 | J26: 142.49 | K26: 52.41 | L26: 221.34 | M26: 201.96 | N26: 141.09 | O26: 69.14 | P26: 125.57 | Q26: 115.59 | R26: 285.86 | S26: 96.47 | T26: 46.37 | U26: 35.38 | V26: 135.51 | W26: 90.2 | X26: 34.79 | Y26: 146.87 | Z26: 158.76 | AA26: 148.44 | AB26: 78.16 | AC26: 84.28 | AD26: 43.6 | AE26: 160.99 | AF26: 414.52 | AG26: 175.48 | AH26: 309.18 | AI26: 93.17 | AJ26: 291.66 | AK26: 214.77 | AL26: 126.09 | AM26: 84.02 | AN26: 334.77 | AO26: 96.06 | AP26: 104.34 | AQ26: 33.17 | AR26: 67.83 | AS26: 5.85 | AT26: 361.69 | AU26: 138.37 | AV26: 273.88 | AW26: 280.65 | AX26: 23.22
A27: 25 | B27: 2021-02-25 | C27: 120.99 | D27: 121.58 | E27: 125.17 | F27: 338.46 | G27: 78.14 | H27: 247.15 | I27: 73.73 | J27: 143.26 | K27: 53.51 | L27: 225.2 | M27: 203.96 | N27: 138.02 | O27: 69.94 | P27: 126.81 | Q27: 114.63 | R27: 289.62 | S27: 97.63 | T27: 46.28 | U27: 35.14 | V27: 136.63 | W27: 90.66 | X27: 34.6 | Y27: 146.48 | Z27: 158.97 | AA27: 151.32 | AB27: 79.62 | AC27: 84.41 | AD27: 44.63 | AE27: 162.11 | AF27: 406.3 | AG27: 180.52 | AH27: 307.76 | AI27: 91.69 | AJ27: 301.89 | AK27: 215.53 | AL27: 125.97 | AM27: 86.52 | AN27: 322.99 | AO27: 96.87 | AP27: 105.29 | AQ27: 34 | AR27: 68.05 | AS27: 5.86 | AT27: 365.06 | AU27: 140.05 | AV27: 278.23 | AW27: 277.68 | AX27: 23.52
A28: 26 | B28: 2021-02-24 | C28: 125.35 | D28: 122.38 | E28: 128.13 | F28: 385.37 | G28: 78 | H28: 246.71 | I28: 75.04 | J28: 145.08 | K28: 53.81 | L28: 228.5 | M28: 206.37 | N28: 139.42 | O28: 70.29 | P28: 132.13 | Q28: 115.74 | R28: 294.34 | S28: 99.15 | T28: 46.9 | U28: 36.06 | V28: 138.15 | W28: 92.77 | X28: 34.65 | Y28: 146.66 | Z28: 156.34 | AA28: 151.64 | AB28: 80.35 | AC28: 84.8 | AD28: 45 | AE28: 168.63 | AF28: 417.23 | AG28: 181.08 | AH28: 319.72 | AI28: 96.75 | AJ28: 301.73 | AK28: 217.31 | AL28: 128.78 | AM28: 87.56 | AN28: 328.39 | AO28: 98.14 | AP28: 107.67 | AQ28: 35.46 | AR28: 69.54 | AS28: 5.99 | AT28: 374.69 | AU28: 138.89 | AV28: 279.9 | AW28: 278.92 | AX28: 23.79
A29: 27 | B29: 2021-02-23 | C29: 125.86 | D29: 120.8 | E29: 127.67 | F29: 375.56 | G29: 76.96 | H29: 247.7 | I29: 75.03 | J29: 143.66 | K29: 52.73 | L29: 232.28 | M29: 204.12 | N29: 132.6 | O29: 70.07 | P29: 127.57 | Q29: 117.49 | R29: 291.9 | S29: 96.51 | T29: 46.8 | U29: 35.725 | V29: 138.92 | W29: 89.55 | X29: 32.1 | Y29: 144.51 | Z29: 152.78 | AA29: 149.31 | AB29: 80.54 | AC29: 84.37 | AD29: 44.29 | AE29: 171.23 | AF29: 415.15 | AG29: 178.55 | AH29: 303.51 | AI29: 94.19 | AJ29: 298.68 | AK29: 211.62 | AL29: 131.02 | AM29: 86.44 | AN29: 318.25 | AO29: 98.56 | AP29: 105.8 | AQ29: 35.39 | AR29: 68.15 | AS29: 5.95 | AT29: 376.86 | AU29: 137.78 | AV29: 278.88 | AW29: 274.29 | AX29: 23.33
A30: 28 | B30: 2021-02-22 | C30: 126 | D30: 122.55 | E30: 126.89 | F30: 383.2 | G30: 77.27 | H30: 246.02 | I30: 74.71 | J30: 147.5 | K30: 51.82 | L30: 234.28 | M30: 205.54 | N30: 133.16 | O30: 70.91 | P30: 127.14 | Q30: 116.21 | R30: 285.45 | S30: 96.41 | T30: 46.32 | U30: 35.67 | V30: 140.56 | W30: 88.15 | X30: 31.81 | Y30: 145.55 | Z30: 150.81 | AA30: 152.86 | AB30: 80.56 | AC30: 83.96 | AD30: 44.42 | AE30: 172.04 | AF30: 413.6 | AG30: 180.55 | AH30: 307.94 | AI30: 95.32 | AJ30: 297.94 | AK30: 211.76 | AL30: 129.72 | AM30: 86.5 | AN30: 314.43 | AO30: 97.76 | AP30: 104.84 | AQ30: 35.08 | AR30: 68.39 | AS30: 6.02 | AT30: 377 | AU30: 140.84 | AV30: 279.81 | AW30: 272.65 | AX30: 23.9
A31: 29 | B31: 2021-02-19 | C31: 129.87 | D31: 123.04 | E31: 123.31 | F31: 395.37 | G31: 78.71 | H31: 247.93 | I31: 75.43 | J31: 149.54 | K31: 51.05 | L31: 235.1 | M31: 208.91 | N31: 139.66 | O31: 71.56 | P31: 131.34 | Q31: 119.23 | R31: 285.16 | S31: 95.61 | T31: 47.23 | U31: 35.645 | V31: 139.5 | W31: 86.86 | X31: 32.17 | Y31: 146.56 | Z31: 151.12 | AA31: 150.89 | AB31: 82.46 | AC31: 84.12 | AD31: 43.8 | AE31: 169.96 | AF31: 432.97 | AG31: 182.75 | AH31: 304.26 | AI31: 98.15 | AJ31: 297.24 | AK31: 215.64 | AL31: 136.79 | AM31: 85.45 | AN31: 326.08 | AO31: 97.7 | AP31: 103.11 | AQ31: 35.81 | AR31: 67.17 | AS31: 6.01 | AT31: 389.55 | AU31: 143.19 | AV31: 281.72 | AW31: 281.55 | AX31: 23.91
A32: 30 | B32: 2021-02-18 | C32: 129.71 | D32: 125.41 | E32: 122.77 | F32: 389.81 | G32: 79.63 | H32: 255.82 | I32: 76.66 | J32: 149.28 | K32: 51.6 | L32: 237.16 | M32: 208.35 | N32: 139.53 | O32: 72.54 | P32: 128.15 | Q32: 121.85 | R32: 287.96 | S32: 95.37 | T32: 47.29 | U32: 34.9 | V32: 137.95 | W32: 86.43 | X32: 32.45 | Y32: 146.9 | Z32: 152.35 | AA32: 152.71 | AB32: 82.81 | AC32: 86.49 | AD32: 43.63 | AE32: 166.17 | AF32: 437.55 | AG32: 182.96 | AH32: 294.99 | AI32: 94.58 | AJ32: 297.86 | AK32: 211.79 | AL32: 142.6 | AM32: 86.33 | AN32: 330.43 | AO32: 97.93 | AP32: 102.52 | AQ32: 36.56 | AR32: 67.04 | AS32: 6.02 | AT32: 397.08 | AU32: 136.18 | AV32: 280.8 | AW32: 296.74 | AX32: 23.5
A33: 31 | B33: 2021-02-17 | C33: 130.84 | D33: 127.24 | E33: 125.72 | F33: 393.9 | G33: 80.7 | H33: 256.82 | I33: 75.98 | J33: 147.43 | K33: 51.54 | L33: 242.44 | M33: 209.52 | N33: 141.78 | O33: 72.49 | P33: 127.98 | Q33: 121.85 | R33: 289.59 | S33: 94.2 | T33: 46.95 | U33: 35.58 | V33: 137.67 | W33: 86.3 | X33: 32.74 | Y33: 143.82 | Z33: 154.14 | AA33: 148.88 | AB33: 81.55 | AC33: 85.95 | AD33: 43.6 | AE33: 170.81 | AF33: 439.32 | AG33: 181.79 | AH33: 296.32 | AI33: 95.63 | AJ33: 297.18 | AK33: 207.99 | AL33: 144.42 | AM33: 86.61 | AN33: 330.17 | AO33: 99.07 | AP33: 102.94 | AQ33: 36.6 | AR33: 67.3 | AS33: 6.01 | AT33: 407.26 | AU33: 135.06 | AV33: 282.58 | AW33: 293.99 | AX33: 23.87
A34: 32 | B34: 2021-02-16 | C34: 133.19 | D34: 128.02 | E34: 125.95 | F34: 401.86 | G34: 81.23 | H34: 257.34 | I34: 76.23 | J34: 146.24 | K34: 51.49 | L34: 237.3 | M34: 213.01 | N34: 145.99 | O34: 72.75 | P34: 129 | Q34: 122.08 | R34: 295.74 | S34: 93.7 | T34: 46.63 | U34: 35.66 | V34: 136.89 | W34: 86.83 | X34: 32.97 | Y34: 146.32 | Z34: 155.35 | AA34: 146.24 | AB34: 83.26 | AC34: 86.93 | AD34: 43.41 | AE34: 172.48 | AF34: 440.92 | AG34: 183.35 | AH34: 300.51 | AI34: 96.16 | AJ34: 290.88 | AK34: 210.19 | AL34: 146.49 | AM34: 86 | AN34: 333.33 | AO34: 99.38 | AP34: 101.45 | AQ34: 36.84 | AR34: 66.03 | AS34: 5.99 | AT34: 411 | AU34: 136.67 | AV34: 282.51 | AW34: 295.61 | AX34: 23.9
A35: 33 | B35: 2021-02-12 | C35: 135.37 | D35: 128.23 | E35: 128.13 | F35: 403.6 | G35: 82.59 | H35: 256.32 | I35: 76.85 | J35: 148.07 | K35: 51.2 | L35: 236.73 | M35: 209.2 | N35: 145.68 | O35: 74.95 | P35: 128.22 | Q35: 126.02 | R35: 290.25 | S35: 94.21 | T35: 47.39 | U35: 35.68 | V35: 134.06 | W35: 87.09 | X35: 33.17 | Y35: 148.32 | Z35: 158.48 | AA35: 145.64 | AB35: 85.06 | AC35: 89.65 | AD35: 43.4 | AE35: 171.51 | AF35: 434.77 | AG35: 181.07 | AH35: 287.37 | AI35: 96.22 | AJ35: 297.36 | AK35: 212.21 | AL35: 150.57 | AM35: 86.12 | AN35: 337.84 | AO35: 100 | AP35: 104.28 | AQ35: 37.59 | AR35: 67.72 | AS35: 6.09 | AT35: 398.86 | AU35: 133.98 | AV35: 283.95 | AW35: 294.01 | AX35: 23.99
A36: 34 | B36: 2021-02-11 | C36: 135.13 | D36: 126.84 | E36: 130.48 | F36: 396.13 | G36: 84.59 | H36: 253.39 | I36: 76.45 | J36: 145.35 | K36: 51.22 | L36: 241 | M36: 211.18 | N36: 143.97 | O36: 75.9 | P36: 126.68 | Q36: 125.06 | R36: 289.76 | S36: 94.2 | T36: 47.07 | U36: 35.61 | V36: 136.77 | W36: 86.42 | X36: 33.24 | Y36: 147.32 | Z36: 159 | AA36: 148.64 | AB36: 86.48 | AC36: 89.88 | AD36: 43.31 | AE36: 170.11 | AF36: 426.86 | AG36: 181.79 | AH36: 286.72 | AI36: 94.94 | AJ36: 299.63 | AK36: 208.04 | AL36: 148.7 | AM36: 85.36 | AN36: 329.89 | AO36: 100.02 | AP36: 105.18 | AQ36: 37.65 | AR36: 68.75 | AS36: 6.11 | AT36: 395.02 | AU36: 134.9 | AV36: 282.83 | AW36: 291.09 | AX36: 23.56
A37: 35 | B37: 2021-02-10 | C37: 135.39 | D37: 125.29 | E37: 128.43 | F37: 386.59 | G37: 83.54 | H37: 252.9 | I37: 76.89 | J37: 144.38 | K37: 50.2 | L37: 239.08 | M37: 207.85 | N37: 137.86 | O37: 79 | P37: 125.77 | Q37: 123.55 | R37: 284.4 | S37: 94.43 | T37: 47.66 | U37: 35.96 | V37: 135.57 | W37: 86.72 | X37: 34.39 | Y37: 146.72 | Z37: 159.07 | AA37: 148.77 | AB37: 85.93 | AC37: 90.8 | AD37: 43.55 | AE37: 169.53 | AF37: 419.66 | AG37: 183.32 | AH37: 288.65 | AI37: 91.31 | AJ37: 303.63 | AK37: 208.99 | AL37: 147.22 | AM37: 85.94 | AN37: 350.54 | AO37: 98.22 | AP37: 103.93 | AQ37: 37.93 | AR37: 66.4 | AS37: 6.07 | AT37: 390.3 | AU37: 134.26 | AV37: 284.02 | AW37: 292.29 | AX37: 23.47
A38: 36 | B38: 2021-02-09 | C38: 136.01 | D38: 125.15 | E38: 136.13 | F38: 386.39 | G38: 83.16 | H38: 254.17 | I38: 76.59 | J38: 141.67 | K38: 50.86 | L38: 242.71 | M38: 205 | N38: 139.49 | O38: 79.02 | P38: 128.1 | Q38: 121.79 | R38: 279.35 | S38: 94.63 | T38: 47.31 | U38: 34.9 | V38: 127.95 | W38: 87.12 | X38: 33.38 | Y38: 148.35 | Z38: 157.78 | AA38: 149.51 | AB38: 88.71 | AC38: 90.77 | AD38: 43.36 | AE38: 170.6 | AF38: 417.97 | AG38: 183.12 | AH38: 283.05 | AI38: 91.22 | AJ38: 303.78 | AK38: 215.52 | AL38: 145.62 | AM38: 85.63 | AN38: 360.29 | AO38: 97.35 | AP38: 103.21 | AQ38: 37.92 | AR38: 66.04 | AS38: 6.06 | AT38: 389.95 | AU38: 136.32 | AV38: 282.71 | AW38: 289.89 | AX38: 23.37
A39: 37 | B39: 2021-02-08 | C39: 136.91 | D39: 124.5 | E39: 135.44 | F39: 381.97 | G39: 81.95 | H39: 256.82 | I39: 75.89 | J39: 143.09 | K39: 50.6 | L39: 240.13 | M39: 202.73 | N39: 137.58 | O39: 78.5 | P39: 126.18 | Q39: 121.64 | R39: 280.54 | S39: 91.55 | T39: 47.47 | U39: 35.28 | V39: 127.25 | W39: 85.64 | X39: 33.09 | Y39: 146.02 | Z39: 159.35 | AA39: 158.21 | AB39: 89.76 | AC39: 90.83 | AD39: 42.97 | AE39: 169.54 | AF39: 422.73 | AG39: 182.54 | AH39: 286.28 | AI39: 91.58 | AJ39: 300.13 | AK39: 212.25 | AL39: 144.55 | AM39: 85.99 | AN39: 359.4 | AO39: 98.33 | AP39: 103.42 | AQ39: 37.23 | AR39: 65.79 | AS39: 6.055 | AT39: 390.57 | AU39: 136.33 | AV39: 284.5 | AW39: 294.46 | AX39: 23.25
A40: 38 | B40: 2021-02-05 | C40: 136.76 | D40: 124.03 | E40: 134.36 | F40: 379.48 | G40: 82.09 | H40: 254.68 | I40: 74.56 | J40: 144.13 | K40: 48.56 | L40: 237.54 | M40: 194.02 | N40: 135.8 | O40: 79.82 | P40: 118.99 | Q40: 121.79 | R40: 272.81 | S40: 89.75 | T40: 47.3 | U40: 34.88 | V40: 127.06 | W40: 83.41 | X40: 32.4 | Y40: 144.65 | Z40: 155.5 | AA40: 152.91 | AB40: 88.77 | AC40: 90.29 | AD40: 42.47 | AE40: 165.77 | AF40: 429.81 | AG40: 182.09 | AH40: 281.47 | AI40: 89.2 | AJ40: 298.79 | AK40: 209.45 | AL40: 145.03 | AM40: 84.28 | AN40: 359.32 | AO40: 96.3 | AP40: 100.8 | AQ40: 37.55 | AR40: 64.72 | AS40: 6.105 | AT40: 380.67 | AU40: 133.91 | AV40: 283.48 | AW40: 291.35 | AX40: 22.97
A41: 39 | B41: 2021-02-04 | C41: 137.39 | D41: 119.74 | E41: 131.88 | F41: 377.41 | G41: 83.4 | H41: 254.89 | I41: 73.68 | J41: 143.17 | K41: 46.69 | L41: 239.82 | M41: 190.01 | N41: 137.1 | O41: 80.09 | P41: 122.9 | Q41: 121.99 | R41: 253.05 | S41: 87.88 | T41: 47.12 | U41: 34.65 | V41: 126.94 | W41: 83.81 | X41: 31.94 | Y41: 142.07 | Z41: 155.31 | AA41: 153.39 | AB41: 89.42 | AC41: 88.88 | AD41: 42.53 | AE41: 167 | AF41: 430.19 | AG41: 182.21 | AH41: 280.83 | AI41: 89.49 | AJ41: 301.85 | AK41: 204.36 | AL41: 142.37 | AM41: 83.63 | AN41: 358.99 | AO41: 95.36 | AP41: 99.63 | AQ41: 37.18 | AR41: 64.5 | AS41: 6.12 | AT41: 382.73 | AU41: 132.21 | AV41: 286.45 | AW41: 290.25 | AX41: 22.99
A42: 40 | B42: 2021-02-03 | C42: 133.94 | D42: 120.22 | E42: 133.25 | F42: 370.07 | G42: 81.83 | H42: 260.93 | I42: 73.03 | J42: 144.55 | K42: 46.26 | L42: 238.93 | M42: 186.06 | N42: 134.82 | O42: 79.74 | P42: 120.75 | Q42: 126.9 | R42: 248.62 | S42: 87 | T42: 47 | U42: 34.65 | V42: 128.27 | W42: 83.18 | X42: 32.41 | Y42: 139.05 | Z42: 155.06 | AA42: 149.44 | AB42: 88.43 | AC42: 88.72 | AD42: 42 | AE42: 160.5 | AF42: 416.87 | AG42: 179.42 | AH42: 276.51 | AI42: 87.87 | AJ42: 300.74 | AK42: 197.75 | AL42: 139.72 | AM42: 80.23 | AN42: 354.85 | AO42: 94.4 | AP42: 98.87 | AQ42: 36.61 | AR42: 63.6 | AS42: 6.18 | AT42: 368.41 | AU42: 127.44 | AV42: 281.27 | AW42: 292.08 | AX42: 22.73
A43: 41 | B43: 2021-02-02 | C43: 134.99 | D43: 120.24 | E43: 133.51 | F43: 375.12 | G43: 83.39 | H43: 258.24 | I43: 72.96 | J43: 146.5 | K43: 46.4 | L43: 240.38 | M43: 188.51 | N43: 135.72 | O43: 80.48 | P43: 122.8 | Q43: 130.99 | R43: 246.86 | S43: 86.92 | T43: 46.47 | U43: 34.37 | V43: 124.23 | W43: 75.05 | X43: 32.16 | Y43: 140.6 | Z43: 154.42 | AA43: 151.28 | AB43: 89.49 | AC43: 89.48 | AD43: 41.57 | AE43: 158.55 | AF43: 425.13 | AG43: 178.78 | AH43: 265.75 | AI43: 90.44 | AJ43: 300 | AK43: 204.57 | AL43: 151.13 | AM43: 79.27 | AN43: 357.3 | AO43: 94.72 | AP43: 99.44 | AQ43: 37 | AR43: 64.78 | AS43: 6.2 | AT43: 376.76 | AU43: 127.82 | AV43: 291.31 | AW43: 294.6 | AX43: 22.86
A44: 42 | B44: 2021-02-01 | C44: 134.14 | D44: 122.54 | E44: 134.49 | F44: 367.94 | G44: 83.75 | H44: 261.37 | I44: 72.16 | J44: 146.07 | K44: 45.83 | L44: 239.31 | M44: 185.21 | N44: 134.4 | O44: 80.09 | P44: 121.33 | Q44: 133.34 | R44: 241.85 | S44: 85.14 | T44: 46.42 | U44: 34 | V44: 130.15 | W44: 74.32 | X44: 33.38 | Y44: 136.91 | Z44: 153.75 | AA44: 148.48 | AB44: 88.87 | AC44: 89.18 | AD44: 40.77 | AE44: 157.74 | AF44: 416.25 | AG44: 174.6 | AH44: 261.83 | AI44: 90.63 | AJ44: 292.31 | AK44: 199.1 | AL44: 151.93 | AM44: 79.06 | AN44: 359.82 | AO44: 94.01 | AP44: 97.64 | AQ44: 36.22 | AR44: 64.96 | AS44: 6.26 | AT44: 340.07 | AU44: 124.02 | AV44: 268.81 | AW44: 297.02 | AX44: 22.61
A45: 43 | B45: 2021-01-29 | C45: 131.96 | D45: 123.59 | E45: 135.47 | F45: 354.37 | G45: 85.17 | H45: 261.79 | I45: 71.67 | J45: 141.31 | K45: 45.91 | L45: 241.22 | M45: 187.48 | N45: 130.39 | O45: 80.11 | P45: 116.52 | Q45: 129.15 | R45: 236.65 | S45: 82.58 | T45: 45.59 | U45: 33.05 | V45: 112.38 | W45: 75.47 | X45: 33.67 | Y45: 134.66 | Z45: 152.66 | AA45: 144.79 | AB45: 89.69 | AC45: 89.54 | AD45: 41.08 | AE45: 156.12 | AF45: 395.3 | AG45: 167.55 | AH45: 265.96 | AI45: 87.71 | AJ45: 286.61 | AK45: 194 | AL45: 147.07 | AM45: 79.65 | AN45: 354.18 | AO45: 94.85 | AP45: 96.78 | AQ45: 36.02 | AR45: 64.98 | AS45: 6.26 | AT45: 324.91 | AU45: 121.57 | AV45: 264.67 | AW45: 299.49 | AX45: 22.27
A46: 44 | B46: 2021-01-28 | C46: 137.09 | D46: 120.39 | E46: 133.5 | F46: 362.87 | G46: 95.4 | H46: 256.21 | I46: 74.13 | J46: 144.83 | K46: 47.55 | L46: 246.6 | M46: 195.31 | N46: 132.95 | O46: 80.66 | P46: 120.45 | Q46: 123.72 | R46: 245.08 | S46: 85.05 | T46: 46.65 | U46: 33.55 | V46: 115.02 | W46: 76.94 | X46: 33.41 | Y46: 136.78 | Z46: 155.3 | AA46: 148.82 | AB46: 92.02 | AC46: 91.02 | AD46: 42.65 | AE46: 158.76 | AF46: 395.23 | AG46: 169.83 | AH46: 267.5 | AI46: 89 | AJ46: 293.03 | AK46: 199.02 | AL46: 144.74 | AM46: 81.28 | AN46: 362.66 | AO46: 97.15 | AP46: 98.87 | AQ46: 35.98 | AR46: 67.17 | AS46: 6.4 | AT46: 322.52 | AU46: 127.2 | AV46: 266.56 | AW46: 298.92 | AX46: 22.93
A47: 45 | B47: 2021-01-27 | C47: 142.06 | D47: 114.29 | E47: 130.79 | F47: 348.85 | G47: 97.57 | H47: 250.89 | I47: 73.35 | J47: 143.63 | K47: 47.14 | L47: 259.21 | M47: 207.24 | N47: 128.43 | O47: 83.3 | P47: 116.12 | Q47: 125.12 | R47: 235.85 | S47: 84.13 | T47: 47.82 | U47: 33.04 | V47: 110.94 | W47: 75.57 | X47: 37.01 | Y47: 135.73 | Z47: 158.28 | AA47: 149.65 | AB47: 95.71 | AC47: 94.07 | AD47: 41.82 | AE47: 161.45 | AF47: 393.34 | AG47: 171.54 | AH47: 263.2 | AI47: 87.83 | AJ47: 292.24 | AK47: 194.33 | AL47: 141.73 | AM47: 79.8 | AN47: 354.66 | AO47: 93.01 | AP47: 98.51 | AQ47: 34.95 | AR47: 66.91 | AS47: 6.87 | AT47: 318.43 | AU47: 128.97 | AV47: 265.96 | AW47: 293.23 | AX47: 23.15
A48: 46 | B48: 2021-01-26 | C48: 143.16 | D48: 114.73 | E48: 130.47 | F48: 366.64 | G48: 97.84 | H48: 258.35 | I48: 73.19 | J48: 151.79 | K48: 48.49 | L48: 252.59 | M48: 203.48 | N48: 133.83 | O48: 81.33 | P48: 121.86 | Q48: 125.99 | R48: 245.31 | S48: 89.44 | T48: 47.605 | U48: 34.87 | V48: 113.78 | W48: 77.92 | X48: 33.4 | Y48: 143.46 | Z48: 164.91 | AA48: 154.87 | AB48: 94.64 | AC48: 96.09 | AD48: 42.23 | AE48: 160.34 | AF48: 404.61 | AG48: 172.54 | AH48: 275.13 | AI48: 93.17 | AJ48: 293.11 | AK48: 207.54 | AL48: 146.24 | AM48: 81.99 | AN48: 363.68 | AO48: 100.33 | AP48: 102.27 | AQ48: 37.04 | AR48: 67.71 | AS48: 6.55 | AT48: 340.34 | AU48: 133.57 | AV48: 270.53 | AW48: 299.68 | AX48: 22.83
A49: 47 | B49: 2021-01-25 | C49: 142.92 | D49: 114.72 | E49: 132.73 | F49: 367.87 | G49: 97.56 | H49: 260.24 | I49: 71.97 | J49: 150.67 | K49: 49.28 | L49: 253.09 | M49: 199.05 | N49: 135.9 | O49: 80.5 | P49: 123.19 | Q49: 124.97 | R49: 250.02 | S49: 92.44 | T49: 48.13 | U49: 35.99 | V49: 116.33 | W49: 78.33 | X49: 32.11 | Y49: 146.74 | Z49: 156.89 | AA49: 152.5 | AB49: 96.44 | AC49: 94.55 | AD49: 41.96 | AE49: 163.38 | AF49: 403.49 | AG49: 173.72 | AH49: 273.62 | AI49: 92.44 | AJ49: 299.35 | AK49: 211.12 | AL49: 151.05 | AM49: 81.34 | AN49: 368.94 | AO49: 100.47 | AP49: 103.11 | AQ49: 37.15 | AR49: 68.15 | AS49: 6.06 | AT49: 352.44 | AU49: 137.81 | AV49: 273.35 | AW49: 300.26 | AX49: 22.71
A50: 48 | B50: 2021-01-22 | C50: 139.07 | D50: 112.84 | E50: 134.9 | F50: 374.57 | G50: 95.93 | H50: 258.75 | I50: 72.84 | J50: 148.94 | K50: 49.96 | L50: 253.66 | M50: 197.41 | N50: 137.42 | O50: 79.9 | P50: 126 | Q50: 124.46 | R50: 249.83 | S50: 93.24 | T50: 47.72 | U50: 36.48 | V50: 115.81 | W50: 77.07 | X50: 30.15 | Y50: 146.14 | Z50: 153.09 | AA50: 151.5 | AB50: 101.2 | AC50: 91.87 | AD50: 41.83 | AE50: 163.04 | AF50: 411.88 | AG50: 173.71 | AH50: 271.59 | AI50: 93.62 | AJ50: 298.16 | AK50: 204.61 | AL50: 151.91 | AM50: 80.68 | AN50: 369.31 | AO50: 98.94 | AP50: 101.02 | AQ50: 37.02 | AR50: 66.95 | AS50: 5.97 | AT50: 356.59 | AU50: 142.42 | AV50: 273.62 | AW50: 300.09 | AX50: 22.06
A51: 49 | B51: 2021-01-21 | C51: 136.87 | D51: 112.95 | E51: 137.71 | F51: 371.86 | G51: 94.79 | H51: 261.9 | I51: 73.19 | J51: 151.1 | K51: 49.88 | L51: 249.1 | M51: 196.18 | N51: 138.62 | O51: 79.62 | P51: 124.67 | Q51: 125.18 | R51: 255.27 | S51: 92.18 | T51: 48.165 | U51: 36.57 | V51: 116 | W51: 77.48 | X51: 30.27 | Y51: 147.3 | Z51: 151.46 | AA51: 153.1 | AB51: 98.23 | AC51: 91.46 | AD51: 41.94 | AE51: 162.77 | AF51: 414.35 | AG51: 172.29 | AH51: 273.02 | AI51: 96.03 | AJ51: 296.87 | AK51: 207.72 | AL51: 150.59 | AM51: 81.33 | AN51: 366.71 | AO51: 99.14 | AP51: 100.76 | AQ51: 37.2 | AR51: 67.5 | AS51: 5.99 | AT51: 355.68 | AU51: 134.78 | AV51: 271.26 | AW51: 299.68 | AX51: 22.03
A52: 50 | B52: 2021-01-20 | C52: 132.03 | D52: 112.89 | E52: 142.01 | F52: 378.65 | G52: 95 | H52: 263.3 | I52: 73.34 | J52: 152.49 | K52: 50.62 | L52: 249.8 | M52: 194.97 | N52: 140.1 | O52: 79.74 | P52: 126.21 | Q52: 127.36 | R52: 255.22 | S52: 96.78 | T52: 48.7 | U52: 36.515 | V52: 120.08 | W52: 79.11 | X52: 30.3 | Y52: 150.02 | Z52: 149.41 | AA52: 154.76 | AB52: 99.12 | AC52: 91.75 | AD52: 42.1 | AE52: 161.28 | AF52: 418.52 | AG52: 172.92 | AH52: 268.42 | AI52: 96.18 | AJ52: 298.78 | AK52: 208.96 | AL52: 151.26 | AM52: 81.7 | AN52: 366.24 | AO52: 98.49 | AP52: 102.45 | AQ52: 37.76 | AR52: 68.94 | AS52: 5.96 | AT52: 356.67 | AU52: 135.8 | AV52: 271.13 | AW52: 305.05 | AX52: 21.96
A53: 51 | B53: 2021-01-19 | C53: 127.83 | D53: 112.57 | E53: 142.98 | F53: 369.51 | G53: 93.9 | H53: 260.77 | I53: 74.23 | J53: 151.56 | K53: 50.95 | L53: 247.83 | M53: 189.29 | N53: 137.62 | O53: 79.51 | P53: 125.45 | Q53: 125.99 | R53: 248.44 | S53: 95.5 | T53: 50.42 | U53: 35.69 | V53: 120.34 | W53: 77.75 | X53: 29.52 | Y53: 148.52 | Z53: 151.9 | AA53: 155.81 | AB53: 99.29 | AC53: 93.01 | AD53: 41.23 | AE53: 158.37 | AF53: 411.48 | AG53: 171.77 | AH53: 272 | AI53: 96.9 | AJ53: 298.02 | AK53: 207.51 | AL53: 149.29 | AM53: 81.9 | AN53: 360.63 | AO53: 98.34 | AP53: 101.37 | AQ53: 36.86 | AR53: 68.49 | AS53: 5.95 | AT53: 351.78 | AU53: 134.34 | AV53: 271.82 | AW53: 300.12 | AX53: 22.37
A54: 52 | B54: 2021-01-15 | C54: 127.14 | D54: 111.3 | E54: 140.17 | F54: 364.28 | G54: 92.18 | H54: 261.74 | I54: 73.9 | J54: 151.57 | K54: 51.11 | L54: 245.25 | M54: 186.73 | N54: 134.64 | O54: 80.21 | P54: 124.86 | Q54: 124.39 | R54: 249.13 | S54: 94.19 | T54: 50.48 | U54: 35.88 | V54: 117.72 | W54: 77.97 | X54: 30.02 | Y54: 151.51 | Z54: 150.92 | AA54: 154.55 | AB54: 97.37 | AC54: 93.43 | AD54: 41.2 | AE54: 157.65 | AF54: 415.3 | AG54: 173.55 | AH54: 278.5 | AI54: 95.14 | AJ54: 300.75 | AK54: 207.39 | AL54: 148.52 | AM54: 80.94 | AN54: 359.4 | AO54: 98.82 | AP54: 101.88 | AQ54: 37.24 | AR54: 67.91 | AS54: 5.8 | AT54: 347.71 | AU54: 132.52 | AV54: 268.33 | AW54: 299.41 | AX54: 21.93
A55: 53 | B55: 2021-01-14 | C55: 128.91 | D55: 110.04 | E55: 139.13 | F55: 369.05 | G55: 91.46 | H55: 257.77 | I55: 73.46 | J55: 153.57 | K55: 52.62 | L55: 242.69 | M55: 186.79 | N55: 135.4 | O55: 80.33 | P55: 124.28 | Q55: 124.97 | R55: 250.02 | S55: 94.72 | T55: 50.32 | U55: 35.95 | V55: 119.94 | W55: 78.93 | X55: 30.19 | Y55: 151.95 | Z55: 151.96 | AA55: 153.96 | AB55: 97.55 | AC55: 91.62 | AD55: 41.11 | AE55: 158.04 | AF55: 409.52 | AG55: 173.47 | AH55: 289.18 | AI55: 96.13 | AJ55: 303.02 | AK55: 207.51 | AL55: 148.13 | AM55: 81.18 | AN55: 366.7 | AO55: 99.37 | AP55: 102.58 | AQ55: 37.47 | AR55: 68.34 | AS55: 5.83 | AT55: 337.2 | AU55: 134.05 | AV55: 262.9 | AW55: 298.72 | AX55: 21.66
A56: 54 | B56: 2021-01-13 | C56: 130.89 | D56: 112.15 | E56: 140.35 | F56: 375.58 | G56: 91.36 | H56: 263.01 | I56: 75.64 | J56: 154.22 | K56: 53.01 | L56: 239.1 | M56: 184.05 | N56: 134.12 | O56: 80.65 | P56: 121.73 | Q56: 125.45 | R56: 256.66 | S56: 93.83 | T56: 50.7 | U56: 36.03 | V56: 121.52 | W56: 78.82 | X56: 28.44 | Y56: 149.22 | Z56: 151.02 | AA56: 157.89 | AB56: 95.22 | AC56: 93.26 | AD56: 41.09 | AE56: 158.58 | AF56: 438.4 | AG56: 174.09 | AH56: 284.54 | AI56: 95.43 | AJ56: 299.46 | AK56: 200.96 | AL56: 151.52 | AM56: 81.21 | AN56: 373.72 | AO56: 99.66 | AP56: 103.45 | AQ56: 39.86 | AR56: 68.75 | AS56: 5.89 | AT56: 330.58 | AU56: 130.23 | AV56: 264.8 | AW56: 298 | AX56: 22.39
A57: 55 | B57: 2021-01-12 | C57: 128.8 | D57: 108.84 | E57: 141.17 | F57: 373.27 | G57: 92.69 | H57: 263.08 | I57: 76.06 | J57: 154.76 | K57: 53.73 | L57: 241.81 | M57: 185.56 | N57: 133.72 | O57: 78.93 | P57: 124.69 | Q57: 126.22 | R57: 255.41 | S57: 95.33 | T57: 51.62 | U57: 37.54 | V57: 125.98 | W57: 79.34 | X57: 28.06 | Y57: 149.03 | Z57: 154.29 | AA57: 160.39 | AB57: 96.25 | AC57: 92.45 | AD57: 40.93 | AE57: 160.75 | AF57: 453.19 | AG57: 174.24 | AH57: 283.78 | AI57: 95.82 | AJ57: 297.54 | AK57: 203.35 | AL57: 151.98 | AM57: 81.07 | AN57: 385 | AO57: 97.75 | AP57: 105 | AQ57: 41.51 | AR57: 70.27 | AS57: 5.88 | AT57: 334.01 | AU57: 132.5 | AV57: 266.51 | AW57: 298.49 | AX57: 22.41
A58: 56 | B58: 2021-01-11 | C58: 128.98 | D58: 110.84 | E58: 137.81 | F58: 373.33 | G58: 91.39 | H58: 257.11 | I58: 77.24 | J58: 155.01 | K58: 53.7 | L58: 239.85 | M58: 181.99 | N58: 134.69 | O58: 78.88 | P58: 123.01 | Q58: 123.63 | R58: 258.11 | S58: 93.39 | T58: 50.48 | U58: 36.55 | V58: 122.45 | W58: 79.39 | X58: 28 | Y58: 148.14 | Z58: 153.04 | AA58: 164.98 | AB58: 94.06 | AC58: 93.63 | AD58: 41.35 | AE58: 156.26 | AF58: 451.79 | AG58: 173.69 | AH58: 281.85 | AI58: 95.38 | AJ58: 294.74 | AK58: 202.34 | AL58: 159.25 | AM58: 82.31 | AN58: 385.25 | AO58: 98.92 | AP58: 104.1 | AQ58: 40.91 | AR58: 69.07 | AS58: 5.94 | AT58: 334.82 | AU58: 131.55 | AV58: 266.05 | AW58: 302.41 | AX58: 22.58
A59: 57 | B59: 2021-01-08 | C59: 132.05 | D59: 111.61 | E59: 138.61 | F59: 374.66 | G59: 91.6 | H59: 255.06 | I59: 78.43 | J59: 156.21 | K59: 54.15 | L59: 238.46 | M59: 184.94 | N59: 136.19 | O59: 79.86 | P59: 122.07 | Q59: 122.97 | R59: 260.73 | S59: 92.83 | T59: 50.75 | U59: 36.18 | V59: 119 | W59: 80.42 | X59: 28.55 | Y59: 149.35 | Z59: 154.44 | AA59: 166.95 | AB59: 93.98 | AC59: 95.21 | AD59: 41.59 | AE59: 155.64 | AF59: 452.68 | AG59: 174.55 | AH59: 279.1 | AI59: 94.41 | AJ59: 288.33 | AK59: 205.56 | AL59: 159.76 | AM59: 83.09 | AN59: 390.99 | AO59: 100.68 | AP59: 106.26 | AQ59: 40.8 | AR59: 69.27 | AS59: 5.91 | AT59: 329.52 | AU59: 132.17 | AV59: 261.82 | AW59: 307.53 | AX59: 23.27
A60: 58 | B60: 2021-01-07 | C60: 130.92 | D60: 111.3 | E60: 139.34 | F60: 365.02 | G60: 90.85 | H60: 253.5 | I60: 77.56 | J60: 155.62 | K60: 53.65 | L60: 239.87 | M60: 184.96 | N60: 137.05 | O60: 79.63 | P60: 122.6 | Q60: 123.94 | R60: 258.27 | S60: 93.83 | T60: 49.71 | U60: 36.76 | V60: 118.65 | W60: 81.09 | X60: 28.54 | Y60: 148.47 | Z60: 154.35 | AA60: 164.94 | AB60: 92.89 | AC60: 94.79 | AD60: 41.78 | AE60: 156.6 | AF60: 443.64 | AG60: 171.08 | AH60: 285.59 | AI60: 93.92 | AJ60: 292.58 | AK60: 201.96 | AL60: 160.53 | AM60: 82.98 | AN60: 385.95 | AO60: 100.31 | AP60: 108.19 | AQ60: 40.17 | AR60: 70.28 | AS60: 6.42 | AT60: 335.85 | AU60: 131.9 | AV60: 260.79 | AW60: 304.06 | AX60: 22.86
A61: 59 | B61: 2021-01-06 | C61: 126.6 | D61: 110.23 | E61: 137.95 | F61: 349.9 | G61: 88.69 | H61: 253.64 | I61: 77.55 | J61: 155.78 | K61: 53.85 | L61: 238.65 | M61: 183.79 | N61: 130.64 | O61: 78.83 | P61: 117.8 | Q61: 125.71 | R61: 258.34 | S61: 92.95 | T61: 49.1 | U61: 35.77 | V61: 112.92 | W61: 82.04 | X61: 28.81 | Y61: 147.29 | Z61: 153.47 | AA61: 161.49 | AB61: 92.06 | AC61: 93.93 | AD61: 41.42 | AE61: 154.78 | AF61: 435.17 | AG61: 170.68 | AH61: 287.53 | AI61: 89.72 | AJ61: 299.14 | AK61: 193.3 | AL61: 156.37 | AM61: 82.5 | AN61: 370.38 | AO61: 99.46 | AP61: 107.76 | AQ61: 39.51 | AR61: 69.9 | AS61: 6.52 | AT61: 330.91 | AU61: 130.7 | AV61: 262.47 | AW61: 294.14 | AX61: 23.12
A62: 60 | B62: 2021-01-05 | C62: 131.01 | D62: 110.46 | E62: 132.15 | F62: 359.83 | G62: 86.66 | H62: 251.03 | I62: 77.9 | J62: 151.72 | K62: 52.69 | L62: 239.16 | M62: 177.82 | N62: 136.14 | O62: 78.21 | P62: 113.93 | Q62: 121.74 | R62: 258.83 | S62: 88.83 | T62: 48.28 | U62: 34.59 | V62: 107.99 | W62: 78.87 | X62: 28.88 | Y62: 138.07 | Z62: 149.92 | AA62: 159.11 | AB62: 87.52 | AC62: 94.23 | AD62: 40.76 | AE62: 148.79 | AF62: 431.37 | AG62: 166.61 | AH62: 271.89 | AI62: 89.33 | AJ62: 296.59 | AK62: 191.75 | AL62: 151.9 | AM62: 82.39 | AN62: 356.87 | AO62: 99.34 | AP62: 101.72 | AQ62: 38.87 | AR62: 65.52 | AS62: 6.24 | AT62: 317 | AU62: 116.72 | AV62: 255.43 | AW62: 291.02 | AX62: 22.1

Sheet CEM PricesDivs
B2: AAPL | C2: ABT | D2: AIZ | E2: ANSS | F2: BAH | G2: BDX | H2: BFB | I2: BR | J2: BRC | K2: CACI | L2: CASY | M2: CDNS | N2: CERN | O2: CSWI | P2: DGX | Q2: EL | R2: EXPO | S2: FAST | T2: GNTX | U2: IFF | V2: INGR | W2: IRM | X2: JBHT | Y2: JJSF | Z2: JKHY | AA2: MANT | AB2: MKC | AC2: MO | AD2: MSA | AE2: MSCI | AF2: MSI | AG2: MTN | AH2: MXIM | AI2: NOC | AJ2: ODFL | AK2: PKI | AL2: PM | AM2: POOL | AN2: POST | AO2: RLI | AP2: ROL | AQ2: SIGI | AR2: SIRI | AS2: TECH | AT2: TTEK | AU2: WAT | AV2: WST | AW2: WU
A3: =IF('CEM Price Data'!B2="","",'CEM Price Data'!B2) -> PX_LAST | B3: =IF('CEM Price Data'!C2="","",'CEM Price Data'!C2) -> AAPL US Equity | C3: =IF('CEM Price Data'!D2="","",'CEM Price Data'!D2) -> ABT US Equity | D3: =IF('CEM Price Data'!E2="","",'CEM Price Data'!E2) -> AIZ US Equity | E3: =IF('CEM Price Data'!F2="","",'CEM Price Data'!F2) -> ANSS US Equity | F3: =IF('CEM Price Data'!G2="","",'CEM Price Data'!G2) -> BAH US Equity | G3: =IF('CEM Price Data'!H2="","",'CEM Price Data'!H2) -> BDX US Equity | H3: =IF('CEM Price Data'!I2="","",'CEM Price Data'!I2) -> BF/B US Equity | I3: =IF('CEM Price Data'!J2="","",'CEM Price Data'!J2) -> BR US Equity | J3: =IF('CEM Price Data'!K2="","",'CEM Price Data'!K2) -> BRC US Equity | K3: =IF('CEM Price Data'!L2="","",'CEM Price Data'!L2) -> CACI US Equity | L3: =IF('CEM Price Data'!M2="","",'CEM Price Data'!M2) -> CASY US Equity | M3: =IF('CEM Price Data'!N2="","",'CEM Price Data'!N2) -> CDNS US Equity | N3: =IF('CEM Price Data'!O2="","",'CEM Price Data'!O2) -> CERN US Equity | O3: =IF('CEM Price Data'!P2="","",'CEM Price Data'!P2) -> CSWI US Equity | P3: =IF('CEM Price Data'!Q2="","",'CEM Price Data'!Q2) -> DGX US Equity | Q3: =IF('CEM Price Data'!R2="","",'CEM Price Data'!R2) -> EL US Equity | R3: =IF('CEM Price Data'!S2="","",'CEM Price Data'!S2) -> EXPO US Equity | S3: =IF('CEM Price Data'!T2="","",'CEM Price Data'!T2) -> FAST US Equity | T3: =IF('CEM Price Data'!U2="","",'CEM Price Data'!U2) -> GNTX US Equity | U3: =IF('CEM Price Data'!V2="","",'CEM Price Data'!V2) -> IFF US Equity | V3: =IF('CEM Price Data'!W2="","",'CEM Price Data'!W2) -> INGR US Equity | W3: =IF('CEM Price Data'!X2="","",'CEM Price Data'!X2) -> IRM US Equity | X3: =IF('CEM Price Data'!Y2="","",'CEM Price Data'!Y2) -> JBHT US Equity | Y3: =IF('CEM Price Data'!Z2="","",'CEM Price Data'!Z2) -> JJSF US Equity | Z3: =IF('CEM Price Data'!AA2="","",'CEM Price Data'!AA2) -> JKHY US Equity | AA3: =IF('CEM Price Data'!AB2="","",'CEM Price Data'!AB2) -> MANT US Equity | AB3: =IF('CEM Price Data'!AC2="","",'CEM Price Data'!AC2) -> MKC US Equity | AC3: =IF('CEM Price Data'!AD2="","",'CEM Price Data'!AD2) -> MO US Equity | AD3: =IF('CEM Price Data'!AE2="","",'CEM Price Data'!AE2) -> MSA US Equity | AE3: =IF('CEM Price Data'!AF2="","",'CEM Price Data'!AF2) -> MSCI US Equity | AF3: =IF('CEM Price Data'!AG2="","",'CEM Price Data'!AG2) -> MSI US Equity | AG3: =IF('CEM Price Data'!AH2="","",'CEM Price Data'!AH2) -> MTN US Equity | AH3: =IF('CEM Price Data'!AI2="","",'CEM Price Data'!AI2) -> MXIM US Equity | AI3: =IF('CEM Price Data'!AJ2="","",'CEM Price Data'!AJ2) -> NOC US Equity | AJ3: =IF('CEM Price Data'!AK2="","",'CEM Price Data'!AK2) -> ODFL US Equity | AK3: =IF('CEM Price Data'!AL2="","",'CEM Price Data'!AL2) -> PKI US Equity | AL3: =IF('CEM Price Data'!AM2="","",'CEM Price Data'!AM2) -> PM US Equity | AM3: =IF('CEM Price Data'!AN2="","",'CEM Price Data'!AN2) -> POOL US Equity | AN3: =IF('CEM Price Data'!AO2="","",'CEM Price Data'!AO2) -> POST US Equity | AO3: =IF('CEM Price Data'!AP2="","",'CEM Price Data'!AP2) -> RLI US Equity | AP3: =IF('CEM Price Data'!AQ2="","",'CEM Price Data'!AQ2) -> ROL US Equity | AQ3: =IF('CEM Price Data'!AR2="","",'CEM Price Data'!AR2) -> SIGI US Equity | AR3: =IF('CEM Price Data'!AS2="","",'CEM Price Data'!AS2) -> SIRI US Equity | AS3: =IF('CEM Price Data'!AT2="","",'CEM Price Data'!AT2) -> TECH US Equity | AT3: =IF('CEM Price Data'!AU2="","",'CEM Price Data'!AU2) -> TTEK US Equity | AU3: =IF('CEM Price Data'!AV2="","",'CEM Price Data'!AV2) -> WAT US Equity | AV3: =IF('CEM Price Data'!AW2="","",'CEM Price Data'!AW2) -> WST US Equity | AW3: =IF('CEM Price Data'!AX2="","",'CEM Price Data'!AX2) -> WU US Equity
A4: =IF('CEM Price Data'!B3="","",'CEM Price Data'!B3) -> 2021-03-31 | B4: =IF('CEM Price Data'!C3="","",'CEM Price Data'!C3) -> 122.15 | C4: =IF('CEM Price Data'!D3="","",'CEM Price Data'!D3) -> 119.84 | D4: =IF('CEM Price Data'!E3="","",'CEM Price Data'!E3) -> 141.77 | E4: =IF('CEM Price Data'!F3="","",'CEM Price Data'!F3) -> 339.56 | F4: =IF('CEM Price Data'!G3="","",'CEM Price Data'!G3) -> 80.53 | G4: =IF('CEM Price Data'!H3="","",'CEM Price Data'!H3) -> 243.15 | H4: =IF('CEM Price Data'!I3="","",'CEM Price Data'!I3) -> 68.97 | I4: =IF('CEM Price Data'!J3="","",'CEM Price Data'!J3) -> 153.1 | J4: =IF('CEM Price Data'!K3="","",'CEM Price Data'!K3) -> 53.45 | K4: =IF('CEM Price Data'!L3="","",'CEM Price Data'!L3) -> 246.66 | L4: =IF('CEM Price Data'!M3="","",'CEM Price Data'!M3) -> 216.19 | M4: =IF('CEM Price Data'!N3="","",'CEM Price Data'!N3) -> 136.99 | N4: =IF('CEM Price Data'!O3="","",'CEM Price Data'!O3) -> 71.88 | O4: =IF('CEM Price Data'!P3="","",'CEM Price Data'!P3) -> 135 | P4: =IF('CEM Price Data'!Q3="","",'CEM Price Data'!Q3) -> 128.34 | Q4: =IF('CEM Price Data'!R3="","",'CEM Price Data'!R3) -> 290.85 | R4: =IF('CEM Price Data'!S3="","",'CEM Price Data'!S3) -> 97.45 | S4: =IF('CEM Price Data'!T3="","",'CEM Price Data'!T3) -> 50.28 | T4: =IF('CEM Price Data'!U3="","",'CEM Price Data'!U3) -> 35.67 | U4: =IF('CEM Price Data'!V3="","",'CEM Price Data'!V3) -> 139.61 | V4: =IF('CEM Price Data'!W3="","",'CEM Price Data'!W3) -> 89.92 | W4: =IF('CEM Price Data'!X3="","",'CEM Price Data'!X3) -> 37.01 | X4: =IF('CEM Price Data'!Y3="","",'CEM Price Data'!Y3) -> 168.07 | Y4: =IF('CEM Price Data'!Z3="","",'CEM Price Data'!Z3) -> 157.03 | Z4: =IF('CEM Price Data'!AA3="","",'CEM Price Data'!AA3) -> 151.72 | AA4: =IF('CEM Price Data'!AB3="","",'CEM Price Data'!AB3) -> 86.95 | AB4: =IF('CEM Price Data'!AC3="","",'CEM Price Data'!AC3) -> 89.16 | AC4: =IF('CEM Price Data'!AD3="","",'CEM Price Data'!AD3) -> 51.16 | AD4: =IF('CEM Price Data'!AE3="","",'CEM Price Data'!AE3) -> 150.02 | AE4: =IF('CEM Price Data'!AF3="","",'CEM Price Data'!AF3) -> 419.28 | AF4: =IF('CEM Price Data'!AG3="","",'CEM Price Data'!AG3) -> 188.05 | AG4: =IF('CEM Price Data'!AH3="","",'CEM Price Data'!AH3) -> 291.66 | AH4: =IF('CEM Price Data'!AI3="","",'CEM Price Data'!AI3) -> 91.37 | AI4: =IF('CEM Price Data'!AJ3="","",'CEM Price Data'!AJ3) -> 323.64 | AJ4: =IF('CEM Price Data'!AK3="","",'CEM Price Data'!AK3) -> 240.41 | AK4: =IF('CEM Price Data'!AL3="","",'CEM Price Data'!AL3) -> 128.29 | AL4: =IF('CEM Price Data'!AM3="","",'CEM Price Data'!AM3) -> 88.74 | AM4: =IF('CEM Price Data'!AN3="","",'CEM Price Data'!AN3) -> 345.24 | AN4: =IF('CEM Price Data'!AO3="","",'CEM Price Data'!AO3) -> 105.72 | AO4: =IF('CEM Price Data'!AP3="","",'CEM Price Data'!AP3) -> 111.57 | AP4: =IF('CEM Price Data'!AQ3="","",'CEM Price Data'!AQ3) -> 34.42 | AQ4: =IF('CEM Price Data'!AR3="","",'CEM Price Data'!AR3) -> 72.54 | AR4: =IF('CEM Price Data'!AS3="","",'CEM Price Data'!AS3) -> 6.09 | AS4: =IF('CEM Price Data'!AT3="","",'CEM Price Data'!AT3) -> 381.93 | AT4: =IF('CEM Price Data'!AU3="","",'CEM Price Data'!AU3) -> 135.72 | AU4: =IF('CEM Price Data'!AV3="","",'CEM Price Data'!AV3) -> 284.17 | AV4: =IF('CEM Price Data'!AW3="","",'CEM Price Data'!AW3) -> 281.78 | AW4: =IF('CEM Price Data'!AX3="","",'CEM Price Data'!AX3) -> 24.66
A5: =IF('CEM Price Data'!B4="","",'CEM Price Data'!B4) -> 2021-03-30 | B5: =IF('CEM Price Data'!C4="","",'CEM Price Data'!C4) -> 119.9 | C5: =IF('CEM Price Data'!D4="","",'CEM Price Data'!D4) -> 119.75 | D5: =IF('CEM Price Data'!E4="","",'CEM Price Data'!E4) -> 144.71 | E5: =IF('CEM Price Data'!F4="","",'CEM Price Data'!F4) -> 331.89 | F5: =IF('CEM Price Data'!G4="","",'CEM Price Data'!G4) -> 80.77 | G5: =IF('CEM Price Data'!H4="","",'CEM Price Data'!H4) -> 245.19 | H5: =IF('CEM Price Data'!I4="","",'CEM Price Data'!I4) -> 70 | I5: =IF('CEM Price Data'!J4="","",'CEM Price Data'!J4) -> 152.98 | J5: =IF('CEM Price Data'!K4="","",'CEM Price Data'!K4) -> 54.04 | K5: =IF('CEM Price Data'!L4="","",'CEM Price Data'!L4) -> 246.25 | L5: =IF('CEM Price Data'!M4="","",'CEM Price Data'!M4) -> 217.23 | M5: =IF('CEM Price Data'!N4="","",'CEM Price Data'!N4) -> 130.87 | N5: =IF('CEM Price Data'!O4="","",'CEM Price Data'!O4) -> 71.64 | O5: =IF('CEM Price Data'!P4="","",'CEM Price Data'!P4) -> 135.05 | P5: =IF('CEM Price Data'!Q4="","",'CEM Price Data'!Q4) -> 128.49 | Q5: =IF('CEM Price Data'!R4="","",'CEM Price Data'!R4) -> 295.13 | R5: =IF('CEM Price Data'!S4="","",'CEM Price Data'!S4) -> 96.24 | S5: =IF('CEM Price Data'!T4="","",'CEM Price Data'!T4) -> 50.62 | T5: =IF('CEM Price Data'!U4="","",'CEM Price Data'!U4) -> 35.89 | U5: =IF('CEM Price Data'!V4="","",'CEM Price Data'!V4) -> 139.75 | V5: =IF('CEM Price Data'!W4="","",'CEM Price Data'!W4) -> 92.19 | W5: =IF('CEM Price Data'!X4="","",'CEM Price Data'!X4) -> 37.16 | X5: =IF('CEM Price Data'!Y4="","",'CEM Price Data'!Y4) -> 169.34 | Y5: =IF('CEM Price Data'!Z4="","",'CEM Price Data'!Z4) -> 156.91 | Z5: =IF('CEM Price Data'!AA4="","",'CEM Price Data'!AA4) -> 153.4 | AA5: =IF('CEM Price Data'!AB4="","",'CEM Price Data'!AB4) -> 86.67 | AB5: =IF('CEM Price Data'!AC4="","",'CEM Price Data'!AC4) -> 89.9 | AC5: =IF('CEM Price Data'!AD4="","",'CEM Price Data'!AD4) -> 51.26 | AD5: =IF('CEM Price Data'!AE4="","",'CEM Price Data'!AE4) -> 150.05 | AE5: =IF('CEM Price Data'!AF4="","",'CEM Price Data'!AF4) -> 417.51 | AF5: =IF('CEM Price Data'!AG4="","",'CEM Price Data'!AG4) -> 186.61 | AG5: =IF('CEM Price Data'!AH4="","",'CEM Price Data'!AH4) -> 290.16 | AH5: =IF('CEM Price Data'!AI4="","",'CEM Price Data'!AI4) -> 89.92 | AI5: =IF('CEM Price Data'!AJ4="","",'CEM Price Data'!AJ4) -> 322.68 | AJ5: =IF('CEM Price Data'!AK4="","",'CEM Price Data'!AK4) -> 240.61 | AK5: =IF('CEM Price Data'!AL4="","",'CEM Price Data'!AL4) -> 127.73 | AL5: =IF('CEM Price Data'!AM4="","",'CEM Price Data'!AM4) -> 89.35 | AM5: =IF('CEM Price Data'!AN4="","",'CEM Price Data'!AN4) -> 342.37 | AN5: =IF('CEM Price Data'!AO4="","",'CEM Price Data'!AO4) -> 106.69 | AO5: =IF('CEM Price Data'!AP4="","",'CEM Price Data'!AP4) -> 112.4 | AP5: =IF('CEM Price Data'!AQ4="","",'CEM Price Data'!AQ4) -> 33.92 | AQ5: =IF('CEM Price Data'!AR4="","",'CEM Price Data'!AR4) -> 73.3 | AR5: =IF('CEM Price Data'!AS4="","",'CEM Price Data'!AS4) -> 6.12 | AS5: =IF('CEM Price Data'!AT4="","",'CEM Price Data'!AT4) -> 373.47 | AT5: =IF('CEM Price Data'!AU4="","",'CEM Price Data'!AU4) -> 133.63 | AU5: =IF('CEM Price Data'!AV4="","",'CEM Price Data'!AV4) -> 282.51 | AV5: =IF('CEM Price Data'!AW4="","",'CEM Price Data'!AW4) -> 278.34 | AW5: =IF('CEM Price Data'!AX4="","",'CEM Price Data'!AX4) -> 24.84
